Workbook

Sheet GENERAL
A1: CLUB CONSERVADOR DE CARTES I JOCS | K1: ORDRE DARRER MES
B2: Temporada 2020-21 | K2: 1 | L2: Montse | M2: 5 | N2: Ana | O2: 9 | P2: Alfred | Q2: 13 | R2: Gemma | S2: 17 | T2: Núria
K3: 2 | L3: Carles | M3: 6 | N3: Manel | O3: 10 | P3: Grau | Q3: 14 | R3: Jeff
B4: Classificació general | K4: 3 | L4: Sebas | M4: 7 | N4: Jordi | O4: 11 | P4: Mariajo | Q4: 15 | R4: Nin
B5: OCTUBRE | K5: 4 | L5: Sergi | M5: 8 | N5: Marina | O5: 12 | P5: Òscar | Q5: 16 | R5: Tim
B6: 12 | C6: Mesos
A7: =MAX(D7:AK7) -> 388 | B7: Timbes | D7: =+King!AO43 -> 387 | E7: =+Buti!BH42 -> 373 | F7: =+Pocha!AK40 -> 0 | G7: =+Julepe!AK39 -> 0 | H7: =+Pumba!BB40 -> 363 | I7: =+Cors!AE42 -> 0 | J7: =+Podrida!AK37 -> 198 | K7: =+Buti3!AS38 -> 0 | L7: =+Remigio!AY40 -> 0 | M7: =+Truc!AY39 -> 0 | N7: =+Texas!AM41 -> 0 | O7: =+Omaha!AG38 -> 0 | P7: =+'Black Jack'!AE38 -> 0 | Q7: =+Chinchón!AP38 -> 0 | R7: =+Mus!AE38 -> 0 | S7: =+Kul!AI39 -> 363 | T7: =+Manilla!BH42 -> 0 | U7: =+Tute!BH42 -> 0 | V7: =+'4 Duros'!AM41 -> 0 | W7: =+'Poker C'!AE38 -> 0 | X7: =+Whist!BH42 -> 0 | Y7: =+Wizard!AU44 -> 388 | Z7: =+'Tute cabrò'!AE38 -> 0 | AA7: =+Copo!AE38 -> 0 | AB7: =+Escombra!AO43 -> 0 | AC7: =+'1000km'!BB40 -> 0 | AD7: =+Cribbage!BK45 -> 388 | AE7: =+Canasta!BB40 -> 0 | AF7: =+Portugués!AO43 -> 0 | AG7: =+Tarot!BH42 -> 363 | AH7: =+Guinyot!BB40 -> 0
A8: =SUM(D8:AK8) -> 1270 | B8: Partides | D8: =+King!AO44 -> 33 | E8: =+Buti!BH43 -> 1 | F8: =+Pocha!AK41 -> 0 | G8: =+Julepe!AK40 -> 0 | H8: =+Pumba!BB41 -> 1 | I8: =+Cors!AE43 -> 0 | J8: =+Podrida!AK41 -> 114 | K8: =+Buti3!AS39 -> 0 | L8: =+Remigio!AY41 -> 0 | M8: =+Truc!AY40 -> 0 | N8: =+Texas!AM42 -> 0 | O8: =+Omaha!AG39 -> 0 | P8: =+'Black Jack'!AE39 -> 0 | Q8: =+Chinchón!AP39 -> 0 | R8: =+Mus!AE39 -> 0 | S8: =+Kul!AI40 -> 3 | T8: =+Manilla!BH43 -> 0 | U8: =+Tute!BH43 -> 0 | V8: =+'4 Duros'!AM42 -> 0 | W8: =+'Poker C'!AE39 -> 0 | X8: =+Whist!BH43 -> 0 | Y8: =+Wizard!AU45 -> 783 | Z8: =+'Tute cabrò'!AE39 -> 0 | AA8: =+Copo!AE39 -> 0 | AB8: =+Escombra!AO44 -> 0 | AC8: =+'1000km'!BB41 -> 0 | AD8: =+Cribbage!BK46 -> 334 | AE8: =+Canasta!BB41 -> 0 | AF8: =+Portugués!AO44 -> 0 | AG8: =+Tarot!BH43 -> 1 | AH8: =+Guinyot!BB41 -> 0
D9: =IF(SUM(D11:D519)>0,1,0) -> 1 | E9: =IF(SUM(E11:E519)>0,1,0) -> 0 | F9: =IF(SUM(F11:F519)>0,1,0) -> 0 | G9: =IF(SUM(G11:G529)>0,1,0) -> 1 | H9: =IF(SUM(H11:H337)>0,1,0) -> 1 | I9: =IF(SUM(I11:I339)>0,1,0) -> 1 | L9: =IF(SUM(O11:O415)>0,1,0) -> 1 | AK9: =IF(SUM(AK11:AK427)>0,1,0) -> 0
C10: GENERAL | D10: KING | E10: BOTIFARRA | F10: POCHA | G10: JULEPE | H10: PUMBA | I10: CORS | J10: PODRIDA | K10: BUTI 3 | L10: REMIGIO | M10: TRUC | N10: TEXAS | O10: OMAHA | P10: BLACK JACK | Q10: CHINCHÓN | R10: MUS | S10: CUL | T10: MANILLA | U10: TUTE | V10: 4 DUROS | W10: POKER C | X10: WHIST | Y10: WIZARD | Z10: TUTE CABRÒ | AA10: COPO | AB10: ESCOMBRA | AC10: 1000 Km | AD10: CRIBBAGE | AE10: CANASTA | AF10: PORTUGUÈS | AG10: TAROT | AH10: GUINYOT | AK10: Joc 8 | AL10: PARTIDES | AM10: KING | AN10: BOTIFARRA | AO10: POCHA | AP10: JULEPE | AQ10: PUMBA | AR10: CORS | AS10: PODRIDA | AT10: REMIGIO | AU10: BUTI 3 | AV10: TRUC | AW10: TEXAS | AX10: OMAHA | AY10: BLACK JACK | AZ10: CHINCHÓN | BA10: MUS | BB10: CUL | BC10: MANILLA | BD10: TUTE | BE10: 4 DUROS | BF10: POKEC C | BG10: WHIST | BH10: WIZARD | BI10: TUTE CABRÒ | BJ10: COPO | BK10: ESCOMBRA | BL10: 1000 Km | BM10: CRIBBAGE | BN10: CANASTA | BO10: PORTUGUÈS | BP10: TAROT | BQ10: GUINYOT
A11: =RANK(C11,C$11:C$36) -> 1 | B11: Carles | C11: =SUM(D11:AK11)+AL11/10000 -> 220.0373 | D11: =+King!C27 -> 80 | E11: =+Buti!U26 -> 0 | F11: =+Pocha!O24 -> 0 | G11: =+Julepe!O23 -> 0 | H11: =+Pumba!U24 -> 0 | I11: =+Cors!O22 -> 0 | J11: =+Podrida!O$24 -> 40 | K11: =+Buti3!U22 -> 0 | L11: =+Remigio!U24 -> 0 | M11: =+Truc!U23 -> 0 | N11: =+Texas!O25 -> 0 | O11: =+Omaha!O22 -> 0 | P11: =+'Black Jack'!O22 -> 0 | Q11: =+Chinchón!U22 -> 0 | R11: =+Mus!O22 -> 0 | S11: =+Kul!O23 -> 0 | T11: =+Manilla!U26 -> 0 | U11: =+Tute!U26 -> 0 | V11: =+'4 Duros'!O25 -> 0 | W11: =+'Poker C'!O22 -> 0 | X11: =+Whist!U26 -> 0 | Y11: =+Wizard!Q28 -> 80 | Z11: =+'Tute cabrò'!O22 -> 0 | AA11: =+Copo!O22 -> 0 | AB11: =+Escombra!C27 -> 0 | AC11: =+'1000km'!U24 -> 0 | AD11: =+Cribbage!U29 -> 20 | AE11: =+Canasta!U24 -> 0 | AF11: =+Portugués!C27 -> 0 | AG11: =+Tarot!U26 -> 0 | AH11: =+Guinyot!U24 -> 0 | AL11: =SUM(AM11:BR11) -> 373 | AM11: =+King!D27 -> 17 | AN11: =+Buti!V26 -> 0 | AO11: =+Pocha!P24 -> 0 | AP11: =+Julepe!P23 -> 0 | AQ11: =+Pumba!V24 -> 0 | AR11: =+Cors!P22 -> 0 | AS11: =+Podrida!P$24 -> 23 | AT11: =+Remigio!V24 -> 0 | AU11: =+Buti3!V22 -> 0 | AV11: =+Truc!V23 -> 0 | AW11: =+Texas!P25 -> 0 | AX11: =+Omaha!P22 -> 0 | AY11: =+'Black Jack'!P22 -> 0 | AZ11: =+Chinchón!V22 -> 0 | BA11: =+Mus!P22 -> 0 | BB11: =+Kul!P23 -> 0 | BC11: =+Manilla!V26 -> 0 | BD11: =+Tute!V26 -> 0 | BE11: =+'4 Duros'!P25 -> 0 | BF11: =+'Poker C'!P22 -> 0 | BG11: =+Whist!V26 -> 0 | BH11: =+Wizard!R28 -> 312 | BI11: =+'Tute cabrò'!P22 -> 0 | BJ11: =+Copo!P22 -> 0 | BK11: =+Escombra!D27 -> 0 | BL11: =+'1000km'!Y24 -> 0 | BM11: =+Cribbage!V29 -> 21 | BN11: =+Canasta!Y24 -> 0 | BO11: =+Portugués!AN27 -> 0 | BP11: =+Tarot!Y26 -> 0 | BQ11: =+Guinyot!Y24 -> 0
A12: 2 | B12: Jordi | C12: 170.0456 | D12: =+King!G27 -> 40 | E12: =+Buti!I26 -> 0 | F12: =+Pocha!G24 -> 0 | G12: =+Julepe!G23 -> 0 | H12: =+Pumba!I24 -> 0 | I12: =+Cors!G22 -> 0 | J12: =+Podrida!G$24 -> 80 | K12: =+Buti3!I22 -> 0 | L12: =+Remigio!I24 -> 0 | M12: =+Truc!I23 -> 0 | N12: =+Texas!G25 -> 0 | O12: =+Omaha!G22 -> 0 | P12: =+'Black Jack'!G22 -> 0 | Q12: =+Chinchón!I22 -> 0 | R12: =+Mus!G22 -> 0 | S12: =+Kul!G23 -> 0 | T12: =+Manilla!I26 -> 0 | U12: =+Tute!I26 -> 0 | V12: =+'4 Duros'!G25 -> 0 | W12: =+'Poker C'!G22 -> 0 | X12: =+Whist!I26 -> 0 | Y12: =+Wizard!G28 -> 40 | Z12: =+'Tute cabrò'!G22 -> 0 | AA12: =+Copo!G22 -> 0 | AB12: =+Escombra!G27 -> 0 | AC12: =+'1000km'!I24 -> 0 | AD12: =+Cribbage!C29 -> 10 | AE12: =+Canasta!I24 -> 0 | AF12: =+Portugués!G27 -> 0 | AG12: =+Tarot!I26 -> 0 | AH12: =+Guinyot!I24 -> 0 | AL12: 456 | AM12: =+King!H27 -> 16 | AN12: =+Buti!J26 -> 0 | AO12: =+Pocha!H24 -> 0 | AP12: =+Julepe!H23 -> 0 | AQ12: =+Pumba!J24 -> 0 | AR12: =+Cors!H22 -> 0 | AS12: =+Podrida!H$24 -> 53 | AT12: =+Remigio!J24 -> 0 | AU12: =+Buti3!J22 -> 0 | AV12: =+Truc!J23 -> 0 | AW12: =+Texas!H25 -> 0 | AX12: =+Omaha!H22 -> 0 | AY12: =+'Black Jack'!H22 -> 0 | AZ12: =+Chinchón!J22 -> 0 | BA12: =+Mus!H22 -> 0 | BB12: =+Kul!H23 -> 0 | BC12: =+Manilla!J26 -> 0 | BD12: =+Tute!J26 -> 0 | BE12: =+'4 Duros'!H25 -> 0 | BF12: =+'Poker C'!H22 -> 0 | BG12: =+Whist!J26 -> 0 | BH12: =+Wizard!H28 -> 265 | BI12: =+'Tute cabrò'!H22 -> 0 | BJ12: =+Copo!H22 -> 0 | BK12: =+Escombra!H27 -> 0 | BL12: =+'1000km'!V24 -> 0 | BM12: =+Cribbage!D29 -> 122 | BN12: =+Canasta!V24 -> 0 | BO12: =+Portugués!D27 -> 0 | BP12: =+Tarot!V26 -> 0 | BQ12: =+Guinyot!V24 -> 0
A13: 3 | B13: Sebas | C13: 95.0391 | D13: =+King!U27 -> 10 | E13: =+Buti!F26 -> 0 | H13: =+Pumba!AJ24 -> 0 | I13: =+Cors!AC22 -> 0 | J13: =+Podrida!AC24 -> 5 | O13: =+Omaha!AE22 -> 0 | P13: =+'Black Jack'!AA22 -> 0 | S13: =+Kul!AC23 -> 0 | U13: =+Tute!F26 -> 0 | X13: =+Whist!F26 -> 0 | Y13: =+Wizard!AO28 -> 0 | AD13: =+Cribbage!AP29 -> 80 | AL13: 391 | AM13: =+King!V27 -> 17 | AN13: =+Buti!G26 -> 0 | AQ13: =+Pumba!AK24 -> 0 | AR13: =+Cors!AD22 -> 0 | AS13: =+Podrida!AD24 -> 36 | AX13: =+Omaha!AF22 -> 0 | AY13: =+'Black Jack'!AB22 -> 0 | BB13: =+Kul!AD23 -> 0 | BD13: =+Tute!G26 -> 0 | BG13: =+Whist!G26 -> 0 | BH13: =+Wizard!AP28 -> 241 | BM13: =+Cribbage!AQ29 -> 97
A14: 4 | B14: Gemma | C14: 40.079 | D14: =+King!AC27 -> 0 | E14: =+Buti!AJ26 -> 0 | F14: =+Pocha!AG24 -> 0 | H14: =+Pumba!C24 -> 0 | J14: =+Podrida!AA$24 -> 0 | K14: =+Buti3!AP22 -> 0 | L14: =+Remigio!AM24 -> 0 | N14: =+Texas!AA25 -> 0 | Q14: =+Chinchón!O22 -> 0 | R14: =+Mus!AA22 -> 0 | S14: =+Kul!Y23 -> 0 | T14: =+Manilla!AJ26 -> 0 | U14: =+Tute!AJ26 -> 0 | V14: =+'4 Duros'!AA25 -> 0 | X14: =+Whist!AJ26 -> 0 | Y14: =+Wizard!AM28 -> 0 | AC14: =+'1000km'!C24 -> 0 | AD14: =+Cribbage!L29 -> 40 | AE14: =+Canasta!C24 -> 0 | AL14: 790 | AM14: =+King!AD27 -> 14 | AN14: =+Buti!AK26 -> 0 | AO14: =+Pocha!AH24 -> 0 | AQ14: =+Pumba!D24 -> 0 | AS14: =+Podrida!AB$24 -> 75 | AT14: =+Remigio!AN24 -> 0 | AU14: =+Buti3!AQ22 -> 0 | AW14: =+Texas!AB25 -> 0 | AZ14: =+Chinchón!P22 -> 0 | BA14: =+Mus!AB22 -> 0 | BB14: =+Kul!Z23 -> 0 | BC14: =+Manilla!AK26 -> 0 | BD14: =+Tute!AK26 -> 0 | BE14: =+'4 Duros'!AB25 -> 0 | BG14: =+Whist!AK26 -> 0 | BH14: =+Wizard!AN28 -> 472 | BL14: =+'1000km'!D24 -> 0 | BM14: =+Cribbage!M29 -> 229 | BN14: =+Canasta!D24 -> 0
A15: 5 | B15: Núria | C15: 30.0689 | D15: =+King!AK27 -> 5 | E15: =+Buti!AA26 -> 0 | F15: =+Pocha!S24 -> 0 | G15: =+Julepe!S23 -> 0 | H15: =+Pumba!AA24 -> 0 | J15: =+Podrida!W$24 -> 20 | K15: =+Buti3!AA22 -> 0 | L15: =+Remigio!AA24 -> 0 | M15: =+Truc!AA23 -> 0 | N15: =+Texas!S25 -> 0 | P15: =+'Black Jack'!S22 -> 0 | Q15: =+Chinchón!AA22 -> 0 | R15: =+Mus!S22 -> 0 | S15: =+Kul!E23 -> 0 | T15: =+Manilla!AA26 -> 0 | U15: =+Tute!AA26 -> 0 | V15: =+'4 Duros'!S25 -> 0 | X15: =+Whist!AA26 -> 0 | Y15: =+Wizard!AK28 -> 5 | Z15: =+'Tute cabrò'!S22 -> 0 | AA15: =+Copo!S22 -> 0 | AC15: =+'1000km'!AA24 -> 0 | AD15: =+Cribbage!I29 -> 0 | AL15: 689 | AM15: =+King!AL27 -> 11 | AN15: =+Buti!AB26 -> 0 | AO15: =+Pocha!T24 -> 0 | AP15: =+Julepe!T23 -> 0 | AQ15: =+Pumba!AB24 -> 0 | AS15: =+Podrida!X$24 -> 56 | AT15: =+Remigio!AB24 -> 0 | AU15: =+Buti3!AB22 -> 0 | AV15: =+Truc!AB23 -> 0 | AW15: =+Texas!T25 -> 0 | AZ15: =+Chinchón!AB22 -> 0 | BA15: =+Mus!T22 -> 0 | BB15: =+Kul!F23 -> 0 | BC15: =+Manilla!AB26 -> 0 | BD15: =+Tute!AB26 -> 0 | BE15: =+'4 Duros'!T25 -> 0 | BG15: =+Whist!AB26 -> 0 | BH15: =+Wizard!AL28 -> 437 | BI15: =+'Tute cabrò'!T22 -> 0 | BJ15: =+Copo!T22 -> 0 | BL15: =+'1000km'!AB24 -> 0 | BM15: =+Cribbage!J29 -> 185
A16: 6 | B16: Grau | C16: 20.0829 | D16: =+King!AG27 -> 0 | E16: =+Buti!AV26 -> 0 | F16: =+Pocha!AC24 -> 0 | G16: =+Julepe!AI23 -> 0 | H16: =+Pumba!AY24 -> 0 | I16: =+Cors!C22 -> 0 | J16: =+Podrida!AG$24 -> 0 | K16: =+Buti3!AM22 -> 0 | M16: =+Truc!AV23 -> 0 | N16: =+Texas!K25 -> 0 | O16: =+Omaha!S22 -> 0 | R16: =+Mus!AC22 -> 0 | S16: =+Kul!K23 -> 0 | T16: =+Manilla!AV26 -> 0 | U16: =+Tute!C26 -> 0 | V16: =+'4 Duros'!C25 -> 0 | W16: =+'Poker C'!S22 -> 0 | Y16: =+Wizard!U28 -> 20 | Z16: =+'Tute cabrò'!E22 -> 0 | AB16: =+Escombra!AG27 -> 0 | AC16: =+'1000km'!AY24 -> 0 | AD16: =+Cribbage!AV29 -> 0 | AE16: =+Canasta!AY24 -> 0 | AF16: =+Portugués!AG27 -> 0 | AG16: =+Tarot!AV26 -> 0 | AH16: =+Guinyot!AY24 -> 0 | AL16: 829 | AM16: =+King!AH27 -> 3 | AN16: =+Buti!AW26 -> 0 | AO16: =+Pocha!AD24 -> 0 | AP16: =+Julepe!AJ23 -> 0 | AQ16: =+Pumba!AZ24 -> 0 | AR16: =+Cors!D22 -> 0 | AS16: =+Podrida!AH$24 -> 78 | AU16: =+Buti3!AN22 -> 0 | AV16: =+Truc!AW23 -> 0 | AW16: =+Texas!L25 -> 0 | AX16: =+Omaha!T22 -> 0 | BA16: =+Mus!AD22 -> 0 | BB16: =+Kul!L23 -> 0 | BC16: =+Manilla!AW26 -> 0 | BD16: =+Tute!D26 -> 0 | BE16: =+'4 Duros'!D25 -> 0 | BF16: =+'Poker C'!T22 -> 0 | BH16: =+Wizard!V28 -> 584 | BI16: =+'Tute cabrò'!F22 -> 0 | BK16: =+Escombra!AH27 -> 0 | BL16: =+'1000km'!J24 -> 0 | BM16: =+Cribbage!AW29 -> 164 | BN16: =+Canasta!J24 -> 0 | BO16: =+Portugués!H27 -> 0 | BP16: =+Tarot!J26 -> 0 | BQ16: =+Guinyot!J24 -> 0
A17: 7 | B17: Manolo | C17: 20.0194 | D17: =+King!AA27 -> 20 | E17: =+Buti!AM26 -> 0 | F17: =+Pocha!C24 -> 0 | G17: =+Julepe!C23 -> 0 | H17: =+Pumba!O24 -> 0 | I17: =+Cors!E22 -> 0 | J17: =+Podrida!Y$24 -> 0 | M17: =+Truc!F23 -> 0 | N17: =+Texas!U25 -> 0 | O17: =+Omaha!AA22 -> 0 | P17: =+'Black Jack'!E22 -> 0 | R17: =+Mus!E22 -> 0 | S17: =+Kul!I23 -> 0 | T17: =+Manilla!AM26 -> 0 | U17: =+Tute!AM26 -> 0 | X17: =+Whist!AM26 -> 0 | Y17: =+Wizard!C28 -> 0 | Z17: =+'Tute cabrò'!U22 -> 0 | AB17: =+Escombra!S27 -> 0 | AD17: =+Cribbage!AM29 -> 0 | AF17: =+Portugués!E27 -> 0 | AG17: =+Tarot!AM26 -> 0 | AH17: =+Guinyot!O24 -> 0 | AL17: 194 | AM17: =+King!AB27 -> 15 | AN17: =+Buti!AN26 -> 0 | AO17: =+Pocha!D24 -> 0 | AP17: =+Julepe!D23 -> 0 | AQ17: =+Pumba!P24 -> 0 | AR17: =+Cors!F22 -> 0 | AS17: =+Podrida!Z$24 -> 11 | AV17: =+Truc!G23 -> 0 | AW17: =+Texas!V25 -> 0 | AX17: =+Omaha!AB22 -> 0 | AY17: =+'Black Jack'!F22 -> 0 | BA17: =+Mus!F22 -> 0 | BB17: =+Kul!J23 -> 0 | BC17: =+Manilla!AN26 -> 0 | BD17: =+Tute!AN26 -> 0 | BE17: =+'4 Duros'!AF25 -> 0 | BG17: =+Whist!AN26 -> 0 | BH17: =+Wizard!D28 -> 156 | BI17: =+'Tute cabrò'!V22 -> 0 | BK17: =+Escombra!T27 -> 0 | BM17: =+Cribbage!AN29 -> 12 | BO17: =+Portugués!F27 -> 0 | BP17: =+Tarot!AN26 -> 0 | BQ17: =+Guinyot!G24 -> 0
A18: 8 | B18: Cyber X | C18: 10.0396 | D18: =+King!Q27 -> 0 | E18: =+Buti!AD26 -> 0 | F18: =+Pocha!E24 -> 0 | I18: =+Cors!S22 -> 0 | J18: =+Podrida!E$24 -> 10 | L18: =+Remigio!L24 -> 0 | N18: =+Texas!E25 -> 0 | T18: =+Manilla!F26 -> 0 | W18: =+'Poker C'!E22 -> 0 | Y18: =+Wizard!K28 -> 0 | Z18: =+'Tute cabrò'!I22 -> 0 | AB18: =+Escombra!E27 -> 0 | AC18: =+'1000km'!F24 -> 0 | AE18: =+Canasta!F24 -> 0 | AL18: 396 | AM18: =+King!R27 -> 11 | AN18: =+Buti!AE26 -> 0 | AO18: =+Pocha!F24 -> 0 | AR18: =+Cors!T22 -> 0 | AS18: =+Podrida!F$24 -> 10 | AT18: =+Remigio!M24 -> 0 | AW18: =+Texas!F25 -> 0 | BC18: =+Manilla!G26 -> 0 | BF18: =+'Poker C'!F22 -> 0 | BH18: =+Wizard!L28 -> 375 | BI18: =+'Tute cabrò'!J22 -> 0 | BK18: =+Escombra!F27 -> 0 | BL18: =+'1000km'!AW24 -> 0 | BN18: =+Canasta!AW24 -> 0
A19: 9 | B19: Sergi | C19: 10.0171 | D19: =+King!M27 -> 0 | E19: =+Buti!R26 -> 0 | F19: =+Pocha!M24 -> 0 | G19: =+Julepe!M23 -> 0 | H19: =+Pumba!R24 -> 0 | I19: =+Cors!M22 -> 0 | J19: =+Podrida!M$24 -> 0 | K19: =+Buti3!R22 -> 0 | L19: =+Remigio!R24 -> 0 | M19: =+Truc!R23 -> 0 | N19: =+Texas!M25 -> 0 | O19: =+Omaha!M22 -> 0 | P19: =+'Black Jack'!M22 -> 0 | Q19: =+Chinchón!R22 -> 0 | R19: =+Mus!M22 -> 0 | S19: =+Kul!M23 -> 0 | T19: =+Manilla!R26 -> 0 | U19: =+Tute!R26 -> 0 | V19: =+'4 Duros'!M25 -> 0 | W19: =+'Poker C'!M22 -> 0 | X19: =+Whist!R26 -> 0 | Y19: =+Wizard!O28 -> 10 | Z19: =+'Tute cabrò'!M22 -> 0 | AA19: =+Copo!M22 -> 0 | AB19: =+Escombra!M27 -> 0 | AC19: =+'1000km'!R24 -> 0 | AD19: =+Cribbage!F29 -> 0 | AE19: =+Canasta!R24 -> 0 | AF19: =+Portugués!M27 -> 0 | AG19: =+Tarot!R26 -> 0 | AH19: =+Guinyot!R24 -> 0 | AL19: 171 | AM19: =+King!N27 -> 2 | AN19: =+Buti!S26 -> 0 | AO19: =+Pocha!N24 -> 0 | AP19: =+Julepe!N23 -> 0 | AQ19: =+Pumba!S24 -> 0 | AR19: =+Cors!N22 -> 0 | AS19: =+Podrida!N$24 -> 1 | AT19: =+Remigio!S24 -> 0 | AU19: =+Buti3!S22 -> 0 | AV19: =+Truc!S23 -> 0 | AW19: =+Texas!N25 -> 0 | AX19: =+Omaha!N22 -> 0 | AY19: =+'Black Jack'!N22 -> 0 | AZ19: =+Chinchón!S22 -> 0 | BA19: =+Mus!N22 -> 0 | BB19: =+Kul!N23 -> 0 | BC19: =+Manilla!S26 -> 0 | BD19: =+Tute!S26 -> 0 | BE19: =+'4 Duros'!N25 -> 0 | BF19: =+'Poker C'!N22 -> 0 | BG19: =+Whist!S26 -> 0 | BH19: =+Wizard!P28 -> 163 | BI19: =+'Tute cabrò'!N22 -> 0 | BJ19: =+Copo!N22 -> 0 | BK19: =+Escombra!N27 -> 0 | BM19: =+Cribbage!G29 -> 5 | BN19: =+Canasta!S24 -> 0 | BO19: =+Portugués!N27 -> 0 | BP19: =+Tarot!S26 -> 0 | BQ19: =+Guinyot!AK24 -> 0
A20: 10 | B20: Nogué | C20: 5.0558 | D20: =+King!Y27 -> 0 | E20: =+Buti!AP26 -> 0 | H20: =+Pumba!AM24 -> 0 | J20: =+Podrida!AE24 -> 0 | L20: =+Remigio!AP24 -> 0 | N20: =+Texas!AC25 -> 0 | O20: =+Omaha!K22 -> 0 | Q20: =+Chinchón!F22 -> 0 | R20: =+Mus!U22 -> 0 | S20: =+Kul!AE23 -> 0 | T20: =+Manilla!AP26 -> 0 | U20: =+Tute!AP26 -> 0 | V20: =+'4 Duros'!AC25 -> 0 | X20: =+Whist!AP26 -> 0 | Y20: =+Wizard!AS28 -> 0 | Z20: =+'Tute cabrò'!AC22 -> 0 | AB20: =+Escombra!AC27 -> 0 | AD20: =+Cribbage!R29 -> 5 | AL20: 558 | AM20: =+King!Z27 -> 9 | AN20: =+Buti!AQ26 -> 0 | AQ20: =+Pumba!AN24 -> 0 | AS20: =+Podrida!AF24 -> 65 | AT20: =+Remigio!AQ24 -> 0 | AW20: =+Texas!AD25 -> 0 | AX20: =+Omaha!L22 -> 0 | AZ20: =+Chinchón!G22 -> 0 | BA20: =+Mus!V22 -> 0 | BB20: =+Kul!AF23 -> 0 | BC20: =+Manilla!AQ26 -> 0 | BD20: =+Tute!AQ26 -> 0 | BE20: =+'4 Duros'!AD25 -> 0 | BG20: =+Whist!AQ26 -> 0 | BH20: =+Wizard!AT28 -> 234 | BI20: =+'Tute cabrò'!AD22 -> 0 | BK20: =+Escombra!AD27 -> 0 | BL20: =+'1000km'!AE24 -> 0 | BM20: =+Cribbage!S29 -> 250
A21: 11 | B21: Ana B. | C21: 0.0305 | D21: =+King!S27 -> 0 | E21: =+Buti!C26 -> 0 | H21: =+Pumba!F24 -> 0 | J21: =+Podrida!Q24 -> 0 | K21: =+Buti3!F22 -> 0 | M21: =+Truc!AJ23 -> 0 | P21: =+'Black Jack'!C22 -> 0 | S21: =+Kul!C23 -> 0 | T21: =+Manilla!C26 -> 0 | X21: =+Whist!C26 -> 0 | Y21: =+Wizard!E28 -> 0 | AD21: =+Cribbage!AG29 -> 0 | AH21: =+Guinyot!F24 -> 0 | AL21: 305 | AM21: =+King!T27 -> 0 | AN21: =+Buti!D26 -> 0 | AQ21: =+Pumba!G24 -> 0 | AS21: =+Podrida!R24 -> 24 | AU21: =+Buti3!G22 -> 0 | AV21: =+Truc!AK23 -> 0 | AY21: =+'Black Jack'!D22 -> 0 | BB21: =+Kul!D23 -> 0 | BC21: =+Manilla!D26 -> 0 | BG21: =+Whist!D26 -> 0 | BH21: =+Wizard!F28 -> 268 | BM21: =+Cribbage!AH29 -> 13
A22: 12 | B22: Nin | C22: 0.0153 | D22: =+King!AE27 -> 0 | H22: =+Pumba!L24 -> 0 | I22: =+Cors!U22 -> 0 | J22: =+Podrida!U$24 -> 0 | S22: =+Kul!AA23 -> 0 | Y22: =+Wizard!AC28 -> 0 | AD22: =+Cribbage!BE29 -> 0 | AG22: =+Tarot!AY26 -> 0 | AL22: 153 | AM22: =+King!AF27 -> 16 | AQ22: =+Pumba!M24 -> 0 | AR22: =+Cors!V22 -> 0 | AS22: =+Podrida!V$24 -> 12 | BB22: =+Kul!AB23 -> 0 | BH22: =+Wizard!AD28 -> 113 | BM22: =+Cribbage!BF29 -> 12
A23: 13 | B23: Tito | C23: 0.0098 | D23: =+King!K27 -> 0 | E23: =+Buti!BB26 -> 0 | G23: =+Julepe!AG23 -> 0 | H23: =+Pumba!AV24 -> 0 | I23: =+Cors!I22 -> 0 | J23: =+Podrida!K$24 -> 0 | M23: =+Truc!AM23 -> 0 | N23: =+Texas!AI25 -> 0 | O23: =+Omaha!C22 -> 0 | S23: =+Kul!W23 -> 0 | T23: =+Manilla!BB26 -> 0 | V23: =+'4 Duros'!AI25 -> 0 | Y23: =+Wizard!AA28 -> 0 | AA23: =+Copo!E22 -> 0 | AC23: =+'1000km'!AV24 -> 0 | AD23: =+Cribbage!BB29 -> 0 | AE23: =+Canasta!AV24 -> 0 | AL23: 98 | AM23: =+King!L27 -> 0 | AN23: =+Buti!BC26 -> 0 | AP23: =+Julepe!AH23 -> 0 | AQ23: =+Pumba!AW24 -> 0 | AR23: =+Cors!J22 -> 0 | AS23: =+Podrida!L$24 -> 0 | AV23: =+Truc!AN23 -> 0 | AW23: =+Texas!AJ25 -> 0 | AX23: =+Omaha!D22 -> 0 | BB23: =+Kul!X23 -> 0 | BC23: =+Manilla!BC26 -> 0 | BH23: =+Wizard!AB28 -> 98 | BJ23: =+Copo!F22 -> 0 | BM23: =+Cribbage!BC29 -> 0
A24: 14 | B24: Òscar | C24: 0.0041 | D24: =+King!W27 -> 0 | E24: =+Buti!AG26 -> 0 | F24: =+Pocha!W24 -> 0 | G24: =+Julepe!W23 -> 0 | H24: =+Pumba!AG24 -> 0 | I24: =+Cors!W22 -> 0 | K24: =+Buti3!AG22 -> 0 | L24: =+Remigio!AG24 -> 0 | M24: =+Truc!AG23 -> 0 | N24: =+Texas!W25 -> 0 | O24: =+Omaha!W22 -> 0 | P24: =+'Black Jack'!W22 -> 0 | Q24: =+Chinchón!AG22 -> 0 | R24: =+Mus!W22 -> 0 | T24: =+Manilla!AG26 -> 0 | U24: =+Tute!AG26 -> 0 | V24: =+'4 Duros'!W25 -> 0 | W24: =+'Poker C'!W22 -> 0 | X24: =+Whist!AG26 -> 0 | Y24: =+Wizard!W28 -> 0 | Z24: =+'Tute cabrò'!W22 -> 0 | AA24: =+Copo!W22 -> 0 | AB24: =+Escombra!W27 -> 0 | AC24: =+'1000km'!AG24 -> 0 | AD24: =+Cribbage!O29 -> 0 | AL24: 41 | AM24: =+King!X27 -> 4 | AN24: =+Buti!AH26 -> 0 | AO24: =+Pocha!X24 -> 0 | AP24: =+Julepe!X23 -> 0 | AQ24: =+Pumba!AH24 -> 0 | AR24: =+Cors!X22 -> 0 | AT24: =+Remigio!AH24 -> 0 | AU24: =+Buti3!AH22 -> 0 | AV24: =+Truc!AH23 -> 0 | AW24: =+Texas!X25 -> 0 | AX24: =+Omaha!X22 -> 0 | AY24: =+'Black Jack'!X22 -> 0 | AZ24: =+Chinchón!AH22 -> 0 | BA24: =+Mus!X22 -> 0 | BC24: =+Manilla!AH26 -> 0 | BD24: =+Tute!AH26 -> 0 | BE24: =+'4 Duros'!X25 -> 0 | BF24: =+'Poker C'!X22 -> 0 | BG24: =+Whist!AH26 -> 0 | BH24: =+Wizard!X28 -> 34 | BI24: =+'Tute cabrò'!X22 -> 0 | BJ24: =+Copo!X22 -> 0 | BK24: =+Escombra!X27 -> 0 | BM24: =+Cribbage!P29 -> 3
A25: 15 | B25: Goretti | C25: 0.0036 | D25: =+King!AI27 -> 0 | E25: =+Buti!AS26 -> 0 | F25: =+Pocha!K24 -> 0 | G25: =+Julepe!AC23 -> 0 | H25: =+Pumba!AS24 -> 0 | I25: =+Cors!K22 -> 0 | K25: =+Buti3!C22 -> 0 | L25: =+Remigio!O24 -> 0 | M25: =+Truc!AP23 -> 0 | N25: =+Texas!AG25 -> 0 | O25: =+Omaha!AC22 -> 0 | P25: =+'Black Jack'!K22 -> 0 | Q25: =+Chinchón!X22 -> 0 | R25: =+Mus!C22 -> 0 | T25: =+Manilla!AS26 -> 0 | U25: =+Tute!AV26 -> 0 | V25: =+'4 Duros'!AG25 -> 0 | W25: =+'Poker C'!C22 -> 0 | X25: =+Whist!AV26 -> 0 | Y25: =+Wizard!M28 -> 0 | Z25: =+'Tute cabrò'!K22 -> 0 | AA25: =+Copo!C22 -> 0 | AB25: =+Escombra!AI27 -> 0 | AC25: =+'1000km'!AS24 -> 0 | AD25: =+Cribbage!AS29 -> 0 | AE25: =+Canasta!AS24 -> 0 | AF25: =+Portugués!AI27 -> 0 | AG25: =+Tarot!AS26 -> 0 | AH25: =+Guinyot!AS24 -> 0 | AL25: 36 | AM25: =+King!AJ27 -> 0 | AN25: =+Buti!AT26 -> 0 | AO25: =+Pocha!L24 -> 0 | AP25: =+Julepe!AD23 -> 0 | AQ25: =+Pumba!AT24 -> 0 | AR25: =+Cors!L22 -> 0 | AT25: =+Remigio!P24 -> 0 | AU25: =+Buti3!D22 -> 0 | AV25: =+Truc!AQ23 -> 0 | AW25: =+Texas!AH25 -> 0 | AX25: =+Omaha!AD22 -> 0 | AY25: =+'Black Jack'!L22 -> 0 | AZ25: =+Chinchón!Y22 -> 0 | BA25: =+Mus!D22 -> 0 | BC25: =+Manilla!AT26 -> 0 | BD25: =+Tute!AW26 -> 0 | BE25: =+'4 Duros'!AH25 -> 0 | BF25: =+'Poker C'!D22 -> 0 | BG25: =+Whist!AW26 -> 0 | BH25: =+Wizard!N28 -> 31 | BI25: =+'Tute cabrò'!L22 -> 0 | BJ25: =+Copo!D22 -> 0 | BK25: =+Escombra!AJ27 -> 0 | BL25: =+'1000km'!AT24 -> 0 | BM25: =+Cribbage!AT29 -> 5 | BN25: =+Canasta!M24 -> 0 | BO25: =+Portugués!L27 -> 0 | BP25: =+Portugués!AR27 -> 0 | BQ25: =+Guinyot!AT24 -> 0
A26: 16 | B26: Nancy | C26: 0.0033 | G26: =+Julepe!K23 -> 0 | L26: =+Remigio!X24 -> 0 | Y26: =+Wizard!AG28 -> 0 | AC26: =+'1000km'!AM24 -> 0 | AL26: 33 | AP26: =+Julepe!L23 -> 0 | AT26: =+Remigio!Y24 -> 0 | BH26: =+Wizard!AH28 -> 33
A27: 17 | B27: Alfred | C27: 0.0019 | Y27: =+Wizard!AE28 -> 0 | AD27: =+Cribbage!BH29 -> 0 | AL27: 19 | BH27: =+Wizard!AF28 -> 19 | BM27: =+Cribbage!BI29 -> 0
A28: 18 | B28: Tim | C28: 0.0016 | F28: =+Pocha!Y24 -> 0 | G28: =+Julepe!AA23 -> 0 | L28: =+Remigio!AS24 -> 0 | M28: =+Truc!O23 -> 0 | T28: =+Manilla!BE26 -> 0 | V28: =+'4 Duros'!AE25 -> 0 | W28: =+'Poker C'!K22 -> 0 | Y28: =+Wizard!AQ28 -> 0 | AL28: 16 | AO28: =+Pocha!Z24 -> 0 | AP28: =+Julepe!AB23 -> 0 | AT28: =+Remigio!AT24 -> 0 | AV28: =+Truc!P23 -> 0 | BC28: =+Manilla!BF26 -> 0 | BF28: =+'Poker C'!L22 -> 0 | BH28: =+Wizard!AR28 -> 16
A29: 19 | B29: Jeff | C29: 0.0013 | E29: =+Buti!AY26 -> 0 | F29: =+Pocha!AE24 -> 0 | G29: =+Julepe!Y23 -> 0 | H29: =+Pumba!AP24 -> 0 | I29: =+Cors!Y22 -> 0 | K29: =+Buti3!AJ22 -> 0 | L29: =+Remigio!AJ24 -> 0 | M29: =+Truc!C23 -> 0 | N29: =+Texas!Y25 -> 0 | O29: =+Omaha!Y22 -> 0 | P29: =+'Black Jack'!Y22 -> 0 | Q29: =+Chinchón!AJ22 -> 0 | R29: =+Mus!Y22 -> 0 | T29: =+Manilla!AY26 -> 0 | U29: =+Tute!AY26 -> 0 | V29: =+'4 Duros'!Y25 -> 0 | W29: =+'Poker C'!Y22 -> 0 | X29: =+Whist!AY26 -> 0 | Y29: =+Wizard!AI28 -> 0 | Z29: =+'Tute cabrò'!Y22 -> 0 | AA29: =+Copo!Y22 -> 0 | AB29: =+Escombra!Y27 -> 0 | AC29: =+'1000km'!AP24 -> 0 | AD29: =+Cribbage!AY29 -> 0 | AE29: =+Canasta!AP24 -> 0 | AF29: =+Portugués!Y27 -> 0 | AL29: 13 | AN29: =+Buti!AZ26 -> 0 | AO29: =+Pocha!AF24 -> 0 | AP29: =+Julepe!Z23 -> 0 | AQ29: =+Pumba!AQ24 -> 0 | AR29: =+Cors!Z22 -> 0 | AT29: =+Remigio!AK24 -> 0 | AU29: =+Buti3!AK22 -> 0 | AV29: =+Truc!D23 -> 0 | AW29: =+Texas!Z25 -> 0 | AX29: =+Omaha!Z22 -> 0 | AY29: =+'Black Jack'!Z22 -> 0 | AZ29: =+Chinchón!AK22 -> 0 | BA29: =+Mus!Z22 -> 0 | BC29: =+Manilla!AZ26 -> 0 | BD29: =+Tute!AZ26 -> 0 | BE29: =+'4 Duros'!Z25 -> 0 | BF29: =+'Poker C'!Z22 -> 0 | BG29: =+Whist!AZ26 -> 0 | BH29: =+Wizard!AJ28 -> 4 | BI29: =+'Tute cabrò'!Z22 -> 0 | BJ29: =+Copo!Z22 -> 0 | BK29: =+Escombra!Z27 -> 0 | BL29: =+'1000km'!G24 -> 0 | BM29: =+Cribbage!AZ29 -> 9
A30: 20 | B30: Marina | C30: 0.0011 | G30: =+Julepe!E23 -> 0 | I30: =+Cors!AA22 -> 0 | N30: =+Texas!AE25 -> 0 | O30: =+Omaha!E22 -> 0 | V30: =+'4 Duros'!AK25 -> 0 | W30: =+'Poker C'!AA22 -> 0 | Y30: =+Wizard!Y28 -> 0 | Z30: =+'Tute cabrò'!AA22 -> 0 | AA30: =+Copo!K22 -> 0 | AB30: =+Escombra!AE27 -> 0 | AH30: =+Guinyot!AJ24 -> 0 | AL30: 11 | AP30: =+Julepe!F23 -> 0 | AR30: =+Cors!AB22 -> 0 | AW30: =+Texas!AF25 -> 0 | AX30: =+Omaha!F22 -> 0 | AY30: =+'Black Jack'!T22 -> 0 | BE30: =+'4 Duros'!AL25 -> 0 | BF30: =+'Poker C'!AB22 -> 0 | BH30: =+Wizard!Z28 -> 11 | BI30: =+'Tute cabrò'!AB22 -> 0 | BJ30: =+Copo!L22 -> 0 | BK30: =+Escombra!AF27 -> 0 | BL30: =+'1000km'!M24 -> 0 | BQ30: =+Guinyot!M24 -> 0
A31: 21 | B31: Mariajo | C31: 0.0009 | D31: =+King!AM27 -> 0 | E31: =+Buti!X26 -> 0 | F31: =+Pocha!Q24 -> 0 | G31: =+Julepe!Q23 -> 0 | H31: =+Pumba!X24 -> 0 | I31: =+Cors!Q22 -> 0 | J31: =+Podrida!AI$24 -> 0 | K31: =+Buti3!X22 -> 0 | L31: =+Remigio!C24 -> 0 | M31: =+Truc!X23 -> 0 | N31: =+Texas!Q25 -> 0 | O31: =+Omaha!Q22 -> 0 | P31: =+'Black Jack'!Q22 -> 0 | Q31: =+Chinchón!C22 -> 0 | R31: =+Mus!Q22 -> 0 | S31: =+Kul!Q23 -> 0 | T31: =+Manilla!X26 -> 0 | U31: =+Tute!X26 -> 0 | V31: =+'4 Duros'!Q25 -> 0 | W31: =+'Poker C'!Q22 -> 0 | X31: =+Whist!X26 -> 0 | Y31: =+Wizard!S28 -> 0 | Z31: =+'Tute cabrò'!Q22 -> 0 | AA31: =+Copo!Q22 -> 0 | AB31: =+Escombra!AM27 -> 0 | AC31: =+'1000km'!X24 -> 0 | AD31: =+Cribbage!X29 -> 0 | AE31: =+Canasta!X24 -> 0 | AF31: =+Portugués!AM27 -> 0 | AG31: =+Tarot!X26 -> 0 | AH31: =+Guinyot!X24 -> 0 | AL31: 9 | AM31: =+King!AN27 -> 2 | AN31: =+Buti!Y26 -> 0 | AO31: =+Pocha!R24 -> 0 | AP31: =+Julepe!R23 -> 0 | AQ31: =+Pumba!Y24 -> 0 | AR31: =+Cors!R22 -> 0 | AS31: =+Podrida!AJ$24 -> 1 | AT31: =+Remigio!D24 -> 0 | AU31: =+Buti3!Y22 -> 0 | AV31: =+Truc!Y23 -> 0 | AW31: =+Texas!R25 -> 0 | AX31: =+Omaha!R22 -> 0 | AY31: =+'Black Jack'!R22 -> 0 | AZ31: =+Chinchón!D22 -> 0 | BA31: =+Mus!R22 -> 0 | BB31: =+Kul!R23 -> 0 | BC31: =+Manilla!Y26 -> 0 | BD31: =+Tute!Y26 -> 0 | BE31: =+'4 Duros'!R25 -> 0 | BF31: =+'Poker C'!R22 -> 0 | BG31: =+Whist!Y26 -> 0 | BH31: =+Wizard!T28 -> 6 | BI31: =+'Tute cabrò'!R22 -> 0 | BJ31: =+Copo!R22 -> 0 | BK31: =+Escombra!AN27 -> 0 | BM31: =+Cribbage!Y29 -> 0 | BN31: =+Canasta!AZ24 -> 0 | BO31: =+Portugués!AH27 -> 0 | BP31: =+Tarot!AW26 -> 0 | BQ31: =+Guinyot!P24 -> 0
A32: 22 | B32: Anna P. | C32: 0.0003 | D32: =+King!O27 -> 0 | F32: =+Pocha!AI24 -> 0 | G32: =+Julepe!AE23 -> 0 | J32: =+Podrida!S$24 -> 0 | L32: =+Remigio!AV24 -> 0 | N32: =+Texas!AK25 -> 0 | S32: =+Kul!S23 -> 0 | V32: =+'4 Duros'!K25 -> 0 | AD32: =+Cribbage!AJ29 -> 0 | AL32: 3 | AM32: =+King!P27 -> 0 | AO32: =+Pocha!AJ24 -> 0 | AP32: =+Julepe!AF23 -> 0 | AS32: =+Podrida!T$24 -> 3 | AT32: =+Remigio!AW24 -> 0 | AW32: =+Texas!AL25 -> 0 | BB32: =+Kul!T23 -> 0 | BE32: =+'4 Duros'!L25 -> 0 | BL32: =+'1000km'!AQ24 -> 0 | BM32: =+Cribbage!AK29 -> 0
A33: 22 | B33: Rosa M. | C33: 0.0003 | D33: =+King!E27 -> 0 | E33: =+Buti!L26 -> 0 | J33: =+Podrida!C$24 -> 0 | L33: =+Remigio!F24 -> 0 | M33: =+Truc!AS23 -> 0 | P33: =+'Black Jack'!AC22 -> 0 | Q33: =+Chinchón!AM22 -> 0 | S33: =+Kul!AG23 -> 0 | V33: =+'4 Duros'!E25 -> 0 | W33: =+'Poker C'!AC22 -> 0 | AA33: =+Copo!AC22 -> 0 | AD33: =+Cribbage!AA29 -> 0 | AL33: 3 | AM33: =+King!F27 -> 0 | AN33: =+Buti!M26 -> 0 | AS33: =+Podrida!D$24 -> 3 | AT33: =+Remigio!G24 -> 0 | AV33: =+Truc!AT23 -> 0 | AY33: =+'Black Jack'!AD22 -> 0 | AZ33: =+Chinchón!AN22 -> 0 | BB33: =+Kul!AH23 -> 0 | BE33: =+'4 Duros'!F25 -> 0 | BF33: =+'Poker C'!AD22 -> 0 | BJ33: =+Copo!AD22 -> 0 | BL33: =+'1000km'!AZ24 -> 0 | BM33: =+Cribbage!AB29 -> 0 | BN33: =+Canasta!AT24 -> 0 | BO33: =+Portugués!AJ27 -> 0 | BP33: =+Tarot!AT26 -> 0 | BQ33: =+Guinyot!AZ24 -> 0
A34: 22 | B34: Joan | C34: 0.0003 | D34: =+King!I27 -> 0 | F34: =+Pocha!I24 -> 0 | G34: =+Julepe!I23 -> 0 | J34: =+Podrida!I$24 -> 0 | K34: =+Buti3!L22 -> 0 | M34: =+Truc!L23 -> 0 | N34: =+Texas!I25 -> 0 | O34: =+Omaha!I22 -> 0 | P34: =+'Black Jack'!I22 -> 0 | Q34: =+Chinchón!L22 -> 0 | R34: =+Mus!I22 -> 0 | S34: =+Kul!U23 -> 0 | T34: =+Manilla!L26 -> 0 | U34: =+Tute!L26 -> 0 | V34: =+'4 Duros'!I25 -> 0 | W34: =+'Poker C'!I22 -> 0 | X34: =+Whist!L26 -> 0 | AD34: =+Cribbage!AD29 -> 0 | AL34: 3 | AM34: =+King!J27 -> 0 | AO34: =+Pocha!J24 -> 0 | AP34: =+Julepe!J23 -> 0 | AS34: =+Podrida!J$24 -> 3 | AU34: =+Buti3!M22 -> 0 | AV34: =+Truc!M23 -> 0 | AW34: =+Texas!J25 -> 0 | AX34: =+Omaha!J22 -> 0 | AY34: =+'Black Jack'!J22 -> 0 | AZ34: =+Chinchón!M22 -> 0 | BA34: =+Mus!J22 -> 0 | BB34: =+Kul!V23 -> 0 | BC34: =+Manilla!M26 -> 0 | BD34: =+Tute!M26 -> 0 | BE34: =+'4 Duros'!J25 -> 0 | BF34: =+'Poker C'!J22 -> 0 | BG34: =+Whist!M26 -> 0 | BL34: =+'1000km'!S24 -> 0 | BM34: =+Cribbage!AE29 -> 0 | BN34: =+Canasta!AQ24 -> 0 | BO34: =+Portugués!Z27 -> 0 | BP34: =+Tarot!AZ26 -> 0 | BQ34: =+Guinyot!S24 -> 0
A35: 25 | B35: Lleixà | C35: 0.0001 | E35: =+Buti!O26 -> 0 | F35: =+Pocha!AA24 -> 0 | K35: =+Buti3!O22 -> 0 | N35: =+Texas!C25 -> 0 | O35: =+Omaha!U22 -> 0 | R35: =+Mus!K22 -> 0 | T35: =+Manilla!O26 -> 0 | U35: =+Tute!O26 -> 0 | W35: =+'Poker C'!U22 -> 0 | X35: =+Whist!O26 -> 0 | Y35: =+Wizard!I28 -> 0 | Z35: =+'Tute cabrò'!C22 -> 0 | AB35: =+Escombra!AA27 -> 0 | AC35: =+'1000km'!L24 -> 0 | AF35: =+Portugués!K27 -> 0 | AH35: =+Guinyot!L24 -> 0 | AL35: 1 | AN35: =+Buti!P26 -> 0 | AO35: =+Pocha!AB24 -> 0 | AU35: =+Buti3!P22 -> 0 | AW35: =+Texas!D25 -> 0 | AX35: =+Omaha!V22 -> 0 | BA35: =+Mus!L22 -> 0 | BC35: =+Manilla!P26 -> 0 | BD35: =+Tute!P26 -> 0 | BE35: =+'4 Duros'!AJ25 -> 0 | BF35: =+'Poker C'!V22 -> 0 | BG35: =+Whist!P26 -> 0 | BH35: =+Wizard!J28 -> 1 | BI35: =+'Tute cabrò'!D22 -> 0 | BK35: =+Escombra!AB27 -> 0 | BL35: =+'1000km'!AN24 -> 0
A36: 26 | B36: Pol C. | C36: =SUM(D36:AK36)+AL36/10000 -> 0 | F36: =+Pocha!U24 -> 0 | G36: =+Julepe!U23 -> 0 | H36: =+Pumba!AD24 -> 0 | K36: =+Buti3!AD22 -> 0 | L36: =+Remigio!AD24 -> 0 | M36: =+Truc!AD23 -> 0 | P36: =+'Black Jack'!U22 -> 0 | Q36: =+Chinchón!AD22 -> 0 | T36: =+Manilla!AD26 -> 0 | U36: =+Tute!AD26 -> 0 | V36: =+'4 Duros'!U25 -> 0 | X36: =+Whist!AD26 -> 0 | AA36: =+Copo!U22 -> 0 | AB36: =+Escombra!U27 -> 0 | AC36: =+'1000km'!AD24 -> 0 | AL36: =SUM(AM36:BR36) -> 0 | AO36: =+Pocha!V24 -> 0 | AP36: =+Julepe!V23 -> 0 | AQ36: =+Pumba!AE24 -> 0 | AT36: =+Remigio!AE24 -> 0 | AU36: =+Buti3!AE22 -> 0 | AV36: =+Truc!AE23 -> 0 | AY36: =+'Black Jack'!V22 -> 0 | AZ36: =+Chinchón!AE22 -> 0 | BC36: =+Manilla!AE26 -> 0 | BD36: =+Tute!AE26 -> 0 | BG36: =+Whist!AE26 -> 0 | BJ36: =+Copo!V22 -> 0 | BK36: =+Escombra!V27 -> 0 | BL36: =+'1000km'!AH24 -> 0 | BN36: =+Canasta!G24 -> 0
A39: 2 | B39: 10 | C39: -10
A40: 3 | B40: 10 | C40: 0 | D40: -10
A41: 4 | B41: 10 | C41: 4 | D41: -4 | E41: -10
A42: 5 | B42: 10 | C42: 5 | D42: 0 | E42: -5 | F42: -10
A43: 6 | B43: 10 | C43: 6 | D43: 2 | E43: -2 | F43: -6 | G43: -10
A44: 7 | B44: 10 | C44: 6 | D44: 2 | E44: 0 | F44: -2 | G44: -6 | H44: -10
A45: 8 | B45: 10 | C45: 6 | D45: 4 | E45: 2 | F45: -2 | G45: -4 | H45: -6 | I45: -10
A46: 9 | B46: 10 | C46: 6 | D46: 4 | E46: 2 | F46: 0 | G46: -2 | H46: -4 | I46: -6 | J46: -10
A47: 10 | B47: 10 | C47: 8 | D47: 6 | E47: 4 | F47: 2 | G47: -2 | H47: -4 | I47: -6 | J47: -8 | K47: -10
A49: Classificació per "mosques"
C50: =+C10 -> GENERAL | D50: KING | E50: BOTIFARRA | F50: POCHA | G50: JULEPE | H50: PUMBA | I50: CORS | J50: PODRIDA | K50: BUTI 3 | L50: REMIGIO | M50: TRUC | N50: TEXAS | O50: OMAHA | P50: BLACK JACK | Q50: CHINCHÓN | R50: MUS | S50: CUL | T50: MANILLA | U50: TUTE | V50: 4 DUROS | W50: POKER C | X50: WHIST | Y50: WIZARD | Z50: TUTE CABRÒ | AA50: COPO | AB50: ESCOMBRA | AC50: 1000 Km | AD50: CRIBBAGE | AE50: CANASTA | AF50: PORTUGUÈS | AG50: TAROT | AH50: GUINYOT | AK50: =+AK10 -> Joc 8
A51: =RANK(C51,C$51:C$68) -> 1 | B51: Jordi | C51: =SUM(D51:AK51) -> 0
A52: 1 | B52: Carles | C52: 0
A53: 1 | B53: Mariajo | C53: 0
A54: 1 | B54: Grau | C54: 0
A55: 1 | B55: Joan | C55: 0
A56: 1 | B56: Manolo | C56: 0
A57: 1 | B57: Angie | C57: 0
A58: 1 | B58: Rosa M. | C58: 0
A59: 1 | B59: Sergi | C59: =SUM(D59:AK59) -> 0
A60: 1 | B60: Núria | C60: 0
A61: 1 | B61: Katy | C61: 0
A62: 1 | B62: Anna P. | C62: 0
A63: 1 | B63: Lucía | C63: 0
A64: 1 | B64: Lucía | C64: 0
A65: 1 | B65: Palafox | C65: 0
A66: 1 | B66: Goretti | C66: 0
A67: =RANK(C67,C$51:C$68) -> 1 | B67: Celes | C67: 0
A68: 1 | B68: Pol C. | C68: 0
B69: Total | C69: =SUM(C51:C68) -> 0
B70: Anomalies | C70: =SUM(D70:AK70) -> 0
D72: =+Cribbage!A1 -> CRIBBAGE | K72: =+Wizard!A1 -> WIZARD | R72: =+Podrida!A1 -> PODRIDA | Y72: =+King!A1 -> KING
F74: =+Cribbage!C4 -> Premi | G74: =+Cribbage!D4 -> Punts | H74: =+Cribbage!E4 -> Partides | I74: =+Cribbage!F4 -> General | M74: =+Wizard!C4 -> Premi | N74: =+Wizard!D4 -> Punts | O74: =+Wizard!E4 -> Partides | P74: =+Wizard!F4 -> General | T74: =+Podrida!C4 -> Premi | U74: =+Podrida!D4 -> Punts | V74: =+Podrida!E4 -> Partides | W74: =+Podrida!F4 -> General | AA74: =+King!C4 -> Premi | AB74: =+King!D4 -> Punts | AC74: =+King!E4 -> Partides | AD74: =+King!F4 -> General
D75: =+Cribbage!A5 -> 1 | E75: =+Cribbage!B5 -> Sebas | F75: =+Cribbage!C5 -> 125 | G75: =+Cribbage!D5 -> 19 | H75: =+Cribbage!E5 -> 97 | I75: =+Cribbage!F5 -> 80 | K75: =+Wizard!A5 -> 1 | L75: =+Wizard!B5 -> Carles | M75: =+Wizard!C5 -> 1265.5 | N75: =+Wizard!D5 -> 229.3108974 | O75: =+Wizard!E5 -> 312 | P75: =+Wizard!F5 -> 80 | R75: =+Podrida!A5 -> 1 | S75: =+Podrida!B5 -> Jordi | T75: =+Podrida!C5 -> 182 | U75: =+Podrida!D5 -> 87.09811321 | V75: =+Podrida!E5 -> 53 | W75: =+Podrida!F5 -> 80 | Y75: =+King!A5 -> 1 | Z75: =+King!B5 -> Carles | AA75: =+King!C5 -> 86 | AB75: =+King!D5 -> 0.05882352941 | AC75: =+King!E5 -> 17 | AD75: =+King!F5 -> 80
D76: =+Cribbage!A6 -> 2 | E76: =+Cribbage!B6 -> Gemma | F76: =+Cribbage!C6 -> 106 | G76: =+Cribbage!D6 -> 23 | H76: =+Cribbage!E6 -> 229 | I76: =+Cribbage!F6 -> 40 | K76: =+Wizard!A6 -> 2 | L76: =+Wizard!B6 -> Jordi | M76: =+Wizard!C6 -> 653.5 | N76: =+Wizard!D6 -> 215.4716981 | O76: =+Wizard!E6 -> 265 | P76: =+Wizard!F6 -> 40 | R76: =+Podrida!A6 -> 2 | S76: =+Podrida!B6 -> Carles | T76: =+Podrida!C6 -> 126 | U76: =+Podrida!D6 -> 91.91304348 | V76: =+Podrida!E6 -> 23 | W76: =+Podrida!F6 -> 40 | Y76: =+King!A6 -> 2 | Z76: =+King!B6 -> Jordi | AA76: =+King!C6 -> 61 | AB76: =+King!D6 -> 1.81875 | AC76: =+King!E6 -> 16 | AD76: =+King!F6 -> 40
D77: =+Cribbage!A7 -> 3 | E77: =+Cribbage!B7 -> Carles | F77: =+Cribbage!C7 -> 91 | G77: =+Cribbage!D7 -> 167 | H77: =+Cribbage!E7 -> 21 | I77: =+Cribbage!F7 -> 20 | K77: =+Wizard!A7 -> 3 | L77: =+Wizard!B7 -> Grau | M77: =+Wizard!C7 -> 276 | N77: =+Wizard!D7 -> 195.3478179 | O77: =+Wizard!E7 -> 584 | P77: =+Wizard!F7 -> 20 | R77: =+Podrida!A7 -> 3 | S77: =+Podrida!B7 -> Núria | T77: =+Podrida!C7 -> 41 | U77: =+Podrida!D7 -> 79.26785714 | V77: =+Podrida!E7 -> 56 | W77: =+Podrida!F7 -> 20 | Y77: =+King!A7 -> 3 | Z77: =+King!B7 -> Manolo | AA77: =+King!C7 -> 31 | AB77: =+King!D7 -> -3.173333333 | AC77: =+King!E7 -> 15 | AD77: =+King!F7 -> 20
D78: =+Cribbage!A8 -> 4 | E78: =+Cribbage!B8 -> Jordi | F78: =+Cribbage!C8 -> 64 | G78: =+Cribbage!D8 -> 199 | H78: =+Cribbage!E8 -> 122 | I78: =+Cribbage!F8 -> 10 | K78: =+Wizard!A8 -> 4 | L78: =+Wizard!B8 -> Sergi | M78: =+Wizard!C8 -> 85.5 | N78: =+Wizard!D8 -> 196.0122699 | O78: =+Wizard!E8 -> 163 | P78: =+Wizard!F8 -> 10 | R78: =+Podrida!A8 -> 4 | S78: =+Podrida!B8 -> Cyber X | T78: =+Podrida!C8 -> -6 | U78: =+Podrida!D8 -> 65.2 | V78: =+Podrida!E8 -> 10 | W78: =+Podrida!F8 -> 10 | Y78: =+King!A8 -> 4 | Z78: =+King!B8 -> Sebas | AA78: =+King!C8 -> 20 | AB78: =+King!D8 -> -1.723529412 | AC78: =+King!E8 -> 14 | AD78: =+King!F8 -> 10
D79: =+Cribbage!A9 -> 5 | E79: =+Cribbage!B9 -> Nogué | F79: =+Cribbage!C9 -> 28 | G79: =+Cribbage!D9 -> 194.5 | H79: =+Cribbage!E9 -> 250 | I79: =+Cribbage!F9 -> 5 | K79: =+Wizard!A9 -> 5 | L79: =+Wizard!B9 -> Núria | M79: =+Wizard!C9 -> 83.5 | N79: =+Wizard!D9 -> 188.8304281 | O79: =+Wizard!E9 -> 437 | P79: =+Wizard!F9 -> 5 | R79: =+Podrida!A9 -> 5 | S79: =+Podrida!B9 -> Sebas | T79: =+Podrida!C9 -> -24 | U79: =+Podrida!D9 -> 77.08333333 | V79: =+Podrida!E9 -> 36 | W79: =+Podrida!F9 -> 5 | Y79: =+King!A9 -> 5 | Z79: =+King!B9 -> Núria | AA79: =+King!C9 -> 12 | AB79: =+King!D9 -> -1.336363636 | AC79: =+King!E9 -> 11 | AD79: =+King!F9 -> 5
D80: =+Cribbage!A10 -> 6 | E80: =+Cribbage!B10 -> CyberX | F80: =+Cribbage!C10 -> -8 | G80: =+Cribbage!D10 -> 53 | H80: =+Cribbage!E10 -> 9 | I80: =+Cribbage!F10 -> 0 | K80: =+Wizard!A10 -> 6 | L80: =+Wizard!B10 -> Tim | M80: =+Wizard!C10 -> 53.5 | N80: =+Wizard!D10 -> 214.375 | O80: =+Wizard!E10 -> 16 | P80: =+Wizard!F10 -> 0 | R80: =+Podrida!A10 -> 6 | S80: =+Podrida!B10 -> Manolo | T80: =+Podrida!C10 -> -24 | U80: =+Podrida!D10 -> 63 | V80: =+Podrida!E10 -> 11 | W80: =+Podrida!F10 -> 0 | Y80: =+King!A10 -> 6 | Z80: =+King!B10 -> Montse | AA80: =+King!C10 -> -30 | AB80: =+King!D10 -> -2.716666667 | AC80: =+King!E10 -> 9 | AD80: =+King!F10 -> 0
D81: =+Cribbage!A11 -> 7 | E81: =+Cribbage!B11 -> Manolo | F81: =+Cribbage!C11 -> -22 | G81: =+Cribbage!D11 -> -96 | H81: =+Cribbage!E11 -> 12 | I81: =+Cribbage!F11 -> 0 | K81: =+Wizard!A11 -> 7 | L81: =+Wizard!B11 -> CyberX | M81: =+Wizard!C11 -> 14.5 | N81: =+Wizard!D11 -> 192.7621193 | O81: =+Wizard!E11 -> 375 | P81: =+Wizard!F11 -> 0 | R81: =+Podrida!A11 -> 7 | S81: =+Podrida!B11 -> Grau | T81: =+Podrida!C11 -> -36 | U81: =+Podrida!D11 -> 75.69230769 | V81: =+Podrida!E11 -> 79 | W81: =+Podrida!F11 -> 0 | Y81: =+King!A11 -> 7 | Z81: =+King!B11 -> Cyber X | AA81: =+King!C11 -> -28 | AB81: =+King!D11 -> -6.040909091 | AC81: =+King!E11 -> 11 | AD81: =+King!F11 -> 0
D82: =+Cribbage!A12 -> 8 | E82: =+Cribbage!B12 -> Ana B. | F82: =+Cribbage!C12 -> -51 | G82: =+Cribbage!D12 -> -120 | H82: =+Cribbage!E12 -> 13 | I82: =+Cribbage!F12 -> 0 | K82: =+Wizard!A12 -> 8 | L82: =+Wizard!B12 -> Marina | M82: =+Wizard!C12 -> 6 | N82: =+Wizard!D12 -> 217.2727273 | O82: =+Wizard!E12 -> 11 | P82: =+Wizard!F12 -> 0 | R82: =+Podrida!A12 -> 8 | S82: =+Podrida!B12 -> Nogué | T82: =+Podrida!C12 -> -51 | U82: =+Podrida!D12 -> 77.23076923 | V82: =+Podrida!E12 -> 65 | W82: =+Podrida!F12 -> 0 | Y82: =+King!A12 -> 8 | Z82: =+King!B12 -> Gemma | AA82: =+King!C12 -> -46 | AB82: =+King!D12 -> -4.189285714 | AC82: =+King!E12 -> 14 | AD82: =+King!F12 -> 0
D83: =+Cribbage!A13 -> 9 | E83: =+Cribbage!B13 -> Nin | F83: =+Cribbage!C13 -> -63 | G83: =+Cribbage!D13 -> -178 | H83: =+Cribbage!E13 -> 12 | I83: =+Cribbage!F13 -> 0 | K83: =+Wizard!A13 -> 9 | L83: =+Wizard!B13 -> Òscar | M83: =+Wizard!C13 -> -12.5 | N83: =+Wizard!D13 -> 174.4117647 | O83: =+Wizard!E13 -> 34 | P83: =+Wizard!F13 -> 0 | R83: =+Podrida!A13 -> 9 | S83: =+Podrida!B13 -> Ana B | T83: =+Podrida!C13 -> -63 | U83: =+Podrida!D13 -> 69.75 | V83: =+Podrida!E13 -> 24 | W83: =+Podrida!F13 -> 0 | Y83: =+King!A13 -> 9 | Z83: =+King!B13 -> Nin | AA83: =+King!C13 -> -100 | AB83: =+King!D13 -> -6.328125 | AC83: =+King!E13 -> 16 | AD83: =+King!F13 -> 0
D84: =+Cribbage!A14 -> 10 | E84: =+Cribbage!B14 -> Grau | F84: =+Cribbage!C14 -> -120 | G84: =+Cribbage!D14 -> -168 | H84: =+Cribbage!E14 -> 164 | I84: =+Cribbage!F14 -> 0 | K84: =+Wizard!A14 -> 10 | L84: =+Wizard!B14 -> Alfred | M84: =+Wizard!C14 -> -15 | N84: =+Wizard!D14 -> 200 | O84: =+Wizard!E14 -> 19 | P84: =+Wizard!F14 -> 0 | R84: =+Podrida!A14 -> 10 | S84: =+Podrida!B14 -> Nin | T84: =+Podrida!C14 -> -72 | U84: =+Podrida!D14 -> 51.58333333 | V84: =+Podrida!E14 -> 12 | W84: =+Podrida!F14 -> 0 | Y84: =+King!A14 -> 10 | Z84: =+King!B14 -> Òscar | AA84: =+King!C14 -> 4 | AB84: =+King!D14 -> 0 | AC84: =+King!E14 -> 4 | AD84: =+King!F14 -> 0
D85: =+Cribbage!A15 -> 11 | E85: =+Cribbage!B15 -> Núria | F85: =+Cribbage!C15 -> -180 | G85: =+Cribbage!D15 -> -122.5 | H85: =+Cribbage!E15 -> 185 | I85: =+Cribbage!F15 -> 0 | K85: =+Wizard!A15 -> 11 | L85: =+Wizard!B15 -> Mariajo | M85: =+Wizard!C15 -> -17 | N85: =+Wizard!D15 -> 176.6666667 | O85: =+Wizard!E15 -> 6 | P85: =+Wizard!F15 -> 0 | R85: =+Podrida!A15 -> 11 | S85: =+Podrida!B15 -> Gemma | T85: =+Podrida!C15 -> -77 | U85: =+Podrida!D15 -> 69.57333333 | V85: =+Podrida!E15 -> 75 | W85: =+Podrida!F15 -> 0 | Y85: =+King!A15 -> 11 | Z85: =+King!B15 -> Mariajo | AA85: =+King!C15 -> -2 | AB85: =+King!D15 -> 0 | AC85: =+King!E15 -> 2 | AD85: =+King!F15 -> 0
D86: =+Cribbage!A16 -> 12 | E86: =+Cribbage!B16 -> Goretti | F86: =+Cribbage!C16 -> 50 | G86: =+Cribbage!D16 -> 45 | H86: =+Cribbage!E16 -> 5 | I86: =+Cribbage!F16 -> 0 | K86: =+Wizard!A16 -> 12 | L86: =+Wizard!B16 -> Tito | M86: =+Wizard!C16 -> -43.5 | N86: =+Wizard!D16 -> 186.7346939 | O86: =+Wizard!E16 -> 98 | P86: =+Wizard!F16 -> 0 | R86: =+Podrida!A16 -> 12 | S86: =+Podrida!B16 -> Rosa M | T86: =+Podrida!C16 -> 18 | U86: =+Podrida!D16 -> 94.6 | V86: =+Podrida!E16 -> 3 | W86: =+Podrida!F16 -> 0
D87: =+Cribbage!A17 -> 13 | E87: =+Cribbage!B17 -> Òscar | F87: =+Cribbage!C17 -> 30 | G87: =+Cribbage!D17 -> 57 | H87: =+Cribbage!E17 -> 3 | I87: =+Cribbage!F17 -> 0 | K87: =+Wizard!A17 -> 13 | L87: =+Wizard!B17 -> Nancy | M87: =+Wizard!C17 -> -50.5 | N87: =+Wizard!D17 -> 177.101431 | O87: =+Wizard!E17 -> 33 | P87: =+Wizard!F17 -> 0 | R87: =+Podrida!A17 -> 13 | S87: =+Podrida!B17 -> Mariajo | T87: =+Podrida!C17 -> 0 | U87: =+Podrida!D17 -> 73 | V87: =+Podrida!E17 -> 1 | W87: =+Podrida!F17 -> 0
K88: =+Wizard!A18 -> 14 | L88: =+Wizard!B18 -> Goretti | M88: =+Wizard!C18 -> -85 | N88: =+Wizard!D18 -> 163.0272953 | O88: =+Wizard!E18 -> 31 | P88: =+Wizard!F18 -> 0 | R88: =+Podrida!A18 -> 14 | S88: =+Podrida!B18 -> Sergi | T88: =+Podrida!C18 -> 0 | U88: =+Podrida!D18 -> 73 | V88: =+Podrida!E18 -> 1 | W88: =+Podrida!F18 -> 0
K89: =+Wizard!A19 -> 15 | L89: =+Wizard!B19 -> Sebas | M89: =+Wizard!C19 -> -127 | N89: =+Wizard!D19 -> 181.8257261 | O89: =+Wizard!E19 -> 241 | P89: =+Wizard!F19 -> 0 | R89: =+Podrida!A19 -> 15 | S89: =+Podrida!B19 -> Joan | T89: =+Podrida!C19 -> -4 | U89: =+Podrida!D19 -> 74.33333333 | V89: =+Podrida!E19 -> 3 | W89: =+Podrida!F19 -> 0
K90: =+Wizard!A20 -> 16 | L90: =+Wizard!B20 -> Manolo | M90: =+Wizard!C20 -> -221.5 | N90: =+Wizard!D20 -> 175.6410256 | O90: =+Wizard!E20 -> 156 | P90: =+Wizard!F20 -> 0 | R90: =+Podrida!A20 -> 16 | S90: =+Podrida!B20 -> Anna P. | T90: =+Podrida!C20 -> -10 | U90: =+Podrida!D20 -> 94.6 | V90: =+Podrida!E20 -> 3 | W90: =+Podrida!F20 -> 0
K91: =+Wizard!A21 -> 17 | L91: =+Wizard!B21 -> Gemma | M91: =+Wizard!C21 -> -344 | N91: =+Wizard!D21 -> 179.6587214 | O91: =+Wizard!E21 -> 472 | P91: =+Wizard!F21 -> 0
K92: =+Wizard!A22 -> 18 | L92: =+Wizard!B22 -> Nin | M92: =+Wizard!C22 -> -461 | N92: =+Wizard!D22 -> 152.4778761 | O92: =+Wizard!E22 -> 113 | P92: =+Wizard!F22 -> 0
K93: =+Wizard!A23 -> 19 | L93: =+Wizard!B23 -> Nogué | M93: =+Wizard!C23 -> -477 | N93: =+Wizard!D23 -> 160.4273504 | O93: =+Wizard!E23 -> 234 | P93: =+Wizard!F23 -> 0
K94: =+Wizard!A24 -> 20 | L94: =+Wizard!B24 -> Ana B | M94: =+Wizard!C24 -> -575 | N94: =+Wizard!D24 -> 164.5522388 | O94: =+Wizard!E24 -> 268 | P94: =+Wizard!F24 -> 0
K95: =+Wizard!A25 -> 21 | L95: =+Wizard!B25 -> Lleixà | M95: =+Wizard!C25 -> 10 | N95: =+Wizard!D25 -> 250 | O95: =+Wizard!E25 -> 1 | P95: =+Wizard!F25 -> 0
K96: =+Wizard!A26 -> 22 | L96: =+Wizard!B26 -> Jeff | M96: =+Wizard!C26 -> 6 | N96: =+Wizard!D26 -> 217.5 | O96: =+Wizard!E26 -> 4 | P96: =+Wizard!F26 -> 0
D98: =+Kul!A1 -> KUL | K98: =+Pumba!A1 -> PUMBA | R98: =+Tarot!A1 -> TAROT | Y98: =+Buti!A1 -> BOTIFARRA
F100: =+Kul!C4 -> Premi | G100: =+Kul!D4 -> Punts | H100: =+Kul!E4 -> Partides | I100: =+Kul!F4 -> General | M100: =+Pumba!C4 -> Premi | N100: =+Pumba!D4 -> Punts | O100: =+Pumba!E4 -> Partides | P100: =+Pumba!F4 -> General | T100: =+Tarot!C4 -> Premi | U100: =+Tarot!D4 -> Punts | V100: =+Tarot!E4 -> Partides | W100: =+Tarot!F4 -> General | AA100: =+Buti!C4 -> Premi | AB100: =+Buti!D4 -> Punts | AC100: =+Buti!E4 -> Partides | AD100: =+Buti!F4 -> General
D101: =+Kul!A5 -> 1 | E101: =+Kul!B5 -> Jordi | F101: =+Kul!C5 -> 25 | G101: =+Kul!D5 -> 15 | H101: =+Kul!E5 -> 3 | I101: =+Kul!F5 -> 0 | K101: =+Pumba!A5 -> 1 | L101: =+Pumba!B5 -> Mariajo | M101: =+Pumba!C5 -> 10 | N101: =+Pumba!D5 -> 6 | O101: =+Pumba!E5 -> 1 | P101: =+Pumba!F5 -> 0 | R101: =+Tarot!A5 -> 1 | S101: =+Tarot!B5 -> Nin | T101: =+Tarot!C5 -> 10 | U101: =+Tarot!D5 -> 15.8 | V101: =+Tarot!E5 -> 1 | W101: =+Tarot!F5 -> 0 | Y101: =+Buti!A5 -> 1 | Z101: =+Buti!B5 -> Nogué | AA101: =+Buti!C5 -> 10 | AB101: =+Buti!D5 -> 19 | AC101: =+Buti!E5 -> 1 | AD101: =+Buti!F5 -> 0
D102: =+Kul!A6 -> 2 | E102: =+Kul!B6 -> Núria | F102: =+Kul!C6 -> 5 | G102: =+Kul!D6 -> 5 | H102: =+Kul!E6 -> 1 | I102: =+Kul!F6 -> 0 | K102: =+Pumba!A6 -> 2 | L102: =+Pumba!B6 -> Sebas | M102: =+Pumba!C6 -> 10 | N102: =+Pumba!D6 -> 7.5 | O102: =+Pumba!E6 -> 1 | P102: =+Pumba!F6 -> 0 | R102: =+Tarot!A6 -> 2 | S102: =+Tarot!B6 -> Jordi | T102: =+Tarot!C6 -> 5 | U102: =+Tarot!D6 -> -43.7 | V102: =+Tarot!E6 -> 1 | W102: =+Tarot!F6 -> 0 | Y102: =+Buti!A6 -> 2 | Z102: =+Buti!B6 -> Sebas | AA102: =+Buti!C6 -> 6 | AB102: =+Buti!D6 -> 9 | AC102: =+Buti!E6 -> 1 | AD102: =+Buti!F6 -> 0
D103: =+Kul!A7 -> 3 | E103: =+Kul!B7 -> Carles | F103: =+Kul!C7 -> 5 | G103: =+Kul!D7 -> -4 | H103: =+Kul!E7 -> 2 | I103: =+Kul!F7 -> 0 | K103: =+Pumba!A7 -> 3 | L103: =+Pumba!B7 -> Sergi | M103: =+Pumba!C7 -> 4 | N103: =+Pumba!D7 -> 15 | O103: =+Pumba!E7 -> 1 | P103: =+Pumba!F7 -> 0 | R103: =+Tarot!A7 -> 3 | S103: =+Tarot!B7 -> Sergi | T103: =+Tarot!C7 -> 0 | U103: =+Tarot!D7 -> -45.2 | V103: =+Tarot!E7 -> 1 | W103: =+Tarot!F7 -> 0 | Y103: =+Buti!A7 -> 3 | Z103: =+Buti!B7 -> Manolo | AA103: =+Buti!C7 -> 2 | AB103: =+Buti!D7 -> 8 | AC103: =+Buti!E7 -> 1 | AD103: =+Buti!F7 -> 0
D104: =+Kul!A8 -> 4 | E104: =+Kul!B8 -> Gemma | F104: =+Kul!C8 -> 0 | G104: =+Kul!D8 -> 6 | H104: =+Kul!E8 -> 1 | I104: =+Kul!F8 -> 0 | K104: =+Pumba!A8 -> 4 | L104: =+Pumba!B8 -> Jordi | M104: =+Pumba!C8 -> 4 | N104: =+Pumba!D8 -> 17.75 | O104: =+Pumba!E8 -> 1 | P104: =+Pumba!F8 -> 0 | R104: =+Tarot!A8 -> 4 | S104: =+Tarot!B8 -> Carles | T104: =+Tarot!C8 -> -5 | U104: =+Tarot!D8 -> -57.6 | V104: =+Tarot!E8 -> 1 | W104: =+Tarot!F8 -> 0 | Y104: =+Buti!A8 -> 4 | Z104: =+Buti!B8 -> Jordi | AA104: =+Buti!C8 -> 0 | AB104: =+Buti!D8 -> 1 | AC104: =+Buti!E8 -> 1 | AD104: =+Buti!F8 -> 0
D105: =+Kul!A9 -> 5 | E105: =+Kul!B9 -> Sergi | F105: =+Kul!C9 -> 0 | G105: =+Kul!D9 -> 4 | H105: =+Kul!E9 -> 2 | I105: =+Kul!F9 -> 0 | K105: =+Pumba!A9 -> 5 | L105: =+Pumba!B9 -> Gemma | M105: =+Pumba!C9 -> -4 | N105: =+Pumba!D9 -> 17.25 | O105: =+Pumba!E9 -> 1 | P105: =+Pumba!F9 -> 0 | R105: =+Tarot!A9 -> 5 | S105: =+Tarot!B9 -> Mariajo | T105: =+Tarot!C9 -> -10 | U105: =+Tarot!D9 -> -76.3 | V105: =+Tarot!E9 -> 1 | W105: =+Tarot!F9 -> 0 | Y105: =+Buti!A9 -> 5 | Z105: =+Buti!B9 -> Gemma | AA105: =+Buti!C9 -> -2 | AB105: =+Buti!D9 -> -8 | AC105: =+Buti!E9 -> 1 | AD105: =+Buti!F9 -> 0
D106: =+Kul!A10 -> 6 | E106: =+Kul!B10 -> Sebas | F106: =+Kul!C10 -> -5 | G106: =+Kul!D10 -> -5 | H106: =+Kul!E10 -> 1 | I106: =+Kul!F10 -> 0 | K106: =+Pumba!A10 -> 6 | L106: =+Pumba!B10 -> Nin | M106: =+Pumba!C10 -> -4 | N106: =+Pumba!D10 -> 19 | O106: =+Pumba!E10 -> 1 | P106: =+Pumba!F10 -> 0 | Y106: =+Buti!A10 -> 6 | Z106: =+Buti!B10 -> Carles | AA106: =+Buti!C10 -> -6 | AB106: =+Buti!D10 -> -13 | AC106: =+Buti!E10 -> 1 | AD106: =+Buti!F10 -> 0
D107: =+Kul!A11 -> 7 | E107: =+Kul!B11 -> Goretti | F107: =+Kul!C11 -> -5 | G107: =+Kul!D11 -> -8 | H107: =+Kul!E11 -> 2 | I107: =+Kul!F11 -> 0 | K107: =+Pumba!A11 -> 7 | L107: =+Pumba!B11 -> Carles | M107: =+Pumba!C11 -> -10 | N107: =+Pumba!D11 -> 19.75 | O107: =+Pumba!E11 -> 1 | P107: =+Pumba!F11 -> 0 | Y107: =+Buti!A11 -> 7 | Z107: =+Buti!B11 -> Núria | AA107: =+Buti!C11 -> -10 | AB107: =+Buti!D11 -> -16 | AC107: =+Buti!E11 -> 1 | AD107: =+Buti!F11 -> 0
D108: =+Kul!A12 -> 8 | E108: =+Kul!B12 -> Nogué | F108: =+Kul!C12 -> -10 | G108: =+Kul!D12 -> -8 | H108: =+Kul!E12 -> 1 | I108: =+Kul!F12 -> 0 | K108: =+Pumba!A12 -> 8 | L108: =+Pumba!B12 -> Montse | M108: =+Pumba!C12 -> -10 | N108: =+Pumba!D12 -> 28.5 | O108: =+Pumba!E12 -> 1 | P108: =+Pumba!F12 -> 0
D109: =+Kul!A13 -> 9 | E109: =+Kul!B13 -> Mariajo | F109: =+Kul!C13 -> -15 | G109: =+Kul!D13 -> -5 | H109: =+Kul!E13 -> 2 | I109: =+Kul!F13 -> 0
K111: =+Wizard!A10 -> 6 | L111: =+Wizard!B10 -> Tim | M111: =+Wizard!C10 -> 53.5 | N111: =+Wizard!D10 -> 214.375 | O111: =+Wizard!E10 -> 16 | P111: =+Wizard!F10 -> 0
K112: =+Wizard!A11 -> 7 | L112: =+Wizard!B11 -> CyberX | M112: =+Wizard!C11 -> 14.5 | N112: =+Wizard!D11 -> 192.7621193 | O112: =+Wizard!E11 -> 375 | P112: =+Wizard!F11 -> 0
K113: =+Wizard!A12 -> 8 | L113: =+Wizard!B12 -> Marina | M113: =+Wizard!C12 -> 6 | N113: =+Wizard!D12 -> 217.2727273 | O113: =+Wizard!E12 -> 11 | P113: =+Wizard!F12 -> 0
K114: =+Wizard!A13 -> 9 | L114: =+Wizard!B13 -> Òscar | M114: =+Wizard!C13 -> -12.5 | N114: =+Wizard!D13 -> 174.4117647 | O114: =+Wizard!E13 -> 34 | P114: =+Wizard!F13 -> 0
K115: =+Wizard!A14 -> 10 | L115: =+Wizard!B14 -> Alfred | M115: =+Wizard!C14 -> -15 | N115: =+Wizard!D14 -> 200 | O115: =+Wizard!E14 -> 19 | P115: =+Wizard!F14 -> 0
K116: =+Wizard!A15 -> 11 | L116: =+Wizard!B15 -> Mariajo | M116: =+Wizard!C15 -> -17 | N116: =+Wizard!D15 -> 176.6666667 | O116: =+Wizard!E15 -> 6 | P116: =+Wizard!F15 -> 0
K117: =+Wizard!A16 -> 12 | L117: =+Wizard!B16 -> Tito | M117: =+Wizard!C16 -> -43.5 | N117: =+Wizard!D16 -> 186.7346939 | O117: =+Wizard!E16 -> 98 | P117: =+Wizard!F16 -> 0
K118: =+Wizard!A17 -> 13 | L118: =+Wizard!B17 -> Nancy | M118: =+Wizard!C17 -> -50.5 | N118: =+Wizard!D17 -> 177.101431 | O118: =+Wizard!E17 -> 33 | P118: =+Wizard!F17 -> 0
K119: =+Wizard!A18 -> 14 | L119: =+Wizard!B18 -> Goretti | M119: =+Wizard!C18 -> -85 | N119: =+Wizard!D18 -> 163.0272953 | O119: =+Wizard!E18 -> 31 | P119: =+Wizard!F18 -> 0
K120: =+Wizard!A19 -> 15 | L120: =+Wizard!B19 -> Sebas | M120: =+Wizard!C19 -> -127 | N120: =+Wizard!D19 -> 181.8257261 | O120: =+Wizard!E19 -> 241 | P120: =+Wizard!F19 -> 0
K121: =+Wizard!A22 -> 18 | L121: =+Wizard!B22 -> Nin | M121: =+Wizard!C22 -> -461 | N121: =+Wizard!D22 -> 152.4778761 | O121: =+Wizard!E22 -> 113 | P121: =+Wizard!F22 -> 0 | R121: =+Buti!A12 -> 8 | S121: =+Buti!B12 -> Palafox | T121: =+Buti!C12 -> -100000000 | U121: =+Buti!D12 -> 1 | V121: =+Buti!E12 -> 0 | W121: =+Buti!F12 -> 0
K122: =+Wizard!A23 -> 19 | L122: =+Wizard!B23 -> Nogué | M122: =+Wizard!C23 -> -477 | N122: =+Wizard!D23 -> 160.4273504 | O122: =+Wizard!E23 -> 234 | P122: =+Wizard!F23 -> 0 | R122: =+Buti!A13 -> 9 | S122: =+Buti!B13 -> Marina | T122: =+Buti!C13 -> -100000000 | U122: =+Buti!D13 -> 1 | V122: =+Buti!E13 -> 0 | W122: =+Buti!F13 -> 0 | Y122: =+Pumba!A13 -> 9 | Z122: =+Pumba!B13 -> Tito | AA122: =+Pumba!C13 -> -100000000 | AB122: =+Pumba!D13 -> 0 | AC122: =+Pumba!E13 -> 0 | AD122: =+Pumba!F13 -> 0
K123: =+Wizard!A24 -> 20 | L123: =+Wizard!B24 -> Ana B | M123: =+Wizard!C24 -> -575 | N123: =+Wizard!D24 -> 164.5522388 | O123: =+Wizard!E24 -> 268 | P123: =+Wizard!F24 -> 0 | R123: =+Buti!A14 -> 10 | S123: =+Buti!B14 -> Xavi | T123: =+Buti!C14 -> -100000000 | U123: =+Buti!D14 -> 1 | V123: =+Buti!E14 -> 0 | W123: =+Buti!F14 -> 0 | Y123: =+Pumba!A14 -> 10 | Z123: =+Pumba!B14 -> Manolo | AA123: =+Pumba!C14 -> -100000000 | AB123: =+Pumba!D14 -> 0 | AC123: =+Pumba!E14 -> 0 | AD123: =+Pumba!F14 -> 0
K124: =+Wizard!A25 -> 21 | L124: =+Wizard!B25 -> Lleixà | M124: =+Wizard!C25 -> 10 | N124: =+Wizard!D25 -> 250 | O124: =+Wizard!E25 -> 1 | P124: =+Wizard!F25 -> 0 | R124: =+Buti!A15 -> 11 | S124: =+Buti!B15 -> David | T124: =+Buti!C15 -> -100000000 | U124: =+Buti!D15 -> 1 | V124: =+Buti!E15 -> 0 | W124: =+Buti!F15 -> 0
D127: =+Guinyot!A1 -> GUINYOT
F129: =+Guinyot!C4 -> Premi | G129: =+Guinyot!D4 -> Punts | H129: =+Guinyot!E4 -> Partides | I129: =+Guinyot!F4 -> General
D130: =+Guinyot!A5 -> 1 | E130: =+Guinyot!B5 -> Carles | F130: =+Guinyot!C5 -> -100000000 | G130: =+Guinyot!D5 -> 0 | H130: =+Guinyot!E5 -> 0 | I130: =+Guinyot!F5 -> 0
D131: =+Guinyot!A6 -> 2 | E131: =+Guinyot!B6 -> Mariajo | F131: =+Guinyot!C6 -> -100000000 | G131: =+Guinyot!D6 -> 0 | H131: =+Guinyot!E6 -> 0 | I131: =+Guinyot!F6 -> 0
D132: =+Guinyot!A7 -> 3 | E132: =+Guinyot!B7 -> Sergi | F132: =+Guinyot!C7 -> -100000000 | G132: =+Guinyot!D7 -> 0 | H132: =+Guinyot!E7 -> 0 | I132: =+Guinyot!F7 -> 0
D133: =+Guinyot!A8 -> 4 | E133: =+Guinyot!B8 -> Manolo | F133: =+Guinyot!C8 -> -100000000 | G133: =+Guinyot!D8 -> 0 | H133: =+Guinyot!E8 -> 0 | I133: =+Guinyot!F8 -> 0
D134: =+Guinyot!A9 -> 5 | E134: =+Guinyot!B9 -> Jordi | F134: =+Guinyot!C9 -> -100000000 | G134: =+Guinyot!D9 -> 0 | H134: =+Guinyot!E9 -> 0 | I134: =+Guinyot!F9 -> 0
K135: =+Cribbage!A10 -> 6 | L135: =+Cribbage!B10 -> CyberX | M135: =+Cribbage!C10 -> -8 | N135: =+Cribbage!D10 -> 53 | O135: =+Cribbage!E10 -> 9 | P135: =+Cribbage!F10 -> 0 | Y135: =+King!A10 -> 6 | Z135: =+King!B10 -> Montse | AA135: =+King!C10 -> -30 | AB135: =+King!D10 -> -2.716666667 | AC135: =+King!E10 -> 9 | AD135: =+King!F10 -> 0
K136: =+Cribbage!A11 -> 7 | L136: =+Cribbage!B11 -> Manolo | M136: =+Cribbage!C11 -> -22 | N136: =+Cribbage!D11 -> -96 | O136: =+Cribbage!E11 -> 12 | P136: =+Cribbage!F11 -> 0 | R136: =+Podrida!A11 -> 7 | S136: =+Podrida!B11 -> Grau | T136: =+Podrida!C11 -> -36 | U136: =+Podrida!D11 -> 75.69230769 | V136: =+Podrida!E11 -> 79 | W136: =+Podrida!F11 -> 0 | Y136: =+King!A11 -> 7 | Z136: =+King!B11 -> Cyber X | AA136: =+King!C11 -> -28 | AB136: =+King!D11 -> -6.040909091 | AC136: =+King!E11 -> 11 | AD136: =+King!F11 -> 0
K137: =+Cribbage!A12 -> 8 | L137: =+Cribbage!B12 -> Ana B. | M137: =+Cribbage!C12 -> -51 | N137: =+Cribbage!D12 -> -120 | O137: =+Cribbage!E12 -> 13 | P137: =+Cribbage!F12 -> 0 | R137: =+Podrida!A12 -> 8 | S137: =+Podrida!B12 -> Nogué | T137: =+Podrida!C12 -> -51 | U137: =+Podrida!D12 -> 77.23076923 | V137: =+Podrida!E12 -> 65 | W137: =+Podrida!F12 -> 0 | Y137: =+King!A12 -> 8 | Z137: =+King!B12 -> Gemma | AA137: =+King!C12 -> -46 | AB137: =+King!D12 -> -4.189285714 | AC137: =+King!E12 -> 14 | AD137: =+King!F12 -> 0
K138: =+Cribbage!A13 -> 9 | L138: =+Cribbage!B13 -> Nin | M138: =+Cribbage!C13 -> -63 | N138: =+Cribbage!D13 -> -178 | O138: =+Cribbage!E13 -> 12 | P138: =+Cribbage!F13 -> 0 | R138: =+Podrida!A13 -> 9 | S138: =+Podrida!B13 -> Ana B | T138: =+Podrida!C13 -> -63 | U138: =+Podrida!D13 -> 69.75 | V138: =+Podrida!E13 -> 24 | W138: =+Podrida!F13 -> 0 | Y138: =+King!A13 -> 9 | Z138: =+King!B13 -> Nin | AA138: =+King!C13 -> -100 | AB138: =+King!D13 -> -6.328125 | AC138: =+King!E13 -> 16 | AD138: =+King!F13 -> 0
K139: =+Cribbage!A14 -> 10 | L139: =+Cribbage!B14 -> Grau | M139: =+Cribbage!C14 -> -120 | N139: =+Cribbage!D14 -> -168 | O139: =+Cribbage!E14 -> 164 | P139: =+Cribbage!F14 -> 0 | R139: =+Podrida!A14 -> 10 | S139: =+Podrida!B14 -> Nin | T139: =+Podrida!C14 -> -72 | U139: =+Podrida!D14 -> 51.58333333 | V139: =+Podrida!E14 -> 12 | W139: =+Podrida!F14 -> 0 | Y139: =+King!A14 -> 10 | Z139: =+King!B14 -> Òscar | AA139: =+King!C14 -> 4 | AB139: =+King!D14 -> 0 | AC139: =+King!E14 -> 4 | AD139: =+King!F14 -> 0
K140: =+Cribbage!A15 -> 11 | L140: =+Cribbage!B15 -> Núria | M140: =+Cribbage!C15 -> -180 | N140: =+Cribbage!D15 -> -122.5 | O140: =+Cribbage!E15 -> 185 | P140: =+Cribbage!F15 -> 0 | R140: =+Podrida!A15 -> 11 | S140: =+Podrida!B15 -> Gemma | T140: =+Podrida!C15 -> -77 | U140: =+Podrida!D15 -> 69.57333333 | V140: =+Podrida!E15 -> 75 | W140: =+Podrida!F15 -> 0 | Y140: =+King!A15 -> 11 | Z140: =+King!B15 -> Mariajo | AA140: =+King!C15 -> -2 | AB140: =+King!D15 -> 0 | AC140: =+King!E15 -> 2 | AD140: =+King!F15 -> 0
K141: =+Cribbage!A16 -> 12 | L141: =+Cribbage!B16 -> Goretti | M141: =+Cribbage!C16 -> 50 | N141: =+Cribbage!D16 -> 45 | O141: =+Cribbage!E16 -> 5 | P141: =+Cribbage!F16 -> 0 | R141: =+Podrida!A16 -> 12 | S141: =+Podrida!B16 -> Rosa M | T141: =+Podrida!C16 -> 18 | U141: =+Podrida!D16 -> 94.6 | V141: =+Podrida!E16 -> 3 | W141: =+Podrida!F16 -> 0 | Y141: =+King!A16 -> 12 | Z141: =+King!B16 -> Grau | AA141: =+King!C16 -> -2 | AB141: =+King!D16 -> -4.866666667 | AC141: =+King!E16 -> 3 | AD141: =+King!F16 -> 0
K142: =+Cribbage!A17 -> 13 | L142: =+Cribbage!B17 -> Òscar | M142: =+Cribbage!C17 -> 30 | N142: =+Cribbage!D17 -> 57 | O142: =+Cribbage!E17 -> 3 | P142: =+Cribbage!F17 -> 0 | R142: =+Podrida!A17 -> 13 | S142: =+Podrida!B17 -> Mariajo | T142: =+Podrida!C17 -> 0 | U142: =+Podrida!D17 -> 73 | V142: =+Podrida!E17 -> 1 | W142: =+Podrida!F17 -> 0 | Y142: =+King!A17 -> 13 | Z142: =+King!B17 -> Sergi | AA142: =+King!C17 -> -6 | AB142: =+King!D17 -> -1.5 | AC142: =+King!E17 -> 2 | AD142: =+King!F17 -> 0
K143: =+Cribbage!A18 -> 14 | L143: =+Cribbage!B18 -> Sergi | M143: =+Cribbage!C18 -> -50 | N143: =+Cribbage!D18 -> -75 | O143: =+Cribbage!E18 -> 5 | P143: =+Cribbage!F18 -> 0 | R143: =+Podrida!A18 -> 14 | S143: =+Podrida!B18 -> Sergi | T143: =+Podrida!C18 -> 0 | U143: =+Podrida!D18 -> 73 | V143: =+Podrida!E18 -> 1 | W143: =+Podrida!F18 -> 0 | Y143: =+King!A18 -> 14 | Z143: =+King!B18 -> Tito | AA143: =+King!C18 -> -100000000 | AB143: =+King!D18 -> 0.0001 | AC143: =+King!E18 -> 0 | AD143: =+King!F18 -> 0
K144: =+Cribbage!A19 -> 15 | L144: =+Cribbage!B19 -> Lluisa | M144: =+Cribbage!C19 -> -100000000 | N144: =+Cribbage!D19 -> 1 | O144: =+Cribbage!E19 -> 0 | P144: =+Cribbage!F19 -> 0 | Y144: =+King!A19 -> 15 | Z144: =+King!B19 -> Anna P. | AA144: =+King!C19 -> -100000000 | AB144: =+King!D19 -> 0.0001 | AC144: =+King!E19 -> 0 | AD144: =+King!F19 -> 0
K145: =+Cribbage!A20 -> 16 | L145: =+Cribbage!B20 -> Mariajo | M145: =+Cribbage!C20 -> -100000000 | N145: =+Cribbage!D20 -> 1 | O145: =+Cribbage!E20 -> 0 | P145: =+Cribbage!F20 -> 0 | Y145: =+King!A20 -> 16 | Z145: =+King!B20 -> Rosa M. | AA145: =+King!C20 -> -100000000 | AB145: =+King!D20 -> 0.0001 | AC145: =+King!E20 -> 0 | AD145: =+King!F20 -> 0
K146: =+Cribbage!A21 -> 17 | L146: =+Cribbage!B21 -> Joan | M146: =+Cribbage!C21 -> -100000000 | N146: =+Cribbage!D21 -> 1 | O146: =+Cribbage!E21 -> 0 | P146: =+Cribbage!F21 -> 0 | Y146: =+King!A21 -> 17 | Z146: =+King!B21 -> Angie | AA146: =+King!C21 -> -100000000 | AB146: =+King!D21 -> 0.0001 | AC146: =+King!E21 -> 0 | AD146: =+King!F21 -> 0
K147: =+Cribbage!A22 -> 18 | L147: =+Cribbage!B22 -> Rosa M. | M147: =+Cribbage!C22 -> -100000000 | N147: =+Cribbage!D22 -> 1 | O147: =+Cribbage!E22 -> 0 | P147: =+Cribbage!F22 -> 0
K148: =+Cribbage!A23 -> 19 | L148: =+Cribbage!B23 -> Tito | M148: =+Cribbage!C23 -> -100000000 | N148: =+Cribbage!D23 -> 1 | O148: =+Cribbage!E23 -> 0 | P148: =+Cribbage!F23 -> 0
K149: =+Cribbage!A24 -> 20 | L149: =+Cribbage!B24 -> Anna P. | M149: =+Cribbage!C24 -> -100000000 | N149: =+Cribbage!D24 -> 1 | O149: =+Cribbage!E24 -> 0 | P149: =+Cribbage!F24 -> 0
D151: =+Texas!A1 -> POKER TEXAS | R151: =+Mus!A1 -> MUS | Y151: =+Cors!A1 -> CORS
F153: =+Texas!C4 -> Premi | G153: =+Texas!D4 -> Punts | H153: =+Texas!E4 -> Partides | I153: =+Texas!F4 -> General | T153: =+Mus!C4 -> Premi | U153: =+Mus!D4 -> Punts | V153: =+Mus!E4 -> Partides | W153: =+Mus!F4 -> General | AA153: =+Cors!C4 -> Premi | AB153: =+Cors!D4 -> Punts | AC153: =+Cors!E4 -> Partides | AD153: =+Cors!F4 -> General
D154: =+Texas!A5 -> 1 | E154: =+Texas!B5 -> Carles | F154: =+Texas!C5 -> -100000000 | G154: =+Texas!D5 -> 0 | H154: =+Texas!E5 -> 0 | I154: =+Texas!F5 -> 0 | R154: =+Mus!A5 -> 1 | S154: =+Mus!B5 -> Lucía | T154: =+Mus!C5 -> -100000000 | U154: =+Mus!D5 -> 0 | V154: =+Mus!E5 -> 0 | W154: =+Mus!F5 -> 0 | Y154: =+Cors!A5 -> 1 | Z154: =+Cors!B5 -> Carles | AA154: =+Cors!C5 -> -100000000 | AB154: =+Cors!D5 -> 0.0001 | AC154: =+Cors!E5 -> 0 | AD154: =+Cors!F5 -> 0
D155: =+Texas!A6 -> 2 | E155: =+Texas!B6 -> Grau | F155: =+Texas!C6 -> -100000000 | G155: =+Texas!D6 -> 0 | H155: =+Texas!E6 -> 0 | I155: =+Texas!F6 -> 0 | R155: =+Mus!A6 -> 2 | S155: =+Mus!B6 -> Carles | T155: =+Mus!C6 -> -100000000 | U155: =+Mus!D6 -> 0 | V155: =+Mus!E6 -> 0 | W155: =+Mus!F6 -> 0 | Y155: =+Cors!A6 -> 2 | Z155: =+Cors!B6 -> Jordi | AA155: =+Cors!C6 -> -100000000 | AB155: =+Cors!D6 -> 0.0001 | AC155: =+Cors!E6 -> 0 | AD155: =+Cors!F6 -> 0
D156: =+Texas!A7 -> 3 | E156: =+Texas!B7 -> Jordi | F156: =+Texas!C7 -> -100000000 | G156: =+Texas!D7 -> 0 | H156: =+Texas!E7 -> 0 | I156: =+Texas!F7 -> 0 | R156: =+Mus!A7 -> 3 | S156: =+Mus!B7 -> Manolo | T156: =+Mus!C7 -> -100000000 | U156: =+Mus!D7 -> 0 | V156: =+Mus!E7 -> 0 | W156: =+Mus!F7 -> 0 | Y156: =+Cors!A7 -> 3 | Z156: =+Cors!B7 -> Manolo | AA156: =+Cors!C7 -> -100000000 | AB156: =+Cors!D7 -> 0.0001 | AC156: =+Cors!E7 -> 0 | AD156: =+Cors!F7 -> 0
D157: =+Texas!A8 -> 4 | E157: =+Texas!B8 -> Lucía | F157: =+Texas!C8 -> -100000000 | G157: =+Texas!D8 -> 0 | H157: =+Texas!E8 -> 0 | I157: =+Texas!F8 -> 0 | R157: =+Mus!A8 -> 4 | S157: =+Mus!B8 -> Mariajo | T157: =+Mus!C8 -> -100000000 | U157: =+Mus!D8 -> 0 | V157: =+Mus!E8 -> 0 | W157: =+Mus!F8 -> 0 | Y157: =+Cors!A8 -> 4 | Z157: =+Cors!B8 -> Cyber X | AA157: =+Cors!C8 -> -100000000 | AB157: =+Cors!D8 -> 0.0001 | AC157: =+Cors!E8 -> 0 | AD157: =+Cors!F8 -> 0
R158: =+Mus!A9 -> 5 | S158: =+Mus!B9 -> Grau | T158: =+Mus!C9 -> -100000000 | U158: =+Mus!D9 -> 0 | V158: =+Mus!E9 -> 0 | W158: =+Mus!F9 -> 0 | Y158: =+Cors!A9 -> 5 | Z158: =+Cors!B9 -> Sergi | AA158: =+Cors!C9 -> -100000000 | AB158: =+Cors!D9 -> 0.0001 | AC158: =+Cors!E9 -> 0 | AD158: =+Cors!F9 -> 0
K159: =+Tarot!A10 -> 6 | L159: =+Tarot!B10 -> Grau | M159: =+Tarot!C10 -> -100000000 | N159: =+Tarot!D10 -> 1 | O159: =+Tarot!E10 -> 0 | P159: =+Tarot!F10 -> 0 | R159: =+Mus!A10 -> 6 | S159: =+Mus!B10 -> Jordi | T159: =+Mus!C10 -> -100000000 | U159: =+Mus!D10 -> 0 | V159: =+Mus!E10 -> 0 | W159: =+Mus!F10 -> 0 | Y159: =+Cors!A10 -> 6 | Z159: =+Cors!B10 -> Grau | AA159: =+Cors!C10 -> -100000000 | AB159: =+Cors!D10 -> 0.0001 | AC159: =+Cors!E10 -> 0 | AD159: =+Cors!F10 -> 0
Y160: =+Cors!A11 -> 7 | Z160: =+Cors!B11 -> Nin | AA160: =+Cors!C11 -> -100000000 | AB160: =+Cors!D11 -> 0.0001 | AC160: =+Cors!E11 -> 0 | AD160: =+Cors!F11 -> 0
Y161: =+Cors!A12 -> 8 | Z161: =+Cors!B12 -> Mariajo | AA161: =+Cors!C12 -> -100000000 | AB161: =+Cors!D12 -> 0.0001 | AC161: =+Cors!E12 -> 0 | AD161: =+Cors!F12 -> 0
Y162: =+Cors!A13 -> 9 | Z162: =+Cors!B13 -> Tito | AA162: =+Cors!C13 -> -100000000 | AB162: =+Cors!D13 -> 0.0001 | AC162: =+Cors!E13 -> 0 | AD162: =+Cors!F13 -> 0
Y163: =+Cors!A14 -> 10 | Z163: =+Cors!B14 -> Òscar | AA163: =+Cors!C14 -> -100000000 | AB163: =+Cors!D14 -> 0.0001 | AC163: =+Cors!E14 -> 0 | AD163: =+Cors!F14 -> 0
D165: =+'4 Duros'!A1 -> 4 DUROS | K165: =+'Black Jack'!A1 -> BLACK JACK
F167: =+'4 Duros'!C4 -> Premi | G167: =+'4 Duros'!D4 -> Punts | H167: =+'4 Duros'!E4 -> Partides | I167: =+'4 Duros'!F4 -> General | M167: =+'Black Jack'!C4 -> Premi | N167: =+'Black Jack'!D4 -> Punts | O167: =+'Black Jack'!E4 -> Partides | P167: =+'Black Jack'!F4 -> General
D168: =+'4 Duros'!A5 -> 1 | E168: =+'4 Duros'!B5 -> Joan | F168: =+'4 Duros'!C5 -> -100000000 | G168: =+'4 Duros'!D5 -> 0 | H168: =+'4 Duros'!E5 -> 0 | I168: =+'4 Duros'!F5 -> 0 | K168: =+'Black Jack'!A5 -> 1 | L168: =+'Black Jack'!B5 -> Jordi | M168: =+'Black Jack'!C5 -> -100000000 | N168: =+'Black Jack'!D5 -> 0 | O168: =+'Black Jack'!E5 -> 0 | P168: =+'Black Jack'!F5 -> 0
D169: =+'4 Duros'!A6 -> 2 | E169: =+'4 Duros'!B6 -> Rosa | F169: =+'4 Duros'!C6 -> -100000000 | G169: =+'4 Duros'!D6 -> 0 | H169: =+'4 Duros'!E6 -> 0 | I169: =+'4 Duros'!F6 -> 0 | K169: =+'Black Jack'!A6 -> 2 | L169: =+'Black Jack'!B6 -> Carles | M169: =+'Black Jack'!C6 -> -100000000 | N169: =+'Black Jack'!D6 -> 0 | O169: =+'Black Jack'!E6 -> 0 | P169: =+'Black Jack'!F6 -> 0
D170: =+'4 Duros'!A7 -> 3 | E170: =+'4 Duros'!B7 -> Jordi | F170: =+'4 Duros'!C7 -> -100000000 | G170: =+'4 Duros'!D7 -> 0 | H170: =+'4 Duros'!E7 -> 0 | I170: =+'4 Duros'!F7 -> 0 | K170: =+'Black Jack'!A7 -> 3 | L170: =+'Black Jack'!B7 -> Manel | M170: =+'Black Jack'!C7 -> -100000000 | N170: =+'Black Jack'!D7 -> 0 | O170: =+'Black Jack'!E7 -> 0 | P170: =+'Black Jack'!F7 -> 0
D171: =+'4 Duros'!A8 -> 4 | E171: =+'4 Duros'!B8 -> Anna P. | F171: =+'4 Duros'!C8 -> -100000000 | G171: =+'4 Duros'!D8 -> 0 | H171: =+'4 Duros'!E8 -> 0 | I171: =+'4 Duros'!F8 -> 0
D172: =+'4 Duros'!A9 -> 5 | E172: =+'4 Duros'!B9 -> Manel | F172: =+'4 Duros'!C9 -> -100000000 | G172: =+'4 Duros'!D9 -> 0 | H172: =+'4 Duros'!E9 -> 0 | I172: =+'4 Duros'!F9 -> 0
D173: =+'4 Duros'!A10 -> 6 | E173: =+'4 Duros'!B10 -> Carles | F173: =+'4 Duros'!C10 -> -100000000 | G173: =+'4 Duros'!D10 -> 0 | H173: =+'4 Duros'!E10 -> 0 | I173: =+'4 Duros'!F10 -> 0
Q187: =+Buti!A9 -> 5 | R187: =+Buti!B9 -> Gemma | S187: =+Buti!C9 -> -2 | T187: =+Buti!D9 -> -8 | U187: =+Buti!E9 -> 1 | V187: =+Buti!F9 -> 0 | X187: =+Wizard!A9 -> 5 | Y187: =+Wizard!B9 -> Núria | Z187: =+Wizard!C9 -> 83.5 | AA187: =+Wizard!D9 -> 188.8304281 | AB187: =+Wizard!E9 -> 437 | AC187: =+Wizard!F9 -> 5
Q188: =+Buti!A10 -> 6 | R188: =+Buti!B10 -> Carles | S188: =+Buti!C10 -> -6 | T188: =+Buti!D10 -> -13 | U188: =+Buti!E10 -> 1 | V188: =+Buti!F10 -> 0 | X188: =+Wizard!A10 -> 6 | Y188: =+Wizard!B10 -> Tim | Z188: =+Wizard!C10 -> 53.5 | AA188: =+Wizard!D10 -> 214.375 | AB188: =+Wizard!E10 -> 16 | AC188: =+Wizard!F10 -> 0
J189: =+Mus!A11 -> 7 | K189: =+Mus!B11 -> Goretti | L189: =+Mus!C11 -> -100000000 | M189: =+Mus!D11 -> 0 | N189: =+Mus!E11 -> 0 | O189: =+Mus!F11 -> 0 | Q189: =+Buti!A11 -> 7 | R189: =+Buti!B11 -> Núria | S189: =+Buti!C11 -> -10 | T189: =+Buti!D11 -> -16 | U189: =+Buti!E11 -> 1 | V189: =+Buti!F11 -> 0 | X189: =+Wizard!A11 -> 7 | Y189: =+Wizard!B11 -> CyberX | Z189: =+Wizard!C11 -> 14.5 | AA189: =+Wizard!D11 -> 192.7621193 | AB189: =+Wizard!E11 -> 375 | AC189: =+Wizard!F11 -> 0
Q190: =+Buti!A12 -> 8 | R190: =+Buti!B12 -> Palafox | S190: =+Buti!C12 -> -100000000 | T190: =+Buti!D12 -> 1 | U190: =+Buti!E12 -> 0 | V190: =+Buti!F12 -> 0 | X190: =+Wizard!A12 -> 8 | Y190: =+Wizard!B12 -> Marina | Z190: =+Wizard!C12 -> 6 | AA190: =+Wizard!D12 -> 217.2727273 | AB190: =+Wizard!E12 -> 11 | AC190: =+Wizard!F12 -> 0
C191: =+Kul!A13 -> 9 | D191: =+Kul!B13 -> Mariajo | E191: =+Kul!C13 -> -15 | F191: =+Kul!D13 -> -5 | G191: =+Kul!E13 -> 2 | H191: =+Kul!F13 -> 0 | Q191: =+Buti!A13 -> 9 | R191: =+Buti!B13 -> Marina | S191: =+Buti!C13 -> -100000000 | T191: =+Buti!D13 -> 1 | U191: =+Buti!E13 -> 0 | V191: =+Buti!F13 -> 0 | X191: =+Wizard!A13 -> 9 | Y191: =+Wizard!B13 -> Òscar | Z191: =+Wizard!C13 -> -12.5 | AA191: =+Wizard!D13 -> 174.4117647 | AB191: =+Wizard!E13 -> 34 | AC191: =+Wizard!F13 -> 0
C192: =+Kul!A14 -> 10 | D192: =+Kul!B14 -> Grau | E192: =+Kul!C14 -> -100000000 | F192: =+Kul!D14 -> 0 | G192: =+Kul!E14 -> 0 | H192: =+Kul!F14 -> 0 | Q192: =+Buti!A14 -> 10 | R192: =+Buti!B14 -> Xavi | S192: =+Buti!C14 -> -100000000 | T192: =+Buti!D14 -> 1 | U192: =+Buti!E14 -> 0 | V192: =+Buti!F14 -> 0 | X192: =+Wizard!A14 -> 10 | Y192: =+Wizard!B14 -> Alfred | Z192: =+Wizard!C14 -> -15 | AA192: =+Wizard!D14 -> 200 | AB192: =+Wizard!E14 -> 19 | AC192: =+Wizard!F14 -> 0
C193: =+Kul!A15 -> 11 | D193: =+Kul!B15 -> Manolo | E193: =+Kul!C15 -> -100000000 | F193: =+Kul!D15 -> 0 | G193: =+Kul!E15 -> 0 | H193: =+Kul!F15 -> 0 | Q193: =+Buti!A15 -> 11 | R193: =+Buti!B15 -> David | S193: =+Buti!C15 -> -100000000 | T193: =+Buti!D15 -> 1 | U193: =+Buti!E15 -> 0 | V193: =+Buti!F15 -> 0 | X193: =+Wizard!A15 -> 11 | Y193: =+Wizard!B15 -> Mariajo | Z193: =+Wizard!C15 -> -17 | AA193: =+Wizard!D15 -> 176.6666667 | AB193: =+Wizard!E15 -> 6 | AC193: =+Wizard!F15 -> 0
X197: =+Omaha!A1 -> POKER OMAHA
Z199: =+Omaha!C4 -> Premi | AA199: =+Omaha!D4 -> Punts | AB199: =+Omaha!E4 -> Partides | AC199: =+Omaha!F4 -> General
X200: =+Omaha!A5 -> 1 | Y200: =+Omaha!B5 -> Carles | Z200: =+Omaha!C5 -> -100000000 | AA200: =+Omaha!D5 -> 0 | AB200: =+Omaha!E5 -> 0 | AC200: =+Omaha!F5 -> 0
X201: =+Omaha!A6 -> 2 | Y201: =+Omaha!B6 -> Goretti | Z201: =+Omaha!C6 -> -100000000 | AA201: =+Omaha!D6 -> 0 | AB201: =+Omaha!E6 -> 0 | AC201: =+Omaha!F6 -> 0
X202: =+Omaha!A7 -> 3 | Y202: =+Omaha!B7 -> Grau | Z202: =+Omaha!C7 -> -100000000 | AA202: =+Omaha!D7 -> 0 | AB202: =+Omaha!E7 -> 0 | AC202: =+Omaha!F7 -> 0
X203: =+Omaha!A8 -> 4 | Y203: =+Omaha!B8 -> Mercè | Z203: =+Omaha!C8 -> -100000000 | AA203: =+Omaha!D8 -> 0 | AB203: =+Omaha!E8 -> 0 | AC203: =+Omaha!F8 -> 0
C204: =+King!A9 -> 5 | D204: =+King!B9 -> Núria | E204: =+King!C9 -> 12 | F204: =+King!D9 -> -1.336363636 | G204: =+King!E9 -> 11 | H204: =+King!F9 -> 5 | J204: =+Texas!A9 -> 5 | K204: =+Texas!B9 -> Manolo | L204: =+Texas!C9 -> -100000000 | M204: =+Texas!D9 -> 0 | N204: =+Texas!E9 -> 0 | O204: =+Texas!F9 -> 0 | Q204: =+Pumba!A9 -> 5 | R204: =+Pumba!B9 -> Gemma | S204: =+Pumba!C9 -> -4 | T204: =+Pumba!D9 -> 17.25 | U204: =+Pumba!E9 -> 1 | V204: =+Pumba!F9 -> 0 | X204: =+Omaha!A9 -> 5 | Y204: =+Omaha!B9 -> Sergi | Z204: =+Omaha!C9 -> -100000000 | AA204: =+Omaha!D9 -> 0 | AB204: =+Omaha!E9 -> 0 | AC204: =+Omaha!F9 -> 0
C205: =+King!A10 -> 6 | D205: =+King!B10 -> Montse | E205: =+King!C10 -> -30 | F205: =+King!D10 -> -2.716666667 | G205: =+King!E10 -> 9 | H205: =+King!F10 -> 0 | J205: =+Texas!A10 -> 6 | K205: =+Texas!B10 -> Mariajo | L205: =+Texas!C10 -> -100000000 | M205: =+Texas!D10 -> 0 | N205: =+Texas!E10 -> 0 | O205: =+Texas!F10 -> 0 | Q205: =+Pumba!A10 -> 6 | R205: =+Pumba!B10 -> Nin | S205: =+Pumba!C10 -> -4 | T205: =+Pumba!D10 -> 19 | U205: =+Pumba!E10 -> 1 | V205: =+Pumba!F10 -> 0 | X205: =+Omaha!A10 -> 6 | Y205: =+Omaha!B10 -> Jordi | Z205: =+Omaha!C10 -> -100000000 | AA205: =+Omaha!D10 -> 0 | AB205: =+Omaha!E10 -> 0 | AC205: =+Omaha!F10 -> 0
C206: =+King!A11 -> 7 | D206: =+King!B11 -> Cyber X | E206: =+King!C11 -> -28 | F206: =+King!D11 -> -6.040909091 | G206: =+King!E11 -> 11 | H206: =+King!F11 -> 0 | Q206: =+Pumba!A11 -> 7 | R206: =+Pumba!B11 -> Carles | S206: =+Pumba!C11 -> -10 | T206: =+Pumba!D11 -> 19.75 | U206: =+Pumba!E11 -> 1 | V206: =+Pumba!F11 -> 0 | X206: =+Omaha!A11 -> 7 | Y206: =+Omaha!B11 -> Katy | Z206: =+Omaha!C11 -> -100000000 | AA206: =+Omaha!D11 -> 0 | AB206: =+Omaha!E11 -> 0 | AC206: =+Omaha!F11 -> 0
Q207: =+Pumba!A12 -> 8 | R207: =+Pumba!B12 -> Montse | S207: =+Pumba!C12 -> -10 | T207: =+Pumba!D12 -> 28.5 | U207: =+Pumba!E12 -> 1 | V207: =+Pumba!F12 -> 0 | X207: =+Omaha!A12 -> 8 | Y207: =+Omaha!B12 -> Mariajo | Z207: =+Omaha!C12 -> -100000000 | AA207: =+Omaha!D12 -> 0 | AB207: =+Omaha!E12 -> 0 | AC207: =+Omaha!F12 -> 0
Q208: =+Pumba!A13 -> 9 | R208: =+Pumba!B13 -> Tito | S208: =+Pumba!C13 -> -100000000 | T208: =+Pumba!D13 -> 0 | U208: =+Pumba!E13 -> 0 | V208: =+Pumba!F13 -> 0 | X208: =+Omaha!A13 -> 9 | Y208: =+Omaha!B13 -> Manolo | Z208: =+Omaha!C13 -> -100000000 | AA208: =+Omaha!D13 -> 0 | AB208: =+Omaha!E13 -> 0 | AC208: =+Omaha!F13 -> 0
Q209: =+Pumba!A14 -> 10 | R209: =+Pumba!B14 -> Manolo | S209: =+Pumba!C14 -> -100000000 | T209: =+Pumba!D14 -> 0 | U209: =+Pumba!E14 -> 0 | V209: =+Pumba!F14 -> 0
Q210: =+Pumba!A15 -> 11 | R210: =+Pumba!B15 -> Goretti | S210: =+Pumba!C15 -> -100000000 | T210: =+Pumba!D15 -> 0 | U210: =+Pumba!E15 -> 0 | V210: =+Pumba!F15 -> 0
Q212: =+Pocha!A1 -> POCHA | X212: =+Julepe!A1 -> JULEPE
S214: =+Pocha!C4 -> Premi | T214: =+Pocha!D4 -> Punts | U214: =+Pocha!E4 -> Partides | V214: =+Pocha!F4 -> General | Z214: =+Julepe!C4 -> Premi | AA214: =+Julepe!D4 -> Punts | AB214: =+Julepe!E4 -> Partides | AC214: =+Julepe!F4 -> General
Q215: =+Pocha!A5 -> 1 | R215: =+Pocha!B5 -> alaf | S215: =+Pocha!C5 -> -100000000 | T215: =+Pocha!D5 -> 0.0001 | U215: =+Pocha!E5 -> 0 | V215: =+Pocha!F5 -> 0 | X215: =+Julepe!A5 -> 1 | Y215: =+Julepe!B5 -> Carles | Z215: =+Julepe!C5 -> -100000000 | AA215: =+Julepe!D5 -> 0 | AB215: =+Julepe!E5 -> 0 | AC215: =+Julepe!F5 -> 0
Q216: =+Pocha!A6 -> 2 | R216: =+Pocha!B6 -> Jordi | S216: =+Pocha!C6 -> -100000000 | T216: =+Pocha!D6 -> 0.0001 | U216: =+Pocha!E6 -> 0 | V216: =+Pocha!F6 -> 0 | X216: =+Julepe!A6 -> 2 | Y216: =+Julepe!B6 -> Sergi | Z216: =+Julepe!C6 -> -100000000 | AA216: =+Julepe!D6 -> 0 | AB216: =+Julepe!E6 -> 0 | AC216: =+Julepe!F6 -> 0
Q217: =+Pocha!A7 -> 3 | R217: =+Pocha!B7 -> Grau | S217: =+Pocha!C7 -> -100000000 | T217: =+Pocha!D7 -> 0.0001 | U217: =+Pocha!E7 -> 0 | V217: =+Pocha!F7 -> 0 | X217: =+Julepe!A7 -> 3 | Y217: =+Julepe!B7 -> Manel | Z217: =+Julepe!C7 -> -100000000 | AA217: =+Julepe!D7 -> 0 | AB217: =+Julepe!E7 -> 0 | AC217: =+Julepe!F7 -> 0
Q218: =+Pocha!A8 -> 4 | R218: =+Pocha!B8 -> Manel | S218: =+Pocha!C8 -> -100000000 | T218: =+Pocha!D8 -> 0.0001 | U218: =+Pocha!E8 -> 0 | V218: =+Pocha!F8 -> 0 | X218: =+Julepe!A8 -> 4 | Y218: =+Julepe!B8 -> Jordi | Z218: =+Julepe!C8 -> -100000000 | AA218: =+Julepe!D8 -> 0 | AB218: =+Julepe!E8 -> 0 | AC218: =+Julepe!F8 -> 0
C219: =+Cribbage!A9 -> 5 | D219: =+Cribbage!B9 -> Nogué | E219: =+Cribbage!C9 -> 28 | F219: =+Cribbage!D9 -> 194.5 | G219: =+Cribbage!E9 -> 250 | H219: =+Cribbage!F9 -> 5 | J219: =+Cors!A9 -> 5 | K219: =+Cors!B9 -> Sergi | L219: =+Cors!C9 -> -100000000 | M219: =+Cors!D9 -> 0.0001 | N219: =+Cors!E9 -> 0 | O219: =+Cors!F9 -> 0 | Q219: =+Pocha!A9 -> 5 | R219: =+Pocha!B9 -> Mariajo | S219: =+Pocha!C9 -> -100000000 | T219: =+Pocha!D9 -> 0.0001 | U219: =+Pocha!E9 -> 0 | V219: =+Pocha!F9 -> 0 | X219: =+Julepe!A9 -> 5 | Y219: =+Julepe!B9 -> Mariajo | Z219: =+Julepe!C9 -> -100000000 | AA219: =+Julepe!D9 -> 0 | AB219: =+Julepe!E9 -> 0 | AC219: =+Julepe!F9 -> 0
X220: =+Julepe!A10 -> 6 | Y220: =+Julepe!B10 -> Katy | Z220: =+Julepe!C10 -> -100000000 | AA220: =+Julepe!D10 -> 0 | AB220: =+Julepe!E10 -> 0 | AC220: =+Julepe!F10 -> 0
X221: =+Julepe!A11 -> 7 | Y221: =+Julepe!B11 -> Grau | Z221: =+Julepe!C11 -> -100000000 | AA221: =+Julepe!D11 -> 0 | AB221: =+Julepe!E11 -> 0 | AC221: =+Julepe!F11 -> 0
C237: =+King!A11 -> 7 | D237: =+King!B11 -> Cyber X | E237: =+King!C11 -> -28 | F237: =+King!D11 -> -6.040909091 | G237: =+King!E11 -> 11 | H237: =+King!F11 -> 0
C238: =+King!A12 -> 8 | D238: =+King!B12 -> Gemma | E238: =+King!C12 -> -46 | F238: =+King!D12 -> -4.189285714 | G238: =+King!E12 -> 14 | H238: =+King!F12 -> 0
C239: =+King!A13 -> 9 | D239: =+King!B13 -> Nin | E239: =+King!C13 -> -100 | F239: =+King!D13 -> -6.328125 | G239: =+King!E13 -> 16 | H239: =+King!F13 -> 0
C242: TUTE CABRÒ | Q242: =+Canasta!A1 -> CANASTA
E244: Premi | F244: Punts | G244: Partides | H244: General | S244: =+Canasta!C4 -> Premi | T244: =+Canasta!D4 -> Punts | U244: =+Canasta!E4 -> Partides | V244: =+Canasta!F4 -> General
C245: 1 | D245: =+'Tute cabrò'!B5 -> Jordi | E245: =+'Tute cabrò'!C5 -> -100000000 | F245: =+'Tute cabrò'!D5 -> 0.0001 | G245: =+'Tute cabrò'!E5 -> 0 | H245: =+'Tute cabrò'!F5 -> 0 | Q245: =+Canasta!A5 -> 1 | R245: =+Canasta!B5 -> Sergi | S245: =+Canasta!C5 -> -100000000 | T245: =+Canasta!D5 -> 0 | U245: =+Canasta!E5 -> 0 | V245: =+Canasta!F5 -> 0
C246: 2 | D246: =+'Tute cabrò'!B6 -> Mariajo | E246: =+'Tute cabrò'!C6 -> -100000000 | F246: =+'Tute cabrò'!D6 -> 0.0001 | G246: =+'Tute cabrò'!E6 -> 0 | H246: =+'Tute cabrò'!F6 -> 0 | Q246: =+Canasta!A6 -> 2 | R246: =+Canasta!B6 -> Jordi | S246: =+Canasta!C6 -> -100000000 | T246: =+Canasta!D6 -> 0 | U246: =+Canasta!E6 -> 0 | V246: =+Canasta!F6 -> 0
C247: 3 | D247: =+'Tute cabrò'!B7 -> Grau | E247: =+'Tute cabrò'!C7 -> -100000000 | F247: =+'Tute cabrò'!D7 -> 0.0001 | G247: =+'Tute cabrò'!E7 -> 0 | H247: =+'Tute cabrò'!F7 -> 0 | Q247: =+Canasta!A7 -> 3 | R247: =+Canasta!B7 -> Carles | S247: =+Canasta!C7 -> -100000000 | T247: =+Canasta!D7 -> 0 | U247: =+Canasta!E7 -> 0 | V247: =+Canasta!F7 -> 0
Q248: =+Canasta!A8 -> 4 | R248: =+Canasta!B8 -> Grau | S248: =+Canasta!C8 -> -100000000 | T248: =+Canasta!D8 -> 0 | U248: =+Canasta!E8 -> 0 | V248: =+Canasta!F8 -> 0
Q249: =+Canasta!A9 -> 5 | R249: =+Canasta!B9 -> Mercè | S249: =+Canasta!C9 -> -100000000 | T249: =+Canasta!D9 -> 0 | U249: =+Canasta!E9 -> 0 | V249: =+Canasta!F9 -> 0
Q250: =+Canasta!A10 -> 6 | R250: =+Canasta!B10 -> Goretti | S250: =+Canasta!C10 -> -100000000 | T250: =+Canasta!D10 -> 0 | U250: =+Canasta!E10 -> 0 | V250: =+Canasta!F10 -> 0
J253: =+Escombra!A1 -> ESCOMBRA
J255: =+Escombra!A4 -> 0 | K255: =+Escombra!B4 -> 0 | L255: =+Escombra!C4 -> Premi | M255: =+Escombra!D4 -> Punts | N255: =+Escombra!E4 -> Partides | O255: =+Escombra!F4 -> General
... 191 more rows

Sheet Wizard
A1: WIZARD
A2: Mes
A3: =+GENERAL!B6 -> 12 | C3: =SUM(C5:C26)+AZ45 -> 3.197442311e-14
C4: Premi | D4: Punts | E4: Partides | F4: General
A5: 1 | B5: Carles | C5: =+Q$42 -> 1265.5 | D5: =+R$43 -> 229.3108974 | E5: =+R$42 -> 312 | F5: =+Q$28 -> 80 | G5: =IF(E5<A$3/2,-1,1)*800000+C5*1000+D5*1+E5/1000 -> 2065729.623 | I5: =+C5/E5 -> 4.056089744
A6: 2 | B6: Jordi | C6: =+G$42 -> 653.5 | D6: =+H$43 -> 215.4716981 | E6: =+H$42 -> 265 | F6: =+G$28 -> 40 | G6: 1453715.737 | I6: =+C6/E6 -> 2.466037736
A7: 3 | B7: Grau | C7: =+U$42 -> 276 | D7: =+V$43 -> 195.3478179 | E7: =+V$42 -> 584 | F7: =+U$28 -> 20 | G7: 1076195.932 | I7: 0.4726027397
A8: 4 | B8: Sergi | C8: =+O$42 -> 85.5 | D8: =+P$43 -> 196.0122699 | E8: =+P$42 -> 163 | F8: =+O$28 -> 10 | G8: 885696.1753 | I8: 0.5245398773
A9: 5 | B9: Núria | C9: =+AK$42 -> 83.5 | D9: =+AL$43 -> 188.8304281 | E9: =+AL$42 -> 437 | F9: =+AK$28 -> 5 | G9: 883689.2674 | I9: 0.1910755149
A10: 6 | B10: Tim | C10: =+AQ$42 -> 53.5 | D10: =+AR$43 -> 214.375 | E10: =+AR$42 -> 16 | F10: =+AQ$28 -> 0 | G10: 853714.391 | I10: 3.34375
A11: 7 | B11: CyberX | C11: =+K$42 -> 14.5 | D11: =+L$43 -> 192.7621193 | E11: =+L$42 -> 375 | F11: =+K$28 -> 0 | G11: 814693.1371 | I11: 0.03866666667
A12: 8 | B12: Marina | C12: =+Y$42 -> 6 | D12: =+Z$43 -> 217.2727273 | E12: =+Z$42 -> 11 | F12: =+Y$28 -> 0 | G12: 806217.2837 | I12: 0.5454545455
A13: 9 | B13: Òscar | C13: =+W$42 -> -12.5 | D13: =+X$43 -> 174.4117647 | E13: =+X$42 -> 34 | F13: =+W$28 -> 0 | G13: 787674.4458 | I13: -0.3676470588
A14: 10 | B14: Alfred | C14: =+AE$42 -> -15 | D14: =+AF$43 -> 200 | E14: =+AF$42 -> 19 | F14: =+AE$28 -> 0 | G14: 785200.019 | I14: -0.7894736842
A15: 11 | B15: Mariajo | C15: =+S$42 -> -17 | D15: =+T$43 -> 176.6666667 | E15: =+T$42 -> 6 | F15: =+S$28 -> 0 | G15: 783176.6727 | I15: -2.833333333
A16: 12 | B16: Tito | C16: =+AA$42 -> -43.5 | D16: =+AB$43 -> 186.7346939 | E16: =+AB$42 -> 98 | F16: =+AA$28 -> 0 | G16: 756686.8327 | I16: -0.443877551
A17: 13 | B17: Nancy | C17: =+AG$42 -> -50.5 | D17: =+AH$43 -> 177.101431 | E17: =+AH$42 -> 33 | F17: =+AG$28 -> 0 | G17: 749677.1344 | I17: -1.53030303
A18: 14 | B18: Goretti | C18: =+M$42 -> -85 | D18: =+N$43 -> 163.0272953 | E18: =+N$42 -> 31 | F18: =+AI$28 -> 0 | G18: 715163.0583 | I18: -2.741935484
A19: 15 | B19: Sebas | C19: =+AO$42 -> -127 | D19: =+AP$43 -> 181.8257261 | E19: =+AP$42 -> 241 | F19: =+AO$28 -> 0 | G19: 673182.0667 | I19: -0.5269709544
A20: 16 | B20: Manolo | C20: =+C$42 -> -221.5 | D20: =+D$43 -> 175.6410256 | E20: =+D$42 -> 156 | F20: =+C$28 -> 0 | G20: 578675.797 | I20: -1.419871795
A21: 17 | B21: Gemma | C21: =+AM$42 -> -344 | D21: =+AN$43 -> 179.6587214 | E21: =+AN$42 -> 472 | F21: =+AM$28 -> 0 | G21: 456180.1307 | I21: -0.7288135593
A22: 18 | B22: Nin | C22: =+AC$42 -> -461 | D22: =+AD$43 -> 152.4778761 | E22: =+AD$42 -> 113 | F22: =+AC$28 -> 0 | G22: 339152.5909 | I22: -4.079646018
A23: 19 | B23: Nogué | C23: =+AS$42 -> -477 | D23: =+AT$43 -> 160.4273504 | E23: =+AT$42 -> 234 | F23: =+AS$28 -> 0 | G23: 323160.6614 | I23: -2.038461538
A24: 20 | B24: Ana B | C24: =+E$42 -> -575 | D24: =+F$43 -> 164.5522388 | E24: =+F$42 -> 268 | F24: =+E$28 -> 0 | G24: 225164.8202 | I24: -2.145522388
A25: 21 | B25: Lleixà | C25: =+I$42 -> 10 | D25: =+J$43 -> 250 | E25: =+J$42 -> 1 | F25: =+I$28 -> 0 | G25: -789749.999 | I25: 10
A26: 22 | B26: Jeff | C26: =+AI$42 -> 6 | D26: =+AJ$43 -> 217.5 | E26: =+AJ$42 -> 4 | F26: =+AI$28 -> 0 | G26: -793782.496 | I26: 1.5
B28: General | C28: =+C29*C30 -> 0 | D28: =+D29*D30 -> 156 | E28: 0 | F28: 268 | G28: =+G29*G30 -> 40 | H28: 265 | I28: 0 | J28: 1 | K28: =+K29*K30 -> 0 | L28: =+L29*L30 -> 375 | M28: 0 | N28: 31 | O28: 10 | P28: 163 | Q28: 80 | R28: 312 | S28: 0 | T28: 6 | U28: =+U29*U30 -> 20 | V28: 584 | W28: 0 | X28: 34 | Y28: 0 | Z28: 11 | AA28: =+AA29*AA30 -> 0 | AB28: =+AB29*AB30 -> 98 | AC28: =+AC29*AC30 -> 0 | AD28: =+AD29*AD30 -> 113 | AE28: =+AE29*AE30 -> 0 | AF28: 19 | AG28: =+AG29*AG30 -> 0 | AH28: =+AH29*AH30 -> 33 | AI28: 0 | AJ28: 4 | AK28: =+AK29*AK30 -> 5 | AL28: 437 | AM28: 0 | AN28: 472 | AO28: 0 | AP28: 241 | AQ28: =+AQ29*AQ30 -> 0 | AR28: 16 | AS28: 0 | AT28: 234
C29: =IF($B41>3,1,0) -> 1 | D29: =IF($B41>3,1,0) -> 1 | E29: 1 | F29: 1 | G29: =IF($B41>3,1,0) -> 1 | H29: 1 | I29: 1 | J29: 1 | K29: =IF($B41>3,1,0) -> 1 | L29: =IF($B41>3,1,0) -> 1 | M29: 1 | N29: 1 | O29: 1 | P29: 1 | Q29: 1 | R29: 1 | S29: 1 | T29: 1 | U29: 1 | V29: 1 | W29: 1 | X29: 1 | Y29: 1 | Z29: 1 | AA29: =IF($B41>3,1,0) -> 1 | AB29: =IF($B41>3,1,0) -> 1 | AC29: =IF($B41>3,1,0) -> 1 | AD29: =IF($B41>3,1,0) -> 1 | AE29: 1 | AF29: 1 | AG29: =IF($B41>3,1,0) -> 1 | AH29: =IF($B41>3,1,0) -> 1 | AI29: 1 | AJ29: 1 | AK29: =IF($B41>3,1,0) -> 1 | AL29: 1 | AM29: 1 | AN29: 1 | AO29: 1 | AP29: 1 | AQ29: =IF($B41>3,1,0) -> 1 | AR29: 1 | AS29: 1 | AT29: 1
C30: =MAX(C31:C35) -> 0 | D30: =+D42 -> 156 | E30: =MAX(E31:E35) -> 0 | F30: =+F42 -> 268 | G30: =MAX(G31:G35) -> 40 | H30: =+H42 -> 265 | I30: =MAX(I31:I35) -> 0 | J30: =+J42 -> 1 | K30: =MAX(K31:K35) -> 0 | L30: =+L42 -> 375 | M30: =MAX(M31:M35) -> 0 | N30: =+N42 -> 31 | O30: =MAX(O31:O35) -> 10 | P30: =+P42 -> 163 | Q30: =MAX(Q31:Q35) -> 80 | R30: =+R42 -> 312 | S30: =MAX(S31:S35) -> 0 | T30: =+T42 -> 6 | U30: =MAX(U31:U35) -> 20 | V30: =+V42 -> 584 | W30: =MAX(W31:W35) -> 0 | X30: =+X42 -> 34 | Y30: =MAX(Y31:Y35) -> 0 | Z30: =+Z42 -> 11 | AA30: =MAX(AA31:AA35) -> 0 | AB30: =+AB42 -> 98 | AC30: =MAX(AC31:AC35) -> 0 | AD30: =+AD42 -> 113 | AE30: =MAX(AE31:AE35) -> 0 | AF30: =+AF42 -> 19 | AG30: =MAX(AG31:AG35) -> 0 | AH30: =+AH42 -> 33 | AI30: =MAX(AI31:AI35) -> 0 | AJ30: =+AJ42 -> 4 | AK30: =MAX(AK31:AK35) -> 5 | AL30: =+AL42 -> 437 | AM30: =MAX(AM31:AM35) -> 0 | AN30: =+AN42 -> 472 | AO30: =MAX(AO31:AO35) -> 0 | AP30: =+AP42 -> 241 | AQ30: =MAX(AQ31:AQ35) -> 0 | AR30: =+AR42 -> 16 | AS30: =MAX(AS31:AS35) -> 0 | AT30: =+AT42 -> 234
C31: =IF(C$36=5,5,0) -> 0 | E31: =IF(E$36=5,5,0) -> 0 | G31: =IF(G$36=5,5,0) -> 0 | I31: =IF(I$36=5,5,0) -> 0 | K31: =IF(K$36=5,5,0) -> 0 | M31: =IF(M$36=5,5,0) -> 0 | O31: =IF(O$36=5,5,0) -> 0 | Q31: =IF(Q$36=5,5,0) -> 0 | S31: =IF(S$36=5,5,0) -> 0 | U31: =IF(U$36=5,5,0) -> 0 | W31: =IF(W$36=5,5,0) -> 0 | Y31: =IF(Y$36=5,5,0) -> 0 | AA31: =IF(AA$36=5,5,0) -> 0 | AC31: =IF(AC$36=5,5,0) -> 0 | AE31: =IF(AE$36=5,5,0) -> 0 | AG31: =IF(AG$36=5,5,0) -> 0 | AI31: =IF(AI$36=5,5,0) -> 0 | AK31: =IF(AK$36=5,5,0) -> 5 | AM31: =IF(AM$36=5,5,0) -> 0 | AO31: =IF(AO$36=5,5,0) -> 0 | AQ31: =IF(AQ$36=5,5,0) -> 0 | AS31: =IF(AS$36=5,5,0) -> 0
C32: =IF(C$36=4,10,0) -> 0 | E32: =IF(E$36=4,10,0) -> 0 | G32: =IF(G$36=4,10,0) -> 0 | I32: =IF(I$36=4,10,0) -> 0 | K32: =IF(K$36=4,10,0) -> 0 | M32: =IF(M$36=4,10,0) -> 0 | O32: =IF(O$36=4,10,0) -> 10 | Q32: =IF(Q$36=4,10,0) -> 0 | S32: =IF(S$36=4,10,0) -> 0 | U32: =IF(U$36=4,10,0) -> 0 | W32: =IF(W$36=4,10,0) -> 0 | Y32: =IF(Y$36=4,10,0) -> 0 | AA32: =IF(AA$36=4,10,0) -> 0 | AC32: =IF(AC$36=4,10,0) -> 0 | AE32: =IF(AE$36=4,10,0) -> 0 | AG32: =IF(AG$36=4,10,0) -> 0 | AI32: =IF(AI$36=4,10,0) -> 0 | AK32: =IF(AK$36=4,10,0) -> 0 | AM32: =IF(AM$36=4,10,0) -> 0 | AO32: =IF(AO$36=4,10,0) -> 0 | AQ32: =IF(AQ$36=4,10,0) -> 0 | AS32: =IF(AS$36=4,10,0) -> 0
C33: =IF(C$36=3,20,0) -> 0 | E33: =IF(E$36=3,20,0) -> 0 | G33: =IF(G$36=3,20,0) -> 0 | I33: =IF(I$36=3,20,0) -> 0 | K33: =IF(K$36=3,20,0) -> 0 | M33: =IF(M$36=3,20,0) -> 0 | O33: =IF(O$36=3,20,0) -> 0 | Q33: =IF(Q$36=3,20,0) -> 0 | S33: =IF(S$36=3,20,0) -> 0 | U33: =IF(U$36=3,20,0) -> 20 | W33: =IF(W$36=3,20,0) -> 0 | Y33: =IF(Y$36=3,20,0) -> 0 | AA33: =IF(AA$36=3,20,0) -> 0 | AC33: =IF(AC$36=3,20,0) -> 0 | AE33: =IF(AE$36=3,20,0) -> 0 | AG33: =IF(AG$36=3,20,0) -> 0 | AI33: =IF(AI$36=3,20,0) -> 0 | AK33: =IF(AK$36=3,20,0) -> 0 | AM33: =IF(AM$36=3,20,0) -> 0 | AO33: =IF(AO$36=3,20,0) -> 0 | AQ33: =IF(AQ$36=3,20,0) -> 0 | AS33: =IF(AS$36=3,20,0) -> 0
C34: =IF(C$36=2,40,0) -> 0 | E34: =IF(E$36=2,40,0) -> 0 | G34: =IF(G$36=2,40,0) -> 40 | I34: =IF(I$36=2,40,0) -> 0 | K34: =IF(K$36=2,40,0) -> 0 | M34: =IF(M$36=2,40,0) -> 0 | O34: =IF(O$36=2,40,0) -> 0 | Q34: =IF(Q$36=2,40,0) -> 0 | S34: =IF(S$36=2,40,0) -> 0 | U34: =IF(U$36=2,40,0) -> 0 | W34: =IF(W$36=2,40,0) -> 0 | Y34: =IF(Y$36=2,40,0) -> 0 | AA34: =IF(AA$36=2,40,0) -> 0 | AC34: =IF(AC$36=2,40,0) -> 0 | AE34: =IF(AE$36=2,40,0) -> 0 | AG34: =IF(AG$36=2,40,0) -> 0 | AI34: =IF(AI$36=2,40,0) -> 0 | AK34: =IF(AK$36=2,40,0) -> 0 | AM34: =IF(AM$36=2,40,0) -> 0 | AO34: =IF(AO$36=2,40,0) -> 0 | AQ34: =IF(AQ$36=2,40,0) -> 0 | AS34: =IF(AS$36=2,40,0) -> 0
C35: =IF(C$36=1,80,0) -> 0 | E35: =IF(E$36=1,80,0) -> 0 | G35: =IF(G$36=1,80,0) -> 0 | I35: =IF(I$36=1,80,0) -> 0 | K35: =IF(K$36=1,80,0) -> 0 | M35: =IF(M$36=1,80,0) -> 0 | O35: =IF(O$36=1,80,0) -> 0 | Q35: =IF(Q$36=1,80,0) -> 80 | S35: =IF(S$36=1,80,0) -> 0 | U35: =IF(U$36=1,80,0) -> 0 | W35: =IF(W$36=1,80,0) -> 0 | Y35: =IF(Y$36=1,80,0) -> 0 | AA35: =IF(AA$36=1,80,0) -> 0 | AC35: =IF(AC$36=1,80,0) -> 0 | AE35: =IF(AE$36=1,80,0) -> 0 | AG35: =IF(AG$36=1,80,0) -> 0 | AI35: =IF(AI$36=1,80,0) -> 0 | AK35: =IF(AK$36=1,80,0) -> 0 | AM35: =IF(AM$36=1,80,0) -> 0 | AO35: =IF(AO$36=1,80,0) -> 0 | AQ35: =IF(AQ$36=1,80,0) -> 0 | AS35: =IF(AS$36=1,80,0) -> 0
C36: =RANK(C37,$C37:$BV37)*C41 -> 16 | E36: =RANK(E37,$C37:$BV37)*E41 -> 20 | G36: =RANK(G37,$C37:$BV37)*G41 -> 2 | I36: =RANK(I37,$C37:$BV37)*I41 -> 0 | K36: =RANK(K37,$C37:$BV37)*K41 -> 7 | M36: =RANK(M37,$C37:$BV37)*M41 -> 14 | O36: =RANK(O37,$C37:$BV37)*O41 -> 4 | Q36: =RANK(Q37,$C37:$BV37)*Q41 -> 1 | S36: =RANK(S37,$C37:$BV37)*S41 -> 11 | U36: =RANK(U37,$C37:$BV37)*U41 -> 3 | W36: =RANK(W37,$C37:$BV37)*W41 -> 9 | Y36: =RANK(Y37,$C37:$BV37)*Y41 -> 8 | AA36: =RANK(AA37,$C37:$BV37)*AA41 -> 12 | AC36: =RANK(AC37,$C37:$BV37)*AC41 -> 18 | AE36: =RANK(AE37,$C37:$BV37)*AE41 -> 10 | AG36: =RANK(AG37,$C37:$BV37)*AG41 -> 13 | AI36: =RANK(AI37,$C37:$BV37)*AI41 -> 0 | AK36: =RANK(AK37,$C37:$BV37)*AK41 -> 5 | AM36: =RANK(AM37,$C37:$BV37)*AM41 -> 17 | AO36: =RANK(AO37,$C37:$BV37)*AO41 -> 15 | AQ36: =RANK(AQ37,$C37:$BV37)*AQ41 -> 6 | AS36: =RANK(AS37,$C37:$BV37)*AS41 -> 19
C37: =SUM(C38:C40) -> -221544.299 | E37: =SUM(E38:E40) -> -575407.7678 | G37: =SUM(G38:G40) -> 654371.6217 | I37: =SUM(I38:I40) -> -999739.99 | K37: =SUM(K38:K40) -> 14711.01212 | M37: =SUM(M38:M40) -> -84921.6627 | O37: =SUM(O38:O40) -> 85783.14227 | Q37: =SUM(Q38:Q40) -> 1266997.931 | S37: =SUM(S38:S40) -> -16840.27333 | U37: =SUM(U38:U40) -> 276477.1878 | W37: =SUM(W38:W40) -> -12337.74824 | Y37: =SUM(Y38:Y40) -> 6223.382727 | AA37: =SUM(AA38:AA40) -> -43355.78531 | AC37: =SUM(AC38:AC40) -> -461307.3921 | AE37: =SUM(AE38:AE40) -> -14814.81 | AG37: =SUM(AG38:AG40) -> -50373.06857 | AI37: =SUM(AI38:AI40) -> -999776.46 | AK37: =SUM(AK38:AK40) -> 83776.70043 | AM37: =SUM(AM38:AM40) -> -344159.6213 | AO37: =SUM(AO38:AO40) -> -126942.7643 | AQ37: =SUM(AQ38:AQ40) -> 53768.035 | AS37: =SUM(AS38:AS40) -> -477314.2326
C38: =+D42/100 -> 1.56 | E38: =+F42/100 -> 2.68 | G38: =+H42/100 -> 2.65 | I38: =+J42/100 -> 0.01 | K38: =+L42/100 -> 3.75 | M38: =+N42/100 -> 0.31 | O38: =+P42/100 -> 1.63 | Q38: =+R42/100 -> 3.12 | S38: =+T42/100 -> 0.06 | U38: =+V42/100 -> 5.84 | W38: =+X42/100 -> 0.34 | Y38: =+Z42/100 -> 0.11 | AA38: =+AB42/100 -> 0.98 | AC38: =+AD42/100 -> 1.13 | AE38: =+AF42/100 -> 0.19 | AG38: =+AH42/100 -> 0.33 | AI38: =+AJ42/100 -> 0.04 | AK38: =+AL42/100 -> 4.37 | AM38: =+AN42/100 -> 4.72 | AO38: =+AP42/100 -> 2.41 | AQ38: =+AR42/100 -> 0.16 | AS38: =+AT42/100 -> 2.34
C39: =D43 -> 175.6410256 | E39: =F43 -> 164.5522388 | G39: =H43 -> 215.4716981 | I39: =J43 -> 250 | K39: =L43 -> 192.7621193 | M39: =N43 -> 163.0272953 | O39: =P43 -> 196.0122699 | Q39: =R43 -> 229.3108974 | S39: =T43 -> 176.6666667 | U39: =V43 -> 195.3478179 | W39: =X43 -> 174.4117647 | Y39: =Z43 -> 217.2727273 | AA39: =AB43 -> 186.7346939 | AC39: =AD43 -> 152.4778761 | AE39: =AF43 -> 200 | AG39: =AH43 -> 177.101431 | AI39: =AJ43 -> 217.5 | AK39: =AL43 -> 188.8304281 | AM39: =AN43 -> 179.6587214 | AO39: =AP43 -> 181.8257261 | AQ39: =AR43 -> 214.375 | AS39: =AT43 -> 160.4273504
C40: =IF(C41=1,C42*C41*1000+C42,-1000000+C42) -> -221721.5 | E40: =IF(E41=1,E42*E41*1000+E42,-1000000+E42) -> -575575 | G40: =IF(G41=1,G42*G41*1000+G42,-1000000+G42) -> 654153.5 | I40: =IF(I41=1,I42*I41*1000+I42,-1000000+I42) -> -999990 | K40: =IF(K41=1,K42*K41*1000+K42,-1000000+K42) -> 14514.5 | M40: =IF(M41=1,M42*M41*1000+M42,-1000000+M42) -> -85085 | O40: =IF(O41=1,O42*O41*1000+O42,-1000000+O42) -> 85585.5 | Q40: =IF(Q41=1,Q42*Q41*1000+Q42,-1000000+Q42) -> 1266765.5 | S40: =IF(S41=1,S42*S41*1000+S42,-1000000+S42) -> -17017 | U40: =IF(U41=1,U42*U41*1000+U42,-1000000+U42) -> 276276 | W40: =IF(W41=1,W42*W41*1000+W42,-1000000+W42) -> -12512.5 | Y40: =IF(Y41=1,Y42*Y41*1000+Y42,-1000000+Y42) -> 6006 | AA40: =IF(AA41=1,AA42*AA41*1000+AA42,-1000000+AA42) -> -43543.5 | AC40: =IF(AC41=1,AC42*AC41*1000+AC42,-1000000+AC42) -> -461461 | AE40: =IF(AE41=1,AE42*AE41*1000+AE42,-1000000+AE42) -> -15015 | AG40: =IF(AG41=1,AG42*AG41*1000+AG42,-1000000+AG42) -> -50550.5 | AI40: =IF(AI41=1,AI42*AI41*1000+AI42,-1000000+AI42) -> -999994 | AK40: =IF(AK41=1,AK42*AK41*1000+AK42,-1000000+AK42) -> 83583.5 | AM40: =IF(AM41=1,AM42*AM41*1000+AM42,-1000000+AM42) -> -344344 | AO40: =IF(AO41=1,AO42*AO41*1000+AO42,-1000000+AO42) -> -127127 | AQ40: =IF(AQ41=1,AQ42*AQ41*1000+AQ42,-1000000+AQ42) -> 53553.5 | AS40: =IF(AS41=1,AS42*AS41*1000+AS42,-1000000+AS42) -> -477477
A41: Classificats | B41: =SUM(C41:AI41) -> 15 | C41: =IF(D42>=$A3/2,1,0) -> 1 | E41: =IF(F42>=$A3/2,1,0) -> 1 | G41: =IF(H42>=$A3/2,1,0) -> 1 | I41: =IF(J42>=$A3/2,1,0) -> 0 | K41: =IF(L42>=$A3/2,1,0) -> 1 | M41: =IF(N42>=$A3/2,1,0) -> 1 | O41: =IF(P42>=$A3/2,1,0) -> 1 | Q41: =IF(R42>=$A3/2,1,0) -> 1 | S41: =IF(T42>=$A3/2,1,0) -> 1 | U41: =IF(V42>=$A3/2,1,0) -> 1 | W41: =IF(X42>=$A3/2,1,0) -> 1 | Y41: =IF(Z42>=$A3/2,1,0) -> 1 | AA41: =IF(AB42>=$A3/2,1,0) -> 1 | AC41: =IF(AD42>=$A3/2,1,0) -> 1 | AE41: =IF(AF42>=$A3/2,1,0) -> 1 | AG41: =IF(AH42>=$A3/2,1,0) -> 1 | AI41: =IF(AJ42>=$A3/2,1,0) -> 0 | AK41: =IF(AL42>=$A3/2,1,0) -> 1 | AM41: =IF(AN42>=$A3/2,1,0) -> 1 | AO41: =IF(AP42>=$A3/2,1,0) -> 1 | AQ41: =IF(AR42>=$A3/2,1,0) -> 1 | AS41: =IF(AT42>=$A3/2,1,0) -> 1
C42: =IF(SUM(C47:C987)<-1000,-100000000,SUM(C47:C987)) -> -221.5 | D42: =COUNT(D47:D987) -> 156 | E42: =IF(SUM(E47:E987)<-1000,-100000000,SUM(E47:E987)) -> -575 | F42: =COUNT(F47:F987) -> 268 | G42: =IF(SUM(G47:G987)<-1000,-100000000,SUM(G47:G987)) -> 653.5 | H42: =COUNT(H47:H987) -> 265 | I42: =IF(SUM(I47:I987)<-1000,-100000000,SUM(I47:I987)) -> 10 | J42: =COUNT(J47:J987) -> 1 | K42: =IF(SUM(K47:K987)<-1000,-100000000,SUM(K47:K987)) -> 14.5 | L42: =COUNT(L47:L987) -> 375 | M42: =IF(SUM(M47:M987)<-1000,-100000000,SUM(M47:M987)) -> -85 | N42: =COUNT(N47:N987) -> 31 | O42: =IF(SUM(O47:O987)<-1000,-100000000,SUM(O47:O987)) -> 85.5 | P42: =COUNT(P47:P987) -> 163 | Q42: =IF(SUM(Q47:Q987)<-1000,-100000000,SUM(Q47:Q987)) -> 1265.5 | R42: =COUNT(R47:R987) -> 312 | S42: =IF(SUM(S47:S987)<-1000,-100000000,SUM(S47:S987)) -> -17 | T42: =COUNT(T47:T987) -> 6 | U42: =IF(SUM(U47:U987)<-1000,-100000000,SUM(U47:U987)) -> 276 | V42: =COUNT(V47:V987) -> 584 | W42: =IF(SUM(W47:W987)<-1000,-100000000,SUM(W47:W987)) -> -12.5 | X42: =COUNT(X47:X987) -> 34 | Y42: =IF(SUM(Y47:Y987)<-1000,-100000000,SUM(Y47:Y987)) -> 6 | Z42: =COUNT(Z47:Z987) -> 11 | AA42: =IF(SUM(AA47:AA987)<-1000,-100000000,SUM(AA47:AA987)) -> -43.5 | AB42: =COUNT(AB47:AB987) -> 98 | AC42: =IF(SUM(AC47:AC987)<-1000,-100000000,SUM(AC47:AC987)) -> -461 | AD42: =COUNT(AD47:AD987) -> 113 | AE42: =IF(SUM(AE47:AE987)<-1000,-100000000,SUM(AE47:AE987)) -> -15 | AF42: =COUNT(AF47:AF987) -> 19 | AG42: =IF(SUM(AG47:AG987)<-1000,-100000000,SUM(AG47:AG987)) -> -50.5 | AH42: =COUNT(AH47:AH987) -> 33 | AI42: =IF(SUM(AI47:AI987)<-1000,-100000000,SUM(AI47:AI987)) -> 6 | AJ42: =COUNT(AJ47:AJ987) -> 4 | AK42: =IF(SUM(AK47:AK987)<-1000,-100000000,SUM(AK47:AK987)) -> 83.5 | AL42: =COUNT(AL47:AL987) -> 437 | AM42: =IF(SUM(AM47:AM987)<-1000,-100000000,SUM(AM47:AM987)) -> -344 | AN42: =COUNT(AN47:AN987) -> 472 | AO42: =IF(SUM(AO47:AO987)<-1000,-100000000,SUM(AO47:AO987)) -> -127 | AP42: =COUNT(AP47:AP987) -> 241 | AQ42: =IF(SUM(AQ47:AQ987)<-1000,-100000000,SUM(AQ47:AQ987)) -> 53.5 | AR42: =COUNT(AR47:AR987) -> 16 | AS42: =IF(SUM(AS47:AS987)<-1000,-100000000,SUM(AS47:AS987)) -> -477 | AT42: =COUNT(AT47:AT987) -> 234
D43: =IF(D42=0,0.0001,AVERAGE(D47:D902)) -> 175.6410256 | F43: =IF(F42=0,0.0001,AVERAGE(F47:F902)) -> 164.5522388 | H43: =IF(H42=0,0.0001,AVERAGE(H47:H902)) -> 215.4716981 | J43: =IF(J42=0,0.0001,AVERAGE(J47:J902)) -> 250 | L43: =IF(L42=0,0.0001,AVERAGE(L47:L902)) -> 192.7621193 | N43: =IF(N42=0,0.0001,AVERAGE(N47:N902)) -> 163.0272953 | P43: =IF(P42=0,0.0001,AVERAGE(P47:P902)) -> 196.0122699 | R43: =IF(R42=0,0.0001,AVERAGE(R47:R902)) -> 229.3108974 | T43: =IF(T42=0,0.0001,AVERAGE(T47:T902)) -> 176.6666667 | V43: =IF(V42=0,0.0001,AVERAGE(V47:V902)) -> 195.3478179 | X43: =IF(X42=0,0.0001,AVERAGE(X47:X902)) -> 174.4117647 | Z43: =IF(Z42=0,0.0001,AVERAGE(Z47:Z902)) -> 217.2727273 | AB43: =IF(AB42=0,0.0001,AVERAGE(AB47:AB902)) -> 186.7346939 | AD43: =IF(AD42=0,0.0001,AVERAGE(AD47:AD902)) -> 152.4778761 | AF43: =IF(AF42=0,0.0001,AVERAGE(AF47:AF902)) -> 200 | AH43: =IF(AH42=0,0.0001,AVERAGE(AH47:AH902)) -> 177.101431 | AJ43: =IF(AJ42=0,0.0001,AVERAGE(AJ47:AJ902)) -> 217.5 | AL43: =IF(AL42=0,0.0001,AVERAGE(AL47:AL902)) -> 188.8304281 | AN43: =IF(AN42=0,0.0001,AVERAGE(AN47:AN902)) -> 179.6587214 | AP43: =IF(AP42=0,0.0001,AVERAGE(AP47:AP902)) -> 181.8257261 | AR43: =IF(AR42=0,0.0001,AVERAGE(AR47:AR902)) -> 214.375 | AT43: =IF(AT42=0,0.0001,AVERAGE(AT47:AT902)) -> 160.4273504
AU44: =MAX(AV47:AV1068) -> 388
B45: Comentaris | C45: Manolo | E45: Ana B | G45: Jordi | I45: Lleixà | K45: Cyber X | M45: Goretti | O45: Sergi | Q45: Carles | S45: Mariajo | U45: Grau | W45: Òscar | Y45: Marina | AA45: Tito | AC45: Nin | AE45: Alfred | AG45: Nancy | AI45: Jeff | AK45: Núria | AM45: Gemma | AO45: Sebas | AQ45: Tim | AS45: Nogué | AU45: =COUNT(AU47:AU902) -> 783 | AV45: A | AW45: B | AX45: C | AY45: cyberX2 | AZ45: =SUM(AZ47:AZ902) -> -25
C46: Premi | D46: Punts | E46: Premi | F46: Punts | G46: Premi | H46: Punts | I46: Premi | J46: Punts | K46: Premi | L46: Punts | M46: Premi | N46: Punts | O46: Premi | P46: Punts | Q46: Premi | R46: Punts | S46: Premi | T46: Punts | U46: Premi | V46: Punts | W46: Premi | X46: Punts | Y46: Premi | Z46: Punts | AA46: Premi | AB46: Punts | AC46: Premi | AD46: Punts | AE46: Premi | AF46: Punts | AG46: Premi | AH46: Punts | AI46: Premi | AJ46: Punts | AK46: Premi | AL46: Punts | AM46: Premi | AN46: Punts | AO46: Premi | AP46: Punts | AQ46: Premi | AR46: Punts | AS46: Premi | AT46: Punts | AU46: Data | AV46: Timba | AZ46: Excés cyber
A47: 1 | C47: -10 | D47: 90 | K47: 10 | L47: 240 | Q47: 5 | R47: 220 | AA47: 0 | AB47: 160 | AC47: -5 | AD47: 130 | AU47: 2020-10-04 | AV47: 5 | AW47: =+AI47+AE47+Y47+W47+U47+S47+Q47+O47+M47+I47+G47+E47+C47+AG47+K47+AS47+AZ47+AA47+AC47+AK47+AM47+AO47+AQ47 -> 0 | AX47: =COUNT(C47:AT47)/2 -> 5 | AY47: =+AW47/AX47 -> 0
A48: =+A47+1 -> 2 | C48: 2.5 | D48: 200 | K48: 2.5 | L48: 200 | Q48: -5 | R48: 170 | AA48: -10 | AB48: 150 | AC48: 10 | AD48: 230 | AU48: 2020-10-05 | AV48: 7 | AW48: 0 | AX48: 5 | AY48: 0
A49: =+A48+1 -> 3 | C49: -8 | D49: 70 | K49: =+(-8+2+6)/3 -> 0 | L49: =+(70+170+210)/3 -> 150 | AA49: 10 | AB49: 240 | AC49: -2 | AD49: 140 | AU49: 2020-10-07 | AV49: 8 | AW49: 0 | AX49: 4 | AY49: 0 | AZ49: =+K49*2 -> 0
A50: 4 | K50: =+(-2.5+5)/2 -> 1.25 | L50: =+(260+280)/2 -> 270 | Q50: 10 | R50: 340 | AA50: -2.5 | AB50: 260 | AC50: -10 | AD50: 220 | AU50: 2020-10-08 | AV50: 10 | AW50: 0 | AX50: 4 | AY50: 0 | AZ50: =+K50 -> 1.25
A51: 5 | G51: -4 | H51: 60 | AK51: 10 | AL51: 210 | AM51: 4 | AN51: 130 | AS51: -10 | AT51: -20 | AU51: 2020-10-10 | AV51: 12 | AW51: 0 | AX51: 4 | AY51: 0
A52: 6 | G52: 2 | H52: 180 | Q52: 10 | R52: 240 | W52: -8 | X52: 140 | AK52: 6 | AL52: 230 | AM52: -2 | AN52: 170 | AS52: -8 | AT52: 140 | AU52: 2020-10-10 | AV52: 12 | AW52: 0 | AX52: 6 | AY52: =+AW52/AX52 -> 0
A53: 7 | G53: -6 | H53: 80 | Q53: 4 | R53: 210 | W53: -10 | X53: -10 | AK53: 4 | AL53: 210 | AM53: -2 | AN53: 110 | AS53: 10 | AT53: 240 | AU53: 2020-10-10 | AV53: 12 | AW53: 0 | AX53: =COUNT(C53:AT53)/2 -> 6 | AY53: 0
A54: 8 | K54: =+(6+10+0)/3 -> 5.333333333 | L54: =+(240+250+180)/3 -> 223.3333333 | Q54: 0 | R54: 180 | AA54: -6 | AB54: 170 | AC54: -10 | AD54: 120 | AU54: 2020-10-10 | AV54: 13 | AW54: 0 | AX54: 4 | AY54: 0 | AZ54: =+K54*2 -> 10.66666667
A55: 9 | G55: 10 | H55: 250 | O55: 0 | P55: 140 | AM55: -10 | AN55: 30 | AU55: 2020-10-11 | AV55: 14 | AW55: 0 | AX55: 3 | AY55: 0
A56: =+A55+1 -> 10 | G56: 10 | H56: 260 | O56: 4 | P56: 180 | AK56: -10 | AL56: 60 | AM56: -4 | AN56: 70 | AU56: 2020-10-11 | AV56: 14 | AW56: 0 | AX56: 4 | AY56: 0
A57: 11 | G57: -4 | H57: 120 | O57: 10 | P57: 200 | AK57: 4 | AL57: 200 | AM57: -10 | AN57: -10 | AU57: 2020-10-11 | AV57: 14 | AW57: 0 | AX57: 4 | AY57: 0
A58: 12 | K58: =+(-2-10+10)/3 -> -0.6666666667 | L58: =+(180+90+260)/3 -> 176.6666667 | Q58: -6 | R58: 140 | AA58: 6 | AB58: 250 | AC58: 2 | AD58: 190 | AU58: 2020-10-11 | AV58: 15 | AW58: 0 | AX58: 4 | AY58: =+AW58/AX58 -> 0 | AZ58: =+K58*2 -> -1.333333333
A59: 13 | K59: =+(10-6+2)/3 -> 2 | L59: =+(310+160+280)/3 -> 250 | Q59: 6 | R59: 300 | AA59: -10 | AB59: 140 | AC59: -2 | AD59: 180 | AU59: 2020-10-11 | AV59: 15 | AW59: 0 | AX59: 4 | AY59: 0 | AZ59: =+K59*2 -> 4
A60: 14 | K60: =+(-10+2+10)/3 -> 0.6666666667 | L60: =+(100+210+250)/3 -> 186.6666667 | Q60: -2 | R60: 190 | AA60: 6 | AB60: 240 | AC60: -6 | AD60: 140 | AU60: 2020-10-12 | AV60: 17 | AW60: 0 | AX60: 4 | AY60: 0 | AZ60: =+K60*2 -> 1.333333333
A61: 15 | K61: =+(10+0)/2 -> 5 | L61: =+(330+310)/2 -> 320 | Q61: 5 | R61: 320 | AA61: -5 | AB61: 290 | AC61: -10 | AD61: 270 | AU61: 2020-10-15 | AV61: 20 | AW61: 0 | AX61: =COUNT(C61:AT61)/2 -> 4 | AY61: 0 | AZ61: =+K61 -> 5
A62: 16 | K62: =+(-5-10)/2 -> -7.5 | L62: =+(170+130)/2 -> 150 | O62: 5 | P62: 270 | Q62: 10 | R62: 280 | AA62: 0 | AB62: 210 | AU62: 2020-10-16 | AV62: 22 | AW62: 0 | AX62: 4 | AY62: 0 | AZ62: =+K62 -> -7.5
A63: 17 | C63: -10 | D63: 150 | K63: =+(2+6+10)/3 -> 6 | L63: =+(210+220+240)/3 -> 223.3333333 | O63: -2 | P63: 190 | AA63: -6 | AB63: 180 | AU63: 2020-10-16 | AV63: 22 | AW63: 0 | AX63: 4 | AY63: 0 | AZ63: =+K63*2 -> 12
A64: 18 | C64: -2 | D64: 140 | K64: =+(2+6-6)/3 -> 0.6666666667 | L64: =+(170+240+100)/3 -> 170 | Q64: 10 | R64: 280 | AC64: -10 | AD64: 70 | AU64: 2020-10-16 | AV64: 23 | AW64: 0 | AX64: 4 | AY64: 0 | AZ64: =+K64*2 -> 1.333333333
A65: 19 | G65: 0 | H65: 220 | O65: 10 | P65: 270 | AK65: -5 | AL65: 170 | AM65: -10 | AN65: 70 | AO65: 5 | AP65: 250 | AU65: 2020-10-17 | AV65: 24 | AW65: 0 | AX65: 5 | AY65: 0
A66: 20 | K66: =+(10-5)/2 -> 2.5 | L66: =+(290+150)/2 -> 220 | O66: 0 | P66: 190 | AA66: -10 | AB66: 140 | AC66: 5 | AD66: 220 | AU66: 2020-10-17 | AV66: 25 | AW66: 0 | AX66: 4 | AY66: 0 | AZ66: =+K66 -> 2.5
A67: 21 | C67: 4 | D67: 160 | K67: =+(10-10-4)/3 -> -1.333333333 | L67: =+(190+130+150)/3 -> 156.6666667 | O67: -4 | P67: 150 | Q67: 4 | R67: 160 | AU67: 2020-10-18 | AV67: 27 | AW67: 4.440892099e-16 | AX67: 4 | AY67: 1.110223025e-16 | AZ67: =+K67*2 -> -2.666666667
A68: 22 | C68: -10 | D68: 70 | K68: =+(-2-6+6)/3 -> -0.6666666667 | L68: =+(130+90+210)/3 -> 143.3333333 | O68: 2 | P68: 200 | AA68: 10 | AB68: 220 | AU68: 2020-10-20 | AV68: 30 | AW68: 0 | AX68: 4 | AY68: 0 | AZ68: =+K68*2 -> -1.333333333
A69: 23 | K69: =+(10+0)/2 -> 5 | L69: =+(300+250)/2 -> 275 | Q69: -10 | R69: 170 | AA69: 5 | AB69: 290 | AC69: -5 | AD69: 230 | AU69: 2020-10-20 | AV69: 31 | AW69: 0 | AX69: =COUNT(C69:AT69)/2 -> 4 | AY69: 0 | AZ69: =+K69 -> 5
A70: 24 | K70: =+(6-2-10)/3 -> -2 | L70: =+(240+170+60)/3 -> 156.6666667 | Q70: 10 | R70: 270 | AA70: 2 | AB70: 230 | AC70: -6 | AD70: 100 | AU70: 2020-10-20 | AV70: 31 | AW70: 0 | AX70: 4 | AY70: 0 | AZ70: =+K70*2 -> -4
A71: 25 | K71: =+(-4+10+6)/3 -> 4 | L71: =+(190+320+260)/3 -> 256.6666667 | Q71: -4 | R71: 190 | AA71: 2 | AB71: 230 | AC71: -10 | AD71: 100 | AU71: 2020-10-20 | AV71: 31 | AW71: 0 | AX71: 4 | AY71: 0 | AZ71: =+K71*2 -> 8
A72: 26 | G72: 10 | H72: 340 | U72: -10 | V72: 130 | AK72: -4 | AL72: 150 | AM72: 4 | AN72: 190 | AU72: 2020-10-21 | AV72: 32 | AW72: 0 | AX72: 4
A73: 27 | Q73: 10 | R73: 290 | U73: -7 | V73: 180 | AK73: 4 | AL73: 230 | AM73: -7 | AN73: 180 | AU73: 2020-10-21 | AV73: 32 | AW73: 0 | AX73: 4
A74: 28 | K74: =+(2-4+6)/3 -> 1.333333333 | L74: =+(230+170+250)/3 -> 216.6666667 | Q74: 10 | R74: 290 | AA74: -4 | AB74: 170 | AC74: -10 | AD74: 110 | AU74: 2020-10-23 | AV74: 35 | AW74: 0 | AX74: 4 | AY74: =+AW74/AX74 -> 0 | AZ74: =+K74*2 -> 2.666666667
A75: 29 | G75: 4 | H75: 220 | AM75: -4 | AN75: 190 | AO75: -10 | AP75: -20 | AS75: 10 | AT75: 310 | AU75: 2020-10-24 | AV75: 36 | AW75: 0 | AX75: 4
A76: 30 | K76: =+(-2-10+2)/3 -> -3.333333333 | L76: =+(230+170+240)/3 -> 213.3333333 | Q76: 8 | R76: 290 | AA76: 8 | AB76: 290 | AC76: -6 | AD76: 180 | AU76: 2020-10-24 | AV76: 37 | AW76: -8.881784197e-16 | AX76: 4 | AY76: =+AW76/AX76 -> -2.220446049e-16 | AZ76: =+K76*2 -> -6.666666667
A77: 31 | K77: 0 | L77: 210 | O77: 7.5 | P77: 230 | Q77: -10 | R77: 130 | AA77: -5 | AB77: 160 | AC77: 7.5 | AD77: 230 | AU77: 2020-10-24 | AV77: 37 | AW77: 0 | AX77: =COUNT(C77:AT77)/2 -> 5 | AY77: 0
A78: 32 | K78: =+(0+10)/2 -> 5 | L78: =+(270+290)/2 -> 280 | Q78: 5 | R78: 280 | AA78: -5 | AB78: 230 | AC78: -10 | AD78: 210 | AU78: 2020-10-24 | AV78: 37 | AW78: 0 | AX78: =COUNT(C78:AT78)/2 -> 4 | AY78: 0 | AZ78: =+K78 -> 5
A79: 33 | K79: =+(5+0)/2 -> 2.5 | L79: =+(320+300)/2 -> 310 | Q79: 10 | R79: 370 | AA79: -5 | AB79: 290 | AC79: -10 | AD79: 280 | AU79: 2020-10-24 | AV79: 37 | AW79: 0 | AX79: =COUNT(C79:AT79)/2 -> 4 | AY79: 0 | AZ79: =+K79 -> 2.5
A80: 34 | K80: =+(-7.5-7.5)/2 -> -7.5 | L80: =+(80+80)/2 -> 80 | Q80: 10 | R80: 240 | AA80: 5 | AB80: 170 | AC80: 0 | AD80: 130 | AU80: 2020-10-24 | AV80: 37 | AW80: 0 | AX80: 4 | AY80: 0 | AZ80: =+K80 -> -7.5
A81: 35 | K81: =+(-5+0)/2 -> -2.5 | L81: =+(200+220)/2 -> 210 | Q81: 10 | R81: 300 | AA81: 5 | AB81: 230 | AC81: -10 | AD81: 140 | AU81: 2020-10-24 | AV81: 37 | AW81: 0 | AX81: 4 | AY81: 0 | AZ81: =+K81 -> -2.5
A82: 36 | G82: 4 | H82: 250 | U82: -4 | V82: 230 | AK82: -10 | AL82: 200 | AM82: 10 | AN82: 270 | AU82: 2020-10-26 | AV82: 39 | AW82: 0 | AX82: 4
A83: 37 | G83: 10 | H83: 300 | U83: -10 | V83: 100 | AK83: -5 | AL83: 160 | AM83: 5 | AN83: 220 | AO83: 0 | AP83: 180 | AU83: 2020-10-27 | AV83: 40 | AW83: 0 | AX83: 5
A84: 38 | G84: 10 | H84: 440 | AK84: 0 | AL84: 230 | AM84: 0 | AN84: 230 | AS84: -10 | AT84: -40 | AU84: 2020-10-30 | AV84: 42 | AW84: 0 | AX84: 4
A85: 39 | C85: -10 | D85: 60 | K85: =+(10+2-6)/3 -> 2 | L85: =+(290+90+170)/3 -> 183.3333333 | Q85: 6 | R85: 180 | AC85: -2 | AD85: 160 | AU85: 2020-10-30 | AV85: 43 | AW85: 0 | AX85: =COUNT(C85:AT85)/2 -> 4 | AY85: =+AW85/AX85 -> 0 | AZ85: =+K85*2 -> 4
A86: 40 | C86: -2 | D86: 150 | K86: =+(6+2-8)/3 -> 0 | L86: =+(180+160+140)/3 -> 160 | Q86: 10 | R86: 190 | AC86: -8 | AD86: 140 | AU86: 2020-10-30 | AV86: 43 | AW86: 0 | AX86: 4 | AY86: =+AW86/AX86 -> 0 | AZ86: =+K86*2 -> 0
A87: 41 | C87: 5 | D87: 240 | O87: 0 | P87: 200 | Q87: -5 | R87: 180 | U87: -10 | V87: 100 | AA87: 10 | AB87: 340 | AU87: 2020-11-01 | AV87: 44 | AW87: 0 | AX87: 5
A88: 42 | K88: =+(2-6)/2 -> -2 | L88: =+(210+130)/2 -> 170 | O88: -2 | P88: 160 | Q88: 6 | R88: 220 | U88: 10 | V88: 240 | AC88: -10 | AD88: 60 | AU88: 2020-11-01 | AV88: 44 | AW88: 0 | AX88: 5 | AY88: =+AW88/AX88 -> 0 | AZ88: =+K88 -> -2
A89: 43 | Q89: 10 | R89: 360 | U89: 4 | V89: 250 | W89: -4 | X89: 100 | AC89: -10 | AD89: 80 | AU89: 2020-11-01 | AV89: 44 | AW89: 0 | AX89: 4
A90: 44 | C90: -10 | D90: 80 | O90: 10 | P90: 350 | Q90: 5 | R90: 310 | U90: 0 | V90: 250 | AC90: -5 | AD90: 130 | AU90: 2020-11-01 | AV90: 44 | AW90: 0 | AX90: 5
A91: 45 | C91: 0 | D91: 160 | K91: =+(-10+10-6)/3 -> -2 | L91: =+(70+270+80)/3 -> 140 | O91: 0 | P91: 160 | Q91: 6 | R91: 230 | AU91: 2020-11-01 | AV91: 44 | AW91: 0 | AX91: 4 | AY91: =+AW91/AX91 -> 0 | AZ91: =+K91*2 -> -4
A92: =+A91+1 -> 46 | G92: 10 | H92: 230 | AK92: 5 | AL92: 220 | AM92: -5 | AN92: 140 | AO92: -10 | AP92: 80 | AS92: 0 | AT92: 200 | AU92: 2020-11-01 | AV92: 45 | AW92: 0 | AX92: 5
A93: 47 | G93: 10 | H93: 260 | AK93: -10 | AL93: 80 | AM93: 5 | AN93: 220 | AO93: 0 | AP93: 160 | AS93: -5 | AT93: 150 | AU93: 2020-11-01 | AV93: 45 | AW93: 0 | AX93: =COUNT(C93:AT93)/2 -> 5
A94: 48 | G94: -10 | H94: 50 | AK94: 10 | AL94: 200 | AM94: 5 | AN94: 170 | AO94: 0 | AP94: 110 | AS94: -5 | AT94: 80 | AU94: 2020-11-01 | AV94: 45 | AW94: 0 | AX94: 5
A95: 49 | C95: -10 | D95: 90 | G95: 10 | H95: 250 | Q95: -4 | R95: 100 | AK95: -4 | AL95: 100 | AM95: 2 | AN95: 180 | AO95: 6 | AP95: 220 | AU95: 2020-11-02 | AV95: 45 | AW95: 0 | AX95: 6
A96: 50 | C96: 7.5 | D96: 260 | K96: -10 | L96: 110 | O96: 7.5 | P96: 260 | Q96: 0 | R96: 220 | U96: -5 | V96: 180 | AU96: 2020-11-02 | AV96: 45 | AW96: 0 | AX96: 5
A97: 51 | G97: 10 | H97: 500 | O97: -4 | P97: 380 | U97: 10 | V97: 510 | AK97: 4 | AL97: 410 | AM97: -10 | AN97: 200 | AO97: 0 | AP97: 440 | AS97: -10 | AT97: 40 | AU97: 2020-11-03 | AV97: 46 | AW97: 0 | AX97: 7
A98: 52 | G98: 10 | H98: 250 | O98: 6 | P98: 150 | U98: -10 | V98: 30 | AK98: -6 | AL98: 70 | AM98: -2 | AN98: 100 | AO98: 2 | AP98: 130 | AU98: 2020-11-03 | AV98: 46 | AW98: 0 | AX98: 6
A99: 53 | U99: 0 | V99: 180 | AK99: 10 | AL99: 230 | AM99: -10 | AN99: -30 | AU99: 2020-11-04 | AV99: 47 | AW99: 0 | AX99: =COUNT(C99:AT99)/2 -> 3
A100: 54 | U100: 10 | V100: 210 | AK100: 2.5 | AL100: 200 | AM100: -5 | AN100: 170 | AO100: 2.5 | AP100: 200 | AS100: -10 | AT100: 100 | AU100: 2020-11-05 | AV100: 48 | AW100: 0 | AX100: 5
A101: 55 | G101: -5 | H101: 140 | U101: 0 | V101: 190 | AK101: -10 | AL101: 70 | AM101: 10 | AN101: 260 | AS101: 5 | AT101: 250 | AU101: 2020-11-06 | AV101: 49 | AW101: 0 | AX101: 5
A102: 56 | G102: 10 | H102: 280 | U102: -10 | V102: 100 | AK102: 0 | AL102: 180 | AM102: -5 | AN102: 110 | AS102: 5 | AT102: 190 | AU102: 2020-11-06 | AV102: 49 | AW102: 0 | AX102: 5
A103: 57 | U103: 7 | V103: 310 | AK103: 7 | AL103: 310 | AM103: -4 | AN103: 200 | AO103: -10 | AP103: -20 | AU103: 2020-11-07 | AV103: 50 | AW103: 0 | AX103: 4
A104: 58 | U104: -5 | V104: 170 | AK104: 10 | AL104: 260 | AM104: 5 | AN104: 200 | AO104: 0 | AP104: 180 | AS104: -10 | AT104: 130 | AU104: 2020-11-07 | AV104: 50 | AW104: 0 | AX104: 5
A105: 59 | U105: 10 | V105: 340 | AM105: -4 | AN105: 130 | AO105: 4 | AP105: 190 | AS105: -10 | AT105: 80 | AU105: 2020-11-07 | AV105: 50 | AW105: 0 | AX105: 4
A106: 60 | G106: 10 | H106: 270 | Q106: 4 | R106: 200 | AK106: 4 | AL106: 200 | AM106: -2 | AN106: 180 | AO106: -10 | AP106: 100 | AS106: -6 | AT106: 160 | AU106: 2020-11-08 | AV106: 51 | AW106: 0 | AX106: 6
A107: 61 | G107: 10 | H107: 270 | Q107: -2 | R107: 240 | AK107: 4 | AL107: 260 | AM107: 4 | AN107: 260 | AO107: -6 | AP107: 110 | AS107: -10 | AT107: 30 | AU107: 2020-11-08 | AV107: 51 | AW107: 0 | AX107: 6
A108: 62 | G108: 10 | H108: 280 | Q108: 0 | R108: 240 | AK108: -10 | AL108: -10 | AM108: 6 | AN108: 260 | AO108: -6 | AP108: 160 | AS108: 0 | AT108: 240 | AU108: 2020-11-08 | AV108: 51 | AW108: 0 | AX108: 6
A109: 63 | Q109: 10 | R109: 210 | AK109: 5 | AL109: 200 | AM109: 0 | AN109: 160 | AO109: -10 | AP109: 130 | AS109: -5 | AT109: 140 | AU109: 2020-11-08 | AV109: 51 | AW109: 0 | AX109: 5
A110: 64 | G110: 0 | H110: 200 | U110: 10 | V110: 260 | AK110: -5 | AL110: 140 | AO110: -10 | AP110: 120 | AS110: 5 | AT110: 240 | AU110: 2020-11-09 | AV110: 52 | AW110: 0 | AX110: =COUNT(C110:AT110)/2 -> 5
A111: 65 | G111: 2 | H111: 220 | O111: -10 | P111: 30 | U111: -6 | V111: 100 | AK111: -2 | AL111: 160 | AO111: 8 | AP111: 250 | AS111: 8 | AT111: 250 | AU111: 2020-11-09 | AV111: 52 | AW111: =+AI111+AE111+Y111+W111+U111+S111+Q111+O111+M111+I111+G111+E111+C111+AG111+K111+AS111+AZ111+AA111+AC111+AK111+AM111+AO111+AQ111 -> 0 | AX111: =COUNT(C111:AT111)/2 -> 6
A112: 66 | G112: 5 | H112: 220 | AK112: -5 | AL112: 140 | AM112: 10 | AN112: 290 | AO112: -10 | AP112: 130 | AS112: 0 | AT112: 190 | AU112: 2020-11-10 | AV112: 53 | AW112: 0 | AX112: =COUNT(C112:AT112)/2 -> 5
A113: 67 | G113: 10 | H113: 280 | AK113: 4 | AL113: 270 | AM113: -10 | AN113: 90 | AO113: -4 | AP113: 160 | AU113: 2020-11-10 | AV113: 53 | AW113: 0 | AX113: 4
A114: 68 | K114: =+(5-2.5)/2 -> 1.25 | L114: =+(290+160)/2 -> 225 | Q114: 10 | R114: 320 | AA114: -10 | AB114: 90 | AC114: -2.5 | AD114: 160 | AU114: 2020-11-11 | AV114: 54 | AW114: 0 | AX114: 4 | AY114: =+AW114/AX114 -> 0 | AZ114: =+K114 -> 1.25
A115: 69 | Q115: -5 | R115: 100 | U115: 10 | V115: 220 | AK115: -10 | AL115: 90 | AM115: 5 | AN115: 170 | AS115: 0 | AT115: 160 | AU115: 2020-11-12 | AV115: 55 | AW115: 0 | AX115: 5
A116: 70 | Q116: 10 | R116: 420 | U116: 4 | V116: 250 | AK116: -10 | AL116: 30 | AS116: -4 | AT116: 210 | AU116: 2020-11-12 | AV116: 55 | AW116: 0 | AX116: 4
A117: 71 | G117: -5 | H117: 190 | U117: -10 | V117: 130 | AK117: 0 | AL117: 200 | AM117: 10 | AN117: 300 | AS117: 5 | AT117: 220 | AU117: 2020-11-13 | AV117: 56 | AW117: 0 | AX117: 5
A118: 72 | G118: 4 | H118: 250 | U118: -10 | V118: 110 | AK118: 10 | AL118: 270 | AM118: -4 | AN118: 200 | AU118: 2020-11-13 | AV118: 56 | AW118: 0 | AX118: 4
A119: =+A118+1 -> 73 | AK119: 10 | AL119: 380 | AM119: -10 | AN119: 130 | AO119: 0 | AP119: 190 | AU119: 2020-11-14 | AV119: 57 | AW119: 0 | AX119: 3
A120: 74 | AK120: 10 | AL120: 380 | AM120: -10 | AN120: 110 | AO120: -4 | AP120: 140 | AS120: 4 | AT120: 150 | AU120: 2020-11-14 | AV120: 57 | AW120: 0 | AX120: 4
A121: 75 | C121: -4 | D121: 220 | K121: =+(8-4-10)/3 -> -2 | L121: =+(300+220+40)/3 -> 186.6666667 | Q121: 2 | R121: 270 | AC121: 8 | AD121: 300 | AU121: 2020-11-14 | AV121: 58 | AW121: 0 | AX121: 4 | AY121: =+AW121/AX121 -> 0 | AZ121: =+K121*2 -> -4
A122: 76 | C122: -6 | D122: 170 | K122: =+(10+2-2)/3 -> 3.333333333 | L122: =+(280+220+180)/3 -> 226.6666667 | Q122: 6 | R122: 270 | AC122: -10 | AD122: 40 | AU122: 2020-11-14 | AV122: 58 | AW122: 0 | AX122: 4 | AY122: =+AW122/AX122 -> 0 | AZ122: =+K122*2 -> 6.666666667
A123: 77 | C123: -6 | D123: 70 | K123: =+(-10+6-2)/3 -> -2 | L123: =+(10+210+120)/3 -> 113.3333333 | Q123: 10 | R123: 280 | AC123: 2 | AD123: 200 | AU123: 2020-11-14 | AV123: 58 | AW123: 0 | AX123: 4 | AY123: =+AW123/AX123 -> 0 | AZ123: =+K123*2 -> -4
A124: 78 | C124: -10 | D124: 40 | K124: =+(10+6+2)/3 -> 6 | L124: =+(290+280+240)/3 -> 270 | Q124: -2 | R124: 190 | AC124: -6 | AD124: 80 | AU124: 2020-11-14 | AV124: 58 | AW124: 0 | AX124: 4 | AY124: =+AW124/AX124 -> 0 | AZ124: =+K124*2 -> 12
A125: 79 | C125: 10 | D125: 310 | K125: =+(-5+5)/2 -> 0 | L125: =+(110+230)/2 -> 170 | Q125: 0 | R125: 200 | AC125: -10 | AD125: 90 | AU125: 2020-11-14 | AV125: 58 | AW125: 0 | AX125: 4 | AY125: =+AW125/AX125 -> 0 | AZ125: =+K125 -> 0
A126: 80 | G126: -10 | H126: 160 | AK126: 10 | AL126: 340 | AM126: -5 | AN126: 190 | AO126: 0 | AP126: 220 | AS126: 5 | AT126: 250 | AU126: 2020-11-15 | AV126: 59 | AW126: 0 | AX126: =COUNT(C126:AT126)/2 -> 5
A127: 81 | G127: 0 | H127: 140 | U127: 6 | V127: 170 | AK127: 0 | AL127: 140 | AM127: -6 | AN127: 130 | AO127: -10 | AP127: 100 | AS127: 10 | AT127: 220 | AU127: 2020-11-15 | AV127: 59 | AW127: 0 | AX127: 6
A128: 82 | G128: 10 | H128: 250 | U128: 6 | V128: 240 | AK128: -6 | AL128: 170 | AM128: 2 | AN128: 190 | AO128: -6 | AP128: 170 | AS128: -6 | AT128: 170 | AU128: 2020-11-15 | AV128: 59 | AW128: 0 | AX128: 6
A129: 83 | Q129: 5 | R129: 190 | U129: 0 | V129: 150 | AK129: -5 | AL129: 100 | AM129: -10 | AN129: 90 | AO129: 10 | AP129: 250 | AU129: 2020-11-15 | AV129: 59 | AW129: 0 | AX129: 5
A130: 84 | G130: 5 | H130: 270 | U130: -10 | V130: 80 | AK130: 10 | AL130: 290 | AM130: 0 | AN130: 200 | AS130: -5 | AT130: 130 | AU130: 2020-11-16 | AV130: 60 | AW130: 0 | AX130: 5
A131: 85 | G131: -6 | H131: 100 | Q131: 6 | R131: 250 | U131: 2 | V131: 150 | AK131: -2 | AL131: 110 | AM131: -10 | AN131: 80 | AS131: 10 | AT131: 260 | AU131: 2020-11-16 | AV131: 60 | AW131: 0 | AX131: 6
A132: 86 | G132: 0 | H132: 190 | Q132: 10 | R132: 270 | U132: -5 | V132: 160 | AK132: 5 | AL132: 160 | AM132: -10 | AN132: 30 | AU132: 2020-11-16 | AV132: 60 | AW132: 0 | AX132: 5
A133: 87 | G133: 5 | H133: 220 | AK133: 10 | AL133: 240 | AM133: -10 | AN133: 90 | AO133: -5 | AP133: 100 | AS133: 0 | AT133: 170 | AU133: 2020-11-17 | AV133: 61 | AW133: 0 | AX133: 5
A134: 88 | C134: 0 | D134: 160 | K134: =+(10-10)/2 -> 0 | L134: =+(310-20)/2 -> 145 | Q134: 5 | R134: 170 | AC134: -5 | AD134: 100 | AU134: 2020-11-17 | AV134: 62 | AW134: 0 | AX134: =COUNT(C134:AT134)/2 -> 4 | AY134: =+AW134/AX134 -> 0 | AZ134: =+K134 -> 0
A135: 89 | G135: -2 | H135: 170 | U135: -6 | V135: 160 | AK135: 10 | AL135: 270 | AM135: 6 | AN135: 240 | AO135: -10 | AP135: 140 | AS135: 2 | AT135: 230 | AU135: 2020-11-18 | AV135: 63 | AW135: 0 | AX135: 6
A136: 90 | Q136: 10 | R136: 280 | U136: 4 | V136: 200 | AK136: -10 | AL136: 90 | AM136: 4 | AN136: 200 | AO136: -6 | AP136: 150 | AS136: -2 | AT136: 160 | AU136: 2020-11-18 | AV136: 63 | AW136: 0 | AX136: 6
A137: 91 | AK137: 10 | AL137: 310 | AM137: -10 | AN137: 80 | AO137: 0 | AP137: 120 | AU137: 2020-11-18 | AV137: 63 | AW137: 0 | AX137: 3
A138: 92 | G138: -5 | H138: 190 | U138: 5 | V138: 220 | AK138: 10 | AL138: 230 | AM138: -5 | AN138: 190 | AS138: -5 | AT138: 190 | AU138: 2020-11-19 | AV138: 64 | AW138: 0 | AX138: 5
A139: 93 | G139: 10 | H139: 240 | U139: 5 | V139: 210 | AK139: -5 | AL139: 170 | AM139: -10 | AN139: 140 | AS139: 0 | AT139: 180 | AU139: 2020-11-19 | AV139: 64 | AW139: 0 | AX139: 5
A140: 94 | G140: 0 | H140: 230 | AK140: -10 | AL140: 40 | AM140: 10 | AN140: 280 | AU140: 2020-11-19 | AV140: 64 | AW140: 0 | AX140: 3
A141: 95 | C141: -4 | D141: 10 | G141: 10 | H141: 300 | Q141: 4 | R141: 100 | U141: 4 | V141: 250 | AK141: -4 | AL141: 70 | AM141: 10 | AN141: 250 | AO141: -10 | AP141: 20 | AS141: -10 | AT141: -40 | AU141: 2020-11-20 | AV141: 65 | AW141: 0 | AX141: 8
A142: 96 | C142: 10 | D142: 250 | G142: 10 | H142: 340 | Q142: 0 | R142: 260 | U142: -4 | V142: 120 | AK142: 4 | AL142: 150 | AM142: -10 | AN142: 90 | AO142: -10 | AP142: 10 | AU142: 2020-11-20 | AV142: 65 | AW142: 0 | AX142: 7
A143: 97 | K143: =+(10-10)/2 -> 0 | L143: =+(290+10)/2 -> 150 | O143: 0 | P143: 130 | Q143: -5 | R143: 90 | U143: 5 | V143: 180 | AU143: 2020-11-20 | AV143: 65 | AW143: 0 | AX143: 4 | AY143: =+AW143/AX143 -> 0 | AZ143: =+K143 -> 0
A144: 98 | G144: -10 | H144: 50 | Q144: 2.5 | R144: 120 | W144: 10 | X144: 140 | AM144: -5 | AN144: 100 | AS144: 2.5 | AT144: 120 | AU144: 2020-11-21 | AV144: 66 | AW144: 0 | AX144: 5
A145: 99 | G145: 10 | H145: 180 | Q145: 6 | R145: 130 | W145: -8 | X145: 90 | AK145: 2 | AL145: 120 | AM145: -2 | AN145: 100 | AS145: -8 | AT145: 100 | AU145: 2020-11-21 | AV145: 66 | AW145: 0 | AX145: 6
A146: 100 | G146: 10 | H146: 200 | Q146: 4 | R146: 190 | W146: -6 | X146: 160 | AK146: 4 | AL146: 190 | AM146: -10 | AN146: 30 | AO146: -2 | AP146: 180 | AU146: 2020-11-21 | AV146: 66 | AW146: 0 | AX146: 6
A147: 101 | U147: 2.5 | V147: 70 | AK147: 10 | AL147: 210 | AM147: -7.5 | AN147: 150 | AO147: 2.5 | AP147: 170 | AS147: -7.5 | AT147: 150 | AU147: 2020-11-22 | AV147: 67 | AW147: 0 | AX147: 5
A148: 102 | Q148: 0 | R148: 200 | U148: -10 | V148: 170 | AK148: 8 | AL148: 210 | AM148: -6 | AN148: 180 | AO148: 0 | AP148: 200 | AS148: 8 | AT148: 210 | AU148: 2020-11-22 | AV148: 67 | AW148: 0 | AX148: 6
A149: 103 | Q149: -2 | R149: 180 | U149: 2 | V149: 200 | AK149: 6 | AL149: 210 | AM149: 10 | AN149: 220 | AO149: -6 | AP149: 110 | AS149: -10 | AT149: 60 | AU149: 2020-11-22 | AV149: 67 | AW149: 0 | AX149: 6
A150: 104 | Q150: 10 | R150: 310 | U150: -6 | V150: 110 | AK150: 2 | AL150: 150 | AM150: -10 | AN150: 70 | AO150: 6 | AP150: 260 | AS150: -2 | AT150: 130 | AU150: 2020-11-22 | AV150: 67 | AW150: 0 | AX150: 6
A151: =+A150+1 -> 105 | Q151: -10 | R151: 120 | U151: 5 | V151: 270 | AK151: -5 | AL151: 200 | AM151: 0 | AN151: 230 | AO151: 10 | AP151: 320 | AU151: 2020-11-22 | AV151: 67 | AW151: 0 | AX151: 5
A152: 106 | Q152: -10 | R152: 130 | U152: 10 | V152: 330 | AK152: 0 | AL152: 150 | AM152: 5 | AN152: 260 | AO152: -5 | AP152: 140 | AU152: 2020-11-22 | AV152: 67 | AW152: 0 | AX152: 5
A153: 107 | C153: -10 | D153: 140 | K153: =+(2-2-6)/3 -> -2 | L153: =+(220+190+170)/3 -> 193.3333333 | Q153: 6 | R153: 250 | AC153: 10 | AD153: 270 | AU153: 2020-11-22 | AV153: 68 | AW153: 0 | AX153: =COUNT(C153:AT153)/2 -> 4 | AY153: =+AW153/AX153 -> 0 | AZ153: =+K153*2 -> -4
A154: 108 | C154: -10 | D154: 80 | K154: =+(0-5)/2 -> -2.5 | L154: =+(140+100)/2 -> 120 | Q154: 5 | R154: 150 | AC154: 10 | AD154: 180 | AU154: 2020-11-22 | AV154: 68 | AW154: 0 | AX154: 4 | AY154: =+AW154/AX154 -> 0 | AZ154: =+K154 -> -2.5
A155: 109 | C155: 2.5 | D155: 170 | K155: =+(10+2.5)/2 -> 6.25 | L155: =+(190+170)/2 -> 180 | Q155: -5 | R155: 130 | AC155: -10 | AD155: 70 | AU155: 2020-11-22 | AV155: 68 | AW155: 0 | AX155: 4 | AY155: =+AW155/AX155 -> 0 | AZ155: =+K155 -> 6.25
A156: 110 | C156: 4 | D156: 210 | U156: -10 | V156: 150 | AK156: 10 | AL156: 290 | AO156: -4 | AP156: 170 | AU156: 2020-11-23 | AV156: 69 | AW156: 0 | AX156: 4
A157: 111 | U157: -4 | V157: 160 | AK157: -10 | AL157: 80 | AO157: 4 | AP157: 170 | AS157: 10 | AT157: 190 | AU157: 2020-11-23 | AV157: 69 | AW157: 0 | AX157: 4
A158: 112 | C158: 10 | D158: 130 | U158: -5 | V158: 130 | AK158: 5 | AL158: 190 | AO158: 0 | AP158: 170 | AS158: -10 | AT158: 20 | AU158: 2020-11-23 | AV158: 69 | AW158: 0 | AX158: 5
A159: 113 | G159: 10 | H159: 230 | U159: -2.5 | V159: 170 | AK159: -10 | AL159: 50 | AM159: 5 | AN159: 190 | AS159: -2.5 | AT159: 170 | AU159: 2020-11-25 | AV159: 71 | AW159: 0 | AX159: 5
A160: 114 | U160: -4 | V160: 230 | AK160: 4 | AL160: 260 | AM160: 10 | AN160: 290 | AS160: -10 | AT160: 20 | AU160: 2020-11-25 | AV160: 71 | AW160: 0 | AX160: 4
A161: 115 | G161: 10 | H161: 300 | U161: -10 | V161: 120 | AK161: -5 | AL161: 190 | AM161: 5 | AN161: 220 | AS161: 0 | AT161: 200 | AU161: 2020-11-26 | AV161: 72 | AW161: 0 | AX161: 5
A162: 116 | G162: 5 | H162: 200 | U162: -10 | V162: 140 | AK162: -5 | AL162: 180 | AM162: 0 | AN162: 190 | AS162: 10 | AT162: 220 | AU162: 2020-11-26 | AV162: 72 | AW162: 0 | AX162: 5
A163: 117 | G163: 10 | H163: 260 | U163: 4 | V163: 190 | AK163: -7 | AL163: 170 | AM163: -7 | AN163: 170 | AU163: 2020-11-26 | AV163: 72 | AW163: 0 | AX163: 4
A164: 118 | K164: =+(10-6-2)/3 -> 0.6666666667 | L164: =+(210+90+100)/3 -> 133.3333333 | Q164: 2 | R164: 110 | AM164: -10 | AN164: 60 | AS164: 6 | AT164: 180 | AU164: 2020-11-27 | AV164: 73 | AW164: 0 | AX164: 4 | AY164: =+AW164/AX164 -> 0 | AZ164: =+K164*2 -> 1.333333333
A165: 119 | Q165: 10 | R165: 290 | W165: -2.5 | X165: 170 | AK165: -2.5 | AL165: 170 | AM165: 5 | AN165: 260 | AS165: -10 | AT165: 70 | AU165: 2020-11-27 | AV165: 73 | AW165: 0 | AX165: =COUNT(C165:AT165)/2 -> 5
A166: 120 | Q166: 0 | R166: 100 | W166: -5 | X166: 80 | AK166: -10 | AL166: 30 | AM166: 10 | AN166: 270 | AS166: 5 | AT166: 180 | AU166: 2020-11-27 | AV166: 73 | AW166: 0 | AX166: 5
A167: 121 | Q167: 4 | R167: 220 | U167: 10 | V167: 280 | AK167: -10 | AL167: 80 | AM167: -4 | AN167: 100 | AU167: 2020-11-27 | AV167: 73 | AW167: 0 | AX167: 4
A168: 122 | C168: -10 | D168: 80 | K168: =+(10+5)/2 -> 7.5 | L168: =+(280+240)/2 -> 260 | Q168: 0 | R168: 190 | AC168: -5 | AD168: 180 | AU168: 2020-11-27 | AV168: 74 | AW168: 0 | AX168: 4 | AY168: =+AW168/AX168 -> 0 | AZ168: =+K168 -> 7.5
A169: 123 | G169: 6 | H169: 220 | U169: 10 | V169: 240 | AK169: 0 | AL169: 170 | AM169: -10 | AN169: 150 | AO169: -6 | AP169: 160 | AS169: 0 | AT169: 170 | AU169: 2020-11-28 | AV169: 75 | AW169: 0 | AX169: 6
A170: 124 | G170: 10 | H170: 220 | U170: -4 | V170: 150 | AK170: 4 | AL170: 200 | AM170: 4 | AN170: 200 | AO170: -10 | AP170: 90 | AS170: -4 | AT170: 150 | AU170: 2020-11-28 | AV170: 75 | AW170: 0 | AX170: 6
A171: 125 | G171: 6 | H171: 280 | U171: 2 | V171: 210 | AK171: 10 | AL171: 310 | AM171: -10 | AN171: 110 | AO171: -6 | AP171: 150 | AS171: -2 | AT171: 200 | AU171: 2020-11-28 | AV171: 75 | AW171: 0 | AX171: 6
A172: 126 | G172: 2 | H172: 250 | Q172: -2 | R172: 220 | U172: 8 | V172: 290 | AK172: 8 | AL172: 290 | AO172: -8 | AP172: 160 | AS172: -8 | AT172: 160 | AU172: 2020-11-28 | AV172: 75 | AW172: 0 | AX172: 6
A173: 127 | Q173: 10 | R173: 420 | U173: 4 | V173: 340 | AK173: -4 | AL173: 260 | AO173: -10 | AP173: 0 | AU173: 2020-11-28 | AV173: 75 | AW173: 0 | AX173: 4
A174: 128 | Q174: 10 | R174: 330 | U174: -4 | V174: 110 | AK174: -10 | AL174: 80 | AO174: 4 | AP174: 190 | AU174: 2020-11-29 | AV174: 76 | AW174: 0 | AX174: 4
A175: 129 | G175: 10 | H175: 310 | Q175: 6 | R175: 250 | AK175: -6 | AL175: 140 | AM175: -10 | AN175: 120 | AO175: -2 | AP175: 160 | AS175: 2 | AT175: 180 | AU175: 2020-11-29 | AV175: 76 | AW175: =+AI175+AE175+Y175+W175+U175+S175+Q175+O175+M175+I175+G175+E175+C175+AG175+K175+AS175+AZ175+AA175+AC175+AK175+AM175+AO175+AQ175 -> 0 | AX175: =COUNT(C175:AT175)/2 -> 6
A176: 130 | G176: 10 | H176: 250 | Q176: -4 | R176: 200 | U176: -10 | V176: 40 | AK176: 0 | AL176: 200 | AM176: 10 | AN176: 290 | AO176: -10 | AP176: 170 | AS176: 4 | AT176: 220 | AU176: 2020-11-29 | AV176: 76 | AW176: 0 | AX176: 7
A177: 131 | U177: -7 | V177: 230 | AK177: -7 | AL177: 230 | AM177: 4 | AN177: 280 | AO177: 10 | AP177: 370 | AU177: 2020-11-29 | AV177: 76 | AW177: 0 | AX177: 4
A178: 132 | U178: 10 | V178: 280 | AK178: -2.5 | AL178: 130 | AM178: -10 | AN178: 100 | AO178: -2.5 | AP178: 130 | AS178: 5 | AT178: 190 | AU178: 2020-11-29 | AV178: 76 | AW178: 0 | AX178: 5
A179: 133 | U179: -2.5 | V179: 190 | AK179: 10 | AL179: 260 | AM179: -2.5 | AN179: 190 | AO179: 5 | AP179: 210 | AS179: -10 | AT179: 150 | AU179: 2020-11-30 | AV179: 77 | AW179: 0 | AX179: 5
A180: 134 | G180: -10 | H180: 170 | U180: -2.5 | V180: 190 | AK180: 5 | AL180: 210 | AM180: -2.5 | AN180: 190 | AO180: 10 | AP180: 250 | AU180: 2020-11-30 | AV180: 77 | AW180: 0 | AX180: 5
A181: 135 | G181: 4 | H181: 220 | Q181: 10 | R181: 250 | U181: -10 | V181: 30 | AS181: -4 | AT181: 110 | AU181: 2020-12-02 | AV181: 79 | AW181: 0 | AX181: 4
A182: 136 | K182: -7.5 | L182: 130 | O182: -7.5 | P182: 130 | Q182: 10 | R182: 260 | AK182: 5 | AL182: 240 | AS182: 0 | AT182: 200 | AU182: 2020-12-02 | AV182: 79 | AW182: 0 | AX182: 5
A183: 137 | C183: -10 | D183: 50 | K183: =+(10+6-2)/3 -> 4.666666667 | L183: =+(260+210+80)/3 -> 183.3333333 | Q183: 2 | R183: 180 | AC183: -6 | AD183: 70 | AU183: 2020-12-02 | AV183: 80 | AW183: 8.881784197e-16 | AX183: 4 | AY183: =+AW183/AX183 -> 2.220446049e-16 | AZ183: =+K183*2 -> 9.333333333
A184: 138 | U184: 10 | V184: 230 | AK184: 0 | AL184: 200 | AS184: -10 | AT184: 80 | AU184: 2020-12-04 | AV184: 82 | AW184: 0 | AX184: 3 | AY184: =+AW184/AX184 -> 0 | AZ184: =+K184*2 -> 0
A185: 139 | C185: -10 | D185: 90 | K185: =+(-6+10)/2 -> 2 | L185: =+(110+270)/2 -> 190 | Q185: 2 | R185: 220 | AA185: 2 | AB185: 220 | AM185: 2 | AN185: 220 | AU185: 2020-12-04 | AV185: 83 | AW185: 0 | AX185: 5 | AY185: =+AW185/AX185 -> 0 | AZ185: =+K185 -> 2
A186: 140 | C186: -10 | D186: 100 | K186: -2 | L186: 180 | Q186: 4 | R186: 220 | U186: 10 | V186: 320 | AA186: 4 | AB186: 220 | AC186: -6 | AD186: 150 | AU186: 2020-12-04 | AV186: 83 | AW186: 0 | AX186: 6
A187: 141 | K187: =+(0-5)/2 -> -2.5 | L187: =+(200+170)/2 -> 185 | Q187: 10 | R187: 250 | U187: 5 | V187: 230 | AC187: -10 | AD187: 90 | AU187: 2020-12-04 | AV187: 83 | AW187: 0 | AX187: 4 | AY187: =+AW187/AX187 -> 0 | AZ187: =+K187 -> -2.5
A188: 142 | C188: -10 | D188: 150 | K188: =+(2+8-4)/3 -> 2 | L188: =+(260+210+80)/3 -> 183.3333333 | Q188: -4 | R188: 230 | U188: 8 | V188: 270 | AU188: 2020-12-04 | AV188: 83 | AW188: 0 | AX188: 4 | AY188: =+AW188/AX188 -> 0 | AZ188: =+K188*2 -> 4
A189: 143 | C189: 10 | D189: 210 | Q189: 4 | R189: 180 | U189: -10 | V189: 140 | AC189: -4 | AD189: 150 | AU189: 2020-12-05 | AV189: 84 | AW189: 0 | AX189: 4 | AY189: =+AW189/AX189 -> 0 | AZ189: =+K189*2 -> 0
A190: 144 | C190: -7.5 | D190: 180 | K190: 7.5 | L190: 240 | Q190: 0 | R190: 230 | U190: 7.5 | V190: 240 | AC190: -7.5 | AD190: 180 | AU190: 2020-12-05 | AV190: 84 | AW190: 0 | AX190: 5
A191: 145 | G191: 10 | H191: 280 | K191: 10 | L191: 260 | Q191: -4 | R191: 140 | U191: 4 | V191: 180 | AK191: 4 | AL191: 270 | AM191: -10 | AN191: 0 | AO191: -10 | AP191: 80 | AS191: -4 | AT191: 230 | AU191: 2020-12-06 | AV191: 85 | AW191: 0 | AX191: 8
A192: 146 | G192: 4 | H192: 260 | O192: -10 | P192: 50 | Q192: 10 | R192: 290 | U192: 10 | V192: 320 | AK192: 4 | AL192: 250 | AM192: -4 | AN192: 150 | AO192: -4 | AP192: 170 | AS192: -10 | AT192: 0 | AU192: 2020-12-06 | AV192: 85 | AW192: 0 | AX192: 8
A193: 147 | O193: 5 | P193: 210 | Q193: -10 | R193: 120 | U193: 10 | V193: 320 | AK193: 0 | AL193: 190 | AO193: -5 | AP193: 180 | AU193: 2020-12-06 | AV193: 85 | AW193: 0 | AX193: 5
A194: 148 | K194: =+(10+2.5)/2 -> 6.25 | L194: =+(350+290)/2 -> 320 | Q194: -5 | R194: 190 | U194: 2.5 | V194: 290 | AK194: -10 | AL194: 180 | AU194: 2020-12-06 | AV194: 85 | AW194: 0 | AX194: 4 | AY194: =+AW194/AX194 -> 0 | AZ194: =+K194 -> 6.25
A195: 149 | G195: -5 | H195: 140 | U195: 10 | V195: 270 | AK195: 5 | AL195: 180 | AO195: 0 | AP195: 170 | AS195: -10 | AT195: 70 | AU195: 2020-12-07 | AV195: 86 | AW195: 0 | AX195: 5
A196: 150 | G196: -5 | H196: 130 | U196: 0 | V196: 160 | AK196: -10 | AL196: 50 | AM196: 10 | AN196: 190 | AO196: 5 | AP196: 180 | AU196: 2020-12-07 | AV196: 86 | AW196: 0 | AX196: 5
A197: 151 | C197: 4 | D197: 210 | K197: =+(-2-6+4)/3 -> -1.333333333 | L197: =+(170+150+210)/3 -> 176.6666667 | Q197: 10 | R197: 220 | AC197: -10 | AD197: 140 | AU197: 2020-12-07 | AV197: 87 | AW197: 0 | AX197: 4 | AY197: =+AW197/AX197 -> 0 | AZ197: =+K197*2 -> -2.666666667
A198: 152 | C198: -7 | D198: 110 | Q198: 10 | R198: 240 | U198: 4 | V198: 190 | AC198: -7 | AD198: 110 | AU198: 2020-12-07 | AV198: 87 | AW198: 0 | AX198: 4
A199: 153 | C199: 0 | D199: 220 | K199: 10 | L199: 270 | Q199: -5 | R199: 180 | U199: 5 | V199: 240 | AC199: -10 | AD199: 140 | AU199: 2020-12-07 | AV199: 87 | AW199: 0 | AX199: 5
A200: 154 | G200: 6 | H200: 230 | U200: -2 | V200: 140 | AK200: 10 | AL200: 240 | AM200: -10 | AN200: 80 | AO200: 2 | AP200: 160 | AS200: -6 | AT200: 120 | AU200: 2020-12-08 | AV200: 88 | AW200: 0 | AX200: 6
A201: 155 | G201: -10 | H201: 60 | U201: 0 | V201: 200 | AK201: -5 | AL201: 160 | AM201: 5 | AN201: 240 | AO201: 10 | AP201: 280 | AU201: 2020-12-08 | AV201: 88 | AW201: 0 | AX201: 5
... 651 more rows

Sheet Cribbage
A1: CRIBBAGE
A2: Mes
A3: =+GENERAL!B6 -> 12 | C3: =SUM(C5:C18) -> 0
C4: Premi | D4: Punts | E4: Partides | F4: General
A5: 1 | B5: Sebas | C5: =+AP$43 -> 125 | D5: =+AP$44 -> 19 | E5: =+AQ$43 -> 97 | F5: =+AP$29 -> 80 | G5: =IF(E5<A$3/2,-1,1)*800+C5+D5/1000 -> 925.019
A6: 2 | B6: Gemma | C6: =+L$43 -> 106 | D6: =+L$44 -> 23 | E6: =+M$43 -> 229 | F6: =+L$29 -> 40 | G6: 906.023
A7: 3 | B7: Carles | C7: =+U$43 -> 91 | D7: =+U$44 -> 167 | E7: =+V$43 -> 21 | F7: =+U$29 -> 20 | G7: 891.167
A8: 4 | B8: Jordi | C8: =+C$43 -> 64 | D8: =+C$44 -> 199 | E8: =+D$43 -> 122 | F8: =+C$29 -> 10 | G8: 864.199
A9: 5 | B9: Nogué | C9: =+R$43 -> 28 | D9: =+R$44 -> 194.5 | E9: =+S$43 -> 250 | F9: =+R$29 -> 5 | G9: 828.1945
A10: 6 | B10: CyberX | C10: =+AY$43 -> -8 | D10: =+AY$44 -> 53 | E10: =+AZ$43 -> 9 | F10: =+AY$29 -> 0 | G10: 792.053
A11: 7 | B11: Manolo | C11: =+AM$43 -> -22 | D11: =+AM$44 -> -96 | E11: =+AN$43 -> 12 | F11: =+AM$29 -> 0 | G11: 777.904
A12: 8 | B12: Ana B. | C12: =+AG$43 -> -51 | D12: =+AG$44 -> -120 | E12: =+AH$43 -> 13 | F12: =+AG$29 -> 0 | G12: 748.88
A13: 9 | B13: Nin | C13: =+BE$43 -> -63 | D13: =+BE$44 -> -178 | E13: =+BF$43 -> 12 | F13: =+BE$29 -> 0 | G13: 736.822
A14: 10 | B14: Grau | C14: =+AV$43 -> -120 | D14: =+AV$44 -> -168 | E14: =+AW$43 -> 164 | F14: =+AV$29 -> 0 | G14: 679.832
A15: 11 | B15: Núria | C15: =+I$43 -> -180 | D15: =+I$44 -> -122.5 | E15: =+J$43 -> 185 | F15: =+I$29 -> 0 | G15: 619.8775
A16: 12 | B16: Goretti | C16: =+AS$43 -> 50 | D16: =+AS$44 -> 45 | E16: =+AT$43 -> 5 | F16: =+AS$29 -> 0 | G16: -749.955
A17: 13 | B17: Òscar | C17: =+O$43 -> 30 | D17: =+O$44 -> 57 | E17: =+P$43 -> 3 | F17: =+O$29 -> 0 | G17: -769.943
A18: 14 | B18: Sergi | C18: =+F$43 -> -50 | D18: =+F$44 -> -75 | E18: =+G$43 -> 5 | F18: =+F$29 -> 0 | G18: -850.075
A19: 15 | B19: Lluisa | C19: =+BH$43 -> -100000000 | D19: =+BH$44 -> 1 | E19: =+BI$43 -> 0 | F19: =+BH$29 -> 0 | G19: =IF(E19<A$3/2,-1,1)*800+C19+D19/1000 -> -100000800
A20: 16 | B20: Mariajo | C20: =+X$43 -> -100000000 | D20: =+X$44 -> 1 | E20: =+Y$43 -> 0 | F20: =+X$29 -> 0 | G20: -100000800
A21: 17 | B21: Joan | C21: =+AD$43 -> -100000000 | D21: =+AD$44 -> 1 | E21: =+AE$43 -> 0 | F21: =+AD$29 -> 0 | G21: -100000800
A22: 18 | B22: Rosa M. | C22: =+AA$43 -> -100000000 | D22: =+AA$44 -> 1 | E22: =+AB$43 -> 0 | F22: =+AA$29 -> 0 | G22: -100000800
A23: 19 | B23: Tito | C23: =+BB$43 -> -100000000 | D23: =+BB$44 -> 1 | E23: =+BC$43 -> 0 | F23: =+BB$29 -> 0 | G23: -100000800
A24: 20 | B24: Anna P. | C24: =+AJ$43 -> -100000000 | D24: =+AJ$44 -> 1 | E24: =+AK$43 -> 0 | F24: =+AJ$29 -> 0 | G24: -100000800
A25: 21 | G25: -800
A26: 22 | G26: -800
B29: General | C29: =+C30*C31 -> 10 | D29: =+D30*D31 -> 122 | F29: =+F30*F31 -> 0 | G29: =+G30*G31 -> 5 | I29: =+I30*I31 -> 0 | J29: =+J30*J31 -> 185 | L29: =+L30*L31 -> 40 | M29: =+M30*M31 -> 229 | O29: =+O30*O31 -> 0 | P29: =+P30*P31 -> 3 | R29: =+R30*R31 -> 5 | S29: =+S30*S31 -> 250 | U29: =+U30*U31 -> 20 | V29: =+V30*V31 -> 21 | X29: =+X30*X31 -> 0 | Y29: =+Y30*Y31 -> 0 | AA29: =+AA30*AA31 -> 0 | AB29: =+AB30*AB31 -> 0 | AD29: =+AD30*AD31 -> 0 | AE29: =+AE30*AE31 -> 0 | AG29: =+AG30*AG31 -> 0 | AH29: =+AH30*AH31 -> 13 | AJ29: =+AJ30*AJ31 -> 0 | AK29: =+AK30*AK31 -> 0 | AM29: =+AM30*AM31 -> 0 | AN29: =+AN30*AN31 -> 12 | AP29: =+AP30*AP31 -> 80 | AQ29: =+AQ30*AQ31 -> 97 | AS29: =+AS30*AS31 -> 0 | AT29: =+AT30*AT31 -> 5 | AV29: =+AV30*AV31 -> 0 | AW29: =+AW30*AW31 -> 164 | AY29: =+AY30*AY31 -> 0 | AZ29: =+AZ30*AZ31 -> 9 | BB29: =+BB30*BB31 -> 0 | BC29: =+BC30*BC31 -> 0 | BE29: =+BE30*BE31 -> 0 | BF29: =+BF30*BF31 -> 12 | BH29: =+BH30*BH31 -> 0 | BI29: =+BI30*BI31 -> 0
C30: =IF($B42>3,1,0) -> 1 | D30: =IF($B42>3,1,0) -> 1 | F30: =IF($B42>3,1,0) -> 1 | G30: =IF($B42>3,1,0) -> 1 | I30: =IF($B42>3,1,0) -> 1 | J30: =IF($B42>3,1,0) -> 1 | L30: =IF($B42>3,1,0) -> 1 | M30: =IF($B42>3,1,0) -> 1 | O30: =IF($B42>3,1,0) -> 1 | P30: =IF($B42>3,1,0) -> 1 | R30: =IF($B42>3,1,0) -> 1 | S30: =IF($B42>3,1,0) -> 1 | U30: =IF($B42>3,1,0) -> 1 | V30: =IF($B42>3,1,0) -> 1 | X30: =IF($B42>3,1,0) -> 1 | Y30: =IF($B42>3,1,0) -> 1 | AA30: =IF($B42>3,1,0) -> 1 | AB30: =IF($B42>3,1,0) -> 1 | AD30: =IF($B42>3,1,0) -> 1 | AE30: =IF($B42>3,1,0) -> 1 | AG30: =IF($B42>3,1,0) -> 1 | AH30: =IF($B42>3,1,0) -> 1 | AJ30: =IF($B42>3,1,0) -> 1 | AK30: =IF($B42>3,1,0) -> 1 | AM30: =IF($B42>3,1,0) -> 1 | AN30: =IF($B42>3,1,0) -> 1 | AP30: =IF($B42>3,1,0) -> 1 | AQ30: =IF($B42>3,1,0) -> 1 | AS30: =IF($B42>3,1,0) -> 1 | AT30: =IF($B42>3,1,0) -> 1 | AV30: =IF($B42>3,1,0) -> 1 | AW30: =IF($B42>3,1,0) -> 1 | AY30: =IF($B42>3,1,0) -> 1 | AZ30: =IF($B42>3,1,0) -> 1 | BB30: =IF($B42>3,1,0) -> 1 | BC30: =IF($B42>3,1,0) -> 1 | BE30: =IF($B42>3,1,0) -> 1 | BF30: =IF($B42>3,1,0) -> 1 | BH30: =IF($B42>3,1,0) -> 1 | BI30: =IF($B42>3,1,0) -> 1
C31: =MAX(C32:C36) -> 10 | D31: =+D43 -> 122 | F31: =MAX(F32:F36) -> 0 | G31: =+G43 -> 5 | I31: =MAX(I32:I36) -> 0 | J31: =+J43 -> 185 | L31: =MAX(L32:L36) -> 40 | M31: =+M43 -> 229 | O31: =MAX(O32:O36) -> 0 | P31: =+P43 -> 3 | R31: =MAX(R32:R36) -> 5 | S31: =+S43 -> 250 | U31: =MAX(U32:U36) -> 20 | V31: =+V43 -> 21 | X31: =MAX(X32:X36) -> 0 | Y31: =+Y43 -> 0 | AA31: =MAX(AA32:AA36) -> 0 | AB31: =+AB43 -> 0 | AD31: =MAX(AD32:AD36) -> 0 | AE31: =+AE43 -> 0 | AG31: =MAX(AG32:AG36) -> 0 | AH31: =+AH43 -> 13 | AJ31: =MAX(AJ32:AJ36) -> 0 | AK31: =+AK43 -> 0 | AM31: =MAX(AM32:AM36) -> 0 | AN31: =+AN43 -> 12 | AP31: =MAX(AP32:AP36) -> 80 | AQ31: =+AQ43 -> 97 | AS31: =MAX(AS32:AS36) -> 0 | AT31: =+AT43 -> 5 | AV31: =MAX(AV32:AV36) -> 0 | AW31: =+AW43 -> 164 | AY31: =MAX(AY32:AY36) -> 0 | AZ31: =+AZ43 -> 9 | BB31: =MAX(BB32:BB36) -> 0 | BC31: =+BC43 -> 0 | BE31: =MAX(BE32:BE36) -> 0 | BF31: =+BF43 -> 12 | BH31: =MAX(BH32:BH36) -> 0 | BI31: =+BI43 -> 0
C32: =IF(C$37=5,5,0) -> 0 | F32: =IF(F$37=5,5,0) -> 0 | I32: =IF(I$37=5,5,0) -> 0 | L32: =IF(L$37=5,5,0) -> 0 | O32: =IF(O$37=5,5,0) -> 0 | R32: =IF(R$37=5,5,0) -> 5 | U32: =IF(U$37=5,5,0) -> 0 | X32: =IF(X$37=5,5,0) -> 0 | AA32: =IF(AA$37=5,5,0) -> 0 | AD32: =IF(AD$37=5,5,0) -> 0 | AG32: =IF(AG$37=5,5,0) -> 0 | AJ32: =IF(AJ$37=5,5,0) -> 0 | AM32: =IF(AM$37=5,5,0) -> 0 | AP32: =IF(AP$37=5,5,0) -> 0 | AS32: =IF(AS$37=5,5,0) -> 0 | AV32: =IF(AV$37=5,5,0) -> 0 | AY32: =IF(AY$37=5,5,0) -> 0 | BB32: =IF(BB$37=5,5,0) -> 0 | BE32: =IF(BE$37=5,5,0) -> 0 | BH32: =IF(BH$37=5,5,0) -> 0
C33: =IF(C$37=4,10,0) -> 10 | F33: =IF(F$37=4,10,0) -> 0 | I33: =IF(I$37=4,10,0) -> 0 | L33: =IF(L$37=4,10,0) -> 0 | O33: =IF(O$37=4,10,0) -> 0 | R33: =IF(R$37=4,10,0) -> 0 | U33: =IF(U$37=4,10,0) -> 0 | X33: =IF(X$37=4,10,0) -> 0 | AA33: =IF(AA$37=4,10,0) -> 0 | AD33: =IF(AD$37=4,10,0) -> 0 | AG33: =IF(AG$37=4,10,0) -> 0 | AJ33: =IF(AJ$37=4,10,0) -> 0 | AM33: =IF(AM$37=4,10,0) -> 0 | AP33: =IF(AP$37=4,10,0) -> 0 | AS33: =IF(AS$37=4,10,0) -> 0 | AV33: =IF(AV$37=4,10,0) -> 0 | AY33: =IF(AY$37=4,10,0) -> 0 | BB33: =IF(BB$37=4,10,0) -> 0 | BE33: =IF(BE$37=4,10,0) -> 0 | BH33: =IF(BH$37=4,10,0) -> 0
C34: =IF(C$37=3,20,0) -> 0 | F34: =IF(F$37=3,20,0) -> 0 | I34: =IF(I$37=3,20,0) -> 0 | L34: =IF(L$37=3,20,0) -> 0 | O34: =IF(O$37=3,20,0) -> 0 | R34: =IF(R$37=3,20,0) -> 0 | U34: =IF(U$37=3,20,0) -> 20 | X34: =IF(X$37=3,20,0) -> 0 | AA34: =IF(AA$37=3,20,0) -> 0 | AD34: =IF(AD$37=3,20,0) -> 0 | AG34: =IF(AG$37=3,20,0) -> 0 | AJ34: =IF(AJ$37=3,20,0) -> 0 | AM34: =IF(AM$37=3,20,0) -> 0 | AP34: =IF(AP$37=3,20,0) -> 0 | AS34: =IF(AS$37=3,20,0) -> 0 | AV34: =IF(AV$37=3,20,0) -> 0 | AY34: =IF(AY$37=3,20,0) -> 0 | BB34: =IF(BB$37=3,20,0) -> 0 | BE34: =IF(BE$37=3,20,0) -> 0 | BH34: =IF(BH$37=3,20,0) -> 0
C35: =IF(C$37=2,40,0) -> 0 | F35: =IF(F$37=2,40,0) -> 0 | I35: =IF(I$37=2,40,0) -> 0 | L35: =IF(L$37=2,40,0) -> 40 | O35: =IF(O$37=2,40,0) -> 0 | R35: =IF(R$37=2,40,0) -> 0 | U35: =IF(U$37=2,40,0) -> 0 | X35: =IF(X$37=2,40,0) -> 0 | AA35: =IF(AA$37=2,40,0) -> 0 | AD35: =IF(AD$37=2,40,0) -> 0 | AG35: =IF(AG$37=2,40,0) -> 0 | AJ35: =IF(AJ$37=2,40,0) -> 0 | AM35: =IF(AM$37=2,40,0) -> 0 | AP35: =IF(AP$37=2,40,0) -> 0 | AS35: =IF(AS$37=2,40,0) -> 0 | AV35: =IF(AV$37=2,40,0) -> 0 | AY35: =IF(AY$37=2,40,0) -> 0 | BB35: =IF(BB$37=2,40,0) -> 0 | BE35: =IF(BE$37=2,40,0) -> 0 | BH35: =IF(BH$37=2,40,0) -> 0
C36: =IF(C$37=1,80,0) -> 0 | F36: =IF(F$37=1,80,0) -> 0 | I36: =IF(I$37=1,80,0) -> 0 | L36: =IF(L$37=1,80,0) -> 0 | O36: =IF(O$37=1,80,0) -> 0 | R36: =IF(R$37=1,80,0) -> 0 | U36: =IF(U$37=1,80,0) -> 0 | X36: =IF(X$37=1,80,0) -> 0 | AA36: =IF(AA$37=1,80,0) -> 0 | AD36: =IF(AD$37=1,80,0) -> 0 | AG36: =IF(AG$37=1,80,0) -> 0 | AJ36: =IF(AJ$37=1,80,0) -> 0 | AM36: =IF(AM$37=1,80,0) -> 0 | AP36: =IF(AP$37=1,80,0) -> 80 | AS36: =IF(AS$37=1,80,0) -> 0 | AV36: =IF(AV$37=1,80,0) -> 0 | AY36: =IF(AY$37=1,80,0) -> 0 | BB36: =IF(BB$37=1,80,0) -> 0 | BE36: =IF(BE$37=1,80,0) -> 0 | BH36: =IF(BH$37=1,80,0) -> 0
C37: =RANK(C38,$C38:$BI38)*C42 -> 4 | F37: =RANK(F38,$C38:$BI38)*F42 -> 0 | I37: =RANK(I38,$C38:$BI38)*I42 -> 13 | L37: =RANK(L38,$C38:$BI38)*L42 -> 2 | O37: =RANK(O38,$C38:$BI38)*O42 -> 0 | R37: =RANK(R38,$C38:$BI38)*R42 -> 5 | U37: =RANK(U38,$C38:$BI38)*U42 -> 3 | X37: =RANK(X38,$C38:$BI38)*X42 -> 0 | AA37: =RANK(AA38,$C38:$BI38)*AA42 -> 0 | AD37: =RANK(AD38,$C38:$BI38)*AD42 -> 0 | AG37: =RANK(AG38,$C38:$BI38)*AG42 -> 8 | AJ37: =RANK(AJ38,$C38:$BI38)*AJ42 -> 0 | AM37: =RANK(AM38,$C38:$BI38)*AM42 -> 7 | AP37: =RANK(AP38,$C38:$BI38)*AP42 -> 1 | AS37: =RANK(AS38,$C38:$BI38)*AS42 -> 0 | AV37: =RANK(AV38,$C38:$BI38)*AV42 -> 12 | AY37: =RANK(AY38,$C38:$BI38)*AY42 -> 6 | BB37: =RANK(BB38,$C38:$BI38)*BB42 -> 0 | BE37: =RANK(BE38,$C38:$BI38)*BE42 -> 9 | BH37: =RANK(BH38,$C38:$BI38)*BH42 -> 0
C38: =SUM(C39:C41) -> 6420086 | F38: =SUM(F39:F41) -> -1000007495 | I38: =SUM(I39:I41) -> -18012245 | L38: =SUM(L39:L41) -> 10602635 | O38: =SUM(O39:O41) -> -999994297 | R38: =SUM(R39:R41) -> 2819728 | U38: =SUM(U39:U41) -> 9116812 | X38: =SUM(X39:X41) -> -999999900 | AA38: =SUM(AA39:AA41) -> -999999900 | AD38: =SUM(AD39:AD41) -> -999999900 | AG38: =SUM(AG39:AG41) -> -5112038 | AJ38: =SUM(AJ39:AJ41) -> -999999900 | AM38: =SUM(AM39:AM41) -> -2209610 | AP38: =SUM(AP39:AP41) -> 12502122 | AS38: =SUM(AS39:AS41) -> -999995495 | AV38: =SUM(AV39:AV41) -> -12016756 | AY38: =SUM(AY39:AY41) -> -794699 | BB38: =SUM(BB39:BB41) -> -9999900 | BE38: =SUM(BE39:BE41) -> -6317851 | BH38: =SUM(BH39:BH41) -> -9999900
C39: =+D43 -> 122 | F39: =+G43 -> 5 | I39: =+J43 -> 185 | L39: =+M43 -> 229 | O39: =+P43 -> 3 | R39: =+S43 -> 250 | U39: =+V43 -> 21 | X39: =+Y43 -> 0 | AA39: =+AB43 -> 0 | AD39: =+AE43 -> 0 | AG39: =+AH43 -> 13 | AJ39: =+AK43 -> 0 | AM39: =+AN43 -> 12 | AP39: =+AQ43 -> 97 | AS39: =+AT43 -> 5 | AV39: =+AW43 -> 164 | AY39: =+AZ43 -> 9 | BB39: =+BC43 -> 0 | BE39: =+BF43 -> 12 | BH39: =+BI43 -> 0
C40: =+C44*100 -> 19900 | F40: =+F44*100 -> -7500 | I40: =+I44*100 -> -12250 | L40: =+L44*100 -> 2300 | O40: =+O44*100 -> 5700 | R40: =+R44*100 -> 19450 | U40: =+U44*100 -> 16700 | X40: =+X44*100 -> 100 | AA40: =+AA44*100 -> 100 | AD40: =+AD44*100 -> 100 | AG40: =+AG44*100 -> -12000 | AJ40: =+AJ44*100 -> 100 | AM40: =+AM44*100 -> -9600 | AP40: =+AP44*100 -> 1900 | AS40: =+AS44*100 -> 4500 | AV40: =+AV44*100 -> -16800 | AY40: =+AY44*100 -> 5300 | BB40: =+BB44*100 -> 100 | BE40: =+BE44*100 -> -17800 | BH40: =+BH44*100 -> 100
C41: =IF(D43-$A3/2<0,-1000000000,C43*C42*100000+C43) -> 6400064 | F41: =IF(G43-$A3/2<0,-1000000000,F43*F42*100000+F43) -> -1000000000 | I41: =IF(J43-$A3/2<0,-1000000000,I43*I42*100000+I43) -> -18000180 | L41: =IF(M43-$A3/2<0,-1000000000,L43*L42*100000+L43) -> 10600106 | O41: =IF(P43-$A3/2<0,-1000000000,O43*O42*100000+O43) -> -1000000000 | R41: =IF(S43-$A3/2<0,-1000000000,R43*R42*100000+R43) -> 2800028 | U41: =IF(V43-$A3/2<0,-1000000000,U43*U42*100000+U43) -> 9100091 | X41: =IF(Y43-$A3/2<0,-1000000000,X43*X42*100000+X43) -> -1000000000 | AA41: =IF(AB43-$A3/2<0,-1000000000,AA43*AA42*100000+AA43) -> -1000000000 | AD41: =IF(AE43-$A3/2<0,-1000000000,AD43*AD42*100000+AD43) -> -1000000000 | AG41: =IF(AH43-$A3/2<0,-1000000000,AG43*AG42*100000+AG43) -> -5100051 | AJ41: =IF(AK43-$A3/2<0,-1000000000,AJ43*AJ42*100000+AJ43) -> -1000000000 | AM41: =IF(AN43-$A3/2<0,-1000000000,AM43*AM42*100000+AM43) -> -2200022 | AP41: =IF(AQ43-$A3/2<0,-1000000000,AP43*AP42*100000+AP43) -> 12500125 | AS41: =IF(AT43-$A3/2<0,-1000000000,AS43*AS42*100000+AS43) -> -1000000000 | AV41: =IF(AW43-$A3/2<0,-1000000000,AV43*AV42*100000+AV43) -> -12000120 | AY41: =IF(AZ43-$A3/2<0,-1000000000,AY43*AY42*100000+AY43) -> -800008 | BB41: =IF(BC43-$A3/2<0,-10000000,BB43*BB42*100000+BB43) -> -10000000 | BE41: =IF(BF43-$A3/2<0,-10000000,BE43*BE42*100000+BE43) -> -6300063 | BH41: =IF(BI43-$A3/2<0,-10000000,BH43*BH42*100000+BH43) -> -10000000
A42: Classificats | B42: =SUM(C42:BH42) -> 11 | C42: =IF(D43>=$A3/2,1,0) -> 1 | F42: =IF(G43>=$A3/2,1,0) -> 0 | I42: =IF(J43>=$A3/2,1,0) -> 1 | L42: =IF(M43>=$A3/2,1,0) -> 1 | O42: =IF(P43>=$A3/2,1,0) -> 0 | R42: =IF(S43>=$A3/2,1,0) -> 1 | U42: =IF(V43>=$A3/2,1,0) -> 1 | X42: =IF(Y43>=$A3/2,1,0) -> 0 | AA42: =IF(AB43>=$A3/2,1,0) -> 0 | AD42: =IF(AE43>=$A3/2,1,0) -> 0 | AG42: =IF(AH43>=$A3/2,1,0) -> 1 | AJ42: =IF(AK43>=$A3/2,1,0) -> 0 | AM42: =IF(AN43>=$A3/2,1,0) -> 1 | AP42: =IF(AQ43>=$A3/2,1,0) -> 1 | AS42: =IF(AT43>=$A3/2,1,0) -> 0 | AV42: =IF(AW43>=$A3/2,1,0) -> 1 | AY42: =IF(AZ43>=$A3/2,1,0) -> 1 | BB42: =IF(BC43>=$A3/2,1,0) -> 0 | BE42: =IF(BF43>=$A3/2,1,0) -> 1 | BH42: =IF(BI43>=$A3/2,1,0) -> 0 | BK42: =MAX(BL45:BL1100) -> 388
C43: =IF(SUM(C48:C1100)<-1000,-100000000,SUM(C48:C1100)) -> 64 | D43: =COUNT(D48:D1100) -> 122 | F43: =IF(SUM(F48:F1100)<-1000,-100000000,SUM(F48:F1100)) -> -50 | G43: =COUNT(G48:G1100) -> 5 | I43: =IF(SUM(I48:I1100)<-1000,-100000000,SUM(I48:I1100)) -> -180 | J43: =COUNT(J48:J1100) -> 185 | L43: =IF(SUM(L48:L1100)<-1000,-100000000,SUM(L48:L1100)) -> 106 | M43: =COUNT(M48:M1100) -> 229 | O43: =IF(SUM(O48:O1100)<-1000,-100000000,SUM(O48:O1100)) -> 30 | P43: =COUNT(P48:P1100) -> 3 | R43: =IF(SUM(R48:R1100)<-1000,-100000000,SUM(R48:R1100)) -> 28 | S43: =COUNT(S48:S1100) -> 250 | U43: =IF(SUM(U48:U1100)<-1000,-100000000,SUM(U48:U1100)) -> 91 | V43: =COUNT(V48:V1100) -> 21 | X43: =IF(SUM(X48:X1100)<-1000,-100000000,SUM(X48:X1100)) -> -100000000 | Y43: =COUNT(Y48:Y1100) -> 0 | AA43: =IF(SUM(AA48:AA1100)<-1000,-100000000,SUM(AA48:AA1100)) -> -100000000 | AB43: =COUNT(AB48:AB1100) -> 0 | AD43: =IF(SUM(AD48:AD1100)<-1000,-100000000,SUM(AD48:AD1100)) -> -100000000 | AE43: =COUNT(AE48:AE1100) -> 0 | AG43: =IF(SUM(AG48:AG1100)<-1000,-100000000,SUM(AG48:AG1100)) -> -51 | AH43: =COUNT(AH48:AH1100) -> 13 | AJ43: =IF(SUM(AJ48:AJ1100)<-1000,-100000000,SUM(AJ48:AJ1100)) -> -100000000 | AK43: =COUNT(AK48:AK1100) -> 0 | AM43: =IF(SUM(AM48:AM1100)<-1000,-100000000,SUM(AM48:AM1100)) -> -22 | AN43: =COUNT(AN48:AN1100) -> 12 | AP43: =IF(SUM(AP48:AP1100)<-1000,-100000000,SUM(AP48:AP1100)) -> 125 | AQ43: =COUNT(AQ48:AQ1100) -> 97 | AS43: =IF(SUM(AS48:AS1100)<-1000,-100000000,SUM(AS48:AS1100)) -> 50 | AT43: =COUNT(AT48:AT1100) -> 5 | AV43: =IF(SUM(AV48:AV1100)<-1000,-100000000,SUM(AV48:AV1100)) -> -120 | AW43: =COUNT(AW48:AW1100) -> 164 | AY43: =IF(SUM(AY48:AY1100)<-1000,-100000000,SUM(AY48:AY1100)) -> -8 | AZ43: =COUNT(AZ48:AZ1100) -> 9 | BB43: =IF(SUM(BB48:BB1100)<-1000,-100000000,SUM(BB48:BB1100)) -> -100000000 | BC43: =COUNT(BC48:BC1100) -> 0 | BE43: =IF(SUM(BE48:BE1100)<-1000,-100000000,SUM(BE48:BE1100)) -> -63 | BF43: =COUNT(BF48:BF1100) -> 12 | BH43: =IF(SUM(BH48:BH1100)<-1000,-100000000,SUM(BH48:BH1100)) -> -100000000 | BI43: =COUNT(BI48:BI1100) -> 0 | BL43: A
C44: =+D44-E44 -> 199 | D44: =SUM(D48:D1100) -> 13639 | E44: =SUM(E48:E1100) -> 13440 | F44: =+G44-H44 -> -75 | G44: =SUM(G48:G1100) -> 530 | H44: =SUM(H48:H1100) -> 605 | I44: =+J44-K44 -> -122.5 | J44: =SUM(J48:J1100) -> 20564 | K44: =SUM(K48:K1100) -> 20686.5 | L44: =+M44-N44 -> 23 | M44: =SUM(M48:M1100) -> 25724 | N44: =SUM(N48:N1100) -> 25701 | O44: =+P44-Q44 -> 57 | P44: =SUM(P48:P1100) -> 363 | Q44: =SUM(Q48:Q1100) -> 306 | R44: =+S44-T44 -> 194.5 | S44: =SUM(S48:S1100) -> 27936 | T44: =SUM(T48:T1100) -> 27741.5 | U44: =+V44-W44 -> 167 | V44: =SUM(V48:V1100) -> 2406 | W44: =SUM(W48:W1100) -> 2239 | X44: =+Y44-Z44 -> 1 | Y44: =SUM(Y48:Y1100) -> 0 | Z44: =SUM(Z48:Z1100) -> -1 | AA44: =+AB44-AC44 -> 1 | AB44: =SUM(AB48:AB1100) -> 0 | AC44: =SUM(AC48:AC1100) -> -1 | AD44: =+AE44-AF44 -> 1 | AE44: =SUM(AE48:AE1100) -> 0 | AF44: =SUM(AF48:AF1100) -> -1 | AG44: =+AH44-AI44 -> -120 | AH44: =SUM(AH48:AH1100) -> 1411 | AI44: =SUM(AI48:AI1100) -> 1531 | AJ44: =+AK44-AL44 -> 1 | AK44: =SUM(AK48:AK1100) -> 0 | AL44: =SUM(AL48:AL1100) -> -1 | AM44: =+AN44-AO44 -> -96 | AN44: =SUM(AN48:AN1100) -> 1312 | AO44: =SUM(AO48:AO1100) -> 1408 | AP44: =+AQ44-AR44 -> 19 | AQ44: =SUM(AQ48:AQ1100) -> 10914 | AR44: =SUM(AR48:AR1100) -> 10895 | AS44: =+AT44-AU44 -> 45 | AT44: =SUM(AT48:AT1100) -> 605 | AU44: =SUM(AU48:AU1100) -> 560 | AV44: =+AW44-AX44 -> -168 | AW44: =SUM(AW48:AW1100) -> 18394 | AX44: =SUM(AX48:AX1100) -> 18562 | AY44: =+AZ44-BA44 -> 53 | AZ44: =SUM(AZ48:AZ1100) -> 1017 | BA44: =SUM(BA48:BA1100) -> 964 | BB44: =+BC44-BD44 -> 1 | BC44: =SUM(BC48:BC1100) -> 0 | BD44: =SUM(BD48:BD1100) -> -1 | BE44: =+BF44-BG44 -> -178 | BF44: =SUM(BF48:BF1100) -> 1247 | BG44: =SUM(BG48:BG1100) -> 1425 | BH44: =+BI44-BJ44 -> 1 | BI44: =SUM(BI48:BI1100) -> 0 | BJ44: =SUM(BJ48:BJ1100) -> -1 | BL44: B
I45: =COUNTIF(I48:I67,10) -> 5 | R45: =COUNTIF(R48:R67,10) -> 6 | U45: =COUNTIF(U48:U67,10) -> 0 | X45: =COUNTIF(X48:X67,10) -> 0 | AM45: =COUNTIF(AM48:AM67,10) -> 0 | AS45: =COUNTIF(AS48:AS67,10) -> 0 | AV45: =COUNTIF(AV48:AV67,10) -> 2 | AY45: =COUNTIF(AY48:AY67,10) -> 0 | BK45: =MAX(BL48:BL1100) -> 388
C46: Jordi | F46: Sergi | I46: Núria | L46: Gemma | O46: Òscar | R46: Nogué | U46: Carles | X46: Mariajo | AA46: Rosa M. | AD46: Joan | AG46: Ana B. | AJ46: Anna P. | AM46: Manolo | AP46: Sebas | AS46: Goretti | AV46: Grau | AY46: CyberX | BB46: Tito | BE46: Nin | BH46: Lluisa | BK46: =COUNT(BK48:BK1100) -> 334 | BL46: A | BM46: B | BN46: C | BO46: D | BP46: E
B47: Comentaris | C47: Premi | D47: Punts | F47: Premi | G47: Punts | I47: Premi | J47: Punts | L47: Premi | M47: Punts | O47: Premi | P47: Punts | R47: Premi | S47: Punts | U47: Premi | V47: Punts | X47: Premi | Y47: Punts | AA47: Premi | AB47: Punts | AD47: Premi | AE47: Punts | AG47: Premi | AH47: Punts | AJ47: Premi | AK47: Punts | AM47: Premi | AN47: Punts | AP47: Premi | AQ47: Punts | AS47: Premi | AT47: Punts | AV47: Premi | AW47: Punts | AY47: Premi | AZ47: Punts | BB47: Premi | BC47: Punts | BE47: Premi | BF47: Punts | BH47: Premi | BI47: Punts | BK47: Data | BL47: Timba
A48: 1 | I48: 10 | J48: 121 | K48: 103 | L48: -10 | M48: 103 | N48: 121 | X48: -10000 | Z48: -1 | AA48: -10000 | AC48: -1 | AD48: -10000 | AF48: -1 | AJ48: -10000 | AL48: -1 | BB48: -10000 | BD48: -1 | BH48: -10000 | BJ48: -1 | BK48: 2020-10-01 | BL48: 1 | BM48: =+BH48+AJ48+AG48+AD48+AA48+X48+U48+R48+O48+L48+I48+F48+C48+AM48+AP48+AS48+AV48+AY48+BB48+BE48 -> -60000 | BN48: =+BI48+AK48+AH48+AE48+AB48+Y48+V48+S48+P48+M48+J48+G48+D48+AN48+AQ48+AT48+AW48+AZ48+BC48+BF48 -> 224 | BO48: =+BJ48+AL48+AI48+AF48+AC48+Z48+W48+T48+Q48+N48+K48+H48+E48+AO48+AR48+AU48+AX48+BA48+BD48+BG48 -> 218 | BP48: =+BN48-BO48 -> 6 | BQ48: =COUNT(C48:BJ48)/3 -> 6 | BR48: =+BM48/BQ48 -> -10000
A49: =+A48+1 -> 2 | L49: -11 | M49: 90 | N49: 121 | R49: 11 | S49: 121 | T49: 90 | BK49: 2020-10-01 | BL49: 1 | BM49: 0 | BN49: =+BI49+AK49+AH49+AE49+AB49+Y49+V49+S49+P49+M49+J49+G49+D49+AN49+AQ49+AT49+AW49+AZ49+BC49+BF49 -> 211 | BO49: =+BJ49+AL49+AI49+AF49+AC49+Z49+W49+T49+Q49+N49+K49+H49+E49+AO49+AR49+AU49+AX49+BA49+BD49+BG49 -> 211 | BP49: 0 | BQ49: 2 | BR49: 0
A50: =+A49+1 -> 3 | I50: -10 | J50: 112 | K50: 121 | R50: 10 | S50: 121 | T50: 112 | BK50: 2020-10-01 | BL50: 1 | BM50: 0 | BN50: 233 | BO50: 233 | BP50: 0 | BQ50: 2 | BR50: 0
A51: 4 | I51: -10 | J51: 111 | K51: 121 | L51: 10 | M51: 121 | N51: 111 | BK51: 2020-10-01 | BL51: 1 | BM51: 0 | BN51: 232 | BO51: 232 | BP51: 0 | BQ51: 2 | BR51: 0
A52: 5 | I52: -11 | J52: 79 | K52: 121 | L52: 11 | M52: 121 | N52: 79 | R52: 11 | S52: 121 | T52: 79 | AV52: -11 | AW52: 79 | AX52: 121 | BK52: 2020-10-02 | BL52: 2 | BM52: 0 | BN52: 400 | BO52: 400 | BP52: 0 | BQ52: 4 | BR52: 0
A53: 6 | I53: -10 | J53: 108 | K53: 121 | L53: 10 | M53: 121 | N53: 108 | R53: -10 | S53: 108 | T53: 121 | AV53: 10 | AW53: 121 | AX53: 108 | BK53: 2020-10-02 | BL53: 2 | BM53: 0 | BN53: 458 | BO53: 458 | BP53: 0 | BQ53: 4 | BR53: 0
A54: 7 | I54: 11 | J54: 121 | K54: 69 | L54: -11 | M54: 69 | N54: 121 | R54: -11 | S54: 69 | T54: 121 | AV54: 11 | AW54: 121 | AX54: 69 | BK54: 2020-10-02 | BL54: 2 | BM54: 0 | BN54: 380 | BO54: 380 | BP54: 0 | BQ54: 4 | BR54: 0
A55: 8 | I55: 10 | J55: 121 | K55: 101 | L55: -10 | M55: 101 | N55: 121 | R55: 10 | S55: 121 | T55: 101 | AV55: -10 | AW55: 101 | AX55: 121 | BK55: 2020-10-02 | BL55: 2 | BM55: 0 | BN55: 444 | BO55: 444 | BP55: 0 | BQ55: 4 | BR55: 0
A56: 9 | I56: 10 | J56: 121 | K56: 101 | L56: 10 | M56: 121 | N56: 101 | R56: -10 | S56: 101 | T56: 121 | AV56: -10 | AW56: 101 | AX56: 121 | BK56: 2020-10-02 | BL56: 2 | BM56: 0 | BN56: 444 | BO56: 444 | BP56: 0 | BQ56: 4 | BR56: 0
A57: 10 | I57: -10 | J57: 109 | K57: 121 | L57: -10 | M57: 109 | N57: 121 | R57: 10 | S57: 121 | T57: 109 | AV57: 10 | AW57: 121 | AX57: 109 | BK57: 2020-10-03 | BL57: 3 | BM57: 0 | BN57: 460 | BO57: 460 | BP57: 0 | BQ57: 4 | BR57: 0
A58: 11 | C58: 11 | D58: 121 | E58: 89 | I58: 11 | J58: 121 | K58: 89 | R58: -11 | S58: 89 | T58: 121 | AV58: -11 | AW58: 89 | AX58: 121 | BK58: 2020-10-03 | BL58: 3 | BM58: 0 | BN58: 420 | BO58: 420 | BP58: 0 | BQ58: 4 | BR58: 0
A59: 12 | C59: 11 | D59: 121 | E59: 83 | I59: -11 | J59: 83 | K59: 121 | L59: 11 | M59: 121 | N59: 83 | R59: -11 | S59: 83 | T59: 121 | BK59: 2020-10-03 | BL59: 3 | BM59: 0 | BN59: 408 | BO59: 408 | BP59: 0 | BQ59: 4 | BR59: 0
A60: 13 | C60: -10 | D60: 101 | E60: 121 | L60: 10 | M60: 121 | N60: 101 | R60: -10 | S60: 101 | T60: 121 | AP60: 10 | AQ60: 121 | AR60: 101 | BK60: 2020-10-03 | BL60: 3 | BM60: 0 | BN60: 444 | BO60: 444 | BP60: 0 | BQ60: 4 | BR60: 0
A61: 14 | C61: -10 | D61: 106 | E61: 121 | L61: -10 | M61: 106 | N61: 121 | R61: 10 | S61: 121 | T61: 106 | AP61: 10 | AQ61: 121 | AR61: 106 | BK61: 2020-10-03 | BL61: 3 | BM61: 0 | BN61: 454 | BO61: 454 | BP61: 0 | BQ61: 4 | BR61: 0
A62: 15 | C62: -10 | D62: 107 | E62: 121 | L62: -10 | M62: 107 | N62: 121 | R62: 10 | S62: 121 | T62: 107 | AP62: 10 | AQ62: 121 | AR62: 107 | BK62: 2020-10-03 | BL62: 3 | BM62: 0 | BN62: 456 | BO62: 456 | BP62: 0 | BQ62: 4 | BR62: 0
A63: 16 | C63: -11 | D63: 79 | E63: 121 | L63: -11 | M63: 79 | N63: 121 | AP63: 11 | AQ63: 121 | AR63: 79 | AV63: 11 | AW63: 121 | AX63: 79 | BK63: 2020-10-03 | BL63: 3 | BM63: 0 | BN63: 400 | BO63: 400 | BP63: 0 | BQ63: 4 | BR63: 0
A64: 17 | C64: -10 | D64: 100 | E64: 121 | I64: -10 | J64: 117 | K64: 121 | L64: 10 | M64: 121 | N64: 117 | R64: 10 | S64: 121 | T64: 117 | AP64: 10 | AQ64: 121 | AR64: 100 | AV64: -10 | AW64: 117 | AX64: 121 | BK64: 2020-10-03 | BL64: 3 | BM64: 0 | BN64: 697 | BO64: 697 | BP64: 0 | BQ64: 6 | BR64: 0
A65: 18 | C65: -10 | D65: 105 | E65: 121 | I65: 10 | J65: 121 | K65: 105 | AP65: 10 | AQ65: 121 | AR65: 105 | AV65: -10 | AW65: 105 | AX65: 121 | BK65: 2020-10-03 | BL65: 3 | BM65: 0 | BN65: 452 | BO65: 452 | BP65: 0 | BQ65: 4 | BR65: 0
A66: 19 | C66: 10 | D66: 121 | E66: 97 | I66: -10 | J66: 97 | K66: 121 | L66: 10 | M66: 121 | N66: 97 | AV66: -10 | AW66: 97 | AX66: 121 | BK66: 2020-10-03 | BL66: 3 | BM66: 0 | BN66: 436 | BO66: 436 | BP66: 0 | BQ66: 4 | BR66: 0
A67: 20 | I67: 10 | J67: 121 | K67: 117 | L67: -10 | M67: 117 | N67: 121 | AP67: 10 | AQ67: 121 | AR67: 117 | AV67: -10 | AW67: 117 | AX67: 121 | BK67: 2020-10-04 | BL67: 4 | BM67: 0 | BN67: 476 | BO67: 476 | BP67: 0 | BQ67: 4 | BR67: 0
A68: 21 | L68: 10 | M68: 121 | N68: 115 | R68: -10 | S68: 115 | T68: 121 | BK68: 2020-10-04 | BL68: 4 | BM68: 0 | BN68: 236 | BO68: 236 | BP68: 0 | BQ68: 2 | BR68: 0
A69: 22 | C69: -10 | D69: 112 | E69: 121 | I69: 10 | J69: 121 | K69: 112 | L69: 10 | M69: 121 | N69: 112 | R69: -10 | S69: 112 | T69: 121 | BK69: 2020-10-04 | BL69: 4 | BM69: 0 | BN69: 466 | BO69: 466 | BP69: 0 | BQ69: 4 | BR69: 0
A70: 23 | C70: -10 | D70: 94 | E70: 121 | I70: 10 | J70: 121 | K70: 94 | L70: 10 | M70: 121 | N70: 94 | R70: -10 | S70: 94 | T70: 121 | BK70: 2020-10-04 | BL70: 4 | BM70: 0 | BN70: 430 | BO70: 430 | BP70: 0 | BQ70: 4 | BR70: 0
A71: 24 | I71: 10 | J71: 121 | K71: 115 | L71: -10 | M71: 115 | N71: 121 | AP71: 10 | AQ71: 121 | AR71: 115 | AV71: -10 | AW71: 115 | AX71: 121 | BK71: 2020-10-04 | BL71: 4 | BM71: 0 | BN71: 472 | BO71: 472 | BP71: 0 | BQ71: 4 | BR71: 0
A72: 25 | L72: -10 | M72: 109 | N72: 121 | R72: 10 | S72: 121 | T72: 109 | AP72: -10 | AQ72: 109 | AR72: 121 | AV72: 10 | AW72: 121 | AX72: 109 | BK72: 2020-10-04 | BL72: 4 | BM72: 0 | BN72: 460 | BO72: 460 | BP72: 0 | BQ72: 4 | BR72: 0
A73: 26 | I73: -10 | J73: 107 | K73: 121 | R73: 10 | S73: 121 | T73: 107 | AP73: -10 | AQ73: 107 | AR73: 121 | AV73: 10 | AW73: 121 | AX73: 107 | BK73: 2020-10-04 | BL73: 4 | BM73: 0 | BN73: 456 | BO73: 456 | BP73: 0 | BQ73: 4 | BR73: 0
A74: 27 | I74: -10 | J74: 93 | K74: 121 | L74: 10 | M74: 121 | N74: 93 | R74: -10 | S74: 93 | T74: 121 | AP74: 10 | AQ74: 121 | AR74: 93 | BK74: 2020-10-04 | BL74: 4 | BM74: 0 | BN74: 428 | BO74: 428 | BP74: 0 | BQ74: 4 | BR74: 0
A75: 28 | I75: 10 | J75: 121 | K75: 98 | L75: -10 | M75: 98 | N75: 121 | R75: 10 | S75: 121 | T75: 98 | AV75: -10 | AW75: 98 | AX75: 121 | BK75: 2020-10-04 | BL75: 4 | BM75: 0 | BN75: 438 | BO75: 438 | BP75: 0 | BQ75: 4 | BR75: 0
A76: 29 | C76: 10 | D76: 121 | E76: 99 | I76: -10 | J76: 99 | K76: 121 | BK76: 2020-10-05 | BL76: 6 | BM76: 0 | BN76: 220 | BO76: 220 | BP76: 0 | BQ76: 2 | BR76: 0
A77: 30 | C77: 10 | D77: 121 | E77: 114 | I77: -10 | J77: 114 | K77: 121 | L77: -10 | M77: 114 | N77: 121 | AV77: 10 | AW77: 121 | AX77: 114 | BK77: 2020-10-05 | BL77: 6 | BM77: 0 | BN77: 470 | BO77: 470 | BP77: 0 | BQ77: 4 | BR77: 0
A78: 31 | I78: -10 | J78: 91 | K78: 121 | L78: 10 | M78: 121 | N78: 91 | R78: -10 | S78: 91 | T78: 121 | AV78: 10 | AW78: 121 | AX78: 91 | BK78: 2020-10-05 | BL78: 6 | BM78: 0 | BN78: 424 | BO78: 424 | BP78: 0 | BQ78: 4 | BR78: 0
A79: 32 | C79: -10 | D79: 118 | E79: 121 | L79: 10 | M79: 121 | N79: 118 | R79: 10 | S79: 121 | T79: 118 | AV79: -10 | AW79: 118 | AX79: 121 | BK79: 2020-10-05 | BL79: 6 | BM79: 0 | BN79: 478 | BO79: 478 | BP79: 0 | BQ79: 4 | BR79: 0
A80: 33 | C80: 10 | D80: 121 | E80: 111 | I80: 10 | J80: 121 | K80: 111 | L80: -10 | M80: 111 | N80: 121 | AV80: -10 | AW80: 111 | AX80: 121 | BK80: 2020-10-05 | BL80: 6 | BM80: 0 | BN80: 464 | BO80: 464 | BP80: =+BN80-BO80 -> 0 | BQ80: =COUNT(C80:BJ80)/3 -> 4 | BR80: =+BM80/BQ80 -> 0
A81: 34 | C81: -10 | D81: 102 | E81: 121 | L81: 10 | M81: 121 | N81: 102 | R81: -10 | S81: 102 | T81: 121 | AV81: 10 | AW81: 121 | AX81: 102 | BK81: 2020-10-08 | BL81: 9 | BM81: 0 | BN81: 446 | BO81: 446 | BP81: 0 | BQ81: 4 | BR81: 0
A82: 35 | I82: 11 | J82: 121 | K82: 83 | L82: -11 | M82: 83 | N82: 121 | R82: 11 | S82: 121 | T82: 83 | AV82: -11 | AW82: 83 | AX82: 121 | BK82: 2020-10-08 | BL82: 9 | BM82: 0 | BN82: 408 | BO82: 408 | BP82: 0 | BQ82: 4 | BR82: 0
A83: 36 | C83: 10 | D83: 121 | E83: 118 | I83: -10 | J83: 118 | K83: 121 | R83: 10 | S83: 121 | T83: 118 | AV83: -10 | AW83: 118 | AX83: 121 | BK83: 2020-10-08 | BL83: 9 | BM83: 0 | BN83: 478 | BO83: 478 | BP83: 0 | BQ83: 4 | BR83: 0
A84: 37 | C84: -10 | D84: 117 | E84: 121 | I84: 10 | J84: 121 | K84: 117 | L84: 10 | M84: 121 | N84: 117 | R84: -10 | S84: 117 | T84: 121 | BK84: 2020-10-08 | BL84: 9 | BM84: 0 | BN84: 476 | BO84: 476 | BP84: 0 | BQ84: 4 | BR84: 0
A85: 38 | I85: 10 | J85: 121 | K85: 105 | L85: -10 | M85: 105 | N85: 121 | BK85: 2020-10-08 | BL85: 9 | BM85: 0 | BN85: 226 | BO85: 226 | BP85: 0 | BQ85: 2 | BR85: 0
A86: 39 | C86: -10 | D86: 112 | E86: 121 | I86: 10 | J86: 121 | K86: 112 | L86: 10 | M86: 121 | N86: 112 | R86: -10 | S86: 112 | T86: 121 | BK86: 2020-10-09 | BL86: 11 | BM86: 0 | BN86: 466 | BO86: 466 | BP86: 0 | BQ86: 4 | BR86: 0
A87: 40 | C87: -11 | D87: 82 | E87: 121 | I87: -11 | J87: 82 | K87: 121 | L87: 11 | M87: 121 | N87: 82 | R87: 11 | S87: 121 | T87: 82 | BK87: 2020-10-09 | BL87: 11 | BM87: 0 | BN87: 406 | BO87: 406 | BP87: 0 | BQ87: 4 | BR87: 0
A88: 41 | C88: 10 | D88: 121 | E88: 107 | I88: -10 | J88: 107 | K88: 121 | L88: -10 | M88: 107 | N88: 121 | R88: 10 | S88: 121 | T88: 107 | BK88: 2020-10-09 | BL88: 11 | BM88: 0 | BN88: 456 | BO88: 456 | BP88: 0 | BQ88: 4 | BR88: 0
A89: 42 | C89: -10 | D89: 109 | E89: 121 | I89: 10 | J89: 121 | K89: 109 | L89: -10 | M89: 109 | N89: 121 | R89: 10 | S89: 121 | T89: 109 | BK89: 2020-10-09 | BL89: 11 | BM89: 0 | BN89: 460 | BO89: 460 | BP89: =+BN89-BO89 -> 0 | BQ89: =COUNT(C89:BJ89)/3 -> 4 | BR89: =+BM89/BQ89 -> 0
A90: 43 | C90: 10 | D90: 121 | E90: 100 | I90: 10 | J90: 121 | K90: 100 | L90: -10 | M90: 100 | N90: 121 | R90: -10 | S90: 100 | T90: 121 | BK90: 2020-10-09 | BL90: 11 | BM90: 0 | BN90: 442 | BO90: 442 | BP90: 0 | BQ90: 4 | BR90: 0
A91: 44 | C91: -10 | D91: 92 | E91: 121 | I91: 10 | J91: 121 | K91: 92 | R91: 10 | S91: 121 | T91: 92 | AV91: -10 | AW91: 92 | AX91: 121 | BK91: 2020-10-12 | BL91: 16 | BM91: 0 | BN91: 426 | BO91: 426 | BP91: 0 | BQ91: 4 | BR91: 0
A92: 45 | C92: 10 | D92: 121 | E92: 96 | I92: -10 | J92: 107 | K92: 121 | L92: -10 | M92: 96 | N92: 121 | R92: 10 | S92: 121 | T92: 107 | AP92: -10 | AQ92: 107 | AR92: 121 | AV92: 10 | AW92: 121 | AX92: 107 | BK92: 2020-10-12 | BL92: 16 | BM92: 0 | BN92: 673 | BO92: 673 | BP92: 0 | BQ92: 6 | BR92: 0
A93: =+A92+1 -> 46 | C93: -11 | D93: 76 | E93: 121 | I93: -10 | J93: 113 | K93: 121 | L93: 11 | M93: 121 | N93: 76 | R93: 11 | S93: 121 | T93: 76 | AP93: -11 | AQ93: 76 | AR93: 121 | AV93: 10 | AW93: 121 | AX93: 113 | BK93: 2020-10-12 | BL93: 16 | BM93: 0 | BN93: 628 | BO93: 628 | BP93: 0 | BQ93: 6 | BR93: 0
A94: 47 | F94: -10 | G94: 111 | H94: 121 | I94: 10 | J94: 121 | K94: 111 | L94: 11 | M94: 121 | N94: 73 | R94: 10 | S94: 121 | T94: 111 | AP94: -11 | AQ94: 73 | AR94: 121 | AV94: -10 | AW94: 111 | AX94: 121 | BK94: 2020-10-12 | BL94: 16 | BM94: 0 | BN94: 658 | BO94: 658 | BP94: 0 | BQ94: 6 | BR94: 0
A95: 48 | C95: -10 | D95: 118 | E95: 121 | F95: -10 | G95: 96 | H95: 121 | I95: -10 | J95: 118 | K95: 121 | L95: 10 | M95: 121 | N95: 118 | R95: 10 | S95: 121 | T95: 96 | AP95: 10 | AQ95: 121 | AR95: 118 | BK95: 2020-10-12 | BL95: 16 | BM95: 0 | BN95: 695 | BO95: 695 | BP95: 0 | BQ95: 6 | BR95: 0
A96: 49 | C96: 10 | D96: 121 | E96: 115 | F96: -10 | G96: 112 | H96: 121 | I96: -10 | J96: 115 | K96: 121 | L96: 10 | M96: 121 | N96: 115 | R96: 10 | S96: 121 | T96: 112 | AP96: -10 | AQ96: 115 | AR96: 121 | BK96: 2020-10-12 | BL96: 16 | BM96: 0 | BN96: 705 | BO96: 705 | BP96: 0 | BQ96: 6 | BR96: 0
A97: 50 | F97: -10 | G97: 101 | H97: 121 | I97: -10 | J97: 101 | K97: 121 | L97: 10 | M97: 121 | N97: 101 | AP97: 10 | AQ97: 121 | AR97: 101 | BK97: 2020-10-12 | BL97: 16 | BM97: 0 | BN97: 444 | BO97: 444 | BP97: 0 | BQ97: 4 | BR97: 0
A98: 51 | C98: -10 | D98: 111 | E98: 121 | L98: 10 | M98: 121 | N98: 111 | BK98: 2020-10-13 | BL98: 18 | BM98: 0 | BN98: 232 | BO98: 232 | BP98: 0 | BQ98: 2 | BR98: 0
A99: 52 | L99: 10 | M99: 121 | N99: 98 | AV99: -10 | AW99: 98 | AX99: 121 | BK99: 2020-10-13 | BL99: 18 | BM99: 0 | BN99: 219 | BO99: 219 | BP99: 0 | BQ99: 2 | BR99: 0
A100: 53 | C100: -10 | D100: 98 | E100: 121 | L100: 10 | M100: 121 | N100: 98 | R100: -10 | S100: 98 | T100: 121 | AV100: 10 | AW100: 121 | AX100: 98 | BK100: 2020-10-13 | BL100: 18 | BM100: 0 | BN100: 438 | BO100: 438 | BP100: 0 | BQ100: 4 | BR100: 0
A101: 54 | C101: 10 | D101: 121 | E101: 117 | L101: -10 | M101: 117 | N101: 121 | R101: -10 | S101: 117 | T101: 121 | AV101: 10 | AW101: 121 | AX101: 117 | BK101: 2020-10-13 | BL101: 18 | BM101: 0 | BN101: 476 | BO101: 476 | BP101: 0 | BQ101: 4 | BR101: 0
A102: 55 | C102: 10 | D102: 121 | E102: 101 | I102: 10 | J102: 121 | K102: 101 | L102: -10 | M102: 101 | N102: 121 | R102: -10 | S102: 101 | T102: 121 | BK102: 2020-10-14 | BL102: 19 | BM102: =+BH102+AJ102+AG102+AD102+AA102+X102+U102+R102+O102+L102+I102+F102+C102+AM102+AP102+AS102+AV102+AY102+BB102+BE102 -> 0 | BN102: 444 | BO102: 444 | BP102: 0 | BQ102: 4 | BR102: 0
A103: 56 | C103: 11 | D103: 121 | E103: 88 | I103: 11 | J103: 121 | K103: 88 | L103: -11 | M103: 88 | N103: 121 | R103: -11 | S103: 88 | T103: 121 | BK103: 2020-10-14 | BL103: 19 | BM103: 0 | BN103: 418 | BO103: 418 | BP103: 0 | BQ103: 4 | BR103: 0
A104: 57 | C104: 10 | D104: 121 | E104: 117 | I104: -10 | J104: 117 | K104: 121 | L104: 10 | M104: 121 | N104: 117 | R104: -10 | S104: 117 | T104: 121 | BK104: 2020-10-14 | BL104: 19 | BM104: 0 | BN104: 476 | BO104: 476 | BP104: 0 | BQ104: 4 | BR104: 0
A105: 58 | I105: 10 | J105: 121 | K105: 105 | L105: 10 | M105: 121 | N105: 105 | R105: -10 | S105: 105 | T105: 121 | AV105: -10 | AW105: 105 | AX105: 121 | BK105: 2020-10-14 | BL105: 19 | BM105: =+BH105+AJ105+AG105+AD105+AA105+X105+U105+R105+O105+L105+I105+F105+C105+AM105+AP105+AS105+AV105+AY105+BB105+BE105 -> 0 | BN105: 452 | BO105: 452 | BP105: 0 | BQ105: 4 | BR105: 0
A106: 59 | I106: -10 | J106: 119 | K106: 121 | L106: 10 | M106: 121 | N106: 119 | R106: -10 | S106: 119 | T106: 121 | AV106: 10 | AW106: 121 | AX106: 119 | BK106: 2020-10-14 | BL106: 19 | BM106: 0 | BN106: 480 | BO106: 480 | BP106: 0 | BQ106: 4 | BR106: 0
A107: 60 | I107: -10 | J107: 119 | K107: 121 | R107: 10 | S107: 121 | T107: 119 | BK107: 2020-10-15 | BL107: 20 | BM107: 0 | BN107: 240 | BO107: 240 | BP107: 0 | BQ107: 2 | BR107: 0
A108: 61 | I108: 10 | J108: 121 | K108: 99 | L108: -10 | M108: 99 | N108: 121 | BK108: 2020-10-15 | BL108: 20 | BM108: 0 | BN108: 220 | BO108: 220 | BP108: 0 | BQ108: 2 | BR108: 0
A109: 62 | L109: -10 | M109: 115 | N109: 121 | R109: 10 | S109: 121 | T109: 115 | BK109: 2020-10-15 | BL109: 20 | BM109: 0 | BN109: 236 | BO109: 236 | BP109: 0 | BQ109: 2 | BR109: 0
A110: 63 | I110: -11 | J110: 90 | K110: 121 | R110: 11 | S110: 121 | T110: 90 | BK110: 2020-10-15 | BL110: 20 | BM110: 0 | BN110: 211 | BO110: 211 | BP110: 0 | BQ110: 2 | BR110: 0
A111: 64 | C111: 11 | D111: 121 | E111: 89 | L111: -11 | M111: 89 | N111: 121 | BK111: 2020-10-16 | BL111: 21 | BM111: 0 | BN111: 210 | BO111: 210 | BP111: 0 | BQ111: 2 | BR111: 0
A112: 65 | C112: -10 | D112: 94 | E112: 121 | I112: 10 | J112: 121 | K112: 94 | L112: 10 | M112: 121 | N112: 94 | R112: -10 | S112: 94 | T112: 121 | BK112: 2020-10-16 | BL112: 21 | BM112: =+BH112+AJ112+AG112+AD112+AA112+X112+U112+R112+O112+L112+I112+F112+C112+AM112+AP112+AS112+AV112+AY112+BB112+BE112 -> 0 | BN112: 430 | BO112: 430 | BP112: 0 | BQ112: 4 | BR112: 0
A113: 66 | C113: -10 | D113: 106 | E113: 121 | I113: -10 | J113: 106 | K113: 121 | L113: 10 | M113: 121 | N113: 106 | R113: 10 | S113: 121 | T113: 106 | BK113: 2020-10-16 | BL113: 21 | BM113: 0 | BN113: =+BI113+AK113+AH113+AE113+AB113+Y113+V113+S113+P113+M113+J113+G113+D113+AN113+AQ113+AT113+AW113+AZ113+BC113+BF113 -> 454 | BO113: =+BJ113+AL113+AI113+AF113+AC113+Z113+W113+T113+Q113+N113+K113+H113+E113+AO113+AR113+AU113+AX113+BA113+BD113+BG113 -> 454 | BP113: 0 | BQ113: 4 | BR113: 0
A114: =+A113+1 -> 67 | C114: 10 | D114: 121 | E114: 118 | I114: -10 | J114: 118 | K114: 121 | L114: -10 | M114: 118 | N114: 121 | R114: 10 | S114: 121 | T114: 118 | BK114: 2020-10-16 | BL114: 21 | BM114: 0 | BN114: 478 | BO114: 478 | BP114: =+BN114-BO114 -> 0 | BQ114: =COUNT(C114:BJ114)/3 -> 4 | BR114: =+BM114/BQ114 -> 0
A115: 68 | C115: -10 | D115: 117 | E115: 121 | I115: 10 | J115: 121 | K115: 117 | L115: -10 | M115: 117 | N115: 121 | R115: 10 | S115: 121 | T115: 117 | BK115: 2020-10-16 | BL115: 21 | BM115: 0 | BN115: 476 | BO115: 476 | BP115: 0 | BQ115: 4 | BR115: 0
A116: 69 | L116: 10 | M116: 121 | N116: 114 | R116: -10 | S116: 114 | T116: 121 | BK116: 2020-10-17 | BL116: 24 | BM116: 0 | BN116: 235 | BO116: 235 | BP116: 0 | BQ116: 2 | BR116: 0
A117: 70 | C117: 10 | D117: 121 | E117: 118 | I117: 10 | J117: 121 | K117: 118 | L117: -10 | M117: 118 | N117: 121 | AP117: -10 | AQ117: 118 | AR117: 121 | BK117: 2020-10-17 | BL117: 24 | BM117: 0 | BN117: 478 | BO117: 478 | BP117: 0 | BQ117: 4 | BR117: 0
A118: 71 | C118: -10 | D118: 105 | E118: 121 | I118: -10 | J118: 105 | K118: 121 | R118: 10 | S118: 121 | T118: 105 | AP118: 10 | AQ118: 121 | AR118: 105 | BK118: 2020-10-17 | BL118: 24 | BM118: 0 | BN118: 452 | BO118: 452 | BP118: 0 | BQ118: 4 | BR118: 0
A119: 72 | I119: -10 | J119: 99 | K119: 121 | L119: 10 | M119: 121 | N119: 99 | R119: -10 | S119: 99 | T119: 121 | AP119: 10 | AQ119: 121 | AR119: 99 | BK119: 2020-10-17 | BL119: 24 | BM119: 0 | BN119: 440 | BO119: 440 | BP119: 0 | BQ119: 4 | BR119: 0
A120: 73 | C120: 11 | D120: 121 | E120: 87 | I120: -11 | J120: 87 | K120: 121 | L120: -11 | M120: 87 | N120: 121 | R120: 11 | S120: 121 | T120: 87 | BK120: 2020-10-17 | BL120: 24 | BM120: 0 | BN120: 416 | BO120: 416 | BP120: 0 | BQ120: 4 | BR120: 0
A121: 74 | C121: 10 | D121: 121 | E121: 115 | L121: 10 | M121: 121 | N121: 115 | R121: -10 | S121: 115 | T121: 121 | AP121: -10 | AQ121: 115 | AR121: 121 | BK121: 2020-10-17 | BL121: 24 | BM121: 0 | BN121: 472 | BO121: 472 | BP121: 0 | BQ121: 4 | BR121: 0
A122: 75 | I122: 10 | J122: 121 | K122: 111 | L122: -10 | M122: 111 | N122: 121 | R122: -10 | S122: 111 | T122: 121 | AP122: 10 | AQ122: 121 | AR122: 111 | BK122: 2020-10-17 | BL122: 24 | BM122: 0 | BN122: 464 | BO122: 464 | BP122: 0 | BQ122: 4 | BR122: 0
A123: 76 | C123: -10 | D123: 108 | E123: 121 | I123: -10 | J123: 108 | K123: 121 | R123: 10 | S123: 121 | T123: 108 | AP123: 10 | AQ123: 121 | AR123: 108 | BK123: 2020-10-17 | BL123: 24 | BM123: 0 | BN123: 458 | BO123: 458 | BP123: 0 | BQ123: 4 | BR123: 0
A124: 77 | C124: -11 | D124: 86 | E124: 121 | I124: 11 | J124: 121 | K124: 86 | L124: -11 | M124: 86 | N124: 121 | R124: 11 | S124: 121 | T124: 86 | BK124: 2020-10-17 | BL124: 24 | BM124: 0 | BN124: 414 | BO124: 414 | BP124: 0 | BQ124: 4 | BR124: 0
A125: 78 | C125: 10 | D125: 121 | E125: 101 | I125: -10 | J125: 101 | K125: 121 | L125: -10 | M125: 101 | N125: 121 | AP125: 10 | AQ125: 121 | AR125: 101 | BK125: 2020-10-17 | BL125: 24 | BM125: 0 | BN125: 444 | BO125: 444 | BP125: 0 | BQ125: 4 | BR125: 0
A126: 79 | I126: 10 | J126: 121 | K126: 120 | L126: -10 | M126: 120 | N126: 121 | R126: 10 | S126: 121 | T126: 120 | AP126: -10 | AQ126: 120 | AR126: 121 | BK126: 2020-10-17 | BL126: 24 | BM126: 0 | BN126: 482 | BO126: 482 | BP126: 0 | BQ126: 4 | BR126: 0
A127: 80 | I127: 10 | J127: 121 | K127: 97 | R127: -10 | S127: 97 | T127: 121 | BK127: 2020-10-19 | BL127: 28 | BM127: 0 | BN127: 218 | BO127: 218 | BP127: =+BN127-BO127 -> 0 | BQ127: =COUNT(C127:BJ127)/3 -> 2 | BR127: =+BM127/BQ127 -> 0
A128: 81 | C128: -10 | D128: 117 | E128: 121 | I128: 10 | J128: 121 | K128: 117 | R128: -10 | S128: 117 | T128: 121 | AV128: 10 | AW128: 121 | AX128: 117 | BK128: 2020-10-19 | BL128: 28 | BM128: 0 | BN128: 476 | BO128: 476 | BP128: 0 | BQ128: 4 | BR128: 0
A129: 82 | C129: 11 | D129: 121 | E129: 90 | I129: -11 | J129: 90 | K129: 121 | R129: -11 | S129: 90 | T129: 121 | AV129: 11 | AW129: 121 | AX129: 90 | BK129: 2020-10-19 | BL129: 28 | BM129: 0 | BN129: 422 | BO129: 422 | BP129: 0 | BQ129: 4 | BR129: 0
A130: 83 | C130: 10 | D130: 121 | E130: 107 | I130: 10 | J130: 121 | K130: 107 | R130: -10 | S130: 107 | T130: 121 | AV130: -10 | AW130: 107 | AX130: 121 | BK130: 2020-10-19 | BL130: 28 | BM130: 0 | BN130: 456 | BO130: 456 | BP130: 0 | BQ130: 4 | BR130: 0
A131: 84 | I131: -10 | J131: 107 | K131: 121 | L131: 10 | M131: 121 | N131: 107 | R131: -10 | S131: 107 | T131: 121 | AP131: 10 | AQ131: 121 | AR131: 107 | BK131: 2020-10-20 | BL131: 29 | BM131: 0 | BN131: 456 | BO131: 456 | BP131: 0 | BQ131: 4 | BR131: 0
A132: 85 | L132: 10 | M132: 121 | N132: 95 | R132: 10 | S132: 121 | T132: 95 | AP132: -10 | AQ132: 95 | AR132: 121 | AV132: -10 | AW132: 95 | AX132: 121 | BK132: 2020-10-20 | BL132: 29 | BM132: 0 | BN132: 432 | BO132: 432 | BP132: 0 | BQ132: 4 | BR132: 0
A133: 86 | I133: -10 | J133: 116 | K133: 121 | L133: -10 | M133: 116 | N133: 121 | AP133: 10 | AQ133: 121 | AR133: 116 | AV133: 10 | AW133: 121 | AX133: 116 | BK133: 2020-10-20 | BL133: 29 | BM133: 0 | BN133: 474 | BO133: 474 | BP133: 0 | BQ133: 4 | BR133: 0
A134: 87 | I134: -10 | J134: 105 | K134: 121 | R134: 10 | S134: 121 | T134: 105 | AP134: -10 | AQ134: 105 | AR134: 121 | AV134: 10 | AW134: 121 | AX134: 105 | BK134: 2020-10-20 | BL134: 29 | BM134: 0 | BN134: 452 | BO134: 452 | BP134: 0 | BQ134: 4 | BR134: 0
A135: 88 | I135: 10 | J135: 121 | K135: 105 | L135: 10 | M135: 121 | N135: 105 | R135: -10 | S135: 105 | T135: 121 | AV135: -10 | AW135: 105 | AX135: 121 | BK135: 2020-10-20 | BL135: 29 | BM135: 0 | BN135: 452 | BO135: 452 | BP135: 0 | BQ135: 4 | BR135: 0
A136: 89 | C136: 10 | D136: 121 | E136: 103 | L136: -10 | M136: 103 | N136: 121 | R136: -10 | S136: 103 | T136: 121 | AP136: 10 | AQ136: 121 | AR136: 103 | BK136: 2020-10-20 | BL136: 29 | BM136: 0 | BN136: 448 | BO136: 448 | BP136: 0 | BQ136: 4 | BR136: 0
A137: 90 | I137: -10 | J137: 103 | K137: 121 | L137: 10 | M137: 121 | N137: 103 | R137: -10 | S137: 103 | T137: 121 | AV137: 10 | AW137: 121 | AX137: 103 | BK137: 2020-10-22 | BL137: 33 | BM137: 0 | BN137: 448 | BO137: 448 | BP137: 0 | BQ137: 4 | BR137: 0
A138: 91 | I138: -10 | J138: 100 | K138: 121 | L138: -10 | M138: 100 | N138: 121 | R138: 10 | S138: 121 | T138: 100 | AV138: 10 | AW138: 121 | AX138: 100 | BK138: 2020-10-22 | BL138: 33 | BM138: 0 | BN138: 442 | BO138: 442 | BP138: 0 | BQ138: 4 | BR138: 0
A139: 92 | I139: -10 | J139: 106 | K139: 121 | L139: 10 | M139: 121 | N139: 106 | R139: 10 | S139: 121 | T139: 106 | AV139: -10 | AW139: 106 | AX139: 121 | BK139: 2020-10-22 | BL139: 33 | BM139: 0 | BN139: 454 | BO139: 454 | BP139: 0 | BQ139: 4 | BR139: 0
A140: 93 | I140: -10 | J140: 105 | K140: 121 | L140: 10 | M140: 121 | N140: 105 | R140: 10 | S140: 121 | T140: 105 | AV140: -10 | AW140: 105 | AX140: 121 | BK140: 2020-10-22 | BL140: 33 | BM140: 0 | BN140: 452 | BO140: 452 | BP140: 0 | BQ140: 4 | BR140: 0
A141: 94 | I141: 10 | J141: 121 | K141: 115 | L141: 10 | M141: 121 | N141: 115 | R141: -10 | S141: 115 | T141: 121 | AV141: -10 | AW141: 115 | AX141: 121 | BK141: 2020-10-26 | BL141: 39 | BM141: 0 | BN141: 472 | BO141: 472 | BP141: 0 | BQ141: 4 | BR141: 0
A142: 95 | C142: -10 | D142: 98 | E142: 121 | I142: 10 | J142: 121 | K142: 98 | R142: 10 | S142: 121 | T142: 98 | AV142: -10 | AW142: 98 | AX142: 121 | BK142: 2020-10-26 | BL142: 39 | BM142: 0 | BN142: 438 | BO142: 438 | BP142: 0 | BQ142: 4 | BR142: 0
A143: 96 | C143: -10 | D143: 113 | E143: 121 | L143: 10 | M143: 121 | N143: 113 | R143: -10 | S143: 113 | T143: 121 | AV143: 10 | AW143: 121 | AX143: 113 | BK143: 2020-10-26 | BL143: 39 | BM143: 0 | BN143: 468 | BO143: 468 | BP143: 0 | BQ143: 4 | BR143: 0
A144: 97 | C144: 10 | D144: 121 | E144: 116 | I144: -10 | J144: 116 | K144: 121 | L144: 10 | M144: 121 | N144: 116 | R144: -10 | S144: 116 | T144: 121 | BK144: 2020-10-26 | BL144: 39 | BM144: 0 | BN144: 474 | BO144: 474 | BP144: 0 | BQ144: 4 | BR144: 0
A145: 98 | C145: 10 | D145: 121 | E145: 108 | I145: -10 | J145: 108 | K145: 121 | L145: 10 | M145: 121 | N145: 108 | AV145: -10 | AW145: 108 | AX145: 121 | BK145: 2020-10-26 | BL145: 39 | BM145: 0 | BN145: 458 | BO145: 458 | BP145: 0 | BQ145: 4 | BR145: 0
A146: 99 | C146: -10 | D146: 104 | E146: 121 | I146: 10 | J146: 121 | K146: 104 | L146: 10 | M146: 121 | N146: 113 | R146: 10 | S146: 121 | T146: 113 | AP146: -10 | AQ146: 113 | AR146: 121 | AV146: -10 | AW146: 113 | AX146: 121 | BK146: 2020-10-27 | BL146: 40 | BM146: 0 | BN146: 693 | BO146: 693 | BP146: 0 | BQ146: 6 | BR146: 0
A147: 100 | C147: 10 | D147: 121 | E147: 99 | I147: -10 | J147: 108 | K147: 121 | L147: 10 | M147: 121 | N147: 108 | R147: -10 | S147: 108 | T147: 121 | AP147: -10 | AQ147: 99 | AR147: 121 | AV147: 10 | AW147: 121 | AX147: 108 | BK147: 2020-10-27 | BL147: 40 | BM147: 0 | BN147: 678 | BO147: 678 | BP147: 0 | BQ147: 6 | BR147: 0
A148: 101 | C148: 11 | D148: 121 | E148: 90 | I148: -10 | J148: 115 | K148: 121 | L148: -11 | M148: 90 | N148: 121 | R148: 11 | S148: 121 | T148: 90 | AP148: -11 | AQ148: 90 | AR148: 121 | AV148: 10 | AW148: 121 | AX148: 115 | BK148: 2020-10-27 | BL148: 40 | BM148: 0 | BN148: 658 | BO148: 658 | BP148: 0 | BQ148: 6 | BR148: 0
A149: 102 | C149: 10 | D149: 121 | E149: 108 | I149: 10 | J149: 121 | K149: 107 | L149: -10 | M149: 107 | N149: 121 | R149: -10 | S149: 107 | T149: 121 | AP149: 10 | AQ149: 121 | AR149: 107 | AV149: -10 | AW149: 108 | AX149: 121 | BK149: 2020-10-27 | BL149: 40 | BM149: 0 | BN149: 685 | BO149: 685 | BP149: 0 | BQ149: 6 | BR149: 0
A150: 103 | C150: 10 | D150: 121 | E150: 96 | I150: -10 | J150: 96 | K150: 121 | L150: -10 | M150: 96 | N150: 121 | R150: 10 | S150: 121 | T150: 108 | AP150: 10 | AQ150: 121 | AR150: 96 | AV150: -10 | AW150: 108 | AX150: 121 | BK150: 2020-10-27 | BL150: 40 | BM150: 0 | BN150: 663 | BO150: 663 | BP150: 0 | BQ150: 6 | BR150: 0
A151: 104 | L151: -10 | M151: 99 | N151: 121 | R151: -10 | S151: 99 | T151: 121 | AP151: 10 | AQ151: 121 | AR151: 99 | AV151: 10 | AW151: 121 | AX151: 99 | BK151: 2020-10-28 | BL151: 41 | BM151: 0 | BN151: 440 | BO151: 440 | BP151: 0 | BQ151: 4 | BR151: 0
A152: 105 | C152: 10 | D152: 121 | E152: 115 | L152: -10 | M152: 115 | N152: 121 | R152: -10 | S152: 115 | T152: 121 | AP152: 10 | AQ152: 121 | AR152: 115 | BK152: 2020-11-02 | BL152: 46 | BM152: 0 | BN152: 472 | BO152: 472 | BP152: 0 | BQ152: 4 | BR152: 0
A153: 106 | C153: 10 | D153: 121 | E153: 114 | I153: -10 | J153: 114 | K153: 121 | L153: 10 | M153: 121 | N153: 114 | AP153: -10 | AQ153: 114 | AR153: 121 | BK153: 2020-11-02 | BL153: 46 | BM153: 0 | BN153: 470 | BO153: 470 | BP153: 0 | BQ153: 4 | BR153: 0
A154: 107 | I154: -10 | J154: 112 | K154: 121 | L154: -10 | M154: 112 | N154: 121 | R154: 10 | S154: 121 | T154: 112 | AP154: 10 | AQ154: 121 | AR154: 112 | BK154: 2020-11-02 | BL154: 46 | BM154: 0 | BN154: 466 | BO154: 466 | BP154: 0 | BQ154: 4 | BR154: 0
A155: 108 | C155: -10 | D155: 118 | E155: 121 | I155: -10 | J155: 118 | K155: 121 | L155: 10 | M155: 121 | N155: 118 | R155: 10 | S155: 121 | T155: 118 | BK155: 2020-11-02 | BL155: 46 | BM155: 0 | BN155: 478 | BO155: 478 | BP155: 0 | BQ155: 4 | BR155: 0
A156: 109 | C156: -10 | D156: 91 | E156: 121 | I156: -10 | J156: 120 | K156: 121 | L156: 10 | M156: 121 | N156: 120 | R156: -10 | S156: 120 | T156: 121 | U156: 10 | V156: 121 | W156: 120 | AP156: 10 | AQ156: 121 | AR156: 91 | BK156: 2020-11-02 | BL156: 46 | BM156: 0 | BN156: 694 | BO156: 694 | BP156: 0 | BQ156: 6 | BR156: 0
A157: 110 | C157: 10 | D157: 121 | E157: 116 | I157: 10 | J157: 121 | K157: 116 | L157: 10 | M157: 121 | N157: 116 | R157: -10 | S157: 116 | T157: 121 | U157: -10 | V157: 116 | W157: 121 | AP157: -10 | AQ157: 116 | AR157: 121 | BK157: 2020-11-02 | BL157: 46 | BM157: 0 | BN157: 711 | BO157: 711 | BP157: 0 | BQ157: 6 | BR157: 0
A158: 111 | I158: 10 | J158: 121 | K158: 113 | L158: -10 | M158: 113 | N158: 121 | R158: 10 | S158: 121 | T158: 101 | AV158: -10 | AW158: 101 | AX158: 121 | BK158: 2020-11-04 | BL158: 47 | BM158: 0 | BN158: 456 | BO158: 456 | BP158: 0 | BQ158: 4 | BR158: 0
A159: 112 | I159: 10 | J159: 121 | K159: 101 | L159: -10 | M159: 101 | N159: 121 | R159: 10 | S159: 121 | T159: 101 | AV159: -10 | AW159: 101 | AX159: 121 | BK159: 2020-11-04 | BL159: 47 | BM159: 0 | BN159: 444 | BO159: 444 | BP159: 0 | BQ159: 4 | BR159: 0
A160: 113 | I160: -10 | J160: 100 | K160: 121 | L160: -10 | M160: 100 | N160: 121 | R160: 10 | S160: 121 | T160: 100 | AV160: 10 | AW160: 121 | AX160: 100 | BK160: 2020-11-04 | BL160: 47 | BM160: 0 | BN160: 442 | BO160: 442 | BP160: 0 | BQ160: 4 | BR160: 0
A161: 114 | I161: 10 | J161: 121 | K161: 97 | L161: -10 | M161: 97 | N161: 121 | R161: -10 | S161: 97 | T161: 121 | AP161: 10 | AQ161: 121 | AR161: 97 | BK161: 2020-11-05 | BL161: 48 | BM161: 0 | BN161: 436 | BO161: 436 | BP161: 0 | BQ161: 4 | BR161: 0
A162: 115 | I162: -10 | J162: 119 | K162: 121 | L162: -10 | M162: 119 | N162: 121 | R162: 10 | S162: 121 | T162: 119 | AP162: 10 | AQ162: 121 | AR162: 119 | BK162: 2020-11-05 | BL162: 48 | BM162: 0 | BN162: 480 | BO162: 480 | BP162: 0 | BQ162: 4 | BR162: 0
A163: 116 | C163: -10 | D163: 108 | E163: 121 | I163: 10 | J163: 121 | K163: 108 | L163: 10 | M163: 121 | N163: 108 | AV163: -10 | AW163: 108 | AX163: 121 | BK163: 2020-11-06 | BL163: 49 | BM163: 0 | BN163: 458 | BO163: 458 | BP163: 0 | BQ163: 4 | BR163: 0
A164: 117 | C164: 10 | D164: 121 | E164: 115 | I164: -10 | J164: 115 | K164: 121 | L164: 10 | M164: 121 | N164: 115 | AV164: -10 | AW164: 115 | AX164: 121 | BK164: 2020-11-06 | BL164: 49 | BM164: 0 | BN164: 472 | BO164: 472 | BP164: 0 | BQ164: 4 | BR164: 0
A165: 118 | L165: -10 | M165: 120 | N165: 121 | R165: 10 | S165: 121 | T165: 120 | AP165: 10 | AQ165: 121 | AR165: 120 | AV165: -10 | AW165: 120 | AX165: 121 | BK165: 2020-11-07 | BL165: 50 | BM165: 0 | BN165: 482 | BO165: 482 | BP165: 0 | BQ165: 4 | BR165: 0
A166: 119 | L166: 11 | M166: 121 | N166: 83 | R166: -11 | S166: 83 | T166: 121 | BK166: 2020-11-07 | BL166: 50 | BM166: 0 | BN166: 204 | BO166: 204 | BP166: 0 | BQ166: 2 | BR166: 0
A167: 120 | R167: -10 | S167: 115 | T167: 121 | AP167: 10 | AQ167: 121 | AR167: 115 | BK167: 2020-11-07 | BL167: 50 | BM167: 0 | BN167: 236 | BO167: 236 | BP167: 0 | BQ167: 2 | BR167: 0
A168: 121 | L168: 10 | M168: 121 | N168: 92 | AP168: -10 | AQ168: 92 | AR168: 121 | BK168: 2020-11-07 | BL168: 50 | BM168: 0 | BN168: 213 | BO168: 213 | BP168: 0 | BQ168: 2 | BR168: 0
A169: 122 | I169: -11 | J169: 65 | K169: 121 | L169: 11 | M169: 121 | N169: 65 | R169: 11 | S169: 121 | T169: 65 | AP169: -11 | AQ169: 65 | AR169: 121 | BK169: 2020-11-10 | BL169: 53 | BM169: 0 | BN169: 372 | BO169: 372 | BP169: 0 | BQ169: 4 | BR169: 0
A170: 123 | I170: 10 | J170: 121 | K170: 95 | L170: -10 | M170: 95 | N170: 121 | R170: 10 | S170: 121 | T170: 95 | AP170: -10 | AQ170: 95 | AR170: 121 | BK170: 2020-11-10 | BL170: 53 | BM170: 0 | BN170: 432 | BO170: 432 | BP170: 0 | BQ170: 4 | BR170: 0
A171: 124 | I171: -10 | J171: 107 | K171: 121 | L171: -10 | M171: 107 | N171: 121 | R171: 10 | S171: 121 | T171: 107 | AV171: 10 | AW171: 121 | AX171: 107 | BK171: 2020-11-12 | BL171: 55 | BM171: 0 | BN171: 456 | BO171: 456 | BP171: 0 | BQ171: 4 | BR171: 0
A172: 125 | I172: 10 | J172: 121 | K172: 99 | L172: -10 | M172: 99 | N172: 121 | R172: 10 | S172: 121 | T172: 99 | AV172: -10 | AW172: 99 | AX172: 121 | BK172: 2020-11-12 | BL172: 55 | BM172: 0 | BN172: 440 | BO172: 440 | BP172: 0 | BQ172: 4 | BR172: 0
A173: 126 | L173: 10 | M173: 121 | N173: 113 | R173: -10 | S173: 113 | T173: 121 | BK173: 2020-11-13 | BL173: 56 | BM173: 0 | BN173: 234 | BO173: 234 | BP173: 0 | BQ173: 2 | BR173: 0
A174: 127 | I174: 10 | J174: 121 | K174: 92 | L174: -10 | M174: 92 | N174: 121 | R174: 10 | S174: 121 | T174: 92 | AV174: -10 | AW174: 92 | AX174: 121 | BK174: 2020-11-13 | BL174: 56 | BM174: 0 | BN174: 426 | BO174: 426 | BP174: 0 | BQ174: 4 | BR174: 0
A175: 128 | C175: -10 | D175: 103 | E175: 121 | L175: 10 | M175: 121 | N175: 103 | R175: -10 | S175: 103 | T175: 121 | AP175: 10 | AQ175: 121 | AR175: 103 | BK175: 2020-11-17 | BL175: 61 | BM175: 0 | BN175: 448 | BO175: 448 | BP175: 0 | BQ175: 4 | BR175: 0
A176: 129 | C176: 10 | D176: 121 | E176: 105 | L176: 10 | M176: 121 | N176: 105 | R176: -10 | S176: 105 | T176: 121 | AP176: -10 | AQ176: 105 | AR176: 121 | BK176: 2020-11-17 | BL176: 61 | BM176: =+BH176+AJ176+AG176+AD176+AA176+X176+U176+R176+O176+L176+I176+F176+C176+AM176+AP176+AS176+AV176+AY176+BB176+BE176 -> 0 | BN176: 452 | BO176: 452 | BP176: 0 | BQ176: 4 | BR176: 0
A177: 130 | C177: 10 | D177: 121 | E177: 95 | I177: -10 | J177: 95 | K177: 121 | L177: 10 | M177: 121 | N177: 95 | R177: -10 | S177: 95 | T177: 121 | BK177: 2020-11-17 | BL177: 61 | BM177: 0 | BN177: =+BI177+AK177+AH177+AE177+AB177+Y177+V177+S177+P177+M177+J177+G177+D177+AN177+AQ177+AT177+AW177+AZ177+BC177+BF177 -> 432 | BO177: =+BJ177+AL177+AI177+AF177+AC177+Z177+W177+T177+Q177+N177+K177+H177+E177+AO177+AR177+AU177+AX177+BA177+BD177+BG177 -> 432 | BP177: 0 | BQ177: 4 | BR177: 0
A178: =+A177+1 -> 131 | C178: 10 | D178: 121 | E178: 114 | L178: -10 | M178: 114 | N178: 121 | R178: -10 | S178: 100 | T178: 121 | U178: 10 | V178: 121 | W178: 114 | AP178: -10 | AQ178: 114 | AR178: 121 | AV178: 10 | AW178: 121 | AX178: 100 | BK178: 2020-11-20 | BL178: 65 | BM178: 0 | BN178: 691 | BO178: 691 | BP178: 0 | BQ178: 6 | BR178: 0
A179: 132 | C179: -10 | D179: 95 | E179: 121 | L179: 10 | M179: 121 | N179: 95 | O179: 10 | P179: 121 | Q179: 95 | R179: -10 | S179: 95 | T179: 121 | BK179: 2020-11-21 | BL179: 66 | BM179: 0 | BN179: 432 | BO179: 432 | BP179: 0 | BQ179: 4 | BR179: 0
A180: 133 | C180: 10 | D180: 121 | E180: 111 | L180: -10 | M180: 111 | N180: 121 | O180: 10 | P180: 121 | Q180: 111 | R180: -10 | S180: 111 | T180: 121 | BK180: 2020-11-21 | BL180: 66 | BM180: 0 | BN180: 464 | BO180: 464 | BP180: 0 | BQ180: 4 | BR180: 0
A181: 134 | I181: -10 | J181: 98 | K181: 121 | L181: 10 | M181: 121 | N181: 98 | R181: 10 | S181: 121 | T181: 98 | AV181: -10 | AW181: 98 | AX181: 121 | BK181: 2020-11-22 | BL181: 67 | BM181: 0 | BN181: 438 | BO181: 438 | BP181: 0 | BQ181: 4 | BR181: 0
A182: 135 | L182: 10 | M182: 121 | N182: 104 | R182: -10 | S182: 104 | T182: 121 | BK182: 2020-11-24 | BL182: 70 | BM182: 0 | BN182: 225 | BO182: 225 | BP182: 0 | BQ182: 2 | BR182: 0
A183: 136 | I183: 10 | J183: 121 | K183: 98 | L183: 10 | M183: 121 | N183: 98 | R183: -10 | S183: 98 | T183: 121 | AP183: -10 | AQ183: 98 | AR183: 121 | BK183: 2020-11-29 | BL183: 76 | BM183: 0 | BN183: 438 | BO183: 438 | BP183: 0 | BQ183: 4 | BR183: 0
A184: =+A183+1 -> 137 | C184: 10 | D184: 121 | E184: 119 | I184: -10 | J184: 119 | K184: 121 | R184: -10 | S184: 119 | T184: 121 | AV184: 10 | AW184: 121 | AX184: 119 | BK184: 2020-12-01 | BL184: 78 | BM184: 0 | BN184: 480 | BO184: 480 | BP184: =+BN184-BO184 -> 0 | BQ184: =COUNT(C184:BJ184)/3 -> 4 | BR184: =+BM184/BQ184 -> 0
A185: =+A184+1 -> 138 | C185: -11 | D185: 87 | E185: 121 | I185: 11 | J185: 121 | K185: 87 | R185: -11 | S185: 87 | T185: 121 | AV185: 11 | AW185: 121 | AX185: 87 | BK185: 2020-12-01 | BL185: 78 | BM185: 0 | BN185: 416 | BO185: 416 | BP185: 0 | BQ185: 4 | BR185: 0
A186: =+A185+1 -> 139 | C186: -10 | D186: 120 | E186: 121 | I186: -10 | J186: 120 | K186: 121 | R186: 10 | S186: 121 | T186: 120 | AV186: 10 | AW186: 121 | AX186: 120 | BK186: 2020-12-01 | BL186: 78 | BM186: 0 | BN186: 482 | BO186: 482 | BP186: 0 | BQ186: 4 | BR186: 0
A187: =+A186+1 -> 140 | C187: 10 | D187: 121 | E187: 114 | I187: -10 | J187: 114 | K187: 121 | R187: 10 | S187: 121 | T187: 114 | AV187: -10 | AW187: 114 | AX187: 121 | BK187: 2020-12-01 | BL187: 78 | BM187: 0 | BN187: 470 | BO187: 470 | BP187: 0 | BQ187: 4 | BR187: 0
A188: 141 | I188: 10 | J188: 121 | K188: 118 | R188: 10 | S188: 121 | T188: 118 | AP188: -10 | AQ188: 118 | AR188: 121 | AV188: -10 | AW188: 118 | AX188: 121 | BK188: 2020-12-03 | BL188: 81 | BM188: 0 | BN188: 478 | BO188: 478 | BP188: 0 | BQ188: 4 | BR188: 0
A189: 142 | I189: -10 | J189: 109 | K189: 121 | R189: 10 | S189: 121 | T189: 109 | AP189: -10 | AQ189: 109 | AR189: 121 | AV189: 10 | AW189: 121 | AX189: 109 | BK189: 2020-12-03 | BL189: 81 | BM189: 0 | BN189: 460 | BO189: 460 | BP189: 0 | BQ189: 4 | BR189: 0
A190: 143 | I190: -10 | J190: 115 | K190: 121 | AV190: 10 | AW190: 121 | AX190: 115 | BK190: 2020-12-04 | BL190: 82 | BM190: 0 | BN190: 236 | BO190: 236 | BP190: 0 | BQ190: 2 | BR190: 0
A191: 144 | R191: -10 | S191: 118 | T191: 121 | AV191: 10 | AW191: 121 | AX191: 118 | BK191: 2020-12-04 | BL191: 82 | BM191: 0 | BN191: 239 | BO191: 239 | BP191: 0 | BQ191: 2 | BR191: 0
A192: 145 | I192: -10 | J192: 115 | K192: 121 | R192: 10 | S192: 121 | T192: 115 | BK192: 2020-12-04 | BL192: 82 | BM192: 0 | BN192: 236 | BO192: 236 | BP192: 0 | BQ192: 2 | BR192: 0
A193: 146 | I193: -10 | J193: 107 | K193: 121 | AP193: 10 | AQ193: 121 | AR193: 107 | BK193: 2020-12-07 | BL193: 86 | BM193: 0 | BN193: 228 | BO193: 228 | BP193: 0 | BQ193: 2 | BR193: 0
A194: 147 | R194: 10 | S194: 121 | T194: 109 | AP194: -10 | AQ194: 109 | AR194: 121 | BK194: 2020-12-07 | BL194: 86 | BM194: 0 | BN194: 230 | BO194: 230 | BP194: 0 | BQ194: 2 | BR194: 0
A195: 148 | C195: -10 | D195: 119 | E195: 121 | R195: 10 | S195: 99 | T195: 70 | AS195: 10 | AT195: 121 | AU195: 119 | AV195: -10 | AW195: 70 | AX195: 99 | BK195: 2020-12-08 | BL195: 88 | BM195: 0 | BN195: 409 | BO195: 409 | BP195: 0 | BQ195: 4 | BR195: 0
A196: 149 | C196: -10 | D196: 114 | E196: 121 | I196: -10 | J196: 114 | K196: 121 | AS196: 10 | AT196: 121 | AU196: 114 | AV196: 10 | AW196: 121 | AX196: 114 | BK196: 2020-12-08 | BL196: 88 | BM196: 0 | BN196: 470 | BO196: 470 | BP196: 0 | BQ196: 4 | BR196: 0
A197: 150 | C197: -10 | D197: 103 | E197: 121 | I197: 10 | J197: 121 | K197: 103 | R197: -10 | S197: 103 | T197: 121 | AS197: 10 | AT197: 121 | AU197: 103 | BK197: 2020-12-08 | BL197: 88 | BM197: 0 | BN197: 448 | BO197: 448 | BP197: 0 | BQ197: 4 | BR197: 0
A198: 151 | C198: 10 | D198: 121 | E198: 104 | I198: -10 | J198: 104 | K198: 121 | L198: -10 | M198: 104 | N198: 121 | R198: 10 | S198: 121 | T198: 104 | AS198: 10 | AT198: 121 | AU198: 104 | AV198: -10 | AW198: 104 | AX198: 121 | BK198: 2020-12-08 | BL198: 88 | BM198: 0 | BN198: 675 | BO198: 675 | BP198: 0 | BQ198: 6 | BR198: 0
A199: 152 | L199: 10 | M199: 121 | N199: 116 | AV199: -10 | AW199: 116 | AX199: 121 | BK199: 2020-12-09 | BL199: 89 | BM199: 0 | BN199: 237 | BO199: 237 | BP199: 0 | BQ199: 2 | BR199: 0
A200: 153 | L200: -10 | M200: 93 | N200: 121 | R200: 10 | S200: 121 | T200: 93 | BK200: 2020-12-09 | BL200: 89 | BM200: 0 | BN200: 214 | BO200: 214 | BP200: 0 | BQ200: 2 | BR200: 0
A201: 154 | L201: 10 | M201: 121 | N201: 110 | R201: -10 | S201: 93 | T201: 121 | U201: 10 | V201: 121 | W201: 93 | AV201: -10 | AW201: 110 | AX201: 121 | BK201: 2020-12-09 | BL201: 89 | BM201: 0 | BN201: 445 | BO201: 445 | BP201: 0 | BQ201: 4 | BR201: 0
A202: 155 | C202: 10 | D202: 121 | E202: 112 | I202: -10 | J202: 112 | K202: 121 | R202: -10 | S202: 112 | T202: 121 | AP202: 10 | AQ202: 121 | AR202: 112 | BK202: 2020-12-11 | BL202: 92 | BM202: 0 | BN202: 466 | BO202: 466 | BP202: 0 | BQ202: 4 | BR202: 0
... 899 more rows

Sheet Podrida
A1: PODRIDA
A2: Mes
A3: =+GENERAL!B6 -> 12 | C3: =SUM(C5:C20)+AP41 -> 0
C4: Premi | D4: Punts | E4: Partides | F4: General
A5: 1 | B5: Jordi | C5: =+G$38 -> 182 | D5: =+H$39 -> 87.09811321 | E5: =+H$38 -> 53 | F5: =+G$24 -> 80 | G5: =IF(E5<A$3/2,-1,1)*800000+C5*1000+D5*10+E5 -> 982923.9811
A6: 2 | B6: Carles | C6: =+O$38 -> 126 | D6: =+P$39 -> 91.91304348 | E6: =+P$38 -> 23 | F6: =+O$24 -> 40 | G6: 926942.1304
A7: 3 | B7: Núria | C7: =+W$38 -> 41 | D7: =+X$39 -> 79.26785714 | E7: =+X$38 -> 56 | F7: =+W$24 -> 20 | G7: 841848.6786
A8: 4 | B8: Cyber X | C8: =+E$38 -> -6 | D8: =+F$39 -> 65.2 | E8: =+F$38 -> 10 | F8: =+E$24 -> 10 | G8: 794662
A9: 5 | B9: Sebas | C9: =+AC$38 -> -24 | D9: =+AD$39 -> 77.08333333 | E9: =+AD$38 -> 36 | F9: =+AC$24 -> 5 | G9: 776806.8333
A10: 6 | B10: Manolo | C10: =+Y$38 -> -24 | D10: =+Z$39 -> 63 | E10: =+Z$38 -> 11 | F10: =+Y$24 -> 0 | G10: 776641
A11: 7 | B11: Grau | C11: =+AG$38 -> -36 | D11: =+AH$39 -> 75.69230769 | E11: =+AH$38+1 -> 79 | F11: =+AG$24 -> 0 | G11: 764835.9231
A12: 8 | B12: Nogué | C12: =+AE$38 -> -51 | D12: =+AF$39 -> 77.23076923 | E12: =+AF$38 -> 65 | F12: =+AE$24 -> 0 | G12: 749837.3077
A13: 9 | B13: Ana B | C13: =+Q$38 -> -63 | D13: =+R$39 -> 69.75 | E13: =+R$38 -> 24 | F13: =+Q$24 -> 0 | G13: 737721.5
A14: 10 | B14: Nin | C14: =+U$38 -> -72 | D14: =+V$39 -> 51.58333333 | E14: =+V$38 -> 12 | F14: =+U$24 -> 0 | G14: 728527.8333 | AQ14: Càlcul punts segons partida a 4 jugadors | BA14: Máx. | BB14: Mitj. | BC14: Factor
A15: 11 | B15: Gemma | C15: =+AA$38 -> -77 | D15: =+AB$39 -> 69.57333333 | E15: =+AB$38 -> 75 | F15: =+AA$24 -> 0 | G15: 723770.7333 | AQ15: 2020-02-13 | AR15: 12 | AS15: 40 | AT15: 0.75 | AV15: 6 | AW15: =13*3/4 -> 9.75 | AX15: 1 | AY15: 1 | BA15: =((AV15*AW15*AX15+12)*AY15+AR15*AS15)*AT15 -> 412.875 | BB15: =+AQ41 -> 273.2888889 | BC15: 1
A16: 12 | B16: Rosa M | C16: =+C$38 -> 18 | D16: =+D$39 -> 94.6 | E16: =+D$38 -> 3 | F16: =+C$24 -> 0 | G16: -781051 | AQ16: 1-13/13-1/13x4 | AR16: 30 | AS16: 40 | AT16: 0.75 | AV16: 18 | AW16: =13*3/4 -> 9.75 | AX16: 2 | AY16: 1 | BA16: =(AV16*AW16*AX16*AY16+AR16*AS16)*AT16 -> 1163.25 | BB16: =+AQ40/0.4 -> 715.625 | BC16: =+BA16/BA15 -> 2.817438692
A17: 13 | B17: Mariajo | C17: =+AI$38 -> 0 | D17: =+AJ$39 -> 73 | E17: =+AJ$38 -> 1 | F17: =+AI$24 -> 0 | G17: -799269 | AQ17: 13*4 | AR17: 4 | AS17: 40 | AT17: 0.75 | AV17: 4 | AW17: =13*3/4 -> 9.75 | AX17: 2 | AY17: 1 | BA17: =(AV17*AW17*AX17*AY17+AR17*AS17)*AT17 -> 178.5 | BB17: =+AQ37/2.5 -> 130.4 | BC17: =+BA17/BA15 -> 0.4323342416
A18: 14 | B18: Sergi | C18: =+M$38 -> 0 | D18: =+N$39 -> 73 | E18: =+N$38 -> 1 | F18: =+M$24 -> 0 | G18: -799269
A19: 15 | B19: Joan | C19: =+I$38 -> -4 | D19: =+J$39 -> 74.33333333 | E19: =+J$38 -> 3 | F19: =+I$24 -> 0 | G19: -803253.6667
A20: 16 | B20: Anna P. | C20: =+S$38 -> -10 | D20: =+T$39 -> 94.6 | E20: =+T$38 -> 3 | F20: =+S$24 -> 0 | G20: -809051
A21: 17 | B21: Tito | C21: =+K$38 -> -100000000 | D21: =+L$39 -> 0.0001 | E21: =+L$38+1 -> 1 | F21: =+K$24 -> 0 | G21: =IF(E21<A$3/2,-1,1)*800000+C21*1000+D21*10+E21 -> -1.000008e+11
AR23: 0.4 | AS23: =1/AR23 -> 2.5
B24: General | C24: =+C25*C26 -> 0 | D24: =+D25*D26 -> 3 | E24: 10 | F24: 10 | G24: 80 | H24: 53 | I24: 0 | J24: 3 | K24: 0 | L24: 0 | M24: 0 | N24: 1 | O24: 40 | P24: 23 | Q24: 0 | R24: 24 | S24: 0 | T24: 3 | U24: 0 | V24: 12 | W24: 20 | X24: 56 | Y24: 0 | Z24: 11 | AA24: =+AA25*AA26 -> 0 | AB24: 75 | AC24: 5 | AD24: 36 | AE24: 0 | AF24: 65 | AG24: 0 | AH24: 78 | AI24: 0 | AJ24: 1
C25: =IF($B37>3,1,0) -> 1 | D25: =IF($B37>3,1,0) -> 1 | E25: 1 | F25: 1 | G25: 1 | H25: 1 | I25: 1 | J25: 1 | K25: 1 | L25: 1 | M25: 1 | N25: 1 | O25: 1 | P25: 1 | Q25: 1 | R25: 1 | S25: 1 | T25: 1 | U25: 1 | V25: 1 | W25: 1 | X25: 1 | Y25: 1 | Z25: 1 | AA25: =IF($B37>3,1,0) -> 1 | AB25: 1 | AC25: 1 | AD25: 1 | AE25: 1 | AF25: 1 | AG25: 1 | AH25: 1 | AI25: 1 | AJ25: 1
C26: =MAX(C27:C31) -> 0 | D26: =+D38 -> 3 | E26: =MAX(E27:E31) -> 10 | F26: =+F38 -> 10 | G26: =MAX(G27:G31) -> 80 | H26: =+H38 -> 53 | I26: =MAX(I27:I31) -> 0 | J26: =+J38 -> 3 | K26: =MAX(K27:K31) -> 0 | L26: =+L38 -> 0 | M26: =MAX(M27:M31) -> 0 | N26: =+N38 -> 1 | O26: =MAX(O27:O31) -> 40 | P26: =+P38 -> 23 | Q26: =MAX(Q27:Q31) -> 0 | R26: =+R38 -> 24 | S26: =MAX(S27:S31) -> 0 | T26: =+T38 -> 3 | U26: =MAX(U27:U31) -> 0 | V26: =+V38 -> 12 | W26: =MAX(W27:W31) -> 20 | X26: =+X38 -> 56 | Y26: =MAX(Y27:Y31) -> 0 | Z26: =+Z38 -> 11 | AA26: =MAX(AA27:AA31) -> 0 | AB26: =+AB38 -> 75 | AC26: =MAX(AC27:AC31) -> 5 | AD26: =+AD38 -> 36 | AE26: =MAX(AE27:AE31) -> 0 | AF26: =+AF38 -> 65 | AG26: =MAX(AG27:AG31) -> 0 | AH26: =+AH38 -> 78 | AI26: =MAX(AI27:AI31) -> 0 | AJ26: =+AJ38 -> 1
C27: =IF(C$32=5,5,0) -> 0 | E27: =IF(E$32=5,5,0) -> 0 | G27: =IF(G$32=5,5,0) -> 0 | I27: =IF(I$32=5,5,0) -> 0 | K27: =IF(K$32=5,5,0) -> 0 | M27: =IF(M$32=5,5,0) -> 0 | O27: =IF(O$32=5,5,0) -> 0 | Q27: =IF(Q$32=5,5,0) -> 0 | S27: =IF(S$32=5,5,0) -> 0 | U27: =IF(U$32=5,5,0) -> 0 | W27: =IF(W$32=5,5,0) -> 0 | Y27: =IF(Y$32=5,5,0) -> 0 | AA27: =IF(AA$32=5,5,0) -> 0 | AC27: =IF(AC$32=5,5,0) -> 5 | AE27: =IF(AE$32=5,5,0) -> 0 | AG27: =IF(AG$32=5,5,0) -> 0 | AI27: =IF(AI$32=5,5,0) -> 0
C28: =IF(C$32=4,10,0) -> 0 | E28: =IF(E$32=4,10,0) -> 10 | G28: =IF(G$32=4,10,0) -> 0 | I28: =IF(I$32=4,10,0) -> 0 | K28: =IF(K$32=4,10,0) -> 0 | M28: =IF(M$32=4,10,0) -> 0 | O28: =IF(O$32=4,10,0) -> 0 | Q28: =IF(Q$32=4,10,0) -> 0 | S28: =IF(S$32=4,10,0) -> 0 | U28: =IF(U$32=4,10,0) -> 0 | W28: =IF(W$32=4,10,0) -> 0 | Y28: =IF(Y$32=4,10,0) -> 0 | AA28: =IF(AA$32=4,10,0) -> 0 | AC28: =IF(AC$32=4,10,0) -> 0 | AE28: =IF(AE$32=4,10,0) -> 0 | AG28: =IF(AG$32=4,10,0) -> 0 | AI28: =IF(AI$32=4,10,0) -> 0
C29: =IF(C$32=3,20,0) -> 0 | E29: =IF(E$32=3,20,0) -> 0 | G29: =IF(G$32=3,20,0) -> 0 | I29: =IF(I$32=3,20,0) -> 0 | K29: =IF(K$32=3,20,0) -> 0 | M29: =IF(M$32=3,20,0) -> 0 | O29: =IF(O$32=3,20,0) -> 0 | Q29: =IF(Q$32=3,20,0) -> 0 | S29: =IF(S$32=3,20,0) -> 0 | U29: =IF(U$32=3,20,0) -> 0 | W29: =IF(W$32=3,20,0) -> 20 | Y29: =IF(Y$32=3,20,0) -> 0 | AA29: =IF(AA$32=3,20,0) -> 0 | AC29: =IF(AC$32=3,20,0) -> 0 | AE29: =IF(AE$32=3,20,0) -> 0 | AG29: =IF(AG$32=3,20,0) -> 0 | AI29: =IF(AI$32=3,20,0) -> 0
C30: =IF(C$32=2,40,0) -> 0 | E30: =IF(E$32=2,40,0) -> 0 | G30: =IF(G$32=2,40,0) -> 0 | I30: =IF(I$32=2,40,0) -> 0 | K30: =IF(K$32=2,40,0) -> 0 | M30: =IF(M$32=2,40,0) -> 0 | O30: =IF(O$32=2,40,0) -> 40 | Q30: =IF(Q$32=2,40,0) -> 0 | S30: =IF(S$32=2,40,0) -> 0 | U30: =IF(U$32=2,40,0) -> 0 | W30: =IF(W$32=2,40,0) -> 0 | Y30: =IF(Y$32=2,40,0) -> 0 | AA30: =IF(AA$32=2,40,0) -> 0 | AC30: =IF(AC$32=2,40,0) -> 0 | AE30: =IF(AE$32=2,40,0) -> 0 | AG30: =IF(AG$32=2,40,0) -> 0 | AI30: =IF(AI$32=2,40,0) -> 0
C31: =IF(C$32=1,80,0) -> 0 | E31: =IF(E$32=1,80,0) -> 0 | G31: =IF(G$32=1,80,0) -> 80 | I31: =IF(I$32=1,80,0) -> 0 | K31: =IF(K$32=1,80,0) -> 0 | M31: =IF(M$32=1,80,0) -> 0 | O31: =IF(O$32=1,80,0) -> 0 | Q31: =IF(Q$32=1,80,0) -> 0 | S31: =IF(S$32=1,80,0) -> 0 | U31: =IF(U$32=1,80,0) -> 0 | W31: =IF(W$32=1,80,0) -> 0 | Y31: =IF(Y$32=1,80,0) -> 0 | AA31: =IF(AA$32=1,80,0) -> 0 | AC31: =IF(AC$32=1,80,0) -> 0 | AE31: =IF(AE$32=1,80,0) -> 0 | AG31: =IF(AG$32=1,80,0) -> 0 | AI31: =IF(AI$32=1,80,0) -> 0
C32: =RANK(C33,$C33:$AJ33)*C37 -> 0 | E32: =RANK(E33,$C33:$AJ33)*E37 -> 4 | G32: =RANK(G33,$C33:$AJ33)*G37 -> 1 | I32: =RANK(I33,$C33:$AJ33)*I37 -> 0 | K32: =RANK(K33,$C33:$AJ33)*K37 -> 0 | M32: =RANK(M33,$C33:$AJ33)*M37 -> 0 | O32: =RANK(O33,$C33:$AJ33)*O37 -> 2 | Q32: =RANK(Q33,$C33:$AJ33)*Q37 -> 9 | S32: =RANK(S33,$C33:$AJ33)*S37 -> 0 | U32: =RANK(U33,$C33:$AJ33)*U37 -> 10 | W32: =RANK(W33,$C33:$AJ33)*W37 -> 3 | Y32: =RANK(Y33,$C33:$AJ33)*Y37 -> 6 | AA32: =RANK(AA33,$C33:$AJ33)*AA37 -> 11 | AC32: =RANK(AC33,$C33:$AJ33)*AC37 -> 5 | AE32: =RANK(AE33,$C33:$AJ33)*AE37 -> 8 | AG32: =RANK(AG33,$C33:$AJ33)*AG37 -> 7 | AI32: =RANK(AI33,$C33:$AJ33)*AI37 -> 0
C33: =SUM(C34:C36) -> -990519 | E33: =SUM(E34:E36) -> -53476 | G33: =SUM(G34:G36) -> 1828944.811 | I33: =SUM(I34:I36) -> -992567.6667 | K33: =SUM(K34:K36) -> -101000000 | M33: =SUM(M34:M36) -> -992699 | O33: =SUM(O34:O36) -> 1269340.304 | Q33: =SUM(Q34:Q36) -> -623064 | S33: =SUM(S34:S36) -> -990547 | U33: =SUM(U34:U36) -> -714901.6667 | W33: =SUM(W34:W36) -> 418023.7857 | Y33: =SUM(Y34:Y36) -> -233713 | AA33: =SUM(AA34:AA36) -> -763044.6667 | AC33: =SUM(AC34:AC36) -> -232279.6667 | AE33: =SUM(AE34:AE36) -> -502262.9231 | AG33: =SUM(AG34:AG36) -> -352388.7692 | AI33: =SUM(AI34:AI36) -> -992699
C34: =+D38 -> 3 | E34: =+F38 -> 10 | G34: =+H38 -> 53 | I34: =+J38 -> 3 | K34: =+L38 -> 0 | M34: =+N38 -> 1 | O34: =+P38 -> 23 | Q34: =+R38 -> 24 | S34: =+T38 -> 3 | U34: =+V38 -> 12 | W34: =+X38 -> 56 | Y34: =+Z38 -> 11 | AA34: =+AB38 -> 75 | AC34: =+AD38 -> 36 | AE34: =+AF38 -> 65 | AG34: =+AH38 -> 78 | AI34: =+AJ38 -> 1
C35: =+D39*100 -> 9460 | E35: =+F39*100 -> 6520 | G35: =+H39*100 -> 8709.811321 | I35: =+J39*100 -> 7433.333333 | K35: =+L39*100 -> 0.01 | M35: =+N39*100 -> 7300 | O35: =+P39*100 -> 9191.304348 | Q35: =+R39*100 -> 6975 | S35: =+T39*100 -> 9460 | U35: =+V39*100 -> 5158.333333 | W35: =+X39*100 -> 7926.785714 | Y35: =+Z39*100 -> 6300 | AA35: =+AB39*100 -> 6957.333333 | AC35: =+AD39*100 -> 7708.333333 | AE35: =+AF39*100 -> 7723.076923 | AG35: =+AH39*100 -> 7569.230769 | AI35: =+AJ39*100 -> 7300
C36: =IF(C37=1,C38*C37*10000+C38,-1000000+C38) -> -999982 | E36: =IF(E37=1,E38*E37*10000+E38,-1000000+E38) -> -60006 | G36: =IF(G37=1,G38*G37*10000+G38,-1000000+G38) -> 1820182 | I36: =IF(I37=1,I38*I37*10000+I38,-1000000+I38) -> -1000004 | K36: =IF(K37=1,K38*K37*10000+K38,-1000000+K38) -> -101000000 | M36: =IF(M37=1,M38*M37*10000+M38,-1000000+M38) -> -1000000 | O36: =IF(O37=1,O38*O37*10000+O38,-1000000+O38) -> 1260126 | Q36: =IF(Q37=1,Q38*Q37*10000+Q38,-1000000+Q38) -> -630063 | S36: =IF(S37=1,S38*S37*10000+S38,-1000000+S38) -> -1000010 | U36: =IF(U37=1,U38*U37*10000+U38,-1000000+U38) -> -720072 | W36: =IF(W37=1,W38*W37*10000+W38,-1000000+W38) -> 410041 | Y36: =IF(Y37=1,Y38*Y37*10000+Y38,-1000000+Y38) -> -240024 | AA36: =IF(AA37=1,AA38*AA37*10000+AA38,-1000000+AA38) -> -770077 | AC36: =IF(AC37=1,AC38*AC37*10000+AC38,-1000000+AC38) -> -240024 | AE36: =IF(AE37=1,AE38*AE37*10000+AE38,-1000000+AE38) -> -510051 | AG36: =IF(AG37=1,AG38*AG37*10000+AG38,-1000000+AG38) -> -360036 | AI36: =IF(AI37=1,AI38*AI37*10000+AI38,-1000000+AI38) -> -1000000
A37: Classificats | B37: =SUM(C37:AI37) -> 11 | C37: =IF(D38>=$A3/2,1,0) -> 0 | E37: =IF(F38>=$A3/2,1,0) -> 1 | G37: =IF(H38>=$A3/2,1,0) -> 1 | I37: =IF(J38>=$A3/2,1,0) -> 0 | K37: =IF(L38>=$A3/2,1,0) -> 0 | M37: =IF(N38>=$A3/2,1,0) -> 0 | O37: =IF(P38>=$A3/2,1,0) -> 1 | Q37: =IF(R38>=$A3/2,1,0) -> 1 | S37: =IF(T38>=$A3/2,1,0) -> 0 | U37: =IF(V38>=$A3/2,1,0) -> 1 | W37: =IF(X38>=$A3/2,1,0) -> 1 | Y37: =IF(Z38>=$A3/2,1,0) -> 1 | AA37: =IF(AB38>=$A3/2,1,0) -> 1 | AC37: =IF(AD38>=$A3/2,1,0) -> 1 | AE37: =IF(AF38>=$A3/2,1,0) -> 1 | AG37: =IF(AH38>=$A3/2,1,0) -> 1 | AI37: =IF(AJ38>=$A3/2,1,0) -> 0 | AK37: =MAX(AL43:AL99) -> 198 | AQ37: =AVERAGE(AQ47:AQ48) -> 326 | AR37: =+AQ37/AQ41 -> 1.192876891 | AS37: =1/AR37 -> 0.8383094751
C38: =IF(SUM(C43:C353)<-1000,-100000000,SUM(C43:C353)) -> 18 | D38: =COUNT(D43:D353) -> 3 | E38: =IF(SUM(E43:E353)<-1000,-100000000,SUM(E43:E353)) -> -6 | F38: =COUNT(F43:F353) -> 10 | G38: =IF(SUM(G43:G353)<-1000,-100000000,SUM(G43:G353)) -> 182 | H38: =COUNT(H43:H353) -> 53 | I38: =IF(SUM(I43:I353)<-1000,-100000000,SUM(I43:I353)) -> -4 | J38: =COUNT(J43:J353) -> 3 | K38: =IF(SUM(K43:K353)<-1000,-100000000,SUM(K43:K353)) -> -100000000 | L38: =COUNT(L43:L353) -> 0 | M38: =IF(SUM(M43:M353)<-1000,-100000000,SUM(M43:M353)) -> 0 | N38: =COUNT(N43:N353) -> 1 | O38: =IF(SUM(O43:O353)<-1000,-100000000,SUM(O43:O353)) -> 126 | P38: =COUNT(P43:P353) -> 23 | Q38: =IF(SUM(Q43:Q353)<-1000,-100000000,SUM(Q43:Q353)) -> -63 | R38: =COUNT(R43:R353) -> 24 | S38: =IF(SUM(S43:S353)<-1000,-100000000,SUM(S43:S353)) -> -10 | T38: =COUNT(T43:T353) -> 3 | U38: =IF(SUM(U43:U353)<-1000,-100000000,SUM(U43:U353)) -> -72 | V38: =COUNT(V43:V353) -> 12 | W38: =IF(SUM(W43:W353)<-1000,-100000000,SUM(W43:W353)) -> 41 | X38: =COUNT(X43:X353) -> 56 | Y38: =IF(SUM(Y43:Y353)<-1000,-100000000,SUM(Y43:Y353)) -> -24 | Z38: =COUNT(Z43:Z353) -> 11 | AA38: =IF(SUM(AA43:AA353)<-1000,-100000000,SUM(AA43:AA353)) -> -77 | AB38: =COUNT(AB43:AB353) -> 75 | AC38: =IF(SUM(AC43:AC353)<-1000,-100000000,SUM(AC43:AC353)) -> -24 | AD38: =COUNT(AD43:AD353) -> 36 | AE38: =IF(SUM(AE43:AE353)<-1000,-100000000,SUM(AE43:AE353)) -> -51 | AF38: =COUNT(AF43:AF353) -> 65 | AG38: =IF(SUM(AG43:AG353)<-1000,-100000000,SUM(AG43:AG353)) -> -36 | AH38: =COUNT(AH43:AH353) -> 78 | AI38: =IF(SUM(AI43:AI353)<-1000,-100000000,SUM(AI43:AI353)) -> 0 | AJ38: =COUNT(AJ43:AJ353) -> 1 | AQ38: =AVERAGE(AQ41:AQ44) -> 284.4296296
D39: =IF(D38=0,0.0001,AVERAGE(D43:D250)) -> 94.6 | F39: =IF(F38=0,0.0001,AVERAGE(F43:F250)) -> 65.2 | H39: =IF(H38=0,0.0001,AVERAGE(H43:H250)) -> 87.09811321 | J39: =IF(J38=0,0.0001,AVERAGE(J43:J250)) -> 74.33333333 | L39: =IF(L38=0,0.0001,AVERAGE(L43:L250)) -> 0.0001 | N39: =IF(N38=0,0.0001,AVERAGE(N43:N250)) -> 73 | P39: =IF(P38=0,0.0001,AVERAGE(P43:P250)) -> 91.91304348 | R39: =IF(R38=0,0.0001,AVERAGE(R43:R250)) -> 69.75 | T39: =IF(T38=0,0.0001,AVERAGE(T43:T250)) -> 94.6 | V39: =IF(V38=0,0.0001,AVERAGE(V43:V250)) -> 51.58333333 | X39: =IF(X38=0,0.0001,AVERAGE(X43:X250)) -> 79.26785714 | Z39: =IF(Z38=0,0.0001,AVERAGE(Z43:Z250)) -> 63 | AB39: =IF(AB38=0,0.0001,AVERAGE(AB43:AB250)) -> 69.57333333 | AD39: =IF(AD38=0,0.0001,AVERAGE(AD43:AD250)) -> 77.08333333 | AF39: =IF(AF38=0,0.0001,AVERAGE(AF43:AF250)) -> 77.23076923 | AH39: =IF(AH38=0,0.0001,AVERAGE(AH43:AH250)) -> 75.69230769 | AJ39: =IF(AJ38=0,0.0001,AVERAGE(AJ43:AJ250)) -> 73 | AQ39: =AVERAGE(AQ42:AQ45) -> 285.3333333
AQ40: =AVERAGE(AQ43:AQ46) -> 286.25 | AR40: =+AQ40/AQ41 -> 1.047426411
B41: Comentaris | C41: Rosa M | E41: Cyber X | G41: Jordi | I41: Joan | K41: Tito | M41: Sergi | O41: Carles | Q41: Ana B | S41: Anna P. | U41: Nin | W41: Núria | Y41: Manolo | AA41: Gemma | AC41: Sebas | AE41: Nogué | AG41: Grau | AI41: Mariajo | AK41: =COUNT(AK43:AK268) -> 114 | AL41: A | AM41: B | AN41: C | AP41: =SUM(AP43:AP98) -> 0 | AQ41: =AVERAGE(AQ49:AQ75) -> 273.2888889
C42: Premi | D42: Punts | E42: Premi | F42: Punts | G42: Premi | H42: Punts | I42: Premi | J42: Punts | K42: Premi | L42: Punts | M42: Premi | N42: Punts | O42: Premi | P42: Punts | Q42: Premi | R42: Punts | S42: Premi | T42: Punts | U42: Premi | V42: Punts | W42: Premi | X42: Punts | Y42: Premi | Z42: Punts | AA42: Premi | AB42: Punts | AC42: Premi | AD42: Punts | AE42: Premi | AF42: Punts | AG42: Premi | AH42: Punts | AI42: Premi | AJ42: Punts | AK42: Data | AL42: Timbes | AP42: Excés cyber
A43: 1 | G43: 4 | H43: 84 | K43: -10000 | W43: -4 | X43: 82 | AC43: -10 | AD43: 78 | AE43: 10 | AF43: 93 | AK43: 2020-10-18 | AL43: 26 | AM43: =+C43+E43+G43+I43++K43++M43+O43+Q43+S43+U43+W43+Y43+AI43+AA43+AG43+AC43+AE43 -> -10000 | AN43: =COUNT(C43:AJ43)/2 -> 4.5 | AO43: =+AM43/AN43 -> -2222.222222 | AQ43: =+D43+F43+H43+J43+L43+N43+P43+R43+T43+V43+X43+Z43+AH43+AJ43++AF43+AD43+AB43 -> 337
A44: =+A43+1 -> 2 | O44: -4 | P44: 48 | W44: 10 | X44: 103 | AA44: -10 | AB44: 33 | AC44: 4 | AD44: 59 | AK44: 2020-10-18 | AL44: 26 | AM44: 0 | AN44: 4 | AO44: 0 | AQ44: 243
A45: =+A44+1 -> 3 | O45: 4 | P45: 74 | W45: -4 | X45: 70 | AA45: -10 | AB45: 56 | AC45: 10 | AD45: 76 | AK45: 2020-10-18 | AL45: 26 | AM45: 0 | AN45: 4 | AO45: 0 | AQ45: 276
A46: 4 | O46: 10 | P46: 134 | W46: 4 | X46: 88 | AA46: -10 | AB46: 11 | AC46: -4 | AD46: 56 | AK46: 2020-10-18 | AL46: 26 | AM46: 0 | AN46: 4 | AO46: 0 | AQ46: 289
A47: 5 | G47: 4 | H47: 94 | W47: 10 | X47: 104 | AA47: -10 | AB47: 35 | AC47: -4 | AD47: 89 | AK47: 2020-10-20 | AL47: 29 | AM47: 0 | AN47: 4 | AO47: 0 | AQ47: 322
A48: 6 | G48: 0 | H48: 81 | W48: -10 | X48: 63 | AA48: 0 | AB48: 81 | AC48: 10 | AD48: 105 | AK48: 2020-10-22 | AL48: 33 | AM48: 0 | AN48: 4 | AO48: 0 | AQ48: 330
A49: 7 | G49: 10 | H49: 69 | W49: 4 | X49: 68 | AA49: -10 | AB49: 55 | AC49: -4 | AD49: 59 | AK49: 2020-10-22 | AL49: 33 | AM49: 0 | AN49: 4 | AO49: 0 | AQ49: 251
A50: 8 | AA50: 10 | AB50: 78 | AC50: -10 | AD50: 43 | AK50: 2020-10-23 | AL50: 34 | AM50: 0 | AN50: 2 | AO50: 0 | AQ50: =+D50+F50+H50+J50+L50+N50+P50+R50+T50+V50+X50+Z50+AH50+AJ50++AF50+AD50+AB50 -> 121
A51: 9 | AC51: -10 | AD51: 41 | AG51: 10 | AH51: 76 | AK51: 2020-10-23 | AL51: 34 | AM51: =+C51+E51+G51+I51++K51++M51+O51+Q51+S51+U51+W51+Y51+AI51+AA51+AG51+AC51+AE51 -> 0 | AN51: =COUNT(C51:AJ51)/2 -> 2 | AO51: =+AM51/AN51 -> 0 | AQ51: =+D51+F51+H51+J51+L51+N51+P51+R51+T51+V51+X51+Z51+AH51+AJ51++AF51+AD51+AB51 -> 117
A52: 10 | AA52: 10 | AB52: 15 | AG52: -10 | AH52: 14 | AK52: 2020-10-23 | AL52: 34 | AM52: 0 | AN52: 2 | AO52: 0 | AQ52: 29
A53: 11 | G53: 10 | H53: 80 | O53: 4 | P53: 71 | AA53: -10 | AB53: 48 | AG53: -4 | AH53: 67 | AK53: 2020-10-23 | AL53: 34 | AM53: 0 | AN53: 4 | AO53: 0 | AQ53: 266
A54: 12 | G54: 10 | H54: 116 | O54: 4 | P54: 103 | AA54: -10 | AB54: 24 | AE54: -4 | AF54: 57 | AK54: 2020-10-23 | AL54: 34 | AM54: 0 | AN54: 4 | AO54: 0 | AQ54: 300
A55: 13 | G55: 10 | H55: 94 | O55: 4 | P55: 92 | AA55: -10 | AB55: 32 | AE55: -4 | AF55: 62 | AK55: 2020-10-23 | AL55: 34 | AM55: 0 | AN55: 4 | AO55: 0 | AQ55: 280
A56: 14 | G56: 10 | H56: 81 | AA56: -10 | AB56: 35 | AC56: -4 | AD56: 46 | AE56: 4 | AF56: 63 | AK56: 2020-10-24 | AL56: 36 | AM56: 0 | AN56: 4 | AO56: 0 | AQ56: 225
A57: 15 | B57: P1-13-13-1. Reg. 0,4 F.O. | C57: 4 | D57: =212*0.4 -> 84.8 | G57: -4 | H57: =148*0.4 -> 59.2 | I57: 10 | J57: =215*0.4 -> 86 | S57: -10 | T57: =127*0.4 -> 50.8 | AK57: 2020-10-25 | AL57: 38 | AM57: 0 | AN57: 4 | AO57: 0 | AQ57: 280.8
A58: 16 | B58: P13-2 F.O | C58: 10 | D58: 102 | G58: 4 | H58: 98 | I58: -4 | J58: 94 | S58: -10 | T58: 89 | AK58: 2020-10-25 | AL58: 38 | AM58: 0 | AN58: 4 | AO58: 0 | AQ58: 383
A59: 17 | B59: P13-2 F.LL. | C59: 4 | D59: 97 | G59: -4 | H59: 72 | I59: -10 | J59: 43 | S59: 10 | T59: 144 | AK59: 2020-10-25 | AL59: 38 | AM59: 0 | AN59: 4 | AO59: 0 | AQ59: 356
A60: 18 | B60: Punts no anotats en acta. S'apunta mitjana | AA60: -4 | AB60: 42 | AC60: 4 | AD60: 65 | AE60: -10 | AF60: 69 | AG60: 10 | AH60: 52 | AK60: 2020-10-28 | AL60: 41 | AM60: 0 | AN60: 4 | AO60: 0 | AQ60: 228
A61: 19 | G61: -4 | H61: 65 | W61: 10 | X61: 97 | AA61: -10 | AB61: 57 | AE61: 4 | AF61: 69 | AK61: 2020-10-30 | AL61: 42 | AM61: 0 | AN61: 4 | AO61: 0 | AQ61: 288
A62: 20 | W62: -10 | X62: 61 | AA62: 10 | AB62: 82 | AC62: 4 | AD62: 81 | AE62: -4 | AF62: 69 | AK62: 2020-11-05 | AL62: 48 | AM62: 0 | AN62: 4 | AO62: 0 | AQ62: 293
A63: 21 | O63: 4 | P63: 70 | W63: -10 | X63: 47 | AA63: 10 | AB63: 90 | AC63: -4 | AD63: 67 | AK63: 2020-11-08 | AL63: 51 | AM63: 0 | AN63: 4 | AO63: 0 | AQ63: 274
A64: 22 | O64: 10 | P64: 103 | W64: 4 | X64: 52 | AA64: -4 | AB64: 44 | AC64: -10 | AD64: 20 | AK64: 2020-11-08 | AL64: 51 | AM64: 0 | AN64: 4 | AO64: 0 | AQ64: 219
A65: 23 | G65: 10 | H65: 98 | W65: 4 | X65: 82 | AA65: -10 | AB65: 55 | AC65: -4 | AD65: 57 | AK65: 2020-11-17 | AL65: 61 | AM65: 0 | AN65: 4 | AO65: 0 | AQ65: 292
A66: 24 | G66: 10 | H66: 100 | W66: 4 | X66: 81 | AA66: -4 | AB66: 67 | AE66: -10 | AF66: 55 | AK66: 2020-11-24 | AL66: 70 | AM66: 0 | AN66: 4 | AO66: 0 | AQ66: 303
A67: 25 | G67: 10 | H67: 107 | W67: -4 | X67: 69 | AA67: -10 | AB67: 59 | AE67: 4 | AF67: 75 | AK67: 2020-11-24 | AL67: 70 | AM67: 0 | AN67: 4 | AO67: 0 | AQ67: 310
A68: 26 | W68: -10 | X68: 58 | AA68: -4 | AB68: 68 | AE68: 10 | AF68: 111 | AG68: 4 | AH68: 90 | AK68: 2020-11-30 | AL68: 77 | AM68: 0 | AN68: 4 | AO68: 0 | AQ68: 327
A69: 27 | W69: -10 | X69: 60 | AC69: 10 | AD69: 130 | AE69: 4 | AF69: 116 | AG69: -4 | AH69: 74 | AK69: 2020-12-03 | AL69: 81 | AM69: 0 | AN69: 4 | AO69: 0 | AQ69: 380
A70: 28 | W70: 10 | X70: 93 | AA70: -10 | AB70: 22 | AE70: 4 | AF70: 81 | AG70: -4 | AH70: 45 | AK70: 2020-12-14 | AL70: 97 | AM70: 0 | AN70: 4 | AO70: 0 | AQ70: 241
A71: 29 | G71: 4 | H71: 88 | W71: -10 | X71: 58 | AC71: 10 | AD71: 91 | AG71: -4 | AH71: 83 | AK71: 2020-12-17 | AL71: 99 | AM71: 0 | AN71: 4 | AO71: 0 | AQ71: 320
A72: =+A71+1 -> 30 | G72: 10 | H72: 79 | W72: 4 | X72: 76 | AC72: -10 | AD72: 40 | AG72: -4 | AH72: 67 | AK72: 2020-12-17 | AL72: 99 | AM72: 0 | AN72: 4 | AO72: 0 | AQ72: 262
A73: 31 | G73: 10 | H73: 92 | W73: -4 | X73: 58 | AA73: -10 | AB73: 54 | AG73: 4 | AH73: 83 | AK73: 2020-12-18 | AL73: 100 | AM73: 0 | AN73: 4 | AO73: 0 | AQ73: 287
A74: 32 | G74: 4 | H74: 100 | W74: -10 | X74: 45 | AC74: -4 | AD74: 97 | AE74: 10 | AF74: 103 | AK74: 2020-12-29 | AL74: 117 | AM74: 0 | AN74: 4 | AO74: 0 | AQ74: 345
A75: 33 | G75: 4 | H75: 120 | W75: -4 | X75: 98 | AC75: 10 | AD75: 127 | AE75: -10 | AF75: 56 | AK75: 2020-12-29 | AL75: 117 | AM75: 0 | AN75: 4 | AO75: 0 | AQ75: 401
A76: 34 | W76: -4 | X76: 93 | AA76: -10 | AB76: 80 | AC76: 4 | AD76: 99 | AG76: 10 | AH76: 105 | AK76: 2021-01-09 | AL76: 132 | AM76: 0 | AN76: 4 | AO76: 0 | AQ76: 377
A77: 35 | W77: 4 | X77: 72 | AA77: 10 | AB77: 91 | AC77: -4 | AD77: 70 | AG77: -10 | AH77: 61 | AK77: 2021-01-09 | AL77: 132 | AM77: 0 | AN77: 4 | AO77: 0 | AQ77: 294
A78: 36 | O78: -4 | P78: 95 | AC78: 4 | AD78: 96 | AE78: 10 | AF78: 101 | AG78: -10 | AH78: 72 | AK78: 2021-01-16 | AL78: 140 | AM78: 0 | AN78: 4 | AO78: 0 | AQ78: 364
A79: 37 | G79: 10 | H79: 120 | AA79: -4 | AB79: 48 | AE79: 4 | AF79: 102 | AG79: -10 | AH79: 46 | AK79: 2021-02-05 | AL79: 163 | AM79: 0 | AN79: =COUNT(C79:AJ79)/2 -> 4 | AO79: =+AM79/AN79 -> 0 | AQ79: 316
A80: 38 | G80: 4 | H80: 85 | W80: 10 | X80: 118 | AA80: -4 | AB80: 80 | AE80: -10 | AF80: 44 | AK80: 2021-02-07 | AL80: 166 | AM80: 0 | AN80: 4 | AO80: 0 | AQ80: 327
A81: 39 | G81: -4 | H81: 66 | W81: 4 | X81: 80 | AE81: -10 | AF81: 38 | AG81: 10 | AH81: 131 | AK81: 2021-02-08 | AL81: 167 | AM81: 0 | AN81: 4 | AO81: 0 | AQ81: 315
A82: 40 | AA82: -10 | AB82: 47 | AC82: 4 | AD82: 99 | AE82: 10 | AF82: 104 | AG82: -4 | AH82: 72 | AK82: 2021-02-09 | AL82: 169 | AM82: 0 | AN82: 4 | AO82: 0 | AQ82: 322
A83: 41 | W83: 10 | X83: 88 | AA83: 4 | AB83: 78 | AE83: -4 | AF83: 69 | AG83: -10 | AH83: 68 | AK83: 2021-02-11 | AL83: 171 | AM83: 0 | AN83: 4 | AO83: 0 | AQ83: 303
A84: 42 | G84: 4 | H84: 63 | W84: -4 | X84: 45 | AA84: 10 | AB84: 80 | AG84: -10 | AH84: 33 | AK84: 2021-02-12 | AL84: 172 | AM84: 0 | AN84: 4 | AO84: 0 | AQ84: 221
A85: 43 | AA85: -10 | AB85: 66 | AC85: 4 | AD85: 97 | AE85: -4 | AF85: 81 | AG85: 10 | AH85: 107 | AK85: 2021-02-13 | AL85: 173 | AM85: 0 | AN85: 4 | AO85: 0 | AQ85: 351
A86: 44 | AA86: 4 | AB86: 61 | AC86: -4 | AD86: 60 | AE86: 10 | AF86: 71 | AG86: -10 | AH86: 47 | AK86: 2021-02-15 | AL86: 176 | AM86: 0 | AN86: 4 | AO86: 0 | AQ86: 239
A87: 45 | AA87: 10 | AB87: 102 | AC87: -10 | AD87: 43 | AE87: -4 | AF87: 88 | AG87: 4 | AH87: 90 | AK87: 2021-02-15 | AL87: 176 | AM87: 0 | AN87: 4 | AO87: 0 | AQ87: 323
A88: 46 | G88: 10 | H88: 124 | AA88: -4 | AB88: 81 | AE88: -10 | AF88: 59 | AG88: 4 | AH88: 95 | AK88: 2021-02-18 | AL88: 179 | AM88: 0 | AN88: 4 | AO88: 0 | AQ88: 359
A89: 47 | G89: 10 | H89: 95 | W89: -10 | X89: 45 | AA89: -4 | AB89: 57 | AG89: 4 | AH89: 68 | AK89: 2021-02-19 | AL89: 180 | AM89: 0 | AN89: 4 | AO89: 0 | AQ89: 265
A90: 48 | G90: -10 | H90: 46 | W90: 10 | X90: 105 | AA90: 4 | AB90: 85 | AC90: -4 | AD90: 80 | AK90: 2021-02-23 | AL90: 184 | AM90: 0 | AN90: 4 | AO90: 0 | AQ90: 316
A91: 49 | W91: 10 | X91: 97 | AA91: -4 | AB91: 59 | AE91: -10 | AF91: 33 | AG91: 4 | AH91: 82 | AK91: 2021-02-25 | AL91: 186 | AM91: 0 | AN91: 4 | AO91: 0 | AQ91: 271
A92: 50 | G92: 10 | H92: 106 | W92: 4 | X92: 80 | AE92: -10 | AF92: 59 | AG92: -4 | AH92: 71 | AK92: 2021-02-26 | AL92: 187 | AM92: 0 | AN92: 4 | AO92: 0 | AQ92: 316
A93: 51 | W93: -10 | X93: 56 | AA93: -4 | AB93: 75 | AE93: 4 | AF93: 80 | AG93: 10 | AH93: 107 | AK93: 2021-03-01 | AL93: 190 | AM93: 0 | AN93: 4 | AO93: 0 | AQ93: 318
A94: 52 | W94: -4 | X94: 69 | AA94: 10 | AB94: 110 | AE94: 4 | AF94: 87 | AG94: -10 | AH94: 56 | AK94: 2021-03-03 | AL94: 192 | AM94: 0 | AN94: 4 | AO94: 0 | AQ94: 322
A95: 53 | W95: -10 | X95: 71 | AA95: 4 | AB95: 93 | AE95: 10 | AF95: 115 | AG95: -4 | AH95: 83 | AK95: 2021-03-03 | AL95: 192 | AM95: 0 | AN95: 4 | AO95: 0 | AQ95: 362
A96: 54 | AA96: 4 | AB96: 85 | AC96: 10 | AD96: 105 | AE96: -4 | AF96: 84 | AG96: -10 | AH96: 56 | AK96: 2021-03-04 | AL96: 193 | AM96: 0 | AN96: 4 | AO96: 0 | AQ96: 330
A97: 55 | Q97: -4 | R97: 49 | AA97: -10 | AB97: 46 | AE97: 4 | AF97: 83 | AG97: 10 | AH97: 106 | AK97: 2021-03-10 | AL97: 198 | AM97: 0 | AN97: 4 | AO97: 0 | AQ97: 284
A98: 56 | Q98: 4 | R98: 96 | AA98: 10 | AB98: 114 | AE98: -10 | AF98: 57 | AG98: -4 | AH98: 60 | AK98: 2021-03-10 | AL98: 198 | AM98: 0 | AN98: 4 | AO98: 0 | AQ98: 327
A99: 57 | Q99: -10 | R99: 55 | AA99: -4 | AB99: 68 | AE99: 10 | AF99: 87 | AG99: 4 | AH99: 69 | AK99: 2021-03-10 | AL99: 198 | AM99: 0 | AN99: 4 | AO99: 0 | AQ99: 279
A100: 58 | G100: -10 | H100: 69 | AA100: 10 | AB100: 111 | AE100: 0 | AF100: 81 | AG100: 0 | AH100: 81 | AK100: 2021-03-11 | AL100: 199 | AM100: 0 | AN100: 4 | AO100: 0 | AQ100: 342
A101: 59 | G101: 10 | H101: 93 | Q101: 4 | R101: 82 | AA101: -4 | AB101: 35 | AG101: -10 | AH101: 25 | AK101: 2021-03-11 | AL101: 199 | AM101: 0 | AN101: 4 | AO101: 0 | AQ101: 235
A102: 60 | G102: 4 | H102: 79 | AA102: -10 | AB102: 36 | AE102: 10 | AF102: 91 | AG102: -4 | AH102: 69 | AK102: 2021-03-13 | AL102: 201 | AM102: 0 | AN102: 4 | AO102: 0 | AQ102: 275
A103: 61 | G103: -10 | H103: 75 | W103: 10 | X103: 121 | AC103: -4 | AD103: 85 | AG103: 4 | AH103: 91 | AK103: 2021-03-15 | AL103: 203 | AM103: 0 | AN103: 4 | AO103: 0 | AQ103: 372
A104: 62 | W104: -10 | X104: 47 | AA104: 4 | AB104: 94 | AE104: 10 | AF104: 110 | AG104: -4 | AH104: 66 | AK104: 2021-03-17 | AL104: 205 | AM104: 0 | AN104: 4 | AO104: 0 | AQ104: 317
A105: 63 | W105: -10 | X105: 47 | AA105: 7 | AB105: 83 | AE105: -4 | AF105: 73 | AG105: 7 | AH105: 83 | AK105: 2021-03-17 | AL105: 205 | AM105: 0 | AN105: 4 | AO105: 0 | AQ105: 286
A106: 64 | G106: 4 | H106: 73 | AA106: -4 | AB106: 64 | AE106: -10 | AF106: 32 | AG106: 10 | AH106: 94 | AK106: 2021-03-18 | AL106: 206 | AM106: 0 | AN106: 4 | AO106: 0 | AQ106: 263
A107: 65 | Q107: -4 | R107: 79 | AA107: 4 | AB107: 82 | AE107: -10 | AF107: 59 | AG107: 10 | AH107: 131 | AK107: 2021-03-21 | AL107: 209 | AM107: 0 | AN107: 4 | AO107: 0 | AQ107: 351
A108: 66 | W108: 10 | X108: 140 | AC108: -10 | AD108: 74 | AE108: 4 | AF108: 92 | AG108: -4 | AH108: 83 | AK108: 2021-03-24 | AL108: 212 | AM108: 0 | AN108: 4 | AO108: 0 | AQ108: 389
A109: =+A108+1 -> 67 | G109: -4 | H109: 83 | Q109: 7 | R109: 103 | W109: 7 | X109: 103 | AG109: -10 | AH109: 46 | AK109: 2021-03-25 | AL109: 213 | AM109: =+C109+E109+G109+I109++K109++M109+O109+Q109+S109+U109+W109+Y109+AI109+AA109+AG109+AC109+AE109 -> 0 | AN109: =COUNT(C109:AJ109)/2 -> 4 | AO109: =+AM109/AN109 -> 0 | AQ109: 335
A110: 68 | G110: 10 | H110: 74 | Q110: -4 | R110: 64 | W110: 4 | X110: 69 | AG110: -10 | AH110: 58 | AK110: 2021-03-25 | AL110: 213 | AM110: 0 | AN110: 4 | AO110: 0 | AQ110: 265
A111: 69 | G111: -4 | H111: 70 | AA111: -10 | AB111: 11 | AE111: 4 | AF111: 80 | AG111: 10 | AH111: 97 | AK111: 2021-04-03 | AL111: 224 | AM111: 0 | AN111: 4 | AO111: 0 | AQ111: 258
A112: 70 | G112: -10 | H112: 71 | AA112: 10 | AB112: 105 | AE112: -4 | AF112: 80 | AG112: 4 | AH112: 89 | AK112: 2021-04-03 | AL112: 224 | AM112: 0 | AN112: 4 | AO112: 0 | AQ112: 345
A113: 71 | AA113: 4 | AB113: 67 | AC113: -4 | AD113: 57 | AE113: -10 | AF113: 50 | AG113: 10 | AH113: 70 | AK113: 2021-04-04 | AL113: 225 | AM113: 0 | AN113: 4 | AO113: 0 | AQ113: 244
A114: 72 | Q114: -10 | R114: 74 | AC114: -4 | AD114: 94 | AE114: 10 | AF114: 106 | AG114: 4 | AH114: 95 | AK114: 2021-04-06 | AL114: 227 | AM114: 0 | AN114: 4 | AO114: 0 | AQ114: 369
A115: 73 | AA115: 4 | AB115: 103 | AC115: 10 | AD115: 112 | AE115: -10 | AF115: 73 | AG115: -4 | AH115: 79 | AK115: 2021-04-12 | AL115: 234 | AM115: 0 | AN115: 4 | AO115: 0 | AQ115: =+D115+F115+H115+J115+L115+N115+P115+R115+T115+V115+X115+Z115+AH115+AJ115++AF115+AD115+AB115 -> 367
A116: 74 | G116: 10 | H116: 106 | W116: -4 | X116: 67 | AE116: 4 | AF116: 81 | AG116: -10 | AH116: 54 | AK116: 2021-04-13 | AL116: 235 | AM116: 0 | AN116: 4 | AO116: 0 | AQ116: 308
A117: 75 | G117: 10 | H117: 97 | AA117: 4 | AB117: 80 | AE117: -7 | AF117: 73 | AG117: -7 | AH117: 73 | AK117: 2021-04-15 | AL117: 237 | AM117: 0 | AN117: 4 | AO117: 0 | AQ117: 323
A118: 76 | W118: 4 | X118: 78 | AA118: 10 | AB118: 107 | AE118: -4 | AF118: 73 | AG118: -10 | AH118: 70 | AK118: 2021-04-16 | AL118: 238 | AM118: 0 | AN118: 4 | AO118: 0 | AQ118: 328
A119: 77 | Q119: 4 | R119: 79 | AA119: -10 | AB119: 33 | AE119: 10 | AF119: 99 | AG119: -4 | AH119: 71 | AK119: 2021-04-18 | AL119: 241 | AM119: 0 | AN119: 4 | AO119: 0 | AQ119: 282
A120: 78 | Q120: -10 | R120: 55 | AA120: 10 | AB120: 93 | AE120: -4 | AF120: 77 | AG120: 4 | AH120: 82 | AK120: 2021-04-18 | AL120: 241 | AM120: 0 | AN120: 4 | AO120: 0 | AQ120: 307
A121: 79 | G121: 4 | H121: 95 | Q121: -10 | R121: 43 | AA121: -4 | AB121: 89 | AG121: 10 | AH121: 113 | AK121: 2021-04-18 | AL121: 241 | AM121: 0 | AN121: 4 | AO121: 0 | AQ121: 340
A122: 80 | G122: 4 | H122: 87 | Q122: -10 | R122: 57 | AA122: -4 | AB122: 86 | AG122: 10 | AH122: 89 | AK122: 2021-04-18 | AL122: 241 | AM122: =+C122+E122+G122+I122++K122++M122+O122+Q122+S122+U122+W122+Y122+AI122+AA122+AG122+AC122+AE122 -> 0 | AN122: =COUNT(C122:AJ122)/2 -> 4 | AO122: =+AM122/AN122 -> 0 | AQ122: 319
A123: 81 | G123: -4 | H123: 79 | AA123: 4 | AB123: 92 | AE123: -10 | AF123: 71 | AG123: 10 | AH123: 95 | AK123: 2021-04-19 | AL123: 242 | AM123: 0 | AN123: 4 | AO123: 0 | AQ123: 337
A124: 82 | G124: -4 | H124: 84 | Q124: 10 | R124: 108 | W124: -10 | X124: 70 | AA124: 4 | AB124: 96 | AK124: 2021-04-22 | AL124: 245 | AM124: 0 | AN124: 4 | AO124: 0 | AQ124: 358
A125: 83 | W125: 10 | X125: 93 | AA125: 4 | AB125: 82 | AE125: -4 | AF125: 69 | AG125: -10 | AH125: 57 | AK125: 2021-04-25 | AL125: 248 | AM125: 0 | AN125: 4 | AO125: 0 | AQ125: 301
A126: 84 | W126: 10 | X126: 116 | AA126: 4 | AB126: 114 | AE126: -10 | AF126: 48 | AG126: -4 | AH126: 83 | AK126: 2021-04-25 | AL126: 248 | AM126: 0 | AN126: 4 | AO126: 0 | AQ126: 361
A127: 85 | W127: 4 | X127: 81 | AA127: -10 | AB127: 59 | AE127: -4 | AF127: 68 | AG127: 10 | AH127: 116 | AK127: 2021-04-26 | AL127: 249 | AM127: 0 | AN127: 4 | AO127: 0 | AQ127: 324
A128: 86 | W128: 10 | X128: 127 | AA128: -4 | AB128: 84 | AE128: 4 | AF128: 117 | AG128: -10 | AH128: 48 | AK128: 2021-04-26 | AL128: 249 | AM128: 0 | AN128: 4 | AO128: 0 | AQ128: 376
A129: 87 | W129: 4 | X129: 102 | AA129: -10 | AB129: 68 | AE129: -4 | AF129: 73 | AG129: 10 | AH129: 117 | AK129: 2021-04-29 | AL129: 252 | AM129: 0 | AN129: 4 | AO129: 0 | AQ129: 360
A130: 88 | Q130: -10 | R130: 44 | W130: 10 | X130: 102 | AA130: -4 | AB130: 57 | AG130: 4 | AH130: 81 | AK130: 2021-04-29 | AL130: 252 | AM130: 0 | AN130: 4 | AO130: 0 | AQ130: 284
A131: 89 | Q131: -10 | R131: 12 | W131: 10 | X131: 98 | AA131: 4 | AB131: 90 | AG131: -4 | AH131: 83 | AK131: 2021-04-29 | AL131: 252 | AM131: 0 | AN131: 4 | AO131: 0 | AQ131: 283
A132: 90 | Q132: 4 | R132: 72 | W132: -10 | X132: 45 | AE132: -4 | AF132: 46 | AG132: 10 | AH132: 96 | AK132: 2021-05-03 | AL132: 257 | AM132: 0 | AN132: 4 | AO132: 0 | AQ132: 259
A133: 91 | G133: -4 | H133: 86 | Q133: -10 | R133: 82 | AE133: 4 | AF133: 92 | AG133: 10 | AH133: 97 | AK133: 2021-05-04 | AL133: 258 | AM133: 0 | AN133: 4 | AO133: 0 | AQ133: 357
A134: 92 | G134: 4 | H134: 107 | Q134: -4 | R134: 58 | AE134: 10 | AF134: 132 | AG134: -10 | AH134: 45 | AK134: 2021-05-04 | AL134: 258 | AM134: 0 | AN134: 4 | AO134: 0 | AQ134: 342
A135: 93 | G135: 10 | H135: 97 | Q135: -10 | R135: 47 | W135: 4 | X135: 71 | AG135: -4 | AH135: 56 | AK135: 2021-05-04 | AL135: 258 | AM135: 0 | AN135: 4 | AO135: 0 | AQ135: 271
A136: 94 | W136: 4 | X136: 78 | AA136: 10 | AB136: 85 | AE136: -10 | AF136: 56 | AG136: -4 | AH136: 59 | AK136: 2021-05-05 | AL136: 259 | AM136: 0 | AN136: 4 | AO136: 0 | AQ136: 278
A137: 95 | G137: 10 | H137: 90 | Q137: -4 | R137: 70 | AA137: 4 | AB137: 81 | AG137: -10 | AH137: 56 | AK137: 2021-05-06 | AL137: 260 | AM137: 0 | AN137: 4 | AO137: 0 | AQ137: 297
A138: 96 | G138: 4 | H138: 82 | Q138: -4 | R138: 58 | AA138: 10 | AB138: 114 | AG138: -10 | AH138: 34 | AK138: 2021-05-06 | AL138: 260 | AM138: 0 | AN138: 4 | AO138: 0 | AQ138: 288
A139: 97 | E139: 10 | F139: 108 | O139: -10 | P139: 74 | AE139: 4 | AF139: 82 | AG139: -4 | AH139: 78 | AK139: 2021-05-13 | AL139: 266 | AM139: 0 | AN139: 4 | AO139: 0 | AQ139: 342
A140: 98 | E140: -10 | F140: 35 | O140: 4 | P140: 89 | AE140: 10 | AF140: 106 | AG140: -4 | AH140: 83 | AK140: 2021-05-13 | AL140: 266 | AM140: 0 | AN140: 4 | AO140: 0 | AQ140: 313
A141: 99 | G141: 10 | H141: 86 | AA141: -10 | AB141: 69 | AE141: -4 | AF141: 82 | AG141: 4 | AH141: 84 | AK141: 2021-05-18 | AL141: 270 | AM141: 0 | AN141: 4 | AO141: 0 | AQ141: 321
A142: 100 | G142: -4 | H142: 97 | Q142: 10 | R142: 102 | AE142: -10 | AF142: 58 | AG142: 4 | AH142: 99 | AK142: 2021-06-05 | AL142: 282 | AM142: 0 | AN142: 4 | AO142: 0 | AQ142: 356
A143: 101 | G143: -10 | H143: 44 | Q143: 4 | R143: 91 | W143: 10 | X143: 108 | AG143: -4 | AH143: 64 | AK143: 2021-06-19 | AL143: 287 | AM143: 0 | AN143: 4 | AO143: 0 | AQ143: 307
A144: 102 | G144: 10 | H144: 122 | Q144: 4 | R144: 94 | W144: -10 | X144: 44 | AC144: -4 | AD144: 84 | AK144: 2021-07-13 | AL144: 300 | AM144: 0 | AN144: 4 | AO144: 0 | AQ144: 344
A145: 103 | G145: -4 | H145: 88 | M145: 0 | N145: 73 | O145: 10 | P145: 124 | U145: -10 | V145: 75 | AA145: 10 | AB145: 99 | AC145: 4 | AD145: 93 | AE145: -10 | AF145: 69 | AI145: 0 | AJ145: 73 | AK145: 2021-09-18 | AL145: 363 | AM145: 0 | AN145: 8 | AO145: 0 | AQ145: 694
A146: 104 | B146: Temps exhaurit amb 26p | E146: 4 | F146: 24 | O146: 10 | P146: 67 | U146: -10 | V146: -1 | Y146: -4 | Z146: 0 | AK146: 2021-10-12 | AL146: 374 | AM146: 0 | AN146: 4 | AO146: 0 | AQ146: 90
A147: 105 | E147: -4 | F147: 60 | O147: 10 | P147: 96 | U147: 4 | V147: 92 | Y147: -10 | Z147: 59 | AK147: 2021-10-14 | AL147: 375 | AM147: 0 | AN147: 4 | AO147: 0 | AQ147: 307
A148: 106 | O148: -4 | P148: 60 | U148: -10 | V148: 36 | Y148: 4 | Z148: 76 | AG148: 10 | AH148: 92 | AK148: 2021-10-16 | AL148: 376 | AM148: 0 | AN148: 4 | AO148: 0 | AQ148: 264
A149: 107 | O149: 10 | P149: 95 | U149: -10 | V149: 54 | Y149: 4 | Z149: 76 | AG149: -4 | AH149: 73 | AK149: 2021-10-18 | AL149: 377 | AM149: 0 | AN149: 4 | AO149: 0 | AQ149: 298
A150: 108 | E150: -4 | F150: 58 | O150: 10 | P150: 95 | U150: 4 | V150: 66 | Y150: -10 | Z150: 53 | AK150: 2021-10-19 | AL150: 378 | AM150: 0 | AN150: 4 | AO150: 0 | AQ150: 272
A151: 109 | O151: 10 | P151: 90 | U151: -10 | V151: 34 | Y151: 4 | Z151: 72 | AG151: -4 | AH151: 63 | AK151: 2021-10-20 | AL151: 379 | AM151: 0 | AN151: 4 | AO151: 0 | AQ151: 259
A152: 110 | E152: 4 | F152: 48 | O152: 10 | P152: 102 | U152: -4 | V152: 44 | Y152: -10 | Z152: 42 | AK152: 2021-10-26 | AL152: 383 | AM152: 0 | AN152: 4 | AO152: 0 | AQ152: 236
A153: 111 | E153: 4 | F153: 101 | O153: 10 | P153: 120 | U153: -10 | V153: 64 | Y153: -4 | Z153: 69 | AK153: 2021-10-27 | AL153: 384 | AM153: 0 | AN153: 4 | AO153: 0 | AQ153: 354
A154: 112 | E154: -4 | F154: 81 | O154: 4 | P154: 101 | U154: -10 | V154: 34 | Y154: 10 | Z154: 118 | AK154: 2021-10-28 | AL154: 385 | AM154: 0 | AN154: 4 | AO154: 0 | AQ154: 334
A155: 113 | E155: -10 | F155: 57 | O155: 10 | P155: 79 | U155: 4 | V155: 72 | Y155: -4 | Z155: 61 | AK155: 2021-10-29 | AL155: 386 | AM155: 0 | AN155: 4 | AO155: 0 | AQ155: 269
A156: 114 | E156: 4 | F156: 80 | O156: 10 | P156: 132 | U156: -10 | V156: 49 | Y156: -4 | Z156: 67 | AK156: 2021-10-30 | AL156: 387 | AM156: 0 | AN156: 4 | AO156: 0 | AQ156: 328
A157: 115 | AM157: 0 | AN157: 0 | AQ157: 0
A158: 116 | AM158: 0 | AN158: 0 | AQ158: 0
A159: 117 | AM159: 0 | AN159: 0 | AQ159: 0
A160: 118 | AM160: 0 | AN160: 0 | AQ160: 0
A161: 119 | AM161: 0 | AN161: 0 | AQ161: 0
A162: 120 | AM162: 0 | AN162: 0 | AQ162: 0
A163: 121 | AM163: 0 | AN163: 0 | AQ163: 0
A164: 122 | AM164: 0 | AN164: 0 | AQ164: 0
A165: 123 | AM165: 0 | AN165: 0 | AQ165: 0
A166: 124 | AM166: 0 | AN166: 0 | AQ166: 0
A167: 125 | AM167: 0 | AN167: 0 | AQ167: 0
A168: 126 | AM168: 0 | AN168: 0 | AQ168: 0
A169: 127 | AM169: 0 | AN169: 0 | AQ169: 0
A170: 128 | AM170: 0 | AN170: 0 | AQ170: 0
A171: 129 | AM171: 0 | AN171: 0 | AQ171: 0
A172: 130 | AM172: 0 | AN172: 0 | AQ172: 0
A173: =+A172+1 -> 131 | AM173: 0 | AN173: 0 | AQ173: 0
A174: 132 | AM174: 0 | AN174: 0 | AQ174: 0
A175: 133 | AM175: 0 | AN175: 0 | AQ175: 0
A176: 134 | AM176: 0 | AN176: 0 | AQ176: 0
A177: 135 | AM177: 0 | AN177: 0 | AQ177: 0
A178: 136 | AM178: 0 | AN178: 0 | AQ178: 0
A179: 137 | AM179: 0 | AN179: 0 | AQ179: =+D179+F179+H179+J179+L179+N179+P179+R179+T179+V179+X179+Z179+AH179+AJ179++AF179+AD179+AB179 -> 0
A180: 138 | AM180: 0 | AN180: 0 | AQ180: 0
A181: 139 | AM181: 0 | AN181: 0 | AQ181: 0
A182: 140 | AM182: 0 | AN182: 0 | AQ182: 0
A183: 141 | AM183: 0 | AN183: 0 | AQ183: 0
A184: 142 | AM184: 0 | AN184: 0 | AQ184: 0
A185: 143 | AM185: 0 | AN185: 0 | AQ185: 0
A186: 144 | AM186: =+C186+E186+G186+I186++K186++M186+O186+Q186+S186+U186+W186+Y186+AI186+AA186+AG186+AC186+AE186 -> 0 | AN186: =COUNT(C186:AJ186)/2 -> 0 | AO186: =+AM186/AN186 ->  | AQ186: 0
A187: 145 | AM187: 0 | AN187: 0 | AQ187: 0
A188: 146 | AM188: 0 | AN188: 0 | AQ188: 0
A189: 147 | AM189: 0 | AN189: 0 | AQ189: 0
A190: 148 | AM190: 0 | AN190: 0 | AQ190: 0
A191: 149 | AM191: 0 | AN191: 0 | AQ191: 0
A192: 150 | AM192: 0 | AN192: 0 | AQ192: 0
A193: 151 | AM193: 0 | AN193: 0 | AQ193: 0
A194: 152 | AM194: 0 | AN194: 0 | AQ194: 0
A195: 153 | AM195: 0 | AN195: 0 | AQ195: 0
A196: 154 | AM196: 0 | AN196: 0 | AQ196: 0
A197: 155 | AM197: 0 | AN197: 0 | AQ197: 0
A198: 156 | AM198: 0 | AN198: 0 | AQ198: 0
A199: 157 | AM199: 0 | AN199: 0 | AQ199: 0
A200: 158 | AM200: 0 | AN200: 0 | AQ200: 0
A201: 159 | AM201: 0 | AN201: 0 | AQ201: 0
... 49 more rows

Sheet King
A1: KING
A2: Mes
A3: =+GENERAL!B6 -> 12 | C3: =SUM(C5:C17) -> 0
C4: Premi | D4: Punts | E4: Partides | F4: General
A5: 1 | B5: Carles | C5: =+C$41 -> 86 | D5: =+D$42 -> 0.05882352941 | E5: =+D$41 -> 17 | F5: =+C$27 -> 80 | G5: =IF(E5<A$3/2,-1,1)*80+C5/1000 -> 80.086
A6: 2 | B6: Jordi | C6: =+G$41 -> 61 | D6: =+H$42 -> 1.81875 | E6: =+H$41 -> 16 | F6: =+G$27 -> 40 | G6: 80.061
A7: 3 | B7: Manolo | C7: =+AA$41 -> 31 | D7: =+AB$42 -> -3.173333333 | E7: =+AB$41 -> 15 | F7: =+AA$27 -> 20 | G7: 80.031
A8: 4 | B8: Sebas | C8: =+U$41 -> 20 | D8: =+V$42 -> -1.723529412 | E8: =+AD$41 -> 14 | F8: =+U$27 -> 10 | G8: 80.02
A9: 5 | B9: Núria | C9: =+AK$41 -> 12 | D9: =+AL$42 -> -1.336363636 | E9: =+AL$41 -> 11 | F9: =+AK$27 -> 5 | G9: 80.012
A10: 6 | B10: Montse | C10: =+Y$41 -> -30 | D10: =+Z$42 -> -2.716666667 | E10: =+Z$41 -> 9 | F10: =+Y$27 -> 0 | G10: 79.97
A11: 7 | B11: Cyber X | C11: =+Q$41 -> -28 | D11: =+R$42 -> -6.040909091 | E11: =+R$41 -> 11 | F11: =+Q$27 -> 0 | G11: 79.972
A12: 8 | B12: Gemma | C12: =+AC$41 -> -46 | D12: =+AD$42 -> -4.189285714 | E12: =+AD$41 -> 14 | F12: =+AC$27 -> 0 | G12: 79.954
A13: 9 | B13: Nin | C13: =+AE$41 -> -100 | D13: =+AF$42 -> -6.328125 | E13: =+AF$41 -> 16 | F13: =+AE$27 -> 0 | G13: 79.9
A14: 10 | B14: Òscar | C14: =+W$41 -> 4 | D14: =+X$42 -> 0 | E14: =+X$41 -> 4 | F14: =+W$27 -> 0 | G14: -79.996
A15: 11 | B15: Mariajo | C15: =+AM$41 -> -2 | D15: =+AN$42 -> 0 | E15: =+AN$41 -> 2 | F15: =+AM$27 -> 0 | G15: -80.002
A16: 12 | B16: Grau | C16: =+AG$41 -> -2 | D16: =+AH$42 -> -4.866666667 | E16: =+AH$41 -> 3 | F16: =+AG$27 -> 0 | G16: -80.002
A17: 13 | B17: Sergi | C17: =+M$41 -> -6 | D17: =+N$42 -> -1.5 | E17: =+N$41 -> 2 | F17: =+M$27 -> 0 | G17: -80.006
A18: 14 | B18: Tito | C18: =+K$41 -> -100000000 | D18: =+L$42 -> 0.0001 | E18: =+L$41 -> 0 | F18: =+K$27 -> 0 | G18: =IF(E18<A$3/2,-1,1)*80+C18/1000 -> -100080
A19: 15 | B19: Anna P. | C19: =+O$41 -> -100000000 | D19: =+P$42 -> 0.0001 | E19: =+P$41 -> 0 | F19: =+O$27 -> 0 | G19: -100080
A20: 16 | B20: Rosa M. | C20: =+E$41 -> -100000000 | D20: =+F$42 -> 0.0001 | E20: =+F$41 -> 0 | F20: =+E$27 -> 0 | G20: -100080
A21: 17 | B21: Angie | C21: =+S$41 -> -100000000 | D21: =+T$42 -> 0.0001 | E21: =+T$41 -> 0 | F21: =+S$27 -> 0 | G21: -100080
A22: 18 | B22: Goretti | C22: =+AI$41 -> -100000000 | D22: =+AJ$42 -> 0.0001 | E22: =+AJ$41 -> 0 | F22: =+AI$27 -> 0 | G22: -100080
A23: 19 | B23: Joan | C23: =+I$41 -> -100000000 | D23: =+J$42 -> 0.0001 | E23: =+J$41 -> 0 | F23: =+I$27 -> 0 | G23: -100080
B27: General | C27: =+C28*C29 -> 80 | D27: =+D28*D29 -> 17 | E27: 0 | F27: 0 | G27: 40 | H27: 16 | I27: 0 | J27: 0 | K27: 0 | L27: 0 | M27: 0 | N27: 2 | O27: 0 | P27: 0 | Q27: 0 | R27: 11 | S27: 0 | T27: 0 | U27: 10 | V27: 17 | W27: 0 | X27: 4 | Y27: =+Y28*Y29 -> 0 | Z27: 9 | AA27: 20 | AB27: 15 | AC27: 0 | AD27: 14 | AE27: 0 | AF27: 16 | AG27: 0 | AH27: 3 | AI27: 0 | AJ27: 0 | AK27: 5 | AL27: 11 | AM27: 0 | AN27: 2
C28: =IF($B40>3,1,0) -> 1 | D28: =IF($B40>3,1,0) -> 1 | E28: =IF($B40>3,1,0) -> 1 | F28: 1 | G28: 1 | H28: 1 | I28: 1 | J28: 1 | K28: 1 | L28: 1 | M28: 1 | N28: 1 | O28: 1 | P28: 1 | Q28: 1 | R28: 1 | S28: 1 | T28: 1 | U28: 1 | V28: 1 | W28: 1 | X28: 1 | Y28: =IF($B40>3,1,0) -> 1 | Z28: 1 | AA28: 1 | AB28: 1 | AC28: 1 | AD28: 1 | AE28: 1 | AF28: 1 | AG28: 1 | AH28: 1 | AI28: 1 | AJ28: 1 | AK28: 1 | AL28: 1 | AM28: 1 | AN28: 1
C29: =MAX(C30:C34) -> 80 | D29: =+D41 -> 17 | E29: =MAX(E30:E34) -> 0 | F29: =+F41 -> 0 | G29: =MAX(G30:G34) -> 40 | H29: =+H41 -> 16 | I29: =MAX(I30:I34) -> 0 | J29: =+J41 -> 0 | K29: =MAX(K30:K34) -> 0 | L29: =+L41 -> 0 | M29: =MAX(M30:M34) -> 0 | N29: =+N41 -> 2 | O29: =MAX(O30:O34) -> 0 | P29: =+P41 -> 0 | Q29: =MAX(Q30:Q34) -> 0 | R29: =+R41 -> 11 | S29: =MAX(S30:S34) -> 0 | T29: =+T41 -> 0 | U29: =MAX(U30:U34) -> 10 | V29: =+V41 -> 17 | W29: =MAX(W30:W34) -> 0 | X29: =+X41 -> 4 | Y29: =MAX(Y30:Y34) -> 0 | Z29: =+Z41 -> 9 | AA29: =MAX(AA30:AA34) -> 20 | AB29: =+AB41 -> 15 | AC29: =MAX(AC30:AC34) -> 0 | AD29: =+AD41 -> 14 | AE29: =MAX(AE30:AE34) -> 0 | AF29: =+AF41 -> 16 | AG29: =MAX(AG30:AG34) -> 0 | AH29: =+AH41 -> 3 | AI29: =MAX(AI30:AI34) -> 0 | AJ29: =+AJ41 -> 0 | AK29: =MAX(AK30:AK34) -> 5 | AL29: =+AL41 -> 11 | AM29: =MAX(AM30:AM34) -> 0 | AN29: =+AN41 -> 2
C30: =IF(C$35=5,5,0) -> 0 | E30: =IF(E$35=5,5,0) -> 0 | G30: =IF(G$35=5,5,0) -> 0 | I30: =IF(I$35=5,5,0) -> 0 | K30: =IF(K$35=5,5,0) -> 0 | M30: =IF(M$35=5,5,0) -> 0 | O30: =IF(O$35=5,5,0) -> 0 | Q30: =IF(Q$35=5,5,0) -> 0 | S30: =IF(S$35=5,5,0) -> 0 | U30: =IF(U$35=5,5,0) -> 0 | W30: =IF(W$35=5,5,0) -> 0 | Y30: =IF(Y$35=5,5,0) -> 0 | AA30: =IF(AA$35=5,5,0) -> 0 | AC30: =IF(AC$35=5,5,0) -> 0 | AE30: =IF(AE$35=5,5,0) -> 0 | AG30: =IF(AG$35=5,5,0) -> 0 | AI30: =IF(AI$35=5,5,0) -> 0 | AK30: =IF(AK$35=5,5,0) -> 5 | AM30: =IF(AM$35=5,5,0) -> 0
C31: =IF(C$35=4,10,0) -> 0 | E31: =IF(E$35=4,10,0) -> 0 | G31: =IF(G$35=4,10,0) -> 0 | I31: =IF(I$35=4,10,0) -> 0 | K31: =IF(K$35=4,10,0) -> 0 | M31: =IF(M$35=4,10,0) -> 0 | O31: =IF(O$35=4,10,0) -> 0 | Q31: =IF(Q$35=4,10,0) -> 0 | S31: =IF(S$35=4,10,0) -> 0 | U31: =IF(U$35=4,10,0) -> 10 | W31: =IF(W$35=4,10,0) -> 0 | Y31: =IF(Y$35=4,10,0) -> 0 | AA31: =IF(AA$35=4,10,0) -> 0 | AC31: =IF(AC$35=4,10,0) -> 0 | AE31: =IF(AE$35=4,10,0) -> 0 | AG31: =IF(AG$35=4,10,0) -> 0 | AI31: =IF(AI$35=4,10,0) -> 0 | AK31: =IF(AK$35=4,10,0) -> 0 | AM31: =IF(AM$35=4,10,0) -> 0
C32: =IF(C$35=3,20,0) -> 0 | E32: =IF(E$35=3,20,0) -> 0 | G32: =IF(G$35=3,20,0) -> 0 | I32: =IF(I$35=3,20,0) -> 0 | K32: =IF(K$35=3,20,0) -> 0 | M32: =IF(M$35=3,20,0) -> 0 | O32: =IF(O$35=3,20,0) -> 0 | Q32: =IF(Q$35=3,20,0) -> 0 | S32: =IF(S$35=3,20,0) -> 0 | U32: =IF(U$35=3,20,0) -> 0 | W32: =IF(W$35=3,20,0) -> 0 | Y32: =IF(Y$35=3,20,0) -> 0 | AA32: =IF(AA$35=3,20,0) -> 20 | AC32: =IF(AC$35=3,20,0) -> 0 | AE32: =IF(AE$35=3,20,0) -> 0 | AG32: =IF(AG$35=3,20,0) -> 0 | AI32: =IF(AI$35=3,20,0) -> 0 | AK32: =IF(AK$35=3,20,0) -> 0 | AM32: =IF(AM$35=3,20,0) -> 0
C33: =IF(C$35=2,40,0) -> 0 | E33: =IF(E$35=2,40,0) -> 0 | G33: =IF(G$35=2,40,0) -> 40 | I33: =IF(I$35=2,40,0) -> 0 | K33: =IF(K$35=2,40,0) -> 0 | M33: =IF(M$35=2,40,0) -> 0 | O33: =IF(O$35=2,40,0) -> 0 | Q33: =IF(Q$35=2,40,0) -> 0 | S33: =IF(S$35=2,40,0) -> 0 | U33: =IF(U$35=2,40,0) -> 0 | W33: =IF(W$35=2,40,0) -> 0 | Y33: =IF(Y$35=2,40,0) -> 0 | AA33: =IF(AA$35=2,40,0) -> 0 | AC33: =IF(AC$35=2,40,0) -> 0 | AE33: =IF(AE$35=2,40,0) -> 0 | AG33: =IF(AG$35=2,40,0) -> 0 | AI33: =IF(AI$35=2,40,0) -> 0 | AK33: =IF(AK$35=2,40,0) -> 0 | AM33: =IF(AM$35=2,40,0) -> 0
C34: =IF(C$35=1,80,0) -> 80 | E34: =IF(E$35=1,80,0) -> 0 | G34: =IF(G$35=1,80,0) -> 0 | I34: =IF(I$35=1,80,0) -> 0 | K34: =IF(K$35=1,80,0) -> 0 | M34: =IF(M$35=1,80,0) -> 0 | O34: =IF(O$35=1,80,0) -> 0 | Q34: =IF(Q$35=1,80,0) -> 0 | S34: =IF(S$35=1,80,0) -> 0 | U34: =IF(U$35=1,80,0) -> 0 | W34: =IF(W$35=1,80,0) -> 0 | Y34: =IF(Y$35=1,80,0) -> 0 | AA34: =IF(AA$35=1,80,0) -> 0 | AC34: =IF(AC$35=1,80,0) -> 0 | AE34: =IF(AE$35=1,80,0) -> 0 | AG34: =IF(AG$35=1,80,0) -> 0 | AI34: =IF(AI$35=1,80,0) -> 0 | AK34: =IF(AK$35=1,80,0) -> 0 | AM34: =IF(AM$35=1,80,0) -> 0
C35: =RANK(C36,$C36:$BG36)*C40 -> 1 | E35: =RANK(E36,$C36:$BG36)*E40 -> 0 | G35: =RANK(G36,$C36:$BG36)*G40 -> 2 | I35: =RANK(I36,$C36:$BG36)*I40 -> 0 | K35: =RANK(K36,$C36:$BG36)*K40 -> 0 | M35: =RANK(M36,$C36:$BG36)*M40 -> 0 | O35: =RANK(O36,$C36:$BG36)*O40 -> 0 | Q35: =RANK(Q36,$C36:$BG36)*Q40 -> 6 | S35: =RANK(S36,$C36:$BG36)*S40 -> 0 | U35: =RANK(U36,$C36:$BG36)*U40 -> 4 | W35: =RANK(W36,$C36:$BG36)*W40 -> 0 | Y35: =RANK(Y36,$C36:$BG36)*Y40 -> 7 | AA35: =RANK(AA36,$C36:$BG36)*AA40 -> 3 | AC35: =RANK(AC36,$C36:$BG36)*AC40 -> 8 | AE35: =RANK(AE36,$C36:$BG36)*AE40 -> 9 | AG35: =RANK(AG36,$C36:$BG36)*AG40 -> 0 | AI35: =RANK(AI36,$C36:$BG36)*AI40 -> 0 | AK35: =RANK(AK36,$C36:$BG36)*AK40 -> 5 | AM35: =RANK(AM36,$C36:$BG36)*AM40 -> 0
C36: =SUM(C37:C39) -> 86108.88235 | E36: =SUM(E37:E39) -> -101000000 | G36: =SUM(G37:G39) -> 61258.875 | I36: =SUM(I37:I39) -> -101000000 | K36: =SUM(K37:K39) -> -101000000 | M36: =SUM(M37:M39) -> -1000154 | O36: =SUM(O37:O39) -> -101000000 | Q36: =SUM(Q37:Q39) -> -28621.09091 | S36: =SUM(S37:S39) -> -101000000 | U36: =SUM(U37:U39) -> 19864.64706 | W36: =SUM(W37:W39) -> -999992 | Y36: =SUM(Y37:Y39) -> -30292.66667 | AA36: =SUM(AA37:AA39) -> 30728.66667 | AC36: =SUM(AC37:AC39) -> -46450.92857 | AE36: =SUM(AE37:AE39) -> -100716.8125 | AG36: =SUM(AG37:AG39) -> -1000485.667 | AI36: =SUM(AI37:AI39) -> -101000000 | AK36: =SUM(AK37:AK39) -> 11889.36364 | AM36: =SUM(AM37:AM39) -> -1000000
C37: =+D41 -> 17 | E37: =+F41 -> 0 | G37: =+H41 -> 16 | I37: =+J41 -> 0 | K37: =+L41 -> 0 | M37: =+N41 -> 2 | O37: =+P41 -> 0 | Q37: =+R41 -> 11 | S37: =+T41 -> 0 | U37: =+V41 -> 17 | W37: =+X41 -> 4 | Y37: =+Z41 -> 9 | AA37: =+AB41 -> 15 | AC37: =+AD41 -> 14 | AE37: =+AF41 -> 16 | AG37: =+AH41 -> 3 | AI37: =+AJ41 -> 0 | AK37: =+AL41 -> 11 | AM37: =+AN41 -> 2
C38: =+D42*100 -> 5.882352941 | E38: =+F42*100 -> 0.01 | G38: =+H42*100 -> 181.875 | I38: =+J42*100 -> 0.01 | K38: =+L42*100 -> 0.01 | M38: =+N42*100 -> -150 | O38: =+P42*100 -> 0.01 | Q38: =+R42*100 -> -604.0909091 | S38: =+T42*100 -> 0.01 | U38: =+V42*100 -> -172.3529412 | W38: =+X42*100 -> 0 | Y38: =+Z42*100 -> -271.6666667 | AA38: =+AB42*100 -> -317.3333333 | AC38: =+AD42*100 -> -418.9285714 | AE38: =+AF42*100 -> -632.8125 | AG38: =+AH42*100 -> -486.6666667 | AI38: =+AJ42*100 -> 0.01 | AK38: =+AL42*100 -> -133.6363636 | AM38: =+AN42*100 -> 0
C39: =IF(C40=1,C41*C40*1000+C41,-1000000+C41) -> 86086 | E39: =IF(E40=1,E41*E40*1000+E41,-1000000+E41) -> -101000000 | G39: =IF(G40=1,G41*G40*1000+G41,-1000000+G41) -> 61061 | I39: =IF(I40=1,I41*I40*1000+I41,-1000000+I41) -> -101000000 | K39: =IF(K40=1,K41*K40*1000+K41,-1000000+K41) -> -101000000 | M39: =IF(M40=1,M41*M40*1000+M41,-1000000+M41) -> -1000006 | O39: =IF(O40=1,O41*O40*1000+O41,-1000000+O41) -> -101000000 | Q39: =IF(Q40=1,Q41*Q40*1000+Q41,-1000000+Q41) -> -28028 | S39: =IF(S40=1,S41*S40*1000+S41,-1000000+S41) -> -101000000 | U39: =IF(U40=1,U41*U40*1000+U41,-1000000+U41) -> 20020 | W39: =IF(W40=1,W41*W40*1000+W41,-1000000+W41) -> -999996 | Y39: =IF(Y40=1,Y41*Y40*1000+Y41,-1000000+Y41) -> -30030 | AA39: =IF(AA40=1,AA41*AA40*1000+AA41,-1000000+AA41) -> 31031 | AC39: =IF(AC40=1,AC41*AC40*1000+AC41,-1000000+AC41) -> -46046 | AE39: =IF(AE40=1,AE41*AE40*1000+AE41,-1000000+AE41) -> -100100 | AG39: =IF(AG40=1,AG41*AG40*1000+AG41,-1000000+AG41) -> -1000002 | AI39: =IF(AI40=1,AI41*AI40*1000+AI41,-1000000+AI41) -> -101000000 | AK39: =IF(AK40=1,AK41*AK40*1000+AK41,-1000000+AK41) -> 12012 | AM39: =IF(AM40=1,AM41*AM40*1000+AM41,-1000000+AM41) -> -1000002
A40: Classificats | B40: =SUM(C40:AM40) -> 9 | C40: =IF(D41>=$A3/2,1,0) -> 1 | E40: =IF(F41>=$A3/2,1,0) -> 0 | G40: =IF(H41>=$A3/2,1,0) -> 1 | I40: =IF(J41>=$A3/2,1,0) -> 0 | K40: =IF(L41>=$A3/2,1,0) -> 0 | M40: =IF(N41>=$A3/2,1,0) -> 0 | O40: =IF(P41>=$A3/2,1,0) -> 0 | Q40: =IF(R41>=$A3/2,1,0) -> 1 | S40: =IF(T41>=$A3/2,1,0) -> 0 | U40: =IF(V41>=$A3/2,1,0) -> 1 | W40: =IF(X41>=$A3/2,1,0) -> 0 | Y40: =IF(Z41>=$A3/2,1,0) -> 1 | AA40: =IF(AB41>=$A3/2,1,0) -> 1 | AC40: =IF(AD41>=$A3/2,1,0) -> 1 | AE40: =IF(AF41>=$A3/2,1,0) -> 1 | AG40: =IF(AH41>=$A3/2,1,0) -> 0 | AI40: =IF(AJ41>=$A3/2,1,0) -> 0 | AK40: =IF(AL41>=$A3/2,1,0) -> 1 | AM40: =IF(AN41>=$A3/2,1,0) -> 0
C41: =IF(SUM(C46:C303)<-1000,-100000000,SUM(C46:C303)) -> 86 | D41: =COUNT(D46:D303) -> 17 | E41: =IF(SUM(E46:E303)<-1000,-100000000,SUM(E46:E303)) -> -100000000 | F41: =COUNT(F46:F303) -> 0 | G41: =IF(SUM(G46:G303)<-1000,-100000000,SUM(G46:G303)) -> 61 | H41: =COUNT(H46:H303) -> 16 | I41: =IF(SUM(I46:I303)<-1000,-100000000,SUM(I46:I303)) -> -100000000 | J41: =COUNT(J46:J303) -> 0 | K41: =IF(SUM(K46:K303)<-1000,-100000000,SUM(K46:K303)) -> -100000000 | L41: =COUNT(L46:L303) -> 0 | M41: =IF(SUM(M46:M303)<-1000,-100000000,SUM(M46:M303)) -> -6 | N41: =COUNT(N46:N303) -> 2 | O41: =IF(SUM(O46:O303)<-1000,-100000000,SUM(O46:O303)) -> -100000000 | P41: =COUNT(P46:P303) -> 0 | Q41: =IF(SUM(Q46:Q303)<-1000,-100000000,SUM(Q46:Q303)) -> -28 | R41: =COUNT(R46:R303) -> 11 | S41: =IF(SUM(S46:S303)<-1000,-100000000,SUM(S46:S303)) -> -100000000 | T41: =COUNT(T46:T303) -> 0 | U41: =IF(SUM(U46:U303)<-1000,-100000000,SUM(U46:U303)) -> 20 | V41: =COUNT(V46:V303) -> 17 | W41: =IF(SUM(W46:W303)<-1000,-100000000,SUM(W46:W303)) -> 4 | X41: =COUNT(X46:X303) -> 4 | Y41: =IF(SUM(Y46:Y303)<-1000,-100000000,SUM(Y46:Y303)) -> -30 | Z41: =COUNT(Z46:Z303) -> 9 | AA41: =IF(SUM(AA46:AA303)<-1000,-100000000,SUM(AA46:AA303)) -> 31 | AB41: =COUNT(AB46:AB303) -> 15 | AC41: =IF(SUM(AC46:AC303)<-1000,-100000000,SUM(AC46:AC303)) -> -46 | AD41: =COUNT(AD46:AD303) -> 14 | AE41: =IF(SUM(AE46:AE303)<-1000,-100000000,SUM(AE46:AE303)) -> -100 | AF41: =COUNT(AF46:AF303) -> 16 | AG41: =IF(SUM(AG46:AG303)<-1000,-100000000,SUM(AG46:AG303)) -> -2 | AH41: =COUNT(AH46:AH303) -> 3 | AI41: =IF(SUM(AI46:AI303)<-1000,-100000000,SUM(AI46:AI303)) -> -100000000 | AJ41: =COUNT(AJ46:AJ303) -> 0 | AK41: =IF(SUM(AK46:AK303)<-1000,-100000000,SUM(AK46:AK303)) -> 12 | AL41: =COUNT(AL46:AL303) -> 11 | AM41: =IF(SUM(AM46:AM303)<-1000,-100000000,SUM(AM46:AM303)) -> -2 | AN41: =COUNT(AN46:AN303) -> 2
D42: =IF(D41=0,0.0001,AVERAGE(D46:D200)) -> 0.05882352941 | F42: =IF(F41=0,0.0001,AVERAGE(F46:F200)) -> 0.0001 | H42: =IF(H41=0,0.0001,AVERAGE(H46:H200)) -> 1.81875 | J42: =IF(J41=0,0.0001,AVERAGE(J46:J200)) -> 0.0001 | L42: =IF(L41=0,0.0001,AVERAGE(L46:L200)) -> 0.0001 | N42: =IF(N41=0,0.0001,AVERAGE(N46:N200)) -> -1.5 | P42: =IF(P41=0,0.0001,AVERAGE(P46:P200)) -> 0.0001 | R42: =IF(R41=0,0.0001,AVERAGE(R46:R200)) -> -6.040909091 | T42: =IF(T41=0,0.0001,AVERAGE(T46:T200)) -> 0.0001 | V42: =IF(V41=0,0.0001,AVERAGE(V46:V200)) -> -1.723529412 | X42: =IF(X41=0,0.0001,AVERAGE(X46:X200)) -> 0 | Z42: =IF(Z41=0,0.0001,AVERAGE(Z46:Z200)) -> -2.716666667 | AB42: =IF(AB41=0,0.0001,AVERAGE(AB46:AB200)) -> -3.173333333 | AD42: =IF(AD41=0,0.0001,AVERAGE(AD46:AD200)) -> -4.189285714 | AF42: =IF(AF41=0,0.0001,AVERAGE(AF46:AF200)) -> -6.328125 | AH42: =IF(AH41=0,0.0001,AVERAGE(AH46:AH200)) -> -4.866666667 | AJ42: =IF(AJ41=0,0.0001,AVERAGE(AJ46:AJ200)) -> 0.0001 | AL42: =IF(AL41=0,0.0001,AVERAGE(AL46:AL200)) -> -1.336363636 | AN42: =IF(AN41=0,0.0001,AVERAGE(AN46:AN200)) -> 0
AO43: =MAX(AP46:AP200) -> 387
B44: Nº partida | C44: Carles | E44: Rosa M. | G44: Jordi | I44: Joan | K44: Tito | M44: Sergi | O44: Anna P. | Q44: Cyber X | S44: Angie | U44: Sebas | W44: Òscar | Y44: Montse | AA44: Manolo | AC44: Gemma | AE44: Nin | AG44: Grau | AI44: Goretti | AK44: Núria | AM44: Mariajo | AO44: =COUNT(AO46:AO218) -> 33 | AP44: A | AQ44: B | AR44: C
C45: Premi | D45: Punts | E45: Premi | F45: Punts | G45: Premi | H45: Punts | I45: Premi | J45: Punts | K45: Premi | L45: Punts | M45: Premi | N45: Punts | O45: Premi | P45: Punts | Q45: Premi | R45: Punts | S45: Premi | T45: Punts | U45: Premi | V45: Punts | W45: Premi | X45: Punts | Y45: Premi | Z45: Punts | AA45: Premi | AB45: Punts | AC45: Premi | AD45: Punts | AE45: Premi | AF45: Punts | AG45: Premi | AH45: Punts | AI45: Premi | AJ45: Punts | AK45: Premi | AL45: Punts | AM45: Premi | AN45: Punts | AO45: Data | AP45: Timba
A46: 1 | E46: -10000000 | G46: 10 | H46: 6 | I46: -10000000 | K46: -10000000 | O46: -10000000 | S46: -10000000 | U46: -5 | V46: -13 | Y46: -10 | Z46: -17 | AC46: 0 | AD46: 1 | AI46: -10000000 | AK46: 5 | AL46: 5 | AO46: 2021-08-31 | AP46: 344 | AQ46: =+C46+E46+G46+I46++K46++M46+O46+Q46+S46+U46+W46+AK46+AM46+Y46+AC46+AE46+AG46+AI46+AA46 -> -60000000 | AR46: =+D46+F46+H46+J46++L46++N46+P46+R46+T46+V46+X46+AL46+AN46+Z46+AD46+AF46+AH46+AJ46+AB46 -> -18 | AS46: =COUNT(C46:AN46)/2 -> 8 | AT46: -10000000
A47: =+A46+1 -> 2 | G47: -4 | H47: -4 | U47: 4 | V47: -2 | AC47: -10 | AD47: -5 | AK47: 10 | AL47: 10 | AO47: 2021-09-02 | AP47: 346 | AQ47: 0 | AR47: -1 | AS47: 4 | AT47: =+AR47/AS47 -> -0.25
A48: =+A47+1 -> 3 | G48: -10 | H48: -6 | U48: -4 | V48: -1 | AC48: 4 | AD48: 2 | AK48: 10 | AL48: 4 | AO48: 2021-09-02 | AP48: 346 | AQ48: 0 | AR48: -1 | AS48: 4 | AT48: -0.25
A49: 4 | G49: -5 | H49: 0 | U49: 5 | V49: 4 | W49: 10 | X49: 7 | Y49: 0 | Z49: 3 | AC49: -10 | AD49: -12 | AO49: 2021-09-05 | AP49: 349 | AQ49: 0 | AR49: 2 | AS49: 5 | AT49: 0.4
A50: =+A49+1 -> 5 | U50: -4 | V50: -6 | W50: 4 | X50: 2 | Y50: 10 | Z50: 11 | AC50: -10 | AD50: -8 | AO50: 2021-09-05 | AP50: 349 | AQ50: 0 | AR50: -1 | AS50: 4 | AT50: -0.25
A51: 6 | U51: 4 | V51: -2.85 | Y51: -10 | Z51: -6.45 | AC51: 10 | AD51: 1.4 | AK51: -4 | AL51: -5.1 | AO51: 2021-09-07 | AP51: 352 | AQ51: 0 | AR51: -13 | AS51: 4 | AT51: -3.25
A52: 7 | G52: 10 | H52: 3.8 | U52: -4 | V52: -5.85 | AC52: -10 | AD52: -7.15 | AK52: 4 | AL52: -3.8 | AO52: 2021-09-07 | AP52: 352 | AQ52: 0 | AR52: -13 | AS52: 4 | AT52: -3.25
A53: 8 | G53: 10 | H53: 1.3 | U53: 4 | V53: -2.6 | AC53: -10 | AD53: -7.9 | AK53: -4 | AL53: -3.8 | AO53: 2021-09-07 | AP53: 352 | AQ53: 0 | AR53: -13 | AS53: 4 | AT53: -3.25
A54: 9 | U54: -10 | V54: -8 | AC54: 10 | AD54: 3 | AK54: 0 | AL54: -3 | AO54: 2021-09-09 | AP54: 354 | AQ54: 0 | AR54: -8 | AS54: 3 | AT54: -2.666666667
A55: 10 | G55: 10 | H55: 6 | U55: -10 | V55: -5 | Y55: 0 | Z55: 0 | AC55: -5 | AD55: -2 | AK55: 5 | AL55: 3 | AO55: 2021-09-09 | AP55: 354 | AQ55: 0 | AR55: 2 | AS55: 5 | AT55: 0.4
A56: 11 | G56: -10 | H56: -10 | U56: 10 | V56: 7 | AK56: 0 | AL56: -6 | AO56: 2021-09-16 | AP56: 361 | AQ56: 0 | AR56: -9 | AS56: 3 | AT56: -3
A57: 12 | G57: 0 | H57: 1 | U57: 10 | V57: 2 | AK57: -10 | AL57: -12 | AO57: 2021-09-16 | AP57: 361 | AQ57: 0 | AR57: -9 | AS57: 3 | AT57: -3
A58: =+A57+1 -> 13 | G58: 10 | H58: 5 | W58: 0 | X58: -5 | AC58: -10 | AD58: -7 | AO58: 2021-09-17 | AP58: 362 | AQ58: 0 | AR58: =+D58+F58+H58+J58++L58++N58+P58+R58+T58+V58+X58+AL58+AN58+Z58+AD58+AF58+AH58+AJ58+AB58 -> -7 | AS58: 3 | AT58: -2.333333333
A59: =+A58+1 -> 14 | G59: 10 | H59: -1 | W59: -10 | X59: -4 | AC59: 0 | AD59: -3 | AO59: 2021-09-17 | AP59: 362 | AQ59: 0 | AR59: -8 | AS59: =COUNT(C59:AN59)/2 -> 3 | AT59: -2.666666667
A60: 15 | C60: -4 | D60: 2 | G60: 10 | H60: 9 | M60: 4 | N60: 3 | U60: 10 | V60: 9 | Y60: -4 | Z60: 0 | AC60: -10 | AD60: -13 | AE60: -10 | AF60: -15 | AM60: 4 | AN60: 3 | AO60: 2021-09-18 | AP60: 363 | AQ60: 0 | AR60: -2 | AS60: 8 | AT60: -0.25
A61: 16 | C61: 6 | D61: 5 | G61: 10 | H61: 11 | M61: -10 | N61: -6 | U61: 0 | V61: 1 | AE61: 0 | AF61: 1 | AM61: -6 | AN61: -3 | AO61: 2021-09-18 | AP61: 363 | AQ61: 0 | AR61: 9 | AS61: 6 | AT61: 1.5
A62: 17 | G62: 0 | H62: -2 | U62: 10 | V62: -1 | Y62: -10 | Z62: -5 | AO62: 2021-09-19 | AP62: 365 | AQ62: 0 | AR62: -8 | AS62: 3 | AT62: -2.666666667
A63: 18 | G63: 0 | H63: 3 | U63: 10 | V63: 5 | Y63: -10 | Z63: -15 | AO63: 2021-09-19 | AP63: 365 | AQ63: 0 | AR63: -7 | AS63: 3 | AT63: -2.333333333
A64: 19 | C64: -10 | D64: -4 | G64: 10 | H64: 6 | U64: -10 | V64: -10 | Y64: 4 | Z64: 5 | AA64: 5 | AB64: -1 | AC64: 5 | AD64: -1 | AK64: -4 | AL64: -3 | AO64: 2021-10-08 | AP64: 373 | AQ64: =+C64+E64+G64+I64++K64++M64+O64+Q64+S64+U64+W64+AK64+AM64+Y64+AC64+AE64+AG64+AI64+AA64 -> 0 | AR64: -8 | AS64: 7 | AT64: -1.142857143
A65: 20 | C65: 10 | D65: -1 | Q65: 4 | R65: -2.9 | AA65: -4 | AB65: -6.45 | AE65: -10 | AF65: -15.65 | AO65: 2021-10-12 | AP65: 374 | AQ65: 0 | AR65: =+D65+F65+H65+J65++L65++N65+P65+R65+T65+V65+X65+AL65+AN65+Z65+AD65+AF65+AH65+AJ65+AB65 -> -26 | AS65: =COUNT(C65:AN65)/2 -> 4 | AT65: -6.5
A66: 21 | C66: 4 | D66: 0.95 | Q66: -4 | R66: -3.4 | AA66: 10 | AB66: 1.65 | AE66: -10 | AF66: 12.2 | AO66: 2021-10-14 | AP66: 375 | AQ66: 0 | AR66: =+D66+F66+H66+J66++L66++N66+P66+R66+T66+V66+X66+AL66+AN66+Z66+AD66+AF66+AH66+AJ66+AB66 -> 11.4 | AS66: =COUNT(C66:AN66)/2 -> 4 | AT66: 2.85
A67: 22 | C67: 4 | D67: -2.25 | AA67: 10 | AB67: 1.85 | AE67: -4 | AF67: -2.55 | AG67: -10 | AH67: -10.55 | AO67: 2021-10-16 | AP67: 376 | AQ67: 0 | AR67: =+D67+F67+H67+J67++L67++N67+P67+R67+T67+V67+X67+AL67+AN67+Z67+AD67+AF67+AH67+AJ67+AB67 -> -13.5 | AS67: =COUNT(C67:AN67)/2 -> 4 | AT67: -3.375
A68: 23 | C68: -10 | D68: -4.85 | AA68: 10 | AB68: 0.7 | AE68: -4 | AF68: -4.75 | AG68: 4 | AH68: -2.7 | AO68: 2021-10-18 | AP68: 377 | AQ68: 0 | AR68: =+D68+F68+H68+J68++L68++N68+P68+R68+T68+V68+X68+AL68+AN68+Z68+AD68+AF68+AH68+AJ68+AB68 -> -11.6 | AS68: =COUNT(C68:AN68)/2 -> 4 | AT68: =+AR68/AS68 -> -2.9
A69: 24 | C69: 10 | D69: 4.35 | Q69: -10 | R69: -8.85 | AA69: 4 | AB69: -2.65 | AE69: -4 | AF69: -5.85 | AO69: 2021-10-19 | AP69: 378 | AQ69: =+C69+E69+G69+I69++K69++M69+O69+Q69+S69+U69+W69+AK69+AM69+Y69+AC69+AE69+AG69+AI69+AA69 -> 0 | AR69: =+D69+F69+H69+J69++L69++N69+P69+R69+T69+V69+X69+AL69+AN69+Z69+AD69+AF69+AH69+AJ69+AB69 -> -13 | AS69: =COUNT(C69:AN69)/2 -> 4 | AT69: =+AR69/AS69 -> -3.25
A70: 25 | C70: 10 | D70: -0.45 | AA70: -4 | AB70: -8.35 | AE70: -10 | AF70: -9.35 | AG70: 4 | AH70: -1.35 | AO70: 2021-10-20 | AP70: 379 | AQ70: 0 | AR70: -19.5 | AS70: 4 | AT70: -4.875
A71: 26 | C71: 10 | D71: 0.55 | Q71: -10 | R71: -18.4 | AA71: 4 | AB71: -3.7 | AE71: -4 | AF71: -17.4 | AO71: 2021-10-21 | AP71: 380 | AQ71: 0 | AR71: -38.95 | AS71: 4 | AT71: -9.7375
A72: 27 | C72: 10 | D72: 1.9 | Q72: 4 | R72: -3.4 | AA72: -4 | AB72: -8.9 | AE72: -10 | AF72: -9.9 | AO72: 2021-10-24 | AP72: 381 | AQ72: 0 | AR72: -20.3 | AS72: 4 | AT72: -5.075
A73: 28 | C73: 10 | D73: -0.9 | Q73: 4 | R73: -2.25 | AA73: -4 | AB73: -2.4 | AE73: -10 | AF73: -7.45 | AO73: 2021-10-25 | AP73: 382 | AQ73: 0 | AR73: -13 | AS73: 4 | AT73: -3.25
A74: 29 | C74: 10 | D74: 2.15 | Q74: 4 | R74: -0.35 | AA74: -4 | AB74: -6.8 | AE74: -10 | AF74: -8 | AO74: 2021-10-26 | AP74: 383 | AQ74: 0 | AR74: -13 | AS74: 4 | AT74: -3.25
A75: 30 | C75: 10 | D75: 0.6 | Q75: -10 | R75: -11.85 | AA75: -4 | AB75: -0.9 | AE75: 4 | AF75: -0.85 | AO75: 2021-10-27 | AP75: 384 | AQ75: 0 | AR75: -13 | AS75: 4 | AT75: -3.25
A76: 31 | B76: Plega amb -570 | C76: 10 | D76: 1.5 | Q76: -10 | R76: -9.9 | AA76: 4 | AB76: -3.15 | AE76: -4 | AF76: -8.9 | AO76: 2021-10-28 | AP76: 385 | AQ76: 0 | AR76: -20.45 | AS76: 4 | AT76: -5.1125
A77: 32 | C77: 10 | D77: 0.2 | Q77: -10 | R77: -6.25 | AA77: 4 | AB77: -3.1 | AE77: -4 | AF77: -3.85 | AO77: 2021-10-29 | AP77: 386 | AQ77: 0 | AR77: -13 | AS77: 4 | AT77: -3.25
A78: 33 | C78: -4 | D78: -4.75 | Q78: 10 | R78: 1.1 | AA78: 4 | AB78: -4.4 | AE78: -10 | AF78: -4.95 | AO78: 2021-10-30 | AP78: 387 | AQ78: 0 | AR78: -13 | AS78: 4 | AT78: -3.25
A79: 34 | AQ79: 0 | AR79: 0 | AS79: 0
A80: 35 | AQ80: 0 | AR80: 0 | AS80: 0
A81: 36 | AQ81: 0 | AR81: 0 | AS81: 0
A82: 37 | AQ82: 0 | AR82: 0 | AS82: 0
A83: 38 | AQ83: 0 | AR83: 0 | AS83: 0
A84: 39 | AQ84: 0 | AR84: 0 | AS84: 0
A85: 40 | AQ85: 0 | AR85: 0 | AS85: 0
A86: 41 | AQ86: 0 | AR86: 0 | AS86: 0
A87: 42 | AQ87: 0 | AR87: 0 | AS87: 0
A88: 43 | AQ88: =+C88+E88+G88+I88++K88++M88+O88+Q88+S88+U88+W88+AK88+AM88+Y88+AC88+AE88+AG88+AI88+AA88 -> 0 | AR88: 0 | AS88: 0
A89: 44 | AQ89: 0 | AR89: 0 | AS89: 0
A90: 45 | AQ90: 0 | AR90: 0 | AS90: 0
A91: 46 | AQ91: =+C91+E91+G91+I91++K91++M91+O91+Q91+S91+U91+W91+AK91+AM91+Y91+AC91+AE91+AG91+AI91+AA91 -> 0 | AR91: =+D91+F91+H91+J91++L91++N91+P91+R91+T91+V91+X91+AL91+AN91+Z91+AD91+AF91+AH91+AJ91+AB91 -> 0 | AS91: 0
A92: 47 | AQ92: 0 | AR92: 0 | AS92: 0
A93: 48 | AQ93: 0 | AR93: 0 | AS93: 0
A94: 49 | AQ94: 0 | AR94: 0 | AS94: 0
A95: 50 | AQ95: 0 | AR95: 0 | AS95: 0
A96: 51 | AQ96: 0 | AR96: 0 | AS96: 0
A97: 52 | AQ97: 0 | AR97: 0 | AS97: 0
A98: 53 | AQ98: 0 | AR98: 0 | AS98: 0
A99: 54 | AQ99: 0 | AR99: 0 | AS99: 0
A100: 55 | AQ100: 0 | AR100: 0 | AS100: 0
A101: 56 | AQ101: 0 | AR101: 0 | AS101: 0
A102: 57 | AQ102: 0 | AR102: 0 | AS102: 0
A103: 58 | AQ103: 0 | AR103: 0 | AS103: 0
A104: 59 | AQ104: 0 | AR104: 0 | AS104: 0
A105: 60 | AQ105: =+C105+E105+G105+I105++K105++M105+O105+Q105+S105+U105+W105+AK105+AM105+Y105+AC105+AE105+AG105+AI105+AA105 -> 0 | AR105: =+D105+F105+H105+J105++L105++N105+P105+R105+T105+V105+X105+AL105+AN105+Z105+AD105+AF105+AH105+AJ105+AB105 -> 0 | AS105: 0
A106: 61 | AQ106: 0 | AR106: 0 | AS106: 0
A107: 62 | AQ107: 0 | AR107: 0 | AS107: 0
A108: 63 | AQ108: 0 | AR108: 0 | AS108: 0
A109: 64 | AQ109: 0 | AR109: 0 | AS109: 0
A110: 65 | AQ110: 0 | AR110: 0 | AS110: 0
A111: 66 | AQ111: 0 | AR111: 0 | AS111: 0
A112: =+A111+1 -> 67 | AQ112: 0 | AR112: 0 | AS112: 0
A113: 68 | AQ113: 0 | AR113: 0 | AS113: 0
A114: 69 | AQ114: 0 | AR114: 0 | AS114: 0
A115: 70 | AQ115: 0 | AR115: 0 | AS115: 0
A116: 71 | AQ116: 0 | AR116: 0 | AS116: 0
A117: 72 | AQ117: 0 | AR117: 0 | AS117: 0
A118: 73 | AQ118: 0 | AR118: 0 | AS118: 0
A119: 74 | AQ119: 0 | AR119: 0 | AS119: 0
A120: 75 | AQ120: 0 | AR120: 0 | AS120: 0
A121: 76 | AQ121: 0 | AR121: 0 | AS121: 0
A122: 77 | AQ122: 0 | AR122: 0 | AS122: 0
A123: 78 | AQ123: 0 | AR123: 0 | AS123: 0
A124: 79 | AQ124: 0 | AR124: 0 | AS124: 0
A125: 80 | AQ125: 0 | AR125: 0 | AS125: 0
A126: 81 | AQ126: 0 | AR126: 0 | AS126: 0
A127: 82 | AQ127: 0 | AR127: 0 | AS127: 0
A128: 83 | AQ128: 0 | AR128: 0 | AS128: 0
A129: 84 | AQ129: 0 | AR129: 0 | AS129: 0
A130: 85 | AQ130: 0 | AR130: 0 | AS130: 0
A131: 86 | AQ131: 0 | AR131: 0 | AS131: 0
A132: 87 | AQ132: 0 | AR132: 0 | AS132: 0
A133: 88 | AQ133: 0 | AR133: 0 | AS133: =COUNT(C133:AN133)/2 -> 0 | AT133: =+AR133/AS133 -> 
A134: 89 | AQ134: 0 | AR134: 0 | AS134: 0
A135: 90 | AQ135: 0 | AR135: 0 | AS135: 0
A136: 91 | AQ136: 0 | AR136: 0 | AS136: 0
A137: 92 | AQ137: 0 | AR137: 0 | AS137: 0
A138: 93 | AQ138: 0 | AR138: 0 | AS138: 0
A139: 94 | AQ139: 0 | AR139: 0 | AS139: 0
A140: 95 | AQ140: 0 | AR140: 0 | AS140: 0
A141: 96 | AQ141: 0 | AR141: 0 | AS141: 0
A142: 97 | AQ142: 0 | AR142: 0 | AS142: 0
A143: 98 | AQ143: 0 | AR143: 0 | AS143: 0
A144: 99 | AQ144: 0 | AR144: 0 | AS144: 0
A145: 100 | AQ145: 0 | AR145: 0 | AS145: 0
A146: 101 | AQ146: 0 | AR146: 0 | AS146: 0
A147: 102 | AQ147: 0 | AR147: 0 | AS147: 0
A148: 103 | AQ148: 0 | AR148: 0 | AS148: 0
A149: 104 | AQ149: 0 | AR149: 0 | AS149: 0
A150: 105 | AQ150: 0 | AR150: 0 | AS150: 0
A151: 106 | AQ151: 0 | AR151: 0 | AS151: 0
A152: 107 | AQ152: 0 | AR152: 0 | AS152: 0
A153: 108 | AQ153: 0 | AR153: 0 | AS153: 0
A154: 109 | AQ154: 0 | AR154: 0 | AS154: 0
A155: 110 | AQ155: 0 | AR155: 0 | AS155: 0
A156: 111 | AQ156: 0 | AR156: 0 | AS156: 0
A157: 112 | AQ157: 0 | AR157: 0 | AS157: 0
A158: 113 | AQ158: 0 | AR158: 0 | AS158: 0
A159: 114 | AQ159: 0 | AR159: 0 | AS159: 0
A160: 115 | AQ160: 0 | AR160: 0 | AS160: 0
A161: 116 | AQ161: 0 | AR161: 0 | AS161: 0
A162: 117 | AQ162: 0 | AR162: 0 | AS162: 0
A163: 118 | AQ163: 0 | AR163: 0 | AS163: 0
A164: 119 | AQ164: 0 | AR164: 0 | AS164: 0
A165: 120 | AQ165: 0 | AR165: 0 | AS165: 0
A166: 121 | AQ166: 0 | AR166: 0 | AS166: 0
A167: 122 | AQ167: 0 | AR167: 0 | AS167: 0
A168: 123 | AQ168: 0 | AR168: 0 | AS168: 0
A169: 124 | AQ169: =+C169+E169+G169+I169++K169++M169+O169+Q169+S169+U169+W169+AK169+AM169+Y169+AC169+AE169+AG169+AI169+AA169 -> 0 | AR169: =+D169+F169+H169+J169++L169++N169+P169+R169+T169+V169+X169+AL169+AN169+Z169+AD169+AF169+AH169+AJ169+AB169 -> 0 | AS169: 0
A170: 125 | AQ170: 0 | AR170: 0 | AS170: 0
A171: 126 | AQ171: 0 | AR171: 0 | AS171: 0
A172: 127 | AQ172: 0 | AR172: 0 | AS172: 0
A173: 128 | AQ173: 0 | AR173: 0 | AS173: 0
A174: 129 | AQ174: 0 | AR174: 0 | AS174: 0
A175: 130 | AQ175: 0 | AR175: 0 | AS175: 0
A176: =+A175+1 -> 131 | AQ176: 0 | AR176: 0 | AS176: 0
A177: 132 | AQ177: 0 | AR177: 0 | AS177: 0
A178: 133 | AQ178: 0 | AR178: 0 | AS178: 0
A179: 134 | AQ179: 0 | AR179: 0 | AS179: 0
A180: 135 | AQ180: 0 | AR180: 0 | AS180: 0
A181: 136 | AQ181: 0 | AR181: 0 | AS181: 0
A182: 137 | AQ182: 0 | AR182: 0 | AS182: 0
A183: 138 | AQ183: 0 | AR183: 0 | AS183: 0
A184: 139 | AQ184: 0 | AR184: 0 | AS184: 0
A185: 140 | AQ185: 0 | AR185: 0 | AS185: 0
A186: 141 | AQ186: 0 | AR186: 0 | AS186: 0
A187: 142 | AQ187: 0 | AR187: 0 | AS187: 0
A188: 143 | AQ188: 0 | AR188: 0 | AS188: 0
A189: 144 | AQ189: 0 | AR189: 0 | AS189: 0
A190: 145 | AQ190: 0 | AR190: 0 | AS190: 0
A191: 146 | AQ191: 0 | AR191: 0 | AS191: 0
A192: 147 | AQ192: 0 | AR192: 0 | AS192: 0
A193: 148 | AQ193: 0 | AR193: 0 | AS193: 0
A194: 149 | AQ194: 0 | AR194: 0 | AS194: 0
A195: 150 | AQ195: 0 | AR195: 0 | AS195: 0
A196: 151 | AQ196: 0 | AR196: 0 | AS196: 0
A197: 152 | AQ197: 0 | AR197: 0 | AS197: =COUNT(C197:AN197)/2 -> 0 | AT197: =+AR197/AS197 -> 
A198: 153 | AQ198: 0 | AR198: 0 | AS198: =COUNT(C198:AN198)/2 -> 0 | AT198: =+AR198/AS198 -> 
A199: 154 | AQ199: 0 | AR199: 0 | AS199: =COUNT(C199:AN199)/2 -> 0 | AT199: =+AR199/AS199 -> 
A200: 155 | AQ200: 0 | AR200: 0 | AS200: =COUNT(C200:AN200)/2 -> 0 | AT200: =+AR200/AS200 -> 

Sheet Kul
A1: KUL
A2: Mes
A3: =+GENERAL!B6 -> 12 | C3: =SUM(C5:C13) -> 0
C4: Premi | D4: Punts | E4: Partides | F4: General
A5: 1 | B5: Jordi | C5: =+G$37 -> 25 | D5: =+H$38 -> 15 | E5: =+H$37 -> 3 | F5: =+G$23 -> 0 | G5: =IF(E5<A$3/2,-1,1)*8000+C5*100+D5+E5/100 -> -5484.97
A6: 2 | B6: Núria | C6: =+E$37 -> 5 | D6: =+F$38 -> 5 | E6: =+F$37 -> 1 | F6: =+E$23 -> 0 | G6: -7494.99
A7: 3 | B7: Carles | C7: =+O$37 -> 5 | D7: =+P$38 -> -4 | E7: =+P$37 -> 2 | F7: =+O$23 -> 0 | G7: -7503.98
A8: 4 | B8: Gemma | C8: =+Y$37 -> 0 | D8: =+Z$38 -> 6 | E8: =+Z$37 -> 1 | F8: =+Y$23 -> 0 | G8: -7993.99
A9: 5 | B9: Sergi | C9: =+M$37 -> 0 | D9: =+N$38 -> 4 | E9: =+N$37 -> 2 | F9: =+M$23 -> 0 | G9: -7995.98
A10: 6 | B10: Sebas | C10: =+AC$37 -> -5 | D10: =+AD$38 -> -5 | E10: =+AD$37 -> 1 | F10: =+AC$23 -> 0 | G10: -8504.99
A11: 7 | B11: Goretti | C11: =+AA$37 -> -5 | D11: =+AB$38 -> -8 | E11: =+AB$37 -> 2 | F11: =+AA$23 -> 0 | G11: -8507.98
A12: 8 | B12: Nogué | C12: =+AE$37 -> -10 | D12: =+AF$38 -> -8 | E12: =+AF$37 -> 1 | F12: =+AE$23 -> 0 | G12: -9007.99
A13: 9 | B13: Mariajo | C13: =+Q$37 -> -15 | D13: =+R$38 -> -5 | E13: =+R$37 -> 2 | F13: =+Q$23 -> 0 | G13: -9504.98
A14: 10 | B14: Grau | C14: =+K$37 -> -100000000 | D14: =+L$38 -> 0 | E14: =+L$37 -> 0 | F14: =+K$23 -> 0 | G14: -10000008000
A15: 11 | B15: Manolo | C15: =+I$37 -> -100000000 | D15: =+J$38 -> 0 | E15: =+J$37 -> 0 | F15: =+I$23 -> 0 | G15: -10000008000
A16: 12 | B16: Joan | C16: =+U$37 -> -100000000 | D16: =+V$38 -> 0 | E16: =+V$37 -> 0 | F16: =+U$23 -> 0 | G16: -10000008000
A17: 13 | B17: Tito | C17: =+W$37 -> -100000000 | D17: =+X$38 -> 0 | E17: =+X$37 -> 0 | F17: =+W$23 -> 0 | G17: -10000008000
A18: 14 | B18: Rosa M. | C18: =+AG$37 -> -100000000 | D18: =+AH$38 -> 0 | E18: =+AH$37 -> 0 | F18: =+AG$23 -> 0 | G18: -10000008000
A19: 15 | B19: Angie | C19: =+C$37 -> -100000000 | D19: =+D$38 -> 0 | E19: =+D$37 -> 0 | F19: =+C$23 -> 0 | G19: -10000008000
A20: 16 | B20: Anna P. | C20: =+S$37 -> -100000000 | D20: =+T$38 -> 0 | E20: =+T$37 -> 0 | F20: =+S$23 -> 0 | G20: -10000008000
B23: General | C23: =+C24*C25 -> 0 | D23: =+D24*D25 -> 0 | E23: 0 | F23: 0 | G23: 0 | H23: 0 | I23: 0 | J23: 0 | K23: 0 | L23: 0 | M23: 0 | N23: 0 | O23: 0 | P23: 0 | Q23: 0 | R23: 0 | S23: 0 | T23: 0 | U23: 0 | V23: 0 | W23: 0 | X23: 0 | Y23: 0 | Z23: 0 | AA23: =+AA24*AA25 -> 0 | AB23: 0 | AC23: 0 | AD23: 0 | AE23: 0 | AF23: 0 | AG23: 0 | AH23: 0
C24: =IF($B36>3,1,0) -> 0 | D24: =IF($B36>3,1,0) -> 0 | E24: 0 | F24: 0 | G24: 0 | H24: 0 | I24: 0 | J24: 0 | K24: 0 | L24: 0 | M24: 0 | N24: 0 | O24: 0 | P24: 0 | Q24: 0 | R24: 0 | S24: 0 | T24: 0 | U24: 0 | V24: 0 | W24: 0 | X24: 0 | Y24: 0 | Z24: 0 | AA24: =IF($B36>3,1,0) -> 0 | AB24: 0 | AC24: 0 | AD24: 0 | AE24: 0 | AF24: 0 | AG24: 0 | AH24: 0
C25: =MAX(C26:C30) -> 0 | D25: =+D37 -> 0 | E25: =MAX(E26:E30) -> 0 | F25: =+F37 -> 1 | G25: =MAX(G26:G30) -> 0 | H25: =+H37 -> 3 | I25: =MAX(I26:I30) -> 0 | J25: =+J37 -> 0 | K25: =MAX(K26:K30) -> 0 | L25: =+L37 -> 0 | M25: =MAX(M26:M30) -> 0 | N25: =+N37 -> 2 | O25: =MAX(O26:O30) -> 0 | P25: =+P37 -> 2 | Q25: =MAX(Q26:Q30) -> 0 | R25: =+R37 -> 2 | S25: =MAX(S26:S30) -> 0 | T25: =+T37 -> 0 | U25: =MAX(U26:U30) -> 0 | V25: =+V37 -> 0 | W25: =MAX(W26:W30) -> 0 | X25: =+X37 -> 0 | Y25: =MAX(Y26:Y30) -> 0 | Z25: =+Z37 -> 1 | AA25: =MAX(AA26:AA30) -> 0 | AB25: =+AB37 -> 2 | AC25: =MAX(AC26:AC30) -> 0 | AD25: =+AD37 -> 1 | AE25: =MAX(AE26:AE30) -> 0 | AF25: =+AF37 -> 1 | AG25: =MAX(AG26:AG30) -> 0 | AH25: =+AH37 -> 0
C26: =IF(C$31=5,5,0) -> 0 | E26: =IF(E$31=5,5,0) -> 0 | G26: =IF(G$31=5,5,0) -> 0 | I26: =IF(I$31=5,5,0) -> 0 | K26: =IF(K$31=5,5,0) -> 0 | M26: =IF(M$31=5,5,0) -> 0 | O26: =IF(O$31=5,5,0) -> 0 | Q26: =IF(Q$31=5,5,0) -> 0 | S26: =IF(S$31=5,5,0) -> 0 | U26: =IF(U$31=5,5,0) -> 0 | W26: =IF(W$31=5,5,0) -> 0 | Y26: =IF(Y$31=5,5,0) -> 0 | AA26: =IF(AA$31=5,5,0) -> 0 | AC26: =IF(AC$31=5,5,0) -> 0 | AE26: =IF(AE$31=5,5,0) -> 0 | AG26: =IF(AG$31=5,5,0) -> 0
C27: =IF(C$31=4,10,0) -> 0 | E27: =IF(E$31=4,10,0) -> 0 | G27: =IF(G$31=4,10,0) -> 0 | I27: =IF(I$31=4,10,0) -> 0 | K27: =IF(K$31=4,10,0) -> 0 | M27: =IF(M$31=4,10,0) -> 0 | O27: =IF(O$31=4,10,0) -> 0 | Q27: =IF(Q$31=4,10,0) -> 0 | S27: =IF(S$31=4,10,0) -> 0 | U27: =IF(U$31=4,10,0) -> 0 | W27: =IF(W$31=4,10,0) -> 0 | Y27: =IF(Y$31=4,10,0) -> 0 | AA27: =IF(AA$31=4,10,0) -> 0 | AC27: =IF(AC$31=4,10,0) -> 0 | AE27: =IF(AE$31=4,10,0) -> 0 | AG27: =IF(AG$31=4,10,0) -> 0
C28: =IF(C$31=3,20,0) -> 0 | E28: =IF(E$31=3,20,0) -> 0 | G28: =IF(G$31=3,20,0) -> 0 | I28: =IF(I$31=3,20,0) -> 0 | K28: =IF(K$31=3,20,0) -> 0 | M28: =IF(M$31=3,20,0) -> 0 | O28: =IF(O$31=3,20,0) -> 0 | Q28: =IF(Q$31=3,20,0) -> 0 | S28: =IF(S$31=3,20,0) -> 0 | U28: =IF(U$31=3,20,0) -> 0 | W28: =IF(W$31=3,20,0) -> 0 | Y28: =IF(Y$31=3,20,0) -> 0 | AA28: =IF(AA$31=3,20,0) -> 0 | AC28: =IF(AC$31=3,20,0) -> 0 | AE28: =IF(AE$31=3,20,0) -> 0 | AG28: =IF(AG$31=3,20,0) -> 0
C29: =IF(C$31=2,40,0) -> 0 | E29: =IF(E$31=2,40,0) -> 0 | G29: =IF(G$31=2,40,0) -> 0 | I29: =IF(I$31=2,40,0) -> 0 | K29: =IF(K$31=2,40,0) -> 0 | M29: =IF(M$31=2,40,0) -> 0 | O29: =IF(O$31=2,40,0) -> 0 | Q29: =IF(Q$31=2,40,0) -> 0 | S29: =IF(S$31=2,40,0) -> 0 | U29: =IF(U$31=2,40,0) -> 0 | W29: =IF(W$31=2,40,0) -> 0 | Y29: =IF(Y$31=2,40,0) -> 0 | AA29: =IF(AA$31=2,40,0) -> 0 | AC29: =IF(AC$31=2,40,0) -> 0 | AE29: =IF(AE$31=2,40,0) -> 0 | AG29: =IF(AG$31=2,40,0) -> 0
C30: =IF(C$31=1,80,0) -> 0 | E30: =IF(E$31=1,80,0) -> 0 | G30: =IF(G$31=1,80,0) -> 0 | I30: =IF(I$31=1,80,0) -> 0 | K30: =IF(K$31=1,80,0) -> 0 | M30: =IF(M$31=1,80,0) -> 0 | O30: =IF(O$31=1,80,0) -> 0 | Q30: =IF(Q$31=1,80,0) -> 0 | S30: =IF(S$31=1,80,0) -> 0 | U30: =IF(U$31=1,80,0) -> 0 | W30: =IF(W$31=1,80,0) -> 0 | Y30: =IF(Y$31=1,80,0) -> 0 | AA30: =IF(AA$31=1,80,0) -> 0 | AC30: =IF(AC$31=1,80,0) -> 0 | AE30: =IF(AE$31=1,80,0) -> 0 | AG30: =IF(AG$31=1,80,0) -> 0
C31: =RANK(C32,$C32:$AT32)*C36 -> 0 | E31: =RANK(E32,$C32:$AT32)*E36 -> 0 | G31: =RANK(G32,$C32:$AT32)*G36 -> 0 | I31: =RANK(I32,$C32:$AT32)*I36 -> 0 | K31: =RANK(K32,$C32:$AT32)*K36 -> 0 | M31: =RANK(M32,$C32:$AT32)*M36 -> 0 | O31: =RANK(O32,$C32:$AT32)*O36 -> 0 | Q31: =RANK(Q32,$C32:$AT32)*Q36 -> 0 | S31: =RANK(S32,$C32:$AT32)*S36 -> 0 | U31: =RANK(U32,$C32:$AT32)*U36 -> 0 | W31: =RANK(W32,$C32:$AT32)*W36 -> 0 | Y31: =RANK(Y32,$C32:$AT32)*Y36 -> 0 | AA31: =RANK(AA32,$C32:$AT32)*AA36 -> 0 | AC31: =RANK(AC32,$C32:$AT32)*AC36 -> 0 | AE31: =RANK(AE32,$C32:$AT32)*AE36 -> 0 | AG31: =RANK(AG32,$C32:$AT32)*AG36 -> 0
C32: =SUM(C33:C35) -> -101000000 | E32: =SUM(E33:E35) -> -999944 | G32: =SUM(G33:G35) -> -999822 | I32: =SUM(I33:I35) -> -101000000 | K32: =SUM(K33:K35) -> -101000000 | M32: =SUM(M33:M35) -> -999958 | O32: =SUM(O33:O35) -> -1000033 | Q32: =SUM(Q33:Q35) -> -1000063 | S32: =SUM(S33:S35) -> -101000000 | U32: =SUM(U33:U35) -> -101000000 | W32: =SUM(W33:W35) -> -101000000 | Y32: =SUM(Y33:Y35) -> -999939 | AA32: =SUM(AA33:AA35) -> -1000083 | AC32: =SUM(AC33:AC35) -> -1000054 | AE32: =SUM(AE33:AE35) -> -1000089 | AG32: =SUM(AG33:AG35) -> -101000000
C33: =+D37 -> 0 | E33: =+F37 -> 1 | G33: =+H37 -> 3 | I33: =+J37 -> 0 | K33: =+L37 -> 0 | M33: =+N37 -> 2 | O33: =+P37 -> 2 | Q33: =+R37 -> 2 | S33: =+T37 -> 0 | U33: =+V37 -> 0 | W33: =+X37 -> 0 | Y33: =+Z37 -> 1 | AA33: =+AB37 -> 2 | AC33: =+AD37 -> 1 | AE33: =+AF37 -> 1 | AG33: =+AH37 -> 0
C34: =D38*10 -> 0 | E34: =F38*10 -> 50 | G34: =H38*10 -> 150 | I34: =J38*10 -> 0 | K34: =L38*10 -> 0 | M34: =N38*10 -> 40 | O34: =P38*10 -> -40 | Q34: =R38*10 -> -50 | S34: =T38*10 -> 0 | U34: =V38*10 -> 0 | W34: =X38*10 -> 0 | Y34: =Z38*10 -> 60 | AA34: =AB38*10 -> -80 | AC34: =AD38*10 -> -50 | AE34: =AF38*10 -> -80 | AG34: =AH38*10 -> 0
C35: =IF(C36=1,C37*C36*1000+C37,-1000000+C37) -> -101000000 | E35: =IF(E36=1,E37*E36*1000+E37,-1000000+E37) -> -999995 | G35: =IF(G36=1,G37*G36*1000+G37,-1000000+G37) -> -999975 | I35: =IF(I36=1,I37*I36*1000+I37,-1000000+I37) -> -101000000 | K35: =IF(K36=1,K37*K36*1000+K37,-1000000+K37) -> -101000000 | M35: =IF(M36=1,M37*M36*1000+M37,-1000000+M37) -> -1000000 | O35: =IF(O36=1,O37*O36*1000+O37,-1000000+O37) -> -999995 | Q35: =IF(Q36=1,Q37*Q36*1000+Q37,-1000000+Q37) -> -1000015 | S35: =IF(S36=1,S37*S36*1000+S37,-1000000+S37) -> -101000000 | U35: =IF(U36=1,U37*U36*1000+U37,-1000000+U37) -> -101000000 | W35: =IF(W36=1,W37*W36*1000+W37,-1000000+W37) -> -101000000 | Y35: =IF(Y36=1,Y37*Y36*1000+Y37,-1000000+Y37) -> -1000000 | AA35: =IF(AA36=1,AA37*AA36*1000+AA37,-1000000+AA37) -> -1000005 | AC35: =IF(AC36=1,AC37*AC36*1000+AC37,-1000000+AC37) -> -1000005 | AE35: =IF(AE36=1,AE37*AE36*1000+AE37,-1000000+AE37) -> -1000010 | AG35: =IF(AG36=1,AG37*AG36*1000+AG37,-1000000+AG37) -> -101000000
A36: Classificats | B36: =SUM(C36:AG36) -> 0 | C36: =IF(D37>=$A3/2,1,0) -> 0 | E36: =IF(F37>=$A3/2,1,0) -> 0 | G36: =IF(H37>=$A3/2,1,0) -> 0 | I36: =IF(J37>=$A3/2,1,0) -> 0 | K36: =IF(L37>=$A3/2,1,0) -> 0 | M36: =IF(N37>=$A3/2,1,0) -> 0 | O36: =IF(P37>=$A3/2,1,0) -> 0 | Q36: =IF(R37>=$A3/2,1,0) -> 0 | S36: =IF(T37>=$A3/2,1,0) -> 0 | U36: =IF(V37>=$A3/2,1,0) -> 0 | W36: =IF(X37>=$A3/2,1,0) -> 0 | Y36: =IF(Z37>=$A3/2,1,0) -> 0 | AA36: =IF(AB37>=$A3/2,1,0) -> 0 | AC36: =IF(AD37>=$A3/2,1,0) -> 0 | AE36: =IF(AF37>=$A3/2,1,0) -> 0 | AG36: =IF(AH37>=$A3/2,1,0) -> 0
C37: =IF(SUM(C42:C280)<-1000,-100000000,SUM(C42:C280)) -> -100000000 | D37: =COUNT(D42:D280) -> 0 | E37: =IF(SUM(E42:E280)<-1000,-100000000,SUM(E42:E280)) -> 5 | F37: =COUNT(F42:F280) -> 1 | G37: =IF(SUM(G42:G280)<-1000,-100000000,SUM(G42:G280)) -> 25 | H37: =COUNT(H42:H280) -> 3 | I37: =IF(SUM(I42:I280)<-1000,-100000000,SUM(I42:I280)) -> -100000000 | J37: =COUNT(J42:J280) -> 0 | K37: =IF(SUM(K42:K280)<-1000,-100000000,SUM(K42:K280)) -> -100000000 | L37: =COUNT(L42:L280) -> 0 | M37: =IF(SUM(M42:M280)<-1000,-100000000,SUM(M42:M280)) -> 0 | N37: =COUNT(N42:N280) -> 2 | O37: =IF(SUM(O42:O280)<-1000,-100000000,SUM(O42:O280)) -> 5 | P37: =COUNT(P42:P280) -> 2 | Q37: =IF(SUM(Q42:Q280)<-1000,-100000000,SUM(Q42:Q280)) -> -15 | R37: =COUNT(R42:R280) -> 2 | S37: =IF(SUM(S42:S280)<-1000,-100000000,SUM(S42:S280)) -> -100000000 | T37: =COUNT(T42:T280) -> 0 | U37: =IF(SUM(U42:U280)<-1000,-100000000,SUM(U42:U280)) -> -100000000 | V37: =COUNT(V42:V280) -> 0 | W37: =IF(SUM(W42:W280)<-1000,-100000000,SUM(W42:W280)) -> -100000000 | X37: =COUNT(X42:X280) -> 0 | Y37: =IF(SUM(Y42:Y280)<-1000,-100000000,SUM(Y42:Y280)) -> 0 | Z37: =COUNT(Z42:Z280) -> 1 | AA37: =IF(SUM(AA42:AA280)<-1000,-100000000,SUM(AA42:AA280)) -> -5 | AB37: =COUNT(AB42:AB280) -> 2 | AC37: =IF(SUM(AC42:AC280)<-1000,-100000000,SUM(AC42:AC280)) -> -5 | AD37: =COUNT(AD42:AD280) -> 1 | AE37: =IF(SUM(AE42:AE280)<-1000,-100000000,SUM(AE42:AE280)) -> -10 | AF37: =COUNT(AF42:AF280) -> 1 | AG37: =IF(SUM(AG42:AG280)<-1000,-100000000,SUM(AG42:AG280)) -> -100000000 | AH37: =COUNT(AH42:AH280) -> 0
C38: =SUM(C42:C174) -> -10000 | D38: 0 | E38: 5 | F38: 5 | G38: 25 | H38: 15 | I38: -10000 | J38: 0 | K38: -10000 | L38: 0 | M38: 0 | N38: 4 | O38: 5 | P38: -4 | Q38: -15 | R38: -5 | S38: -10000 | T38: 0 | U38: -10000 | V38: 0 | W38: -10000 | X38: 0 | Y38: 0 | Z38: 6 | AA38: =SUM(AA42:AA174) -> -5 | AB38: -8 | AC38: -5 | AD38: -5 | AE38: -10 | AF38: -8 | AG38: -10000 | AH38: 0
AI39: =MAX(AJ42:AJ101) -> 363
B40: Nº partida | C40: Angie | E40: Núria | G40: Jordi | I40: Manolo | K40: Grau | M40: Sergi | O40: Carles | Q40: Mariajo | S40: Anna P. | U40: Joan | W40: Tito | Y40: Gemma | AA40: Nin | AC40: Sebas | AE40: Nogué | AG40: Rosa M. | AI40: =COUNT(AI42:AI195) -> 3 | AJ40: A | AK40: B | AL40: C
C41: Premi | D41: Punts | E41: Premi | F41: Punts | G41: Premi | H41: Punts | I41: Premi | J41: Punts | K41: Premi | L41: Punts | M41: Premi | N41: Punts | O41: Premi | P41: Punts | Q41: Premi | R41: Punts | S41: Premi | T41: Punts | U41: Premi | V41: Punts | W41: Premi | X41: Punts | Y41: Premi | Z41: Punts | AA41: Premi | AB41: Punts | AC41: Premi | AD41: Punts | AE41: Premi | AF41: Punts | AG41: Premi | AH41: Punts | AI41: Data | AJ41: Timbes
A42: 1 | C42: -10000 | E42: 5 | F42: 5 | G42: 10 | H42: 2 | I42: -10000 | K42: -10000 | S42: -10000 | U42: -10000 | W42: -10000 | Y42: 0 | Z42: 6 | AC42: -5 | AD42: -5 | AE42: -10 | AF42: -8 | AG42: -10000 | AI42: 2021-09-09 | AJ42: 354 | AK42: =+C42+E42+G42+I42++K42++M42+O42+Q42+S42+U42+W42+Y42+AG42+AA42+AC42+AE42 -> -70000 | AL42: 0 | AM42: =COUNT(C42:AH42)/2 -> 8.5 | AN42: =+AK42/AM42 -> -8235.294118
A43: =+A42+1 -> 2 | G43: 10 | H43: 9 | M43: -10 | N43: -6 | O43: 5 | P43: -2 | Q43: -5 | R43: 3 | AA43: 0 | AB43: -4 | AI43: 2021-09-18 | AJ43: 363 | AK43: 0 | AL43: 0 | AM43: 5 | AN43: 0
A44: =+A43+1 -> 3 | G44: 5 | H44: 4 | M44: 10 | N44: 10 | O44: 0 | P44: -2 | Q44: -10 | R44: -8 | AA44: -5 | AB44: -4 | AI44: 2021-09-18 | AJ44: 363 | AK44: 0 | AL44: =+D44+F44+H44+J44++L44++N44+P44+R44+T44+V44+X44+Z44+AH44+AB44+AD44+AF44 -> 0 | AM44: 5 | AN44: 0
A45: 4 | AK45: 0 | AL45: 0 | AM45: 0
A46: 5 | AK46: 0 | AL46: 0 | AM46: 0
A47: 6 | AK47: =+C47+E47+G47+I47++K47++M47+O47+Q47+S47+U47+W47+Y47+AG47+AA47+AC47+AE47 -> 0 | AL47: 0 | AM47: 0
A48: 7 | AK48: 0 | AL48: 0 | AM48: 0
A49: 8 | AK49: 0 | AL49: 0 | AM49: 0
A50: 9 | AK50: 0 | AL50: 0 | AM50: 0
A51: 10 | AK51: =+C51+E51+G51+I51++K51++M51+O51+Q51+S51+U51+W51+Y51+AG51+AA51+AC51+AE51 -> 0 | AL51: 0 | AM51: =COUNT(C51:AH51)/2 -> 0 | AN51: =+AK51/AM51 -> 
A52: 11 | AK52: 0 | AL52: 0 | AM52: 0
A53: 12 | AK53: 0 | AL53: 0 | AM53: 0
A54: 13 | AK54: 0 | AL54: 0 | AM54: 0
A55: 14 | AK55: 0 | AL55: 0 | AM55: 0
A56: 15 | AK56: =+C56+E56+G56+I56++K56++M56+O56+Q56+S56+U56+W56+Y56+AG56+AA56+AC56+AE56 -> 0 | AL56: 0 | AM56: 0
A57: 16 | AK57: 0 | AL57: 0 | AM57: 0
A58: 17 | AK58: 0 | AL58: 0 | AM58: 0
A59: 18 | AK59: 0 | AL59: 0 | AM59: 0
A60: 19 | AK60: 0 | AL60: 0 | AM60: 0
A61: 20 | AK61: =+C61+E61+G61+I61++K61++M61+O61+Q61+S61+U61+W61+Y61+AG61+AA61+AC61+AE61 -> 0 | AL61: 0 | AM61: =COUNT(C61:AH61)/2 -> 0 | AN61: =+AK61/AM61 -> 
A62: 21 | AK62: 0 | AL62: 0 | AM62: =COUNT(C62:AH62)/2 -> 0 | AN62: =+AK62/AM62 -> 
A63: =+A62+1 -> 22 | AK63: 0 | AL63: 0 | AM63: =COUNT(C63:AH63)/2 -> 0 | AN63: =+AK63/AM63 -> 
A64: 23
A65: 24
A66: 25
A67: 26
A68: 27
A69: 28
A70: 29
A71: 30
A72: 31
A73: =+A72+1 -> 32
A74: 33
A75: 34
A76: 35
A77: 36
A78: 37
A79: 38
A80: =+A79+1 -> 39
A81: 40
A82: 41
A83: 42
A84: 43
A85: 44
A86: 45
A87: 46
A88: 47
A89: 48
A90: 49
A91: 50
A92: 51
A93: 52
A94: 53
A95: =+A94+1 -> 54
A96: 55
A97: 56
A98: 57
A99: 58
A100: 59
A101: 60
A102: 61
A103: 62
A104: 63
A105: 64
A106: 65
A107: =+A106+1 -> 66
A108: 67
A109: 68
A110: 69
A111: 70
A112: 71

Sheet Tarot
A1: TAROT
A2: Mes
A3: =+GENERAL!B6 -> 12 | C3: =SUM(C5:C10) -> -100000000
C4: Premi | D4: Punts | E4: Partides | F4: General
A5: 1 | B5: Nin | C5: =+AY$40 -> 10 | D5: =+AY$41 -> 15.8 | E5: =+AZ$40 -> 1 | F5: =+AY$26 -> 0 | G5: =IF(E5<A$3/2,-1,1)*800+C5+D5/1000 -> -789.9842
A6: 2 | B6: Jordi | C6: =+I$40 -> 5 | D6: =+I$41 -> -43.7 | E6: =+J$40 -> 1 | F6: =+I$26 -> 0 | G6: -795.0437
A7: 3 | B7: Sergi | C7: =+R$40 -> 0 | D7: =+R$41 -> -45.2 | E7: =+S$40 -> 1 | F7: =+R$26 -> 0 | G7: -800.0452
A8: 4 | B8: Carles | C8: =+U$40 -> -5 | D8: =+U$41 -> -57.6 | E8: =+V$40 -> 1 | F8: =+U$26 -> 0 | G8: -805.0576
A9: 5 | B9: Mariajo | C9: =+X$40 -> -10 | D9: =+X$41 -> -76.3 | E9: =+Y$40 -> 1 | F9: =+X$26 -> 0 | G9: -810.0763
A10: 6 | B10: Grau | C10: =+AV$40 -> -100000000 | D10: =+AV$41 -> 1 | E10: =+AW$40 -> 0 | F10: =+AV$26 -> 0 | G10: -100000800
A11: 7 | B11: Manolo | C11: =+AM$40 -> -100000000 | D11: =+AM$41 -> 1 | E11: =+AN$40 -> 0 | F11: =+AM$26 -> 0 | G11: -100000800
A12: 8 | B12: Goretti | C12: =+AS$40 -> -100000000 | D12: =+AS$41 -> 1 | E12: =+AT$40 -> 0 | F12: =+AS$26 -> 0 | G12: -100000800
A13: 9 | B13: Joan Carles | C13: =+O$40 -> -100000000 | D13: =+O$41 -> 1 | E13: =+P$40 -> 0 | F13: =+O$26 -> 0 | G13: -100000800
A14: 10 | B14: Marina | C14: =+BE$40 -> -100000000 | D14: =+BE$41 -> 1 | E14: =+BF$40 -> 0 | F14: =+BE$26 -> 0 | G14: -100000800
A15: 11 | B15: Xavi | C15: =+AG$40 -> -100000000 | D15: =+AG$41 -> 1 | E15: =+AH$40 -> 0 | F15: =+AG$26 -> 0 | G15: -100000800
A16: 12 | B16: Josep Mª | C16: =+L$40 -> -100000000 | D16: =+L$41 -> 1 | E16: =+M$40 -> 0 | F16: =+L$26 -> 0 | G16: -100000800
A17: 13 | B17: Tina | C17: =+AP$40 -> -100000000 | D17: =+AP$41 -> 1 | E17: =+AQ$40 -> 0 | F17: =+AP$26 -> 0 | G17: -100000800
A18: 14 | B18: David | C18: =+AD$40 -> -100000000 | D18: =+AD$41 -> 1 | E18: =+AE$40 -> 0 | F18: =+AD$26 -> 0 | G18: -100000800
A19: 15 | B19: Otins | C19: =+C$40 -> -100000000 | D19: =+C$41 -> 1 | E19: =+D$40 -> 0 | F19: =+C$26 -> 0 | G19: -100000800
A20: 16 | B20: Martín | C20: =+F$40 -> -100000000 | D20: =+F$41 -> 1 | E20: =+G$40 -> 0 | F20: =+F$26 -> 0 | G20: -100000800
A21: 17 | B21: Iglesias | C21: =+AA$40 -> -100000000 | D21: =+AA$41 -> 1 | E21: =+AB$40 -> 0 | F21: =+AA$26 -> 0 | G21: -100000800
A22: 18 | B22: Salvadó | C22: =+AJ$40 -> -100000000 | D22: =+AJ$41 -> 1 | E22: =+AK$40 -> 0 | F22: =+AJ$26 -> 0 | G22: -100000800
A23: 19 | B23: Jorge | C23: =+BB$40 -> -100000000 | D23: =+BB$41 -> 1 | E23: =+BC$40 -> 0 | F23: =+BB$26 -> 0 | G23: -100000800
B26: General | C26: =+C27*C28 -> 0 | D26: =+D27*D28 -> 0 | F26: =+F27*F28 -> 0 | G26: =+G27*G28 -> 0 | I26: =+I27*I28 -> 0 | J26: =+J27*J28 -> 0 | L26: =+L27*L28 -> 0 | M26: =+M27*M28 -> 0 | O26: =+O27*O28 -> 0 | P26: =+P27*P28 -> 0 | R26: =+R27*R28 -> 0 | S26: =+S27*S28 -> 0 | U26: =+U27*U28 -> 0 | V26: =+V27*V28 -> 0 | X26: =+X27*X28 -> 0 | Y26: =+Y27*Y28 -> 0 | AA26: =+AA27*AA28 -> 0 | AB26: =+AB27*AB28 -> 0 | AD26: =+AD27*AD28 -> 0 | AE26: =+AE27*AE28 -> 0 | AG26: =+AG27*AG28 -> 0 | AH26: =+AH27*AH28 -> 0 | AJ26: =+AJ27*AJ28 -> 0 | AK26: =+AK27*AK28 -> 0 | AM26: =+AM27*AM28 -> 0 | AN26: =+AN27*AN28 -> 0 | AP26: =+AP27*AP28 -> 0 | AQ26: =+AQ27*AQ28 -> 0 | AS26: =+AS27*AS28 -> 0 | AT26: =+AT27*AT28 -> 0 | AV26: =+AV27*AV28 -> 0 | AW26: =+AW27*AW28 -> 0 | AY26: =+AY27*AY28 -> 0 | AZ26: =+AZ27*AZ28 -> 0 | BB26: =+BB27*BB28 -> 0 | BC26: =+BC27*BC28 -> 0 | BE26: =+BE27*BE28 -> 0 | BF26: =+BF27*BF28 -> 0
C27: =IF($B39>3,1,0) -> 0 | D27: =IF($B39>3,1,0) -> 0 | F27: =IF($B39>3,1,0) -> 0 | G27: =IF($B39>3,1,0) -> 0 | I27: =IF($B39>3,1,0) -> 0 | J27: =IF($B39>3,1,0) -> 0 | L27: =IF($B39>3,1,0) -> 0 | M27: =IF($B39>3,1,0) -> 0 | O27: =IF($B39>3,1,0) -> 0 | P27: =IF($B39>3,1,0) -> 0 | R27: =IF($B39>3,1,0) -> 0 | S27: =IF($B39>3,1,0) -> 0 | U27: =IF($B39>3,1,0) -> 0 | V27: =IF($B39>3,1,0) -> 0 | X27: =IF($B39>3,1,0) -> 0 | Y27: =IF($B39>3,1,0) -> 0 | AA27: =IF($B39>3,1,0) -> 0 | AB27: =IF($B39>3,1,0) -> 0 | AD27: =IF($B39>3,1,0) -> 0 | AE27: =IF($B39>3,1,0) -> 0 | AG27: =IF($B39>3,1,0) -> 0 | AH27: =IF($B39>3,1,0) -> 0 | AJ27: =IF($B39>3,1,0) -> 0 | AK27: =IF($B39>3,1,0) -> 0 | AM27: =IF($B39>3,1,0) -> 0 | AN27: =IF($B39>3,1,0) -> 0 | AP27: =IF($B39>3,1,0) -> 0 | AQ27: =IF($B39>3,1,0) -> 0 | AS27: =IF($B39>3,1,0) -> 0 | AT27: =IF($B39>3,1,0) -> 0 | AV27: =IF($B39>3,1,0) -> 0 | AW27: =IF($B39>3,1,0) -> 0 | AY27: =IF($B39>3,1,0) -> 0 | AZ27: =IF($B39>3,1,0) -> 0 | BB27: =IF($B39>3,1,0) -> 0 | BC27: =IF($B39>3,1,0) -> 0 | BE27: =IF($B39>3,1,0) -> 0 | BF27: =IF($B39>3,1,0) -> 0
C28: =MAX(C29:C33) -> 0 | D28: =+D40 -> 0 | F28: =MAX(F29:F33) -> 0 | G28: =+G40 -> 0 | I28: =MAX(I29:I33) -> 0 | J28: =+J40 -> 1 | L28: =MAX(L29:L33) -> 0 | M28: =+M40 -> 0 | O28: =MAX(O29:O33) -> 0 | P28: =+P40 -> 0 | R28: =MAX(R29:R33) -> 0 | S28: =+S40 -> 1 | U28: =MAX(U29:U33) -> 0 | V28: =+V40 -> 1 | X28: =MAX(X29:X33) -> 0 | Y28: =+Y40 -> 1 | AA28: =MAX(AA29:AA33) -> 0 | AB28: =+AB40 -> 0 | AD28: =MAX(AD29:AD33) -> 0 | AE28: =+AE40 -> 0 | AG28: =MAX(AG29:AG33) -> 0 | AH28: =+AH40 -> 0 | AJ28: =MAX(AJ29:AJ33) -> 0 | AK28: =+AK40 -> 0 | AM28: =MAX(AM29:AM33) -> 0 | AN28: =+AN40 -> 0 | AP28: =MAX(AP29:AP33) -> 0 | AQ28: =+AQ40 -> 0 | AS28: =MAX(AS29:AS33) -> 0 | AT28: =+AT40 -> 0 | AV28: =MAX(AV29:AV33) -> 0 | AW28: =+AW40 -> 0 | AY28: =MAX(AY29:AY33) -> 0 | AZ28: =+AZ40 -> 1 | BB28: =MAX(BB29:BB33) -> 0 | BC28: =+BC40 -> 0 | BE28: =MAX(BE29:BE33) -> 0 | BF28: =+BF40 -> 0
C29: =IF(C$34=5,5,0) -> 0 | F29: =IF(F$34=5,5,0) -> 0 | I29: =IF(I$34=5,5,0) -> 0 | L29: =IF(L$34=5,5,0) -> 0 | O29: =IF(O$34=5,5,0) -> 0 | R29: =IF(R$34=5,5,0) -> 0 | U29: =IF(U$34=5,5,0) -> 0 | X29: =IF(X$34=5,5,0) -> 0 | AA29: =IF(AA$34=5,5,0) -> 0 | AD29: =IF(AD$34=5,5,0) -> 0 | AG29: =IF(AG$34=5,5,0) -> 0 | AJ29: =IF(AJ$34=5,5,0) -> 0 | AM29: =IF(AM$34=5,5,0) -> 0 | AP29: =IF(AP$34=5,5,0) -> 0 | AS29: =IF(AS$34=5,5,0) -> 0 | AV29: =IF(AV$34=5,5,0) -> 0 | AY29: =IF(AY$34=5,5,0) -> 0 | BB29: =IF(BB$34=5,5,0) -> 0 | BE29: =IF(BE$34=5,5,0) -> 0
C30: =IF(C$34=4,10,0) -> 0 | F30: =IF(F$34=4,10,0) -> 0 | I30: =IF(I$34=4,10,0) -> 0 | L30: =IF(L$34=4,10,0) -> 0 | O30: =IF(O$34=4,10,0) -> 0 | R30: =IF(R$34=4,10,0) -> 0 | U30: =IF(U$34=4,10,0) -> 0 | X30: =IF(X$34=4,10,0) -> 0 | AA30: =IF(AA$34=4,10,0) -> 0 | AD30: =IF(AD$34=4,10,0) -> 0 | AG30: =IF(AG$34=4,10,0) -> 0 | AJ30: =IF(AJ$34=4,10,0) -> 0 | AM30: =IF(AM$34=4,10,0) -> 0 | AP30: =IF(AP$34=4,10,0) -> 0 | AS30: =IF(AS$34=4,10,0) -> 0 | AV30: =IF(AV$34=4,10,0) -> 0 | AY30: =IF(AY$34=4,10,0) -> 0 | BB30: =IF(BB$34=4,10,0) -> 0 | BE30: =IF(BE$34=4,10,0) -> 0
C31: =IF(C$34=3,20,0) -> 0 | F31: =IF(F$34=3,20,0) -> 0 | I31: =IF(I$34=3,20,0) -> 0 | L31: =IF(L$34=3,20,0) -> 0 | O31: =IF(O$34=3,20,0) -> 0 | R31: =IF(R$34=3,20,0) -> 0 | U31: =IF(U$34=3,20,0) -> 0 | X31: =IF(X$34=3,20,0) -> 0 | AA31: =IF(AA$34=3,20,0) -> 0 | AD31: =IF(AD$34=3,20,0) -> 0 | AG31: =IF(AG$34=3,20,0) -> 0 | AJ31: =IF(AJ$34=3,20,0) -> 0 | AM31: =IF(AM$34=3,20,0) -> 0 | AP31: =IF(AP$34=3,20,0) -> 0 | AS31: =IF(AS$34=3,20,0) -> 0 | AV31: =IF(AV$34=3,20,0) -> 0 | AY31: =IF(AY$34=3,20,0) -> 0 | BB31: =IF(BB$34=3,20,0) -> 0 | BE31: =IF(BE$34=3,20,0) -> 0
C32: =IF(C$34=2,40,0) -> 0 | F32: =IF(F$34=2,40,0) -> 0 | I32: =IF(I$34=2,40,0) -> 0 | L32: =IF(L$34=2,40,0) -> 0 | O32: =IF(O$34=2,40,0) -> 0 | R32: =IF(R$34=2,40,0) -> 0 | U32: =IF(U$34=2,40,0) -> 0 | X32: =IF(X$34=2,40,0) -> 0 | AA32: =IF(AA$34=2,40,0) -> 0 | AD32: =IF(AD$34=2,40,0) -> 0 | AG32: =IF(AG$34=2,40,0) -> 0 | AJ32: =IF(AJ$34=2,40,0) -> 0 | AM32: =IF(AM$34=2,40,0) -> 0 | AP32: =IF(AP$34=2,40,0) -> 0 | AS32: =IF(AS$34=2,40,0) -> 0 | AV32: =IF(AV$34=2,40,0) -> 0 | AY32: =IF(AY$34=2,40,0) -> 0 | BB32: =IF(BB$34=2,40,0) -> 0 | BE32: =IF(BE$34=2,40,0) -> 0
C33: =IF(C$34=1,80,0) -> 0 | F33: =IF(F$34=1,80,0) -> 0 | I33: =IF(I$34=1,80,0) -> 0 | L33: =IF(L$34=1,80,0) -> 0 | O33: =IF(O$34=1,80,0) -> 0 | R33: =IF(R$34=1,80,0) -> 0 | U33: =IF(U$34=1,80,0) -> 0 | X33: =IF(X$34=1,80,0) -> 0 | AA33: =IF(AA$34=1,80,0) -> 0 | AD33: =IF(AD$34=1,80,0) -> 0 | AG33: =IF(AG$34=1,80,0) -> 0 | AJ33: =IF(AJ$34=1,80,0) -> 0 | AM33: =IF(AM$34=1,80,0) -> 0 | AP33: =IF(AP$34=1,80,0) -> 0 | AS33: =IF(AS$34=1,80,0) -> 0 | AV33: =IF(AV$34=1,80,0) -> 0 | AY33: =IF(AY$34=1,80,0) -> 0 | BB33: =IF(BB$34=1,80,0) -> 0 | BE33: =IF(BE$34=1,80,0) -> 0
C34: =RANK(C35,$C35:$BF35)*C39 -> 0 | F34: =RANK(F35,$C35:$BF35)*F39 -> 0 | I34: =RANK(I35,$C35:$BF35)*I39 -> 0 | L34: =RANK(L35,$C35:$BF35)*L39 -> 0 | O34: =RANK(O35,$C35:$BF35)*O39 -> 0 | R34: =RANK(R35,$C35:$BF35)*R39 -> 0 | U34: =RANK(U35,$C35:$BF35)*U39 -> 0 | X34: =RANK(X35,$C35:$BF35)*X39 -> 0 | AA34: =RANK(AA35,$C35:$BF35)*AA39 -> 0 | AD34: =RANK(AD35,$C35:$BF35)*AD39 -> 0 | AG34: =RANK(AG35,$C35:$BF35)*AG39 -> 0 | AJ34: =RANK(AJ35,$C35:$BF35)*AJ39 -> 0 | AM34: =RANK(AM35,$C35:$BF35)*AM39 -> 0 | AP34: =RANK(AP35,$C35:$BF35)*AP39 -> 0 | AS34: =RANK(AS35,$C35:$BF35)*AS39 -> 0 | AV34: =RANK(AV35,$C35:$BF35)*AV39 -> 0 | AY34: =RANK(AY35,$C35:$BF35)*AY39 -> 0 | BB34: =RANK(BB35,$C35:$BF35)*BB39 -> 0 | BE34: =RANK(BE35,$C35:$BF35)*BE39 -> 0
C35: =SUM(C36:C38) -> -999999900 | F35: =SUM(F36:F38) -> -999999900 | I35: =SUM(I36:I38) -> -1000004369 | L35: =SUM(L36:L38) -> -999999900 | O35: =SUM(O36:O38) -> -999999900 | R35: =SUM(R36:R38) -> -1000004519 | U35: =SUM(U36:U38) -> -1000005759 | X35: =SUM(X36:X38) -> -1000007629 | AA35: =SUM(AA36:AA38) -> -999999900 | AD35: =SUM(AD36:AD38) -> -999999900 | AG35: =SUM(AG36:AG38) -> -999999900 | AJ35: =SUM(AJ36:AJ38) -> -999999998 | AM35: =SUM(AM36:AM38) -> -999999900 | AP35: =SUM(AP36:AP38) -> -999999998 | AS35: =SUM(AS36:AS38) -> -999999900 | AV35: =SUM(AV36:AV38) -> -999999900 | AY35: =SUM(AY36:AY38) -> -999998419 | BB35: =SUM(BB36:BB38) -> -9999900 | BE35: =SUM(BE36:BE38) -> -9999900
C36: =+D40 -> 0 | F36: =+G40 -> 0 | I36: =+J40 -> 1 | L36: =+M40 -> 0 | O36: =+P40 -> 0 | R36: =+S40 -> 1 | U36: =+V40 -> 1 | X36: =+Y40 -> 1 | AA36: =+AB40 -> 0 | AD36: =+AE40 -> 0 | AG36: =+AH40 -> 0 | AJ36: =+AK40 -> 0 | AM36: =+AN40 -> 0 | AP36: =+AQ40 -> 0 | AS36: =+AT40 -> 0 | AV36: =+AW40 -> 0 | AY36: =+AZ40 -> 1 | BB36: =+BC40 -> 0 | BE36: =+BF40 -> 0
C37: =+C41*100 -> 100 | F37: =+F41*100 -> 100 | I37: =+I41*100 -> -4370 | L37: =+L41*100 -> 100 | O37: =+O41*100 -> 100 | R37: =+R41*100 -> -4520 | U37: =+U41*100 -> -5760 | X37: =+X41*100 -> -7630 | AA37: =+AA41*100 -> 100 | AD37: =+AD41*100 -> 100 | AG37: =+AG41*100 -> 100 | AJ37: =+AJ41*2 -> 2 | AM37: =+AM41*100 -> 100 | AP37: =+AP41*2 -> 2 | AS37: =+AS41*100 -> 100 | AV37: =+AV41*100 -> 100 | AY37: =+AY41*100 -> 1580 | BB37: =+BB41*100 -> 100 | BE37: =+BE41*100 -> 100
C38: =IF(D40-$A3/2<0,-1000000000,C40*C39*100000+C40) -> -1000000000 | F38: =IF(G40-$A3/2<0,-1000000000,F40*F39*100000+F40) -> -1000000000 | I38: =IF(J40-$A3/2<0,-1000000000,I40*I39*100000+I40) -> -1000000000 | L38: =IF(M40-$A3/2<0,-1000000000,L40*L39*100000+L40) -> -1000000000 | O38: =IF(P40-$A3/2<0,-1000000000,O40*O39*100000+O40) -> -1000000000 | R38: =IF(S40-$A3/2<0,-1000000000,R40*R39*100000+R40) -> -1000000000 | U38: =IF(V40-$A3/2<0,-1000000000,U40*U39*100000+U40) -> -1000000000 | X38: =IF(Y40-$A3/2<0,-1000000000,X40*X39*100000+X40) -> -1000000000 | AA38: =IF(AB40-$A3/2<0,-1000000000,AA40*AA39*100000+AA40) -> -1000000000 | AD38: =IF(AE40-$A3/2<0,-1000000000,AD40*AD39*100000+AD40) -> -1000000000 | AG38: =IF(AH40-$A3/2<0,-1000000000,AG40*AG39*100000+AG40) -> -1000000000 | AJ38: =IF(AK40-$A3/2<0,-1000000000,AJ40*AJ39*100000+AJ40) -> -1000000000 | AM38: =IF(AN40-$A3/2<0,-1000000000,AM40*AM39*100000+AM40) -> -1000000000 | AP38: =IF(AQ40-$A3/2<0,-1000000000,AP40*AP39*100000+AP40) -> -1000000000 | AS38: =IF(AT40-$A3/2<0,-1000000000,AS40*AS39*100000+AS40) -> -1000000000 | AV38: =IF(AW40-$A3/2<0,-1000000000,AV40*AV39*100000+AV40) -> -1000000000 | AY38: =IF(AZ40-$A3/2<0,-1000000000,AY40*AY39*100000+AY40) -> -1000000000 | BB38: =IF(BC40-$A3/2<0,-10000000,BB40*BB39*100000+BB40) -> -10000000 | BE38: =IF(BF40-$A3/2<0,-10000000,BE40*BE39*100000+BE40) -> -10000000
A39: Classificats | B39: =SUM(C39:BE39) -> 0 | C39: =IF(D40>=$A3/2,1,0) -> 0 | F39: =IF(G40>=$A3/2,1,0) -> 0 | I39: =IF(J40>=$A3/2,1,0) -> 0 | L39: =IF(M40>=$A3/2,1,0) -> 0 | O39: =IF(P40>=$A3/2,1,0) -> 0 | R39: =IF(S40>=$A3/2,1,0) -> 0 | U39: =IF(V40>=$A3/2,1,0) -> 0 | X39: =IF(Y40>=$A3/2,1,0) -> 0 | AA39: =IF(AB40>=$A3/2,1,0) -> 0 | AD39: =IF(AE40>=$A3/2,1,0) -> 0 | AG39: =IF(AH40>=$A3/2,1,0) -> 0 | AJ39: =IF(AK40>=$A3/2,1,0) -> 0 | AM39: =IF(AN40>=$A3/2,1,0) -> 0 | AP39: =IF(AQ40>=$A3/2,1,0) -> 0 | AS39: =IF(AT40>=$A3/2,1,0) -> 0 | AV39: =IF(AW40>=$A3/2,1,0) -> 0 | AY39: =IF(AZ40>=$A3/2,1,0) -> 0 | BB39: =IF(BC40>=$A3/2,1,0) -> 0 | BE39: =IF(BF40>=$A3/2,1,0) -> 0
C40: =IF(SUM(C45:C240)<-1000,-100000000,SUM(C45:C240)) -> -100000000 | D40: =COUNT(D45:D240) -> 0 | F40: =IF(SUM(F45:F240)<-1000,-100000000,SUM(F45:F240)) -> -100000000 | G40: =COUNT(G45:G240) -> 0 | I40: =IF(SUM(I45:I240)<-1000,-100000000,SUM(I45:I240)) -> 5 | J40: =COUNT(J45:J240) -> 1 | L40: =IF(SUM(L45:L240)<-1000,-100000000,SUM(L45:L240)) -> -100000000 | M40: =COUNT(M45:M240) -> 0 | O40: =IF(SUM(O45:O240)<-1000,-100000000,SUM(O45:O240)) -> -100000000 | P40: =COUNT(P45:P240) -> 0 | R40: =IF(SUM(R45:R240)<-1000,-100000000,SUM(R45:R240)) -> 0 | S40: =COUNT(S45:S240) -> 1 | U40: =IF(SUM(U45:U240)<-1000,-100000000,SUM(U45:U240)) -> -5 | V40: =COUNT(V45:V240) -> 1 | X40: =IF(SUM(X45:X240)<-1000,-100000000,SUM(X45:X240)) -> -10 | Y40: =COUNT(Y45:Y240) -> 1 | AA40: =IF(SUM(AA45:AA240)<-1000,-100000000,SUM(AA45:AA240)) -> -100000000 | AB40: =COUNT(AB45:AB240) -> 0 | AD40: =IF(SUM(AD45:AD240)<-1000,-100000000,SUM(AD45:AD240)) -> -100000000 | AE40: =COUNT(AE45:AE240) -> 0 | AG40: =IF(SUM(AG45:AG240)<-1000,-100000000,SUM(AG45:AG240)) -> -100000000 | AH40: =COUNT(AH45:AH240) -> 0 | AJ40: =IF(SUM(AJ45:AJ240)<-1000,-100000000,SUM(AJ45:AJ240)) -> -100000000 | AK40: =COUNT(AK45:AK240) -> 0 | AM40: =IF(SUM(AM45:AM240)<-1000,-100000000,SUM(AM45:AM240)) -> -100000000 | AN40: =COUNT(AN45:AN240) -> 0 | AP40: =IF(SUM(AP45:AP240)<-1000,-100000000,SUM(AP45:AP240)) -> -100000000 | AQ40: =COUNT(AQ45:AQ240) -> 0 | AS40: =IF(SUM(AS45:AS240)<-1000,-100000000,SUM(AS45:AS240)) -> -100000000 | AT40: =COUNT(AT45:AT240) -> 0 | AV40: =IF(SUM(AV45:AV240)<-1000,-100000000,SUM(AV45:AV240)) -> -100000000 | AW40: =COUNT(AW45:AW240) -> 0 | AY40: =IF(SUM(AY45:AY240)<-1000,-100000000,SUM(AY45:AY240)) -> 10 | AZ40: =COUNT(AZ45:AZ240) -> 1 | BB40: =IF(SUM(BB45:BB240)<-1000,-100000000,SUM(BB45:BB240)) -> -100000000 | BC40: =COUNT(BC45:BC240) -> 0 | BE40: =IF(SUM(BE45:BE240)<-1000,-100000000,SUM(BE45:BE240)) -> -100000000 | BF40: =COUNT(BF45:BF240) -> 0 | BI40: A
C41: =+D41-E41 -> 1 | D41: =SUM(D45:D240) -> 0 | E41: =SUM(E45:E240) -> -1 | F41: =+G41-H41 -> 1 | G41: =SUM(G45:G240) -> 0 | H41: =SUM(H45:H240) -> -1 | I41: =+J41-K41 -> -43.7 | J41: =SUM(J45:J240) -> -38.7 | K41: =SUM(K45:K240) -> 5 | L41: =+M41-N41 -> 1 | M41: =SUM(M45:M240) -> 0 | N41: =SUM(N45:N240) -> -1 | O41: =+P41-Q41 -> 1 | P41: =SUM(P45:P240) -> 0 | Q41: =SUM(Q45:Q240) -> -1 | R41: =+S41-T41 -> -45.2 | S41: =SUM(S45:S240) -> -40.2 | T41: =SUM(T45:T240) -> 5 | U41: =+V41-W41 -> -57.6 | V41: =SUM(V45:V240) -> -52.6 | W41: =SUM(W45:W240) -> 5 | X41: =+Y41-Z41 -> -76.3 | Y41: =SUM(Y45:Y240) -> -71.3 | Z41: =SUM(Z45:Z240) -> 5 | AA41: =+AB41-AC41 -> 1 | AB41: =SUM(AB45:AB240) -> 0 | AC41: =SUM(AC45:AC240) -> -1 | AD41: =+AE41-AF41 -> 1 | AE41: =SUM(AE45:AE240) -> 0 | AF41: =SUM(AF45:AF240) -> -1 | AG41: =+AH41-AI41 -> 1 | AH41: =SUM(AH45:AH240) -> 0 | AI41: =SUM(AI45:AI240) -> -1 | AJ41: =+AK41-AL41 -> 1 | AK41: =SUM(AK45:AK240) -> 0 | AL41: =SUM(AL45:AL240) -> -1 | AM41: =+AN41-AO41 -> 1 | AN41: =SUM(AN45:AN240) -> 0 | AO41: =SUM(AO45:AO240) -> -1 | AP41: =+AQ41-AR41 -> 1 | AQ41: =SUM(AQ45:AQ240) -> 0 | AR41: =SUM(AR45:AR240) -> -1 | AS41: =+AT41-AU41 -> 1 | AT41: =SUM(AT45:AT240) -> 0 | AU41: =SUM(AU45:AU240) -> -1 | AV41: =+AW41-AX41 -> 1 | AW41: =SUM(AW45:AW240) -> 0 | AX41: =SUM(AX45:AX240) -> -1 | AY41: =+AZ41-BA41 -> 15.8 | AZ41: =SUM(AZ45:AZ240) -> 20.8 | BA41: =SUM(BA45:BA240) -> 5 | BB41: =+BC41-BD41 -> 1 | BC41: =SUM(BC45:BC240) -> 0 | BD41: =SUM(BD45:BD240) -> -1 | BE41: =+BF41-BG41 -> 1 | BF41: =SUM(BF45:BF240) -> 0 | BG41: =SUM(BG45:BG240) -> -1 | BI41: B
I42: =COUNTIF(I45:I64,10) -> 0 | R42: =COUNTIF(R45:R64,10) -> 0 | U42: =COUNTIF(U45:U64,10) -> 0 | X42: =COUNTIF(X45:X64,10) -> 0 | AM42: =COUNTIF(AM45:AM64,10) -> 0 | AS42: =COUNTIF(AS45:AS64,10) -> 0 | AV42: =COUNTIF(AV45:AV64,10) -> 0 | AY42: =COUNTIF(AY45:AY64,10) -> 1 | BH42: =MAX(BI45:BI104) -> 363
B43: Nº partida | C43: Otins | F43: Martin | I43: Jordi | L43: Josep Mª | O43: Joan Carles | R43: Sergi | U43: Carles | X43: Mariajo | AA43: Iglesias | AD43: David | AG43: Xavi | AJ43: Salvadó | AM43: Manolo | AP43: Tina | AS43: Goretti | AV43: Grau | AY43: Nin | BB43: Jorge | BE43: Marina | BH43: =COUNT(BH45:BH255) -> 1 | BI43: A | BJ43: B | BK43: C
B44: 5 copes | C44: Premi | D44: Punts | F44: Premi | G44: Punts | I44: Premi | J44: Punts | L44: Premi | M44: Punts | O44: Premi | P44: Punts | R44: Premi | S44: Punts | U44: Premi | V44: Punts | X44: Premi | Y44: Punts | AA44: Premi | AB44: Punts | AD44: Premi | AE44: Punts | AG44: Premi | AH44: Punts | AJ44: Premi | AK44: Punts | AM44: Premi | AN44: Punts | AP44: Premi | AQ44: Punts | AS44: Premi | AT44: Punts | AV44: Premi | AW44: Punts | AY44: Premi | AZ44: Punts | BB44: Premi | BC44: Punts | BE44: Premi | BF44: Punts | BH44: Data | BI44: Timba
A45: 1 | C45: -10000 | E45: -1 | F45: -10000 | H45: -1 | I45: 5 | J45: -38.7 | K45: 5 | L45: -10000 | N45: -1 | O45: -10000 | Q45: -1 | R45: 0 | S45: -40.2 | T45: 5 | U45: -5 | V45: -52.6 | W45: 5 | X45: -10 | Y45: -71.3 | Z45: 5 | AA45: -10000 | AC45: -1 | AD45: -10000 | AF45: -1 | AG45: -10000 | AI45: -1 | AJ45: -10000 | AL45: -1 | AM45: -10000 | AO45: -1 | AP45: -10000 | AR45: -1 | AS45: -10000 | AU45: -1 | AV45: -10000 | AX45: -1 | AY45: 10 | AZ45: 20.8 | BA45: 5 | BB45: -10000 | BD45: -1 | BE45: -10000 | BG45: -1 | BH45: 2021-09-18 | BI45: 363 | BJ45: =+BE45+AJ45+AG45+AD45+AA45+X45+U45+R45+O45+L45+I45+F45+C45+AM45+AP45+AS45+AV45+AY45+BB45 -> -140000 | BK45: -182 | BL45: 11 | BM45: =+BK45-BL45 -> -193 | BN45: =COUNT(C45:BG45)/3 -> 14.33333333 | BO45: =+BJ45/BN45 -> -9767.44186
A46: =+A45+1 -> 2 | BJ46: 0 | BK46: 0 | BL46: 0 | BM46: 0 | BN46: 0
A47: =+A46+1 -> 3 | BJ47: 0 | BK47: 0 | BL47: 0 | BM47: 0 | BN47: 0
A48: 4 | BJ48: 0 | BK48: 0 | BL48: 0 | BM48: 0 | BN48: 0
A49: 5 | BJ49: 0 | BK49: 0 | BL49: 0 | BM49: 0 | BN49: 0
A50: 6 | BJ50: 0 | BK50: 0 | BL50: 0 | BM50: 0 | BN50: 0
A51: 7 | BJ51: 0 | BK51: 0 | BL51: 0 | BM51: 0 | BN51: 0
A52: 8 | BJ52: 0 | BK52: 0 | BL52: 0 | BM52: 0 | BN52: 0
A53: 9 | BJ53: 0 | BK53: 0 | BL53: 0 | BM53: 0 | BN53: 0
A54: 10 | BJ54: 0 | BK54: 0 | BL54: 0 | BM54: 0 | BN54: 0
A55: 11 | BJ55: 0 | BK55: 0 | BL55: 0 | BM55: 0 | BN55: 0
A56: 12 | BJ56: 0 | BK56: 0 | BL56: 0 | BM56: 0 | BN56: 0
A57: 13 | BJ57: 0 | BK57: 0 | BL57: 0 | BM57: 0 | BN57: 0
A58: 14 | BJ58: 0 | BK58: 0 | BL58: 0 | BM58: 0 | BN58: 0
A59: 15 | BJ59: 0 | BK59: 0 | BL59: 0 | BM59: 0 | BN59: 0
A60: 16 | BJ60: 0 | BK60: 0 | BL60: 0 | BM60: 0 | BN60: 0
A61: 17 | BJ61: 0 | BK61: 0 | BL61: 0 | BM61: 0 | BN61: 0
A62: 18 | BJ62: 0 | BK62: 0 | BL62: 0 | BM62: 0 | BN62: 0
A63: 19 | BJ63: 0 | BK63: 0 | BL63: 0 | BM63: 0 | BN63: 0
A64: 20 | BJ64: =+BE64+AJ64+AG64+AD64+AA64+X64+U64+R64+O64+L64+I64+F64+C64+AM64+AP64+AS64+AV64+AY64+BB64 -> 0 | BK64: 0 | BL64: 0 | BM64: 0 | BN64: 0
A65: 21 | BJ65: 0 | BK65: 0 | BL65: 0 | BM65: 0 | BN65: 0
A66: 22 | BJ66: 0 | BK66: 0 | BL66: 0 | BM66: 0 | BN66: 0
A67: 23 | BJ67: 0 | BK67: 0 | BL67: 0 | BM67: 0 | BN67: 0
A68: 24 | BJ68: 0 | BK68: 0 | BL68: 0 | BM68: 0 | BN68: 0
A69: 25 | BJ69: 0 | BK69: 0 | BL69: 0 | BM69: 0 | BN69: 0
A70: 26 | BJ70: 0 | BK70: 0 | BL70: 0 | BM70: 0 | BN70: 0
A71: 27 | BJ71: 0 | BK71: 0 | BL71: 0 | BM71: 0 | BN71: 0
A72: 28 | BJ72: 0 | BK72: 0 | BL72: 0 | BM72: 0 | BN72: 0
A73: 29 | BJ73: 0 | BK73: 0 | BL73: 0 | BM73: 0 | BN73: 0
A74: 30 | BJ74: 0 | BK74: 0 | BL74: 0 | BM74: 0 | BN74: 0
A75: 31 | BJ75: 0 | BK75: 0 | BL75: 0 | BM75: 0 | BN75: 0
A76: 32 | BJ76: 0 | BK76: 0 | BL76: 0 | BM76: 0 | BN76: 0
A77: 33
A78: 34
A79: 35
A80: 36
A81: 37
A82: 38
A83: 39
A84: 40
A85: 41
A86: 42
A87: 43
A88: 44
A89: 45
A90: =+A89+1 -> 46
A91: 47
A92: 48
A93: 49
A94: 50
A95: 51
A96: 52
A97: 53
A98: 54
A99: 55
A100: 56
A101: 57
A102: 58
A103: 59
A104: 60
A105: 61
A106: 62
A107: 63
A108: 64
A109: 65
A110: 66
A111: =+A110+1 -> 67
A112: 68
A113: 69
A114: 70
A115: 71
A116: 72
A117: 73
A118: 74
A119: 75
A120: 76
A121: 77
A122: 78
A123: 79
A124: 80
A125: 81
A126: 82
A127: 83
A128: 84
A129: 85
A130: 86
A131: 87
A132: 88
A133: 89
A134: 90
A135: 91
A136: 92
A137: 93
A138: 94
A139: 95
A140: 96
A141: 97
A142: 98
A143: 99
A144: 100
A145: 101
A146: 102
A147: 103
A148: 104
A149: 105
A150: 106
A151: 107
A152: 108
A153: 109
A154: 110
A155: 111
A156: 112
A157: 113
A158: 114
A159: 115
A160: 116
A161: 117
A162: 118
A163: 119
A164: 120
A165: 121
A166: 122
A167: 123
A168: 124
A169: 125
A170: 126
A171: 127
A172: 128
A173: 129
A174: 130
A175: =+A174+1 -> 131
A176: 132
A177: 133
A178: 134
A179: 135
A180: 136
A181: =+A180+1 -> 137
A182: =+A181+1 -> 138
A183: =+A182+1 -> 139
A184: =+A183+1 -> 140
A185: 141
A186: 142
A187: 143
A188: 144
A189: 145
A190: 146
A191: 147
A192: 148
A193: 149
A194: 150
A195: 151
A196: 152
A197: 153
A198: 154
A199: 155
A200: 156
A201: 157
A202: 158
... 38 more rows

Sheet Cors
A1: CORS
A2: Mes
A3: =+GENERAL!B6 -> 12 | C3: =SUM(C5:C14) -> -1000000000
C4: Premi | D4: Punts | E4: Partides | F4: General
A5: 1 | B5: Carles | C5: =+O$40 -> -100000000 | D5: =+P$41 -> 0.0001 | E5: =+P$40 -> 0 | F5: =+O$22 -> 0 | G5: =IF(E5<A$3/2,-1,1)*800000+C5*1000-D5*10+E5 -> -1.000008e+11
A6: 2 | B6: Jordi | C6: =+G$40 -> -100000000 | D6: =+H$41 -> 0.0001 | E6: =+H$40 -> 0 | F6: =+G$22 -> 0 | G6: -1.000008e+11
A7: 3 | B7: Manolo | C7: =+E$40 -> -100000000 | D7: =+F$41 -> 0.0001 | E7: =+F$40 -> 0 | F7: =+E$22 -> 0 | G7: -1.000008e+11
A8: 4 | B8: Cyber X | C8: =+S$40 -> -100000000 | D8: =+T$41 -> 0.0001 | E8: =+T$40 -> 0 | F8: =+S$22 -> 0 | G8: -1.000008e+11
A9: 5 | B9: Sergi | C9: =+M$40 -> -100000000 | D9: =+N$41 -> 0.0001 | E9: =+N$40 -> 0 | F9: =+M$22 -> 0 | G9: -1.000008e+11
A10: 6 | B10: Grau | C10: =+C$40 -> -100000000 | D10: =+D$41 -> 0.0001 | E10: =+D$40 -> 0 | F10: =+C$22 -> 0 | G10: -1.000008e+11
A11: 7 | B11: Nin | C11: =+U$40 -> -100000000 | D11: =+V$41 -> 0.0001 | E11: =+V$40 -> 0 | F11: =+U$22 -> 0 | G11: -1.000008e+11
A12: 8 | B12: Mariajo | C12: =+Q$40 -> -100000000 | D12: =+R$41 -> 0.0001 | E12: =+R$40 -> 0 | F12: =+Q$22 -> 0 | G12: -1.000008e+11
A13: 9 | B13: Tito | C13: =+I$40 -> -100000000 | D13: =+J$41 -> 0.0001 | E13: =+J$40 -> 0 | F13: =+I$22 -> 0 | G13: -1.000008e+11
A14: 10 | B14: Òscar | C14: =+W$40 -> -100000000 | D14: =+X$41 -> 0.0001 | E14: =+X$40 -> 0 | F14: =+W$22 -> 0 | G14: -1.000008e+11
A15: 11 | B15: Anna | C15: =+AA$40 -> -100000000 | D15: =+AB$41 -> 0.0001 | E15: =+AB$40 -> 0 | F15: =+AA$22 -> 0 | G15: -1.000008e+11
A16: 12 | B16: Goretti | C16: =+K$40 -> -100000000 | D16: =+L$41 -> 0.0001 | E16: =+L$40 -> 0 | F16: =+K$22 -> 0 | G16: -1.000008e+11
A17: 13 | B17: Mercè | C17: =+Y$40 -> -100000000 | D17: =+Z$41 -> 0.0001 | E17: =+Z$40 -> 0 | F17: =+Y$22 -> 0 | G17: -1.000008e+11
A18: 14 | B18: Oleguer | C18: =+AC$40 -> -100000000 | D18: =+AD$41 -> 0.0001 | E18: =+AD$40 -> 0 | F18: =+AC$22 -> 0 | G18: -1.000008e+11
B22: General | C22: =+C23*C24 -> 0 | D22: =+D23*D24 -> 0 | E22: 0 | F22: 0 | G22: =+G23*G24 -> 0 | H22: 0 | I22: 0 | J22: 0 | K22: 0 | L22: 0 | M22: 0 | N22: 0 | O22: 0 | P22: 0 | Q22: 0 | R22: 0 | S22: =+S23*S24 -> 0 | T22: 0 | U22: 0 | V22: 0 | W22: 0 | X22: 0 | Y22: =+Y23*Y24 -> 0 | Z22: 0 | AA22: =+AA23*AA24 -> 0 | AB22: =+AB23*AB24 -> 0 | AC22: 0 | AD22: 0
C23: =IF($B39>3,1,0) -> 0 | D23: =IF($B39>3,1,0) -> 0 | E23: 0 | F23: 0 | G23: =IF($B39>3,1,0) -> 0 | H23: 0 | I23: 0 | J23: 0 | K23: 0 | L23: 0 | M23: 0 | N23: 0 | O23: 0 | P23: 0 | Q23: 0 | R23: 0 | S23: 0 | T23: 0 | U23: 0 | V23: 0 | W23: 0 | X23: 0 | Y23: 0 | Z23: 0 | AA23: =IF($B39>3,1,0) -> 0 | AB23: =IF($B39>3,1,0) -> 0 | AC23: 0 | AD23: 0
C24: =MAX(C25:C29) -> 0 | D24: =+D40 -> 0 | E24: =MAX(E25:E29) -> 0 | F24: =+F40 -> 0 | G24: =MAX(G25:G29) -> 0 | H24: =+H40 -> 0 | I24: =MAX(I25:I29) -> 0 | J24: =+J40 -> 0 | K24: =MAX(K25:K29) -> 0 | L24: =+L40 -> 0 | M24: =MAX(M25:M29) -> 0 | N24: =+N40 -> 0 | O24: =MAX(O25:O29) -> 0 | P24: =+P40 -> 0 | Q24: =MAX(Q25:Q29) -> 0 | R24: =+R40 -> 0 | S24: =MAX(S25:S29) -> 0 | T24: =+T40 -> 0 | U24: =MAX(U25:U29) -> 0 | V24: =+V40 -> 0 | W24: =MAX(W25:W29) -> 0 | X24: =+X40 -> 0 | Y24: =MAX(Y25:Y29) -> 0 | Z24: =+Z40 -> 0 | AA24: =MAX(AA25:AA29) -> 0 | AB24: =+AB40 -> 0 | AC24: =MAX(AC25:AC29) -> 0 | AD24: =+AD40 -> 0
C25: =IF(C$30=5,5,0) -> 0 | E25: =IF(E$30=5,5,0) -> 0 | G25: =IF(G$30=5,5,0) -> 0 | I25: =IF(I$30=5,5,0) -> 0 | K25: =IF(K$30=5,5,0) -> 0 | M25: =IF(M$30=5,5,0) -> 0 | O25: =IF(O$30=5,5,0) -> 0 | Q25: =IF(Q$30=5,5,0) -> 0 | S25: =IF(S$30=5,5,0) -> 0 | U25: =IF(U$30=5,5,0) -> 0 | W25: =IF(W$30=5,5,0) -> 0 | Y25: =IF(Y$30=5,5,0) -> 0 | AA25: =IF(AA$30=5,5,0) -> 0 | AC25: =IF(AC$30=5,5,0) -> 0
C26: =IF(C$30=4,10,0) -> 0 | E26: =IF(E$30=4,10,0) -> 0 | G26: =IF(G$30=4,10,0) -> 0 | I26: =IF(I$30=4,10,0) -> 0 | K26: =IF(K$30=4,10,0) -> 0 | M26: =IF(M$30=4,10,0) -> 0 | O26: =IF(O$30=4,10,0) -> 0 | Q26: =IF(Q$30=4,10,0) -> 0 | S26: =IF(S$30=4,10,0) -> 0 | U26: =IF(U$30=4,10,0) -> 0 | W26: =IF(W$30=4,10,0) -> 0 | Y26: =IF(Y$30=4,10,0) -> 0 | AA26: =IF(AA$30=4,10,0) -> 0 | AC26: =IF(AC$30=4,10,0) -> 0
C27: =IF(C$30=3,20,0) -> 0 | E27: =IF(E$30=3,20,0) -> 0 | G27: =IF(G$30=3,20,0) -> 0 | I27: =IF(I$30=3,20,0) -> 0 | K27: =IF(K$30=3,20,0) -> 0 | M27: =IF(M$30=3,20,0) -> 0 | O27: =IF(O$30=3,20,0) -> 0 | Q27: =IF(Q$30=3,20,0) -> 0 | S27: =IF(S$30=3,20,0) -> 0 | U27: =IF(U$30=3,20,0) -> 0 | W27: =IF(W$30=3,20,0) -> 0 | Y27: =IF(Y$30=3,20,0) -> 0 | AA27: =IF(AA$30=3,20,0) -> 0 | AC27: =IF(AC$30=3,20,0) -> 0
C28: =IF(C$30=2,40,0) -> 0 | E28: =IF(E$30=2,40,0) -> 0 | G28: =IF(G$30=2,40,0) -> 0 | I28: =IF(I$30=2,40,0) -> 0 | K28: =IF(K$30=2,40,0) -> 0 | M28: =IF(M$30=2,40,0) -> 0 | O28: =IF(O$30=2,40,0) -> 0 | Q28: =IF(Q$30=2,40,0) -> 0 | S28: =IF(S$30=2,40,0) -> 0 | U28: =IF(U$30=2,40,0) -> 0 | W28: =IF(W$30=2,40,0) -> 0 | Y28: =IF(Y$30=2,40,0) -> 0 | AA28: =IF(AA$30=2,40,0) -> 0 | AC28: =IF(AC$30=2,40,0) -> 0
C29: =IF(C$30=1,80,0) -> 0 | E29: =IF(E$30=1,80,0) -> 0 | G29: =IF(G$30=1,80,0) -> 0 | I29: =IF(I$30=1,80,0) -> 0 | K29: =IF(K$30=1,80,0) -> 0 | M29: =IF(M$30=1,80,0) -> 0 | O29: =IF(O$30=1,80,0) -> 0 | Q29: =IF(Q$30=1,80,0) -> 0 | S29: =IF(S$30=1,80,0) -> 0 | U29: =IF(U$30=1,80,0) -> 0 | W29: =IF(W$30=1,80,0) -> 0 | Y29: =IF(Y$30=1,80,0) -> 0 | AA29: =IF(AA$30=1,80,0) -> 0 | AC29: =IF(AC$30=1,80,0) -> 0
C30: =RANK(C31,$C31:$BF31)*C39 -> 0 | E30: =RANK(E31,$C31:$BF31)*E39 -> 0 | G30: =RANK(G31,$C31:$BF31)*G39 -> 0 | I30: =RANK(I31,$C31:$BF31)*I39 -> 0 | K30: =RANK(K31,$C31:$BF31)*K39 -> 0 | M30: =RANK(M31,$C31:$BF31)*M39 -> 0 | O30: =RANK(O31,$C31:$BF31)*O39 -> 0 | Q30: =RANK(Q31,$C31:$BF31)*Q39 -> 0 | S30: =RANK(S31,$C31:$BF31)*S39 -> 0 | U30: =RANK(U31,$C31:$BF31)*U39 -> 0 | W30: =RANK(W31,$C31:$BF31)*W39 -> 0 | Y30: =RANK(Y31,$C31:$BF31)*Y39 -> 0 | AA30: =RANK(AA31,$C31:$BF31)*AA39 -> 0 | AC30: =RANK(AC31,$C31:$BF31)*AC39 -> 0
C31: =SUM(C32:C34) -> -101000000 | E31: =SUM(E32:E34) -> -101000000 | G31: =SUM(G32:G34) -> -101000000 | I31: =SUM(I32:I34) -> -101000000 | K31: =SUM(K32:K34) -> -101000000 | M31: =SUM(M32:M34) -> -101000000 | O31: =SUM(O32:O34) -> -101000000 | Q31: =SUM(Q32:Q34) -> -101000000 | S31: =SUM(S32:S34) -> -101000000 | U31: =SUM(U32:U34) -> -101000000 | W31: =SUM(W32:W34) -> -101000000 | Y31: =SUM(Y32:Y34) -> -101000000 | AA31: =SUM(AA32:AA34) -> -101000000 | AC31: =SUM(AC32:AC34) -> -101000000
C32: =+D40 -> 0 | E32: =+F40 -> 0 | G32: =+H40 -> 0 | I32: =+J40 -> 0 | K32: =+L40 -> 0 | M32: =+N40 -> 0 | O32: =+P40 -> 0 | Q32: =+R40 -> 0 | S32: =+T40 -> 0 | U32: =+V40 -> 0 | W32: =+X40 -> 0 | Y32: =+Z40 -> 0 | AA32: =+AB40 -> 0 | AC32: =+AD40 -> 0
C33: =-D41*100 -> -0.01 | E33: =-F41*100 -> -0.01 | G33: =-H41*100 -> -0.01 | I33: =-J41*100 -> -0.01 | K33: =-L41*100 -> -0.01 | M33: =-N41*100 -> -0.01 | O33: =-P41*100 -> -0.01 | Q33: =-R41*100 -> -0.01 | S33: =-T41*100 -> -0.01 | U33: =-V41*100 -> -0.01 | W33: =-X41*100 -> -0.01 | Y33: =-Z41*100 -> -0.01 | AA33: =-AB41*100 -> -0.01 | AC33: =-AD41*100 -> -0.01
C34: =IF(C39=1,C40*C39*1000+C40,-1000000+C40) -> -101000000 | E34: =IF(E39=1,E40*E39*1000+E40,-1000000+E40) -> -101000000 | G34: =IF(G39=1,G40*G39*1000+G40,-1000000+G40) -> -101000000 | I34: =IF(I39=1,I40*I39*1000+I40,-1000000+I40) -> -101000000 | K34: =IF(K39=1,K40*K39*1000+K40,-1000000+K40) -> -101000000 | M34: =IF(M39=1,M40*M39*1000+M40,-1000000+M40) -> -101000000 | O34: =IF(O39=1,O40*O39*1000+O40,-1000000+O40) -> -101000000 | Q34: =IF(Q39=1,Q40*Q39*1000+Q40,-1000000+Q40) -> -101000000 | S34: =IF(S39=1,S40*S39*1000+S40,-1000000+S40) -> -101000000 | U34: =IF(U39=1,U40*U39*1000+U40,-1000000+U40) -> -101000000 | W34: =IF(W39=1,W40*W39*1000+W40,-1000000+W40) -> -101000000 | Y34: =IF(Y39=1,Y40*Y39*1000+Y40,-1000000+Y40) -> -101000000 | AA34: =IF(AA39=1,AA40*AA39*1000+AA40,-1000000+AA40) -> -101000000 | AC34: =IF(AC39=1,AC40*AC39*1000+AC40,-1000000+AC40) -> -101000000
A39: Classificats | B39: =SUM(C39:AC39) -> 0 | C39: =IF(D40>=$A3/2,1,0) -> 0 | E39: =IF(F40>=$A3/2,1,0) -> 0 | G39: =IF(H40>=$A3/2,1,0) -> 0 | I39: =IF(J40>=$A3/2,1,0) -> 0 | K39: =IF(L40>=$A3/2,1,0) -> 0 | M39: =IF(N40>=$A3/2,1,0) -> 0 | O39: =IF(P40>=$A3/2,1,0) -> 0 | Q39: =IF(R40>=$A3/2,1,0) -> 0 | S39: =IF(T40>=$A3/2,1,0) -> 0 | U39: =IF(V40>=$A3/2,1,0) -> 0 | W39: =IF(X40>=$A3/2,1,0) -> 0 | Y39: =IF(Z40>=$A3/2,1,0) -> 0 | AA39: =IF(AB40>=$A3/2,1,0) -> 0 | AC39: =IF(AD40>=$A3/2,1,0) -> 0
C40: =IF(SUM(C45:C336)<-1000,-100000000,SUM(C45:C336)) -> -100000000 | D40: =COUNT(D45:D336) -> 0 | E40: =IF(SUM(E45:E336)<-1000,-100000000,SUM(E45:E336)) -> -100000000 | F40: =COUNT(F45:F336) -> 0 | G40: =IF(SUM(G45:G336)<-1000,-100000000,SUM(G45:G336)) -> -100000000 | H40: =COUNT(H45:H336) -> 0 | I40: =IF(SUM(I45:I336)<-1000,-100000000,SUM(I45:I336)) -> -100000000 | J40: =COUNT(J45:J336) -> 0 | K40: =IF(SUM(K45:K336)<-1000,-100000000,SUM(K45:K336)) -> -100000000 | L40: =COUNT(L45:L336) -> 0 | M40: =IF(SUM(M45:M336)<-1000,-100000000,SUM(M45:M336)) -> -100000000 | N40: =COUNT(N45:N336) -> 0 | O40: =IF(SUM(O45:O336)<-1000,-100000000,SUM(O45:O336)) -> -100000000 | P40: =COUNT(P45:P336) -> 0 | Q40: =IF(SUM(Q45:Q336)<-1000,-100000000,SUM(Q45:Q336)) -> -100000000 | R40: =COUNT(R45:R336) -> 0 | S40: =IF(SUM(S45:S336)<-1000,-100000000,SUM(S45:S336)) -> -100000000 | T40: =COUNT(T45:T336) -> 0 | U40: =IF(SUM(U45:U336)<-1000,-100000000,SUM(U45:U336)) -> -100000000 | V40: =COUNT(V45:V336) -> 0 | W40: =IF(SUM(W45:W336)<-1000,-100000000,SUM(W45:W336)) -> -100000000 | X40: =COUNT(X45:X336) -> 0 | Y40: =IF(SUM(Y45:Y336)<-1000,-100000000,SUM(Y45:Y336)) -> -100000000 | Z40: =COUNT(Z45:Z336) -> 0 | AA40: =IF(SUM(AA45:AA336)<-1000,-100000000,SUM(AA45:AA336)) -> -100000000 | AB40: =COUNT(AB45:AB336) -> 0 | AC40: =IF(SUM(AC45:AC336)<-1000,-100000000,SUM(AC45:AC336)) -> -100000000 | AD40: =COUNT(AD45:AD336) -> 0
D41: =IF(D40=0,0.0001,AVERAGE(D45:D251)) -> 0.0001 | F41: =IF(F40=0,0.0001,AVERAGE(F45:F251)) -> 0.0001 | H41: =IF(H40=0,0.0001,AVERAGE(H45:H251)) -> 0.0001 | J41: =IF(J40=0,0.0001,AVERAGE(J45:J251)) -> 0.0001 | L41: =IF(L40=0,0.0001,AVERAGE(L45:L251)) -> 0.0001 | N41: =IF(N40=0,0.0001,AVERAGE(N45:N251)) -> 0.0001 | P41: =IF(P40=0,0.0001,AVERAGE(P45:P251)) -> 0.0001 | R41: =IF(R40=0,0.0001,AVERAGE(R45:R251)) -> 0.0001 | T41: =IF(T40=0,0.0001,AVERAGE(T45:T251)) -> 0.0001 | V41: =IF(V40=0,0.0001,AVERAGE(V45:V251)) -> 0.0001 | X41: =IF(X40=0,0.0001,AVERAGE(X45:X251)) -> 0.0001 | Z41: =IF(Z40=0,0.0001,AVERAGE(Z45:Z251)) -> 0.0001 | AB41: =IF(AB40=0,0.0001,AVERAGE(AB45:AB251)) -> 0.0001 | AD41: =IF(AD40=0,0.0001,AVERAGE(AD45:AD251)) -> 0.0001
AE42: =MAX(AF45:AF251) -> 0
B43: Comentaris | C43: Grau | E43: Manolo | G43: Jordi | I43: Tito | K43: Goretti | M43: Sergi | O43: Carles | Q43: Mariajo | S43: Cyber X | U43: Nin | W43: Òscar | Y43: Mercè | AA43: Anna | AC43: Oleguer | AE43: =COUNT(AE45:AE251) -> 0 | AF43: A | AG43: B | AH43: C | AJ43: =SUM(AJ45:AJ251) -> -11 | AL43: =AVERAGE(AL46:AL251) -> 0
C44: Premi | D44: Punts | E44: Premi | F44: Punts | G44: Premi | H44: Punts | I44: Premi | J44: Punts | K44: Premi | L44: Punts | M44: Premi | N44: Punts | O44: Premi | P44: Punts | Q44: Premi | R44: Punts | S44: Premi | T44: Punts | U44: Premi | V44: Punts | W44: Premi | X44: Punts | Y44: Premi | Z44: Punts | AA44: Premi | AB44: Punts | AC44: Premi | AD44: Punts | AE44: Data | AF44: Timba | AJ44: Excés cyber
A45: 1 | C45: -10000 | E45: -10000 | G45: -10000 | I45: -10000 | K45: -10000 | M45: -10000 | O45: -10000 | Q45: -10000 | S45: -10000 | U45: -10000 | W45: -10000 | Y45: -10000 | AA45: -10000 | AC45: -10000 | AG45: =+AC45+Y45+W45+U45+S45+Q45+O45+M45+K45+I45+G45+E45+C45+AJ45 -> -130000 | AH45: =COUNT(C45:AD45)/2 -> 7 | AI45: =+AG45/AH45 -> -18571.42857
A46: =+A45+1 -> 2 | AG46: =+AC46+Y46+W46+U46+S46+Q46+O46+M46+K46+I46+G46+E46+C46+AK46 -> 0 | AH46: =COUNT(C46:AD46)/2 -> 0 | AI46: =+AG46/AH46 ->  | AK46: =SUM(C46:X46) -> 0 | AL46: =+AK46/26 -> 0
A47: =+A46+1 -> 3 | AG47: 0 | AH47: =COUNT(C47:AD47)/2 -> 0 | AI47: =+AG47/AH47 ->  | AK47: =SUM(C47:X47) -> 0 | AL47: =+AK47/26 -> 0
A48: 4 | AG48: 0 | AH48: =COUNT(C48:AD48)/2 -> 0 | AI48: =+AG48/AH48 ->  | AK48: 0 | AL48: 0
A49: 5 | AG49: 0 | AH49: =COUNT(C49:AD49)/2 -> 0 | AI49: =+AG49/AH49 ->  | AK49: 0 | AL49: 0
A50: 6 | AG50: 0 | AH50: 0 | AK50: 0 | AL50: 0
A51: 7 | AG51: 0 | AH51: 0 | AK51: 0 | AL51: 0
A52: 8 | AG52: 0 | AH52: 0 | AK52: 0 | AL52: 0
A53: 9 | AG53: 0 | AH53: 0 | AK53: 0 | AL53: 0
A54: =+A53+1 -> 10 | AG54: 0 | AH54: 0 | AK54: 0 | AL54: 0
A55: 11 | AG55: 0 | AH55: 0 | AK55: 0 | AL55: 0
A56: 12 | AG56: 0 | AH56: 0 | AK56: 0 | AL56: 0
A57: 13 | AG57: 0 | AH57: 0 | AK57: 0 | AL57: 0
A58: 14 | AG58: 0 | AH58: 0 | AK58: 0 | AL58: 0
A59: 15 | AG59: 0 | AH59: 0 | AK59: 0 | AL59: 0
A60: 16 | AG60: 0 | AH60: 0 | AK60: 0 | AL60: 0
A61: 17 | AG61: 0 | AH61: 0 | AK61: 0 | AL61: 0
A62: 18 | AG62: 0 | AH62: 0 | AK62: 0 | AL62: 0
A63: 19 | AG63: 0 | AH63: 0 | AK63: 0 | AL63: 0
A64: 20 | AG64: 0 | AH64: 0 | AK64: 0 | AL64: 0
A65: 21 | AG65: 0 | AH65: 0 | AK65: 0 | AL65: 0
A66: 22 | AG66: 0 | AH66: 0 | AK66: 0 | AL66: 0
A67: 23 | AG67: 0 | AH67: 0 | AK67: 0 | AL67: 0
A68: 24 | AG68: 0 | AH68: 0 | AK68: 0 | AL68: 0
A69: 25 | AG69: 0 | AH69: 0 | AK69: 0 | AL69: 0
A70: 26 | AG70: 0 | AH70: 0 | AK70: 0 | AL70: 0
A71: 27 | AG71: 0 | AH71: 0 | AK71: 0 | AL71: 0
A72: 28 | AG72: 0 | AH72: 0 | AK72: 0 | AL72: 0
A73: 29 | AG73: 0 | AH73: 0 | AK73: 0 | AL73: 0
A74: 30 | AG74: 0 | AH74: 0 | AK74: 0 | AL74: 0
A75: 31 | AG75: 0 | AH75: 0 | AK75: 0 | AL75: 0
A76: 32 | AG76: 0 | AH76: 0 | AK76: 0 | AL76: 0
A77: 33 | AG77: 0 | AH77: 0 | AK77: 0 | AL77: 0
A78: 34 | AG78: 0 | AH78: 0 | AK78: 0 | AL78: 0
A79: 35 | AG79: 0 | AH79: 0 | AK79: 0 | AL79: 0
A80: 36 | AG80: 0 | AH80: 0 | AK80: 0 | AL80: 0
A81: 37 | AG81: 0 | AH81: =COUNT(C81:AD81)/2 -> 0 | AI81: =+AG81/AH81 ->  | AK81: 0 | AL81: 0
A82: 38 | AG82: 0 | AH82: 0 | AK82: 0 | AL82: 0
A83: 39 | AG83: =+AC83+Y83+W83+U83+S83+Q83+O83+M83+K83+I83+G83+E83+C83+AJ83 -> -4 | AH83: 0 | AJ83: -4 | AK83: 0 | AL83: =+AK83*0.5/26 -> 0
A84: 40 | AG84: =+AC84+Y84+W84+U84+S84+Q84+O84+M84+K84+I84+G84+E84+C84+AJ84 -> 3 | AH84: 0 | AJ84: 3 | AK84: 0 | AL84: =+AK84*0.5/26 -> 0
A85: 41 | AG85: 0 | AH85: 0 | AK85: =SUM(C85:X85) -> 0 | AL85: =+AK85/26 -> 0
A86: 42 | AG86: 0 | AH86: 0 | AK86: 0 | AL86: =+AK86/26 -> 0
A87: 43 | AG87: 0 | AH87: 0 | AK87: 0 | AL87: =+AK87/26 -> 0
A88: 44 | AG88: -10 | AH88: 0 | AJ88: -10 | AK88: 0 | AL88: =+AK88*0.5/26 -> 0
A89: 45 | AG89: 0 | AH89: 0 | AJ89: 0 | AK89: 0 | AL89: =+AK89*0.5/26 -> 0
A90: =+A89+1 -> 46 | AG90: 0 | AH90: 0 | AK90: 0 | AL90: =+AK90/26 -> 0
A91: 47 | AG91: 0 | AH91: 0 | AK91: =SUM(C91:X91) -> 0 | AL91: =+AK91/26 -> 0
A92: 48 | AG92: 0 | AH92: 0 | AK92: 0 | AL92: =+AK92/26 -> 0
A93: 49 | AG93: 0 | AH93: 0 | AK93: 0 | AL93: =+AK93/26 -> 0
A94: 50 | AG94: 0 | AH94: 0 | AK94: 0 | AL94: =+AK94/26 -> 0
A95: 51 | AG95: 0 | AH95: 0 | AK95: 0
A96: 52 | AG96: 0 | AH96: 0 | AK96: 0
A97: 53 | AG97: 0 | AH97: 0 | AK97: 0
A98: 54 | AG98: 0 | AH98: 0 | AK98: 0
A99: 55 | AG99: 0 | AH99: 0 | AK99: 0
A100: 56 | AG100: 0 | AH100: 0 | AK100: 0 | AL100: =+AK100/26 -> 0
A101: 57 | AG101: =+AC101+Y101+W101+U101+S101+Q101+O101+M101+K101+I101+G101+E101+C101+AJ101 -> 0 | AH101: =COUNT(C101:AD101)/2 -> 0 | AI101: =+AG101/AH101 ->  | AK101: =SUM(C101:X101) -> 0 | AL101: =+AK101/26 -> 0
